Workbook

Sheet Coversheet
B2: LIGHTEnUP Version 4 | C2: Lifecycle Industry GreenHouse gas, Technology and Energy through the Use Phase
B3: Major Datasets: | C3: AEO 2017 Reference Case
C4: MECS 2010
B6: Prepared By: | C6: For:
B7: William R. Morrow, III | C7: The Advanced Manufacturing Office (AMO)
B8: Lawrence Berkeley National Laboratory | C8: U.S. Department of Energy; Energy Efficiency and Renewable Energy
B9: WRMorrow@lbl.gov | C9: One Cyclotron Road
B10: 510-495-2027 | C10: Berkeley, California, 94720
B12: Tab Color Scheme
B13: Red | C13: No User Input - Information
B14: yellow | C14: User Input
B15: blue | C15: User Input/Output
B16: light gray | C16: No User Input - programmed calculation
B17: dark gray | C17: No User Input - Excel Tool Programming Support (lists used in dropdown menus and formulas)
B19: Cell Color Scheme | C19: Cells within the LIGHTEnUP Tool are color coded using this color scheme
B20: Table Headings and Description | C20: No User Input - defined excel table headings and table instructions
B21: Light gray with red top border | C21: User Input - Used exclusively in the "Scenario Input" tab to highlight when a new scenario begins. Scenario are developed in the rows between this color scheme
B22: Light Blue | C22: User Input - In defined Excel Tables
B23: White
B24: Orange | C24: User Input Dropdown Menu - populated with dropdown lists for user input
B25: Green | C25: No User Input - Returns information either a) "looked up" in datasets, or b) the result of a previous User Input
B26: Gray | C26: No User Input - Intermediate Calculations
B27: Brown | C27: No User Input - Data Sets
B28: Dark gray | C28: No User Input - Excel Tool Programming Support (lists used in dropdown menus and formulas)
B30: Tab Contents
B31: Scenario Input | C31: USER INPUT - Main user input and modeling
B32: Output Table | C32: USER INPUT - Scenario Choice for Forecast & Output Table (Note: Table cells are not color coded so that they can be copied to external communication documents)
B33: Output Chart | C33: USER OUTPUT - Output Chart
B34: Forecast | C34: NO USER INPUT - Scenario Forecasting Formulas
B35: Chart Data | C35: NO USER INPUT - Scenario Data for Output Chart
B36: DeploymentTable | C36: USER INPUT - Deployment equation settings including bass diffusion settings
B37: Energy Factors | C37: USER INPUT - AEO Energy Consumption and Prices by Sector
B38: Grid Factors | C38: USER INPUT - Electricity Sector Primary/Final Conversion Factors
B39: CO2 Factors | C39: USER INPUT - CO2 emissions factors
B40: AEO2017RC | C40: NO USER INPUT - Annual Energy Outlook (AEO) Dataset - AEO 2017 Reference Case
B41: MECS | C41: NO USER INPUT - Manufacturing Energy Consumption Survey (MECS2010) fuel and end-use tables
B42: Lists | C42: NO USER INPUT - Lists required for dropdown menus
B43: AEO Table | C43: NO USER INPUT - AEO Lists required for AEO dropdown menus
B44: AEOMenuTbl | C44: USER INPUT - Selecting AEO Tables available in Scenario Input dropdown menus

Sheet Scenario Input
A1: Scenario & Impact labels and row functionality | C1: Where will energy impacts take place (In what Sectors)? | H1: CO2 Factor | I1: Growth Driver | K1: Energy Price | L1: Dataset Values and Information | U1: What impact? | W1: When? | Z1: Alternate Calculation ↘ | AB1: 2010 | AC1: 2011 | AD1: 2012 | AE1: 2013 | AF1: 2014 | AG1: 2015 | AH1: 2016 | AI1: 2017 | AJ1: 2018 | AK1: 2019 | AL1: 2020 | AM1: 2021 | AN1: 2022 | AO1: 2023 | AP1: 2024 | AQ1: 2025 | AR1: 2026 | AS1: 2027 | AT1: 2028 | AU1: 2029 | AV1: 2030 | AW1: 2031 | AX1: 2032 | AY1: 2033 | AZ1: 2034 | BA1: 2035 | BB1: 2036 | BC1: 2037 | BD1: 2038 | BE1: 2039 | BF1: 2040 | BG1: 2041 | BH1: 2042 | BI1: 2043 | BJ1: 2044 | BK1: 2045 | BL1: 2046 | BM1: 2047 | BN1: 2048 | BO1: 2049 | BP1: 2050 | BR1: Calculation Scratch Pad | DN1: Scenario Sequencing
A2: Description | B2: Row Function | C2: Sector | D2: IF Sector is Industrial, Select MECS End-Use or AEO Table? | E2: IF Sector is Industrial, Select Manufacturing Industry Else Select AEO Table | F2: IF using MECS, then Select Energy Resource Otherwise Select AEO Table Variable | G2: IF Sector is Industrial & MECS-Based, Select Energy End-Use Else leave blank | H2: Energy Resource for CO2 accounting | I2: Forecast Growth Driver (AEO Table) | J2: Forecast Growth Driver (AEO Table Variable) | K2: Energy Prices | L2: Year if other than 2010 (for AEO Data) | M2: AEO Row | N2: AEO Table Variable Data | O2: AEO Growth Driver Row | P2: Energy Price Row | Q2: MECS Sector Energy | R2: MECS End-Use % | S2: MECS End-Use Energy | T2: Data Units | U2: Technical Adoption Potential % | V2: Relative Energy Impact % | W2: Deployment Function | X2: Start Year | Y2: End Year | Z2: Use Alternate Impact Values? | AA2: Alt_Units | AB2: Alt_2010 | AC2: Alt_2011 | AD2: Alt_2012 | AE2: Alt_2013 | AF2: Alt_2014 | AG2: Alt_2015 | AH2: Alt_2016 | AI2: Alt_2017 | AJ2: Alt_2018 | AK2: Alt_2019 | AL2: Alt_2020 | AM2: Alt_2021 | AN2: Alt_2022 | AO2: Alt_2023 | AP2: Alt_2024 | AQ2: Alt_2025 | AR2: Alt_2026 | AS2: Alt_2027 | AT2: Alt_2028 | AU2: Alt_2029 | AV2: Alt_2030 | AW2: Alt_2031 | AX2: Alt_2032 | AY2: Alt_2033 | AZ2: Alt_2034 | BA2: Alt_2035 | BB2: Alt_2036 | BC2: Alt_2037 | BD2: Alt_2038 | BE2: Alt_2039 | BF2: Alt_2040 | BG2: Alt_2041 | BH2: Alt_2042 | BI2: Alt_2043 | BJ2: Alt_2044 | BK2: Alt_2045 | BL2: Alt_2046 | BM2: Alt_2047 | BN2: Alt_2048 | BO2: Alt_2049 | BP2: Alt_2050 | BQ2: Alternate Calculation References | BR2: #1_Description | BS2: #1_Value | BT2: #1_Units | BU2: #1_Ref | BV2: #2_Description | BW2: #2_Value | BX2: #2_Units | BY2: #2_Ref | BZ2: #3_Description | CA2: #3_Value | CB2: #3_Units | CC2: #3_Ref | CD2: #4_Description | CE2: #4_Value | CF2: #4_Units | CG2: #4_Ref | CH2: #5_Description | CI2: #5_Value | CJ2: #5_Units | CK2: #5_Ref | CL2: #6_Description | CM2: #6_Value | CN2: #6_Units | CO2: #6_Ref | CP2: #7_Description | CQ2: #7_Value | CR2: #7_Units | CS2: #7_Ref | CT2: #8_Description | CU2: #8_Value | CV2: #8_Units | CW2: #8_Ref | CX2: #9_Description | CY2: #9_Value | CZ2: #9_Units | DA2: #9_Ref | DB2: #10_Description | DC2: #10_Value | DD2: #10_Units | DE2: #10_Ref | DF2: #11_Description | DG2: #11_Value | DH2: #11_Units | DI2: #11_Ref | DJ2: #12_Description | DK2: #12_Value | DL2: #12_Units | DM2: #12_Ref | DN2: Scenario # | DO2: Forecast Sequence | DP2: Forecast Index
A3: Case Study Example 1: Replace all building lighting with LEDs | B3: New Scenario | M3: =IF(OR($D3="MECS",$F3=""),"",MATCH($F3,AEO2017RC!$BI:$BI,0)) ->  | N3: =IF($M3="","",OFFSET(AEO2016RC[[#Headers],[2011]],$M3-1,IF($L3>0,$L3-2011,0))) ->  | O3: =IF($J3="","",MATCH($J3,AEO2017RC!$BI:$BI,0)) ->  | P3: =IF(TableScenario[[#This Row],[Energy Prices]]="","",MATCH(K3,AEO2017RC!BI:BI,0)) ->  | Q3: =IF($D3="MECS",IF($G3="","",OFFSET(MECS!$D$2,MATCH($E3,ListMECSSector,0),MATCH($F3,MECS!$E$1:$GT$1,0))),"") ->  | R3: =IF($D3="MECS",IF($G3="","",OFFSET(MECS!$D$2,MATCH($E3,ListMECSSector,0),MATCH($F3,MECS!$E$1:$GT$1,0)+2+MATCH($G3,ListMECSEndUse,0))),"") ->  | S3: =IF(TableScenario[[#This Row],[MECS Sector Energy]]="","",TableScenario[[#This Row],[MECS Sector Energy]]*TableScenario[[#This Row],[MECS End-Use %]]) ->  | T3: =IF($Z3,TableScenario[[#This Row],[Alt_Units]],IF(TableScenario[[#This Row],[MECS End-Use Energy]]="",IF($M3="","",OFFSET(AEO2016RC[[#Headers],[Gunits]],$M3-1,0)),IF(F3="Electricity","TWh","Tbtu"))) ->  | DN3: =IF(ROW()-ROW(TableScenario[[#Headers],[Scenario '#]])=1,1,IF(TableScenario[[#This Row],[Row Function]]=Lists!$O$3,DN2+1,DN2)) -> 1 | DO3: =IF(TableScenario[[#This Row],[Scenario '#]]=DN2,IF(TableScenario[[#This Row],[Row Function]]=Lists!$O$5,DO2+1,DO2),0) -> 0 | DP3: =CONCATENATE(TableScenario[[#This Row],[Scenario '#]]," - ",TableScenario[[#This Row],[Forecast Sequence]]) -> 1 - 0 | DR3: =IFERROR(VLOOKUP(I3,'AEO Table'!#REF!,2,FALSE),"") -> 
A4: LEDs for lighting in all Residential buildings | B4: Forecast | C4: Residential | E4: Residential (AEOTbl 4) | F4: Residential : Electricity : Lighting [quads] | H4: Final Electricity | I4: Residential (AEOTbl 4) | J4: Residential : Key Indicators : Households : Total [millions] | K4: Energy Prices : Residential : Electricity [2016 $/MMBtu] | M4: =IF(OR($D4="MECS",$F4=""),"",MATCH($F4,AEO2017RC!$BI:$BI,0)) -> 291 | N4: =IF($M4="","",OFFSET(AEO2016RC[[#Headers],[2011]],$M4-1,IF($L4>0,$L4-2011,0))) -> 0.640916 | O4: =IF($J4="","",MATCH($J4,AEO2017RC!$BI:$BI,0)) -> 278 | P4: =IF(TableScenario[[#This Row],[Energy Prices]]="","",MATCH(K4,AEO2017RC!BI:BI,0)) -> 182 | Q4: =IF($D4="MECS",IF($G4="","",OFFSET(MECS!$D$2,MATCH($E4,ListMECSSector,0),MATCH($F4,MECS!$E$1:$GT$1,0))),"") ->  | R4: =IF($D4="MECS",IF($G4="","",OFFSET(MECS!$D$2,MATCH($E4,ListMECSSector,0),MATCH($F4,MECS!$E$1:$GT$1,0)+2+MATCH($G4,ListMECSEndUse,0))),"") ->  | S4: =IF(TableScenario[[#This Row],[MECS Sector Energy]]="","",TableScenario[[#This Row],[MECS Sector Energy]]*TableScenario[[#This Row],[MECS End-Use %]]) ->  | T4: =IF($Z4,TableScenario[[#This Row],[Alt_Units]],IF(TableScenario[[#This Row],[MECS End-Use Energy]]="",IF($M4="","",OFFSET(AEO2016RC[[#Headers],[Gunits]],$M4-1,0)),IF(F4="Electricity","TWh","Tbtu"))) -> quads | U4: =TableScenario[[#This Row],['#4_Value]] -> 0.7 | V4: =TableScenario[[#This Row],['#8_Value]] -> -0.1140147745 | X4: 2010 | Y4: 2030 | BR4: Average Residential lighting | BS4: 19 | BT4: lm/W | BU4: Ref 1 | BV4: LED - future (2015) performance | BW4: 138 | BX4: lm/W | BY4: Ref 2 | BZ4: 2010 Res Sector Penetration of LED | CA4: 0 | CB4: percent | CC4: Ref 1 | CD4: Technology Adoption Potent | CE4: =0.7-TableScenario[[#This Row],['#3_Value]] -> 0.7 | CF4: percent | CH4: Potential Res Sector Operational Efficiency Improvement | CI4: =(1-BS4/BW4) -> 0.8623188406 | CJ4: percent | CL4: Total electricity demand in 2030 | CM4: 1589.578617 | CN4: TWh | CO4: Lookup | CP4: Ratio of lighting to all electricity demand | CQ4: 0.1322188142 | CS4: from EIA dataset | CT4: Applied Relative Energy Savings | CU4: =-CI4*CQ4 -> -0.1140147745 | DN4: =IF(ROW()-ROW(TableScenario[[#Headers],[Scenario '#]])=1,1,IF(TableScenario[[#This Row],[Row Function]]=Lists!$O$3,DN3+1,DN3)) -> 1 | DO4: =IF(TableScenario[[#This Row],[Scenario '#]]=DN3,IF(TableScenario[[#This Row],[Row Function]]=Lists!$O$5,DO3+1,DO3),0) -> 1 | DP4: =CONCATENATE(TableScenario[[#This Row],[Scenario '#]]," - ",TableScenario[[#This Row],[Forecast Sequence]]) -> 1 - 1 | DR4: =IFERROR(VLOOKUP(I4,'AEO Table'!#REF!,2,FALSE),"") -> 
A5: LEDs for lighting in all Commercial buildings | B5: Forecast | C5: Commercial | E5: Commercial (AEOTbl 5) | F5: Commercial : Purchased Electricity : Lighting [quads] | H5: Final Electricity | I5: Commercial (AEOTbl 5) | J5: Commercial : Total Floorspace : Total [billion sq ft] | K5: Energy Prices : Commercial : Electricity [2016 $/MMBtu] | M5: =IF(OR($D5="MECS",$F5=""),"",MATCH($F5,AEO2017RC!$BI:$BI,0)) -> 384 | N5: =IF($M5="","",OFFSET(AEO2016RC[[#Headers],[2011]],$M5-1,IF($L5>0,$L5-2011,0))) -> 0.943465 | O5: =IF($J5="","",MATCH($J5,AEO2017RC!$BI:$BI,0)) -> 375 | P5: =IF(TableScenario[[#This Row],[Energy Prices]]="","",MATCH(K5,AEO2017RC!BI:BI,0)) -> 187 | Q5: =IF($D5="MECS",IF($G5="","",OFFSET(MECS!$D$2,MATCH($E5,ListMECSSector,0),MATCH($F5,MECS!$E$1:$GT$1,0))),"") ->  | R5: =IF($D5="MECS",IF($G5="","",OFFSET(MECS!$D$2,MATCH($E5,ListMECSSector,0),MATCH($F5,MECS!$E$1:$GT$1,0)+2+MATCH($G5,ListMECSEndUse,0))),"") ->  | S5: =IF(TableScenario[[#This Row],[MECS Sector Energy]]="","",TableScenario[[#This Row],[MECS Sector Energy]]*TableScenario[[#This Row],[MECS End-Use %]]) ->  | T5: =IF($Z5,TableScenario[[#This Row],[Alt_Units]],IF(TableScenario[[#This Row],[MECS End-Use Energy]]="",IF($M5="","",OFFSET(AEO2016RC[[#Headers],[Gunits]],$M5-1,0)),IF(F5="Electricity","TWh","Tbtu"))) -> quads | U5: =TableScenario[[#This Row],['#4_Value]] -> 0.98 | V5: =TableScenario[[#This Row],['#5_Value]] -> -0.4927536232 | X5: 2010 | Y5: 2030 | BR5: Average Commercial lighting | BS5: 70 | BT5: lm/W | BU5: Ref 1 | BV5: LED - future (2015) performance | BW5: 138 | BX5: lm/W | BY5: Ref 2 | BZ5: 2011 Comm Sector Penetration of LED | CA5: 0.02 | CB5: percent | CC5: Ref 1 | CD5: Technology Adoption Potent | CE5: =100%-TableScenario[[#This Row],['#3_Value]] -> 0.98 | CF5: percent | CH5: Potential Comm Sector Operational Efficiency Improvement | CI5: =-(1-BS5/BW5) -> -0.4927536232 | CJ5: percent | DN5: =IF(ROW()-ROW(TableScenario[[#Headers],[Scenario '#]])=1,1,IF(TableScenario[[#This Row],[Row Function]]=Lists!$O$3,DN4+1,DN4)) -> 1 | DO5: =IF(TableScenario[[#This Row],[Scenario '#]]=DN4,IF(TableScenario[[#This Row],[Row Function]]=Lists!$O$5,DO4+1,DO4),0) -> 2 | DP5: =CONCATENATE(TableScenario[[#This Row],[Scenario '#]]," - ",TableScenario[[#This Row],[Forecast Sequence]]) -> 1 - 2 | DR5: =IFERROR(VLOOKUP(I5,'AEO Table'!#REF!,2,FALSE),"") -> 
A6: LEDs for lighting in all Industrial buildings | B6: Forecast | C6: Industrial | D6: MECS | E6: Total Manufacturing | F6: Electricity | G6: Facility Lighting | H6: Final Electricity | I6: Industrial (AEOTbl 6) | J6: Industrial : Value of Shipments : Manufacturing [billion 2009 $] | K6: Energy Prices : Industrial : Electricity [2016 $/MMBtu] | M6: =IF(OR($D6="MECS",$F6=""),"",MATCH($F6,AEO2017RC!$BI:$BI,0)) ->  | N6: =IF($M6="","",OFFSET(AEO2016RC[[#Headers],[2011]],$M6-1,IF($L6>0,$L6-2011,0))) ->  | O6: =IF($J6="","",MATCH($J6,AEO2017RC!$BI:$BI,0)) -> 449 | P6: =IF(TableScenario[[#This Row],[Energy Prices]]="","",MATCH(K6,AEO2017RC!BI:BI,0)) -> 195 | Q6: =IF($D6="MECS",IF($G6="","",OFFSET(MECS!$D$2,MATCH($E6,ListMECSSector,0),MATCH($F6,MECS!$E$1:$GT$1,0))),"") -> 873.2246112 | R6: =IF($D6="MECS",IF($G6="","",OFFSET(MECS!$D$2,MATCH($E6,ListMECSSector,0),MATCH($F6,MECS!$E$1:$GT$1,0)+2+MATCH($G6,ListMECSEndUse,0))),"") -> 0.06143217283 | S6: =IF(TableScenario[[#This Row],[MECS Sector Energy]]="","",TableScenario[[#This Row],[MECS Sector Energy]]*TableScenario[[#This Row],[MECS End-Use %]]) -> 53.64408524 | T6: =IF($Z6,TableScenario[[#This Row],[Alt_Units]],IF(TableScenario[[#This Row],[MECS End-Use Energy]]="",IF($M6="","",OFFSET(AEO2016RC[[#Headers],[Gunits]],$M6-1,0)),IF(F6="Electricity","TWh","Tbtu"))) -> TWh | U6: =TableScenario[[#This Row],['#4_Value]] -> 1 | V6: =TableScenario[[#This Row],['#5_Value]] -> -0.4420289855 | X6: 2010 | Y6: 2030 | BR6: Average Industrial lighting | BS6: 77 | BT6: lm/W | BU6: Ref 1 | BV6: LED - future (2015) performance | BW6: 138 | BX6: lm/W | BY6: Ref 2 | BZ6: 2012 Industrial Sector Penetration of LED | CA6: 0 | CB6: percent | CC6: Ref 1 | CD6: Technology Adoption Potent | CE6: =100%-TableScenario[[#This Row],['#3_Value]] -> 1 | CF6: percent | CH6: Potential Industrial Sector Operational Efficiency Improvement | CI6: =-(1-BS6/BW6) -> -0.4420289855 | CJ6: percent | DN6: =IF(ROW()-ROW(TableScenario[[#Headers],[Scenario '#]])=1,1,IF(TableScenario[[#This Row],[Row Function]]=Lists!$O$3,DN5+1,DN5)) -> 1 | DO6: =IF(TableScenario[[#This Row],[Scenario '#]]=DN5,IF(TableScenario[[#This Row],[Row Function]]=Lists!$O$5,DO5+1,DO5),0) -> 3 | DP6: =CONCATENATE(TableScenario[[#This Row],[Scenario '#]]," - ",TableScenario[[#This Row],[Forecast Sequence]]) -> 1 - 3 | DR6: =IFERROR(VLOOKUP(I6,'AEO Table'!#REF!,2,FALSE),"") -> 
A7: Electric lamp bulb and part Sector Fuel Impact (NAICS 335110 ) | B7: Forecast | C7: Industrial | D7: MECS | E7: ELEC. EQUIP., APPLIANCES, COMPONENTS | F7: All Non-Electricity | G7: TOTAL FUEL CONSUMPTION | H7: NG | I7: Residential (AEOTbl 4) | J7: Residential : Key Indicators : Households : Total [millions] | K7: Energy Prices : Industrial : Natural Gas [2016 $/MMBtu] | M7: =IF(OR($D7="MECS",$F7=""),"",MATCH($F7,AEO2017RC!$BI:$BI,0)) ->  | N7: =IF($M7="","",OFFSET(AEO2016RC[[#Headers],[2011]],$M7-1,IF($L7>0,$L7-2011,0))) ->  | O7: =IF($J7="","",MATCH($J7,AEO2017RC!$BI:$BI,0)) -> 278 | P7: =IF(TableScenario[[#This Row],[Energy Prices]]="","",MATCH(K7,AEO2017RC!BI:BI,0)) -> 191 | Q7: =IF($D7="MECS",IF($G7="","",OFFSET(MECS!$D$2,MATCH($E7,ListMECSSector,0),MATCH($F7,MECS!$E$1:$GT$1,0))),"") -> 32.980393 | R7: =IF($D7="MECS",IF($G7="","",OFFSET(MECS!$D$2,MATCH($E7,ListMECSSector,0),MATCH($F7,MECS!$E$1:$GT$1,0)+2+MATCH($G7,ListMECSEndUse,0))),"") -> 1 | S7: =IF(TableScenario[[#This Row],[MECS Sector Energy]]="","",TableScenario[[#This Row],[MECS Sector Energy]]*TableScenario[[#This Row],[MECS End-Use %]]) -> 32.980393 | T7: =IF($Z7,TableScenario[[#This Row],[Alt_Units]],IF(TableScenario[[#This Row],[MECS End-Use Energy]]="",IF($M7="","",OFFSET(AEO2016RC[[#Headers],[Gunits]],$M7-1,0)),IF(F7="Electricity","TWh","Tbtu"))) -> Tbtu | U7: 1 | V7: =TableScenario[[#This Row],['#5_Value]] -> -0.0119379845 | X7: 2010 | Y7: 2030 | BR7: 2010 NAICS 335 Energy Use | BS7: =TableScenario[[#This Row],[MECS End-Use Energy]] -> 32.980393 | BT7: TBTU | BU7: MECS database | BV7: Value of 335 shipments | BW7: 129 | BX7: $ Billion | BY7: Ref 5 | BZ7: Value of 33511 building shipments | CA7: 1.54 | CB7: $ Billion | CC7: Ref 4 and 5 | CD7: 2006 NAICS 33511 Energy Use (specific to res and nonres buildings) | CE7: =BS7*(CA7/BW7) -> 0.3937194203 | CF7: TBTU | CH7: % change in 335 from LED implementation | CI7: =-CE7/BS7 -> -0.0119379845 | CJ7: percent | DN7: =IF(ROW()-ROW(TableScenario[[#Headers],[Scenario '#]])=1,1,IF(TableScenario[[#This Row],[Row Function]]=Lists!$O$3,DN6+1,DN6)) -> 1 | DO7: =IF(TableScenario[[#This Row],[Scenario '#]]=DN6,IF(TableScenario[[#This Row],[Row Function]]=Lists!$O$5,DO6+1,DO6),0) -> 4 | DP7: =CONCATENATE(TableScenario[[#This Row],[Scenario '#]]," - ",TableScenario[[#This Row],[Forecast Sequence]]) -> 1 - 4 | DR7: =IFERROR(VLOOKUP(I7,'AEO Table'!#REF!,2,FALSE),"") -> 
A8: Electric lamp bulb and part Sector Elec Impact (NAICS 335110 ) | B8: Forecast | C8: Industrial | D8: MECS | E8: ELEC. EQUIP., APPLIANCES, COMPONENTS | F8: Electricity | G8: TOTAL FUEL CONSUMPTION | H8: Final Electricity | I8: Residential (AEOTbl 4) | J8: Residential : Key Indicators : Households : Total [millions] | K8: Energy Prices : Industrial : Electricity [2016 $/MMBtu] | M8: =IF(OR($D8="MECS",$F8=""),"",MATCH($F8,AEO2017RC!$BI:$BI,0)) ->  | N8: =IF($M8="","",OFFSET(AEO2016RC[[#Headers],[2011]],$M8-1,IF($L8>0,$L8-2011,0))) ->  | O8: =IF($J8="","",MATCH($J8,AEO2017RC!$BI:$BI,0)) -> 278 | P8: =IF(TableScenario[[#This Row],[Energy Prices]]="","",MATCH(K8,AEO2017RC!BI:BI,0)) -> 195 | Q8: =IF($D8="MECS",IF($G8="","",OFFSET(MECS!$D$2,MATCH($E8,ListMECSSector,0),MATCH($F8,MECS!$E$1:$GT$1,0))),"") -> 10.01362067 | R8: =IF($D8="MECS",IF($G8="","",OFFSET(MECS!$D$2,MATCH($E8,ListMECSSector,0),MATCH($F8,MECS!$E$1:$GT$1,0)+2+MATCH($G8,ListMECSEndUse,0))),"") -> 1 | S8: =IF(TableScenario[[#This Row],[MECS Sector Energy]]="","",TableScenario[[#This Row],[MECS Sector Energy]]*TableScenario[[#This Row],[MECS End-Use %]]) -> 10.01362067 | T8: =IF($Z8,TableScenario[[#This Row],[Alt_Units]],IF(TableScenario[[#This Row],[MECS End-Use Energy]]="",IF($M8="","",OFFSET(AEO2016RC[[#Headers],[Gunits]],$M8-1,0)),IF(F8="Electricity","TWh","Tbtu"))) -> TWh | U8: 1 | V8: =TableScenario[[#This Row],['#5_Value]] -> -0.0119379845 | X8: 2010 | Y8: 2030 | BR8: 2010 NAICS 335 Electricity Use | BS8: =TableScenario[[#This Row],[MECS End-Use Energy]]*CONVERT(1,"wh","BTU") -> 34.167892 | BT8: TBTU | BU8: MECS database | BV8: Value of 335 shipments | BW8: 129 | BX8: $ Billion | BY8: Ref 5 | BZ8: Value of 33511 building shipments | CA8: 1.54 | CB8: $ Billion | CC8: Ref 4 and 5 | CD8: 2006 NAICS 33511 Energy Use (specific to res and nonres buildings) | CE8: =BS8*(CA8/BW8) -> 0.407895765 | CF8: TBTU | CH8: % change in 334413 from LED implementation | CI8: =-CE8/BS8 -> -0.0119379845 | CJ8: percent | DN8: =IF(ROW()-ROW(TableScenario[[#Headers],[Scenario '#]])=1,1,IF(TableScenario[[#This Row],[Row Function]]=Lists!$O$3,DN7+1,DN7)) -> 1 | DO8: =IF(TableScenario[[#This Row],[Scenario '#]]=DN7,IF(TableScenario[[#This Row],[Row Function]]=Lists!$O$5,DO7+1,DO7),0) -> 5 | DP8: =CONCATENATE(TableScenario[[#This Row],[Scenario '#]]," - ",TableScenario[[#This Row],[Forecast Sequence]]) -> 1 - 5 | DR8: =IFERROR(VLOOKUP(I8,'AEO Table'!#REF!,2,FALSE),"") -> 
A9: Semiconductor Sector Fuel Impact (NAICS 334413) | B9: Forecast | C9: Industrial | D9: MECS | E9: Semiconductors and Related Devices | F9: All Non-Electricity | G9: TOTAL FUEL CONSUMPTION | H9: NG | I9: Residential (AEOTbl 4) | J9: Residential : Key Indicators : Households : Total [millions] | K9: Energy Prices : Industrial : Natural Gas [2016 $/MMBtu] | M9: =IF(OR($D9="MECS",$F9=""),"",MATCH($F9,AEO2017RC!$BI:$BI,0)) ->  | N9: =IF($M9="","",OFFSET(AEO2016RC[[#Headers],[2011]],$M9-1,IF($L9>0,$L9-2011,0))) ->  | O9: =IF($J9="","",MATCH($J9,AEO2017RC!$BI:$BI,0)) -> 278 | P9: =IF(TableScenario[[#This Row],[Energy Prices]]="","",MATCH(K9,AEO2017RC!BI:BI,0)) -> 191 | Q9: =IF($D9="MECS",IF($G9="","",OFFSET(MECS!$D$2,MATCH($E9,ListMECSSector,0),MATCH($F9,MECS!$E$1:$GT$1,0))),"") -> 72.835205 | R9: =IF($D9="MECS",IF($G9="","",OFFSET(MECS!$D$2,MATCH($E9,ListMECSSector,0),MATCH($F9,MECS!$E$1:$GT$1,0)+2+MATCH($G9,ListMECSEndUse,0))),"") -> 1 | S9: =IF(TableScenario[[#This Row],[MECS Sector Energy]]="","",TableScenario[[#This Row],[MECS Sector Energy]]*TableScenario[[#This Row],[MECS End-Use %]]) -> 72.835205 | T9: =IF($Z9,TableScenario[[#This Row],[Alt_Units]],IF(TableScenario[[#This Row],[MECS End-Use Energy]]="",IF($M9="","",OFFSET(AEO2016RC[[#Headers],[Gunits]],$M9-1,0)),IF(F9="Electricity","TWh","Tbtu"))) -> Tbtu | U9: 1 | V9: =TableScenario[[#This Row],['#5_Value]] -> 0.5956785347 | X9: 2010 | Y9: 2030 | BR9: 2010 NAICS 334413 Energy Use | BS9: =TableScenario[[#This Row],[MECS End-Use Energy]] -> 72.835205 | BT9: TBTU | BU9: MECS database | BZ9: Energy to produce 0.5 billion LED (2015) | CA9: 102 | CB9: TBTU | CC9: Ref 2 | CH9: % change in 334413 from LED implementation | CI9: =CA9/(BS9+BS10) -> 0.5956785347 | CJ9: percent | DN9: =IF(ROW()-ROW(TableScenario[[#Headers],[Scenario '#]])=1,1,IF(TableScenario[[#This Row],[Row Function]]=Lists!$O$3,DN8+1,DN8)) -> 1 | DO9: =IF(TableScenario[[#This Row],[Scenario '#]]=DN8,IF(TableScenario[[#This Row],[Row Function]]=Lists!$O$5,DO8+1,DO8),0) -> 6 | DP9: =CONCATENATE(TableScenario[[#This Row],[Scenario '#]]," - ",TableScenario[[#This Row],[Forecast Sequence]]) -> 1 - 6 | DR9: =IFERROR(VLOOKUP(I9,'AEO Table'!#REF!,2,FALSE),"") -> 
A10: Semiconductor Sector Elec Impact (NAICS 334413) | B10: Forecast | C10: Industrial | D10: MECS | E10: Semiconductors and Related Devices | F10: Electricity | G10: TOTAL FUEL CONSUMPTION | H10: Final Electricity | I10: Residential (AEOTbl 4) | J10: Residential : Key Indicators : Households : Total [millions] | K10: Energy Prices : Industrial : Electricity [2016 $/MMBtu] | M10: =IF(OR($D10="MECS",$F10=""),"",MATCH($F10,AEO2017RC!$BI:$BI,0)) ->  | N10: =IF($M10="","",OFFSET(AEO2016RC[[#Headers],[2011]],$M10-1,IF($L10>0,$L10-2011,0))) ->  | O10: =IF($J10="","",MATCH($J10,AEO2017RC!$BI:$BI,0)) -> 278 | P10: =IF(TableScenario[[#This Row],[Energy Prices]]="","",MATCH(K10,AEO2017RC!BI:BI,0)) -> 195 | Q10: =IF($D10="MECS",IF($G10="","",OFFSET(MECS!$D$2,MATCH($E10,ListMECSSector,0),MATCH($F10,MECS!$E$1:$GT$1,0))),"") -> 28.8376344 | R10: =IF($D10="MECS",IF($G10="","",OFFSET(MECS!$D$2,MATCH($E10,ListMECSSector,0),MATCH($F10,MECS!$E$1:$GT$1,0)+2+MATCH($G10,ListMECSEndUse,0))),"") -> 1 | S10: =IF(TableScenario[[#This Row],[MECS Sector Energy]]="","",TableScenario[[#This Row],[MECS Sector Energy]]*TableScenario[[#This Row],[MECS End-Use %]]) -> 28.8376344 | T10: =IF($Z10,TableScenario[[#This Row],[Alt_Units]],IF(TableScenario[[#This Row],[MECS End-Use Energy]]="",IF($M10="","",OFFSET(AEO2016RC[[#Headers],[Gunits]],$M10-1,0)),IF(F10="Electricity","TWh","Tbtu"))) -> TWh | U10: 1 | V10: =TableScenario[[#This Row],['#5_Value]] -> 0.5956785347 | X10: 2010 | Y10: 2030 | BR10: 2010 NAICS 334413 Elec Use | BS10: =TableScenario[[#This Row],[MECS End-Use Energy]]*CONVERT(1,"wh","BTU") -> 98.39809294 | BT10: TBTU | BU10: MECS database | CH10: % change in 334413 from LED implementation | CI10: =CA9/(BS9+BS10) -> 0.5956785347 | CJ10: percent | DN10: =IF(ROW()-ROW(TableScenario[[#Headers],[Scenario '#]])=1,1,IF(TableScenario[[#This Row],[Row Function]]=Lists!$O$3,DN9+1,DN9)) -> 1 | DO10: =IF(TableScenario[[#This Row],[Scenario '#]]=DN9,IF(TableScenario[[#This Row],[Row Function]]=Lists!$O$5,DO9+1,DO9),0) -> 7 | DP10: =CONCATENATE(TableScenario[[#This Row],[Scenario '#]]," - ",TableScenario[[#This Row],[Forecast Sequence]]) -> 1 - 7 | DR10: =IFERROR(VLOOKUP(I10,'AEO Table'!#REF!,2,FALSE),"") -> 
A11: Transportation for building light bulbs | B11: Forecast | C11: Transportation | E11: Transportation (AEOTbl 7) | F11: Transportation : Energy Use by Mode : Freight Trucks [quads] | H11: Gasoline | I11: Residential (AEOTbl 4) | J11: Residential : Key Indicators : Households : Total [millions] | K11: Energy Prices : Transportation : Motor Gasoline [2016 $/MMBtu] | M11: =IF(OR($D11="MECS",$F11=""),"",MATCH($F11,AEO2017RC!$BI:$BI,0)) -> 600 | N11: =IF($M11="","",OFFSET(AEO2016RC[[#Headers],[2011]],$M11-1,IF($L11>0,$L11-2011,0))) -> 5.174769 | O11: =IF($J11="","",MATCH($J11,AEO2017RC!$BI:$BI,0)) -> 278 | P11: =IF(TableScenario[[#This Row],[Energy Prices]]="","",MATCH(K11,AEO2017RC!BI:BI,0)) -> 198 | Q11: =IF($D11="MECS",IF($G11="","",OFFSET(MECS!$D$2,MATCH($E11,ListMECSSector,0),MATCH($F11,MECS!$E$1:$GT$1,0))),"") ->  | R11: =IF($D11="MECS",IF($G11="","",OFFSET(MECS!$D$2,MATCH($E11,ListMECSSector,0),MATCH($F11,MECS!$E$1:$GT$1,0)+2+MATCH($G11,ListMECSEndUse,0))),"") ->  | S11: =IF(TableScenario[[#This Row],[MECS Sector Energy]]="","",TableScenario[[#This Row],[MECS Sector Energy]]*TableScenario[[#This Row],[MECS End-Use %]]) ->  | T11: =IF($Z11,TableScenario[[#This Row],[Alt_Units]],IF(TableScenario[[#This Row],[MECS End-Use Energy]]="",IF($M11="","",OFFSET(AEO2016RC[[#Headers],[Gunits]],$M11-1,0)),IF(F11="Electricity","TWh","Tbtu"))) -> quads | U11: 1 | V11: =TableScenario[[#This Row],['#5_Value]] -> 0.001482224892 | X11: 2010 | Y11: 2030 | BR11: 2002 Values of U.S. Commercial Freight Shipments | BS11: 10500 | BT11: $ Billion | BU11: Ref 6 | BV11: NAICS 33511 2010 total Shipping Mass | BW11: 8645015525 | BX11: g | BY11: Ref 1, 2, and 5 | BZ11: LED - future (2015) Shipping Mass (0.5 billion LED) | CA11: 9.60122237e+10 | CB11: g | CC11: Ref 2 | CD11: Percent change in transportation energy with shift to LED (2015) | CE11: =TableScenario[[#This Row],['#3_Value]]/TableScenario[[#This Row],['#2_Value]]-1 -> 10.10607881 | CF11: percent | CH11: Percent change in transportation energy with shift to LED (2015) | CI11: =(CA7/BS11)*CE11 -> 0.001482224892 | CJ11: percent | DN11: =IF(ROW()-ROW(TableScenario[[#Headers],[Scenario '#]])=1,1,IF(TableScenario[[#This Row],[Row Function]]=Lists!$O$3,DN10+1,DN10)) -> 1 | DO11: =IF(TableScenario[[#This Row],[Scenario '#]]=DN10,IF(TableScenario[[#This Row],[Row Function]]=Lists!$O$5,DO10+1,DO10),0) -> 8 | DP11: =CONCATENATE(TableScenario[[#This Row],[Scenario '#]]," - ",TableScenario[[#This Row],[Forecast Sequence]]) -> 1 - 8 | DR11: =IFERROR(VLOOKUP(I11,'AEO Table'!#REF!,2,FALSE),"") -> 
A12: Case Study Example 1A: 100% of 2035 LDV VMTs Light-weighted by 5 kg | B12: New Scenario | M12: =IF(OR($D12="MECS",$F12=""),"",MATCH($F12,AEO2017RC!$BI:$BI,0)) ->  | N12: =IF($M12="","",OFFSET(AEO2016RC[[#Headers],[2011]],$M12-1,IF($L12>0,$L12-2011,0))) ->  | O12: =IF($J12="","",MATCH($J12,AEO2017RC!$BI:$BI,0)) ->  | P12: =IF(TableScenario[[#This Row],[Energy Prices]]="","",MATCH(K12,AEO2017RC!BI:BI,0)) ->  | Q12: =IF($D12="MECS",IF($G12="","",OFFSET(MECS!$D$2,MATCH($E12,ListMECSSector,0),MATCH($F12,MECS!$E$1:$GT$1,0))),"") ->  | R12: =IF($D12="MECS",IF($G12="","",OFFSET(MECS!$D$2,MATCH($E12,ListMECSSector,0),MATCH($F12,MECS!$E$1:$GT$1,0)+2+MATCH($G12,ListMECSEndUse,0))),"") ->  | S12: =IF(TableScenario[[#This Row],[MECS Sector Energy]]="","",TableScenario[[#This Row],[MECS Sector Energy]]*TableScenario[[#This Row],[MECS End-Use %]]) ->  | T12: =IF($Z12,TableScenario[[#This Row],[Alt_Units]],IF(TableScenario[[#This Row],[MECS End-Use Energy]]="",IF($M12="","",OFFSET(AEO2016RC[[#Headers],[Gunits]],$M12-1,0)),IF(F12="Electricity","TWh","Tbtu"))) ->  | DG12: =TableScenario[[#This Row],['#9_Value]]*TableScenario[[#This Row],['#10_Value]] -> 0 | DN12: =IF(ROW()-ROW(TableScenario[[#Headers],[Scenario '#]])=1,1,IF(TableScenario[[#This Row],[Row Function]]=Lists!$O$3,DN11+1,DN11)) -> 2 | DO12: =IF(TableScenario[[#This Row],[Scenario '#]]=DN11,IF(TableScenario[[#This Row],[Row Function]]=Lists!$O$5,DO11+1,DO11),0) -> 0 | DP12: =CONCATENATE(TableScenario[[#This Row],[Scenario '#]]," - ",TableScenario[[#This Row],[Forecast Sequence]]) -> 2 - 0
A13: Transportation: Light-Weighted LDVs | B13: Forecast | C13: Transportation | H13: Gasoline | K13: Energy Prices : Transportation : Motor Gasoline [2016 $/MMBtu] | M13: =IF(OR($D13="MECS",$F13=""),"",MATCH($F13,AEO2017RC!$BI:$BI,0)) ->  | N13: =IF($M13="","",OFFSET(AEO2016RC[[#Headers],[2011]],$M13-1,IF($L13>0,$L13-2011,0))) ->  | O13: =IF($J13="","",MATCH($J13,AEO2017RC!$BI:$BI,0)) ->  | P13: =IF(TableScenario[[#This Row],[Energy Prices]]="","",MATCH(K13,AEO2017RC!BI:BI,0)) -> 198 | Q13: =IF($D13="MECS",IF($G13="","",OFFSET(MECS!$D$2,MATCH($E13,ListMECSSector,0),MATCH($F13,MECS!$E$1:$GT$1,0))),"") ->  | R13: =IF($D13="MECS",IF($G13="","",OFFSET(MECS!$D$2,MATCH($E13,ListMECSSector,0),MATCH($F13,MECS!$E$1:$GT$1,0)+2+MATCH($G13,ListMECSEndUse,0))),"") ->  | S13: =IF(TableScenario[[#This Row],[MECS Sector Energy]]="","",TableScenario[[#This Row],[MECS Sector Energy]]*TableScenario[[#This Row],[MECS End-Use %]]) ->  | T13: =IF($Z13,TableScenario[[#This Row],[Alt_Units]],IF(TableScenario[[#This Row],[MECS End-Use Energy]]="",IF($M13="","",OFFSET(AEO2016RC[[#Headers],[Gunits]],$M13-1,0)),IF(F13="Electricity","TWh","Tbtu"))) -> TBtu | Z13: TRUE | AA13: TBtu | AB13: 0 | AC13: 0 | AD13: 0 | AE13: 0 | AF13: 0 | AG13: 0 | AH13: 0 | AI13: 0 | AJ13: -0.05648095547 | AK13: -0.1684656888 | AL13: -0.3370962033 | AM13: -0.5600810046 | AN13: -0.893173233 | AO13: -1.338932258 | AP13: -2.012577334 | AQ13: -2.922917811 | AR13: -4.299486074 | AS13: -5.919625648 | AT13: -7.779360859 | AU13: -9.754527132 | AV13: -11.83908661 | AW13: -13.91400592 | AX13: -15.98852929 | AY13: -18.06769037 | AZ13: -20.16285921 | BA13: -22.16269296 | BB13: -24.06617961 | BC13: -25.75545706 | BD13: -27.22175301 | BE13: -28.23266418 | BF13: -29.01036164 | BG13: -29.54846346 | BH13: -29.97113422 | BI13: -30.28441178 | BJ13: -30.55084855 | BK13: -30.76217748 | BL13: -30.91222292 | BM13: -30.99190632 | BN13: -31.05681737 | BO13: -31.10540873 | BP13: -31.14032325 | BQ13: Project 1 Excel Calculations - High-Low_2015-7-6.xlsx; "Calculations" tab; Rows 97-101 | DG13: =TableScenario[[#This Row],['#9_Value]]*TableScenario[[#This Row],['#10_Value]] -> 0 | DN13: =IF(ROW()-ROW(TableScenario[[#Headers],[Scenario '#]])=1,1,IF(TableScenario[[#This Row],[Row Function]]=Lists!$O$3,DN12+1,DN12)) -> 2 | DO13: =IF(TableScenario[[#This Row],[Scenario '#]]=DN12,IF(TableScenario[[#This Row],[Row Function]]=Lists!$O$5,DO12+1,DO12),0) -> 1 | DP13: =CONCATENATE(TableScenario[[#This Row],[Scenario '#]]," - ",TableScenario[[#This Row],[Forecast Sequence]]) -> 2 - 1
A14: Steel Material Embodied Energy | B14: Forecast | C14: Industrial | H14: NG | K14: Energy Prices : Industrial : Natural Gas [2016 $/MMBtu] | M14: =IF(OR($D14="MECS",$F14=""),"",MATCH($F14,AEO2017RC!$BI:$BI,0)) ->  | N14: =IF($M14="","",OFFSET(AEO2016RC[[#Headers],[2011]],$M14-1,IF($L14>0,$L14-2011,0))) ->  | O14: =IF($J14="","",MATCH($J14,AEO2017RC!$BI:$BI,0)) ->  | P14: =IF(TableScenario[[#This Row],[Energy Prices]]="","",MATCH(K14,AEO2017RC!BI:BI,0)) -> 191 | Q14: =IF($D14="MECS",IF($G14="","",OFFSET(MECS!$D$2,MATCH($E14,ListMECSSector,0),MATCH($F14,MECS!$E$1:$GT$1,0))),"") ->  | R14: =IF($D14="MECS",IF($G14="","",OFFSET(MECS!$D$2,MATCH($E14,ListMECSSector,0),MATCH($F14,MECS!$E$1:$GT$1,0)+2+MATCH($G14,ListMECSEndUse,0))),"") ->  | S14: =IF(TableScenario[[#This Row],[MECS Sector Energy]]="","",TableScenario[[#This Row],[MECS Sector Energy]]*TableScenario[[#This Row],[MECS End-Use %]]) ->  | T14: =IF($Z14,TableScenario[[#This Row],[Alt_Units]],IF(TableScenario[[#This Row],[MECS End-Use Energy]]="",IF($M14="","",OFFSET(AEO2016RC[[#Headers],[Gunits]],$M14-1,0)),IF(F14="Electricity","TWh","Tbtu"))) -> TBtu | Z14: TRUE | AA14: TBtu | AB14: 0 | AC14: 0 | AD14: 0 | AE14: 0 | AF14: 0 | AG14: 0 | AH14: 0 | AI14: 0 | AJ14: -0.1240890138 | AK14: -0.2460311622 | AL14: -0.3704822989 | AM14: -0.4898990084 | AN14: -0.731805717 | AO14: -0.9793353768 | AP14: -1.48000246 | AQ14: -2.000023742 | AR14: -3.024329116 | AS14: -3.559456816 | AT14: -4.085849934 | AU14: -4.339452702 | AV14: -4.579790251 | AW14: -4.682699784 | AX14: -4.803772022 | AY14: -4.938412236 | AZ14: -5.092998099 | BA14: -5.12545304 | BB14: -5.161307491 | BC14: -5.19135561 | BD14: -5.221485165 | BE14: -5.24530729 | BF14: -5.268063019 | BG14: -5.268063019 | BH14: -5.268063019 | BI14: -5.268063019 | BJ14: -5.268063019 | BK14: -5.268063019 | BL14: -5.268063019 | BM14: -5.268063019 | BN14: -5.268063019 | BO14: -5.268063019 | BP14: -5.268063019 | BQ14: Project 1 Excel Calculations - High-Low_2015-7-6.xlsx; "Calculations" tab; Rows 97-102 | DG14: =TableScenario[[#This Row],['#9_Value]]*TableScenario[[#This Row],['#10_Value]] -> 0 | DN14: =IF(ROW()-ROW(TableScenario[[#Headers],[Scenario '#]])=1,1,IF(TableScenario[[#This Row],[Row Function]]=Lists!$O$3,DN13+1,DN13)) -> 2 | DO14: =IF(TableScenario[[#This Row],[Scenario '#]]=DN13,IF(TableScenario[[#This Row],[Row Function]]=Lists!$O$5,DO13+1,DO13),0) -> 2 | DP14: =CONCATENATE(TableScenario[[#This Row],[Scenario '#]]," - ",TableScenario[[#This Row],[Forecast Sequence]]) -> 2 - 2
A15: Steel Part Manufacturing | B15: Forecast | C15: Industrial | H15: Primary Electricity | K15: Energy Prices : Electric Power : Natural Gas [2016 $/MMBtu] | M15: =IF(OR($D15="MECS",$F15=""),"",MATCH($F15,AEO2017RC!$BI:$BI,0)) ->  | N15: =IF($M15="","",OFFSET(AEO2016RC[[#Headers],[2011]],$M15-1,IF($L15>0,$L15-2011,0))) ->  | O15: =IF($J15="","",MATCH($J15,AEO2017RC!$BI:$BI,0)) ->  | P15: =IF(TableScenario[[#This Row],[Energy Prices]]="","",MATCH(K15,AEO2017RC!BI:BI,0)) -> 206 | Q15: =IF($D15="MECS",IF($G15="","",OFFSET(MECS!$D$2,MATCH($E15,ListMECSSector,0),MATCH($F15,MECS!$E$1:$GT$1,0))),"") ->  | R15: =IF($D15="MECS",IF($G15="","",OFFSET(MECS!$D$2,MATCH($E15,ListMECSSector,0),MATCH($F15,MECS!$E$1:$GT$1,0)+2+MATCH($G15,ListMECSEndUse,0))),"") ->  | S15: =IF(TableScenario[[#This Row],[MECS Sector Energy]]="","",TableScenario[[#This Row],[MECS Sector Energy]]*TableScenario[[#This Row],[MECS End-Use %]]) ->  | T15: =IF($Z15,TableScenario[[#This Row],[Alt_Units]],IF(TableScenario[[#This Row],[MECS End-Use Energy]]="",IF($M15="","",OFFSET(AEO2016RC[[#Headers],[Gunits]],$M15-1,0)),IF(F15="Electricity","TWh","Tbtu"))) -> TBtu | Z15: TRUE | AA15: TBtu | AB15: 0 | AC15: 0 | AD15: 0 | AE15: 0 | AF15: 0 | AG15: 0 | AH15: 0 | AI15: 0 | AJ15: -0.06448105644 | AK15: -0.1278465254 | AL15: -0.1925157538 | AM15: -0.2545689151 | AN15: -0.3802722281 | AO15: -0.5088974261 | AP15: -0.7690618152 | AQ15: -1.039283333 | AR15: -1.571548766 | AS15: -1.849620114 | AT15: -2.123152664 | AU15: -2.254933665 | AV15: -2.379821587 | AW15: -2.433297033 | AX15: -2.496210466 | AY15: -2.566174301 | AZ15: -2.646502603 | BA15: -2.663367342 | BB15: -2.681998587 | BC15: -2.697612657 | BD15: -2.713269043 | BE15: -2.725647865 | BF15: -2.73747255 | BG15: -2.73747255 | BH15: -2.73747255 | BI15: -2.73747255 | BJ15: -2.73747255 | BK15: -2.73747255 | BL15: -2.73747255 | BM15: -2.73747255 | BN15: -2.73747255 | BO15: -2.73747255 | BP15: -2.73747255 | BQ15: Project 1 Excel Calculations - High-Low_2015-7-6.xlsx; "Calculations" tab; Rows 97-103 | DG15: =TableScenario[[#This Row],['#9_Value]]*TableScenario[[#This Row],['#10_Value]] -> 0 | DN15: =IF(ROW()-ROW(TableScenario[[#Headers],[Scenario '#]])=1,1,IF(TableScenario[[#This Row],[Row Function]]=Lists!$O$3,DN14+1,DN14)) -> 2 | DO15: =IF(TableScenario[[#This Row],[Scenario '#]]=DN14,IF(TableScenario[[#This Row],[Row Function]]=Lists!$O$5,DO14+1,DO14),0) -> 3 | DP15: =CONCATENATE(TableScenario[[#This Row],[Scenario '#]]," - ",TableScenario[[#This Row],[Forecast Sequence]]) -> 2 - 3
A16: HST Material Embodied Energy | B16: Forecast | C16: Industrial | H16: NG | K16: Energy Prices : Industrial : Natural Gas [2016 $/MMBtu] | M16: =IF(OR($D16="MECS",$F16=""),"",MATCH($F16,AEO2017RC!$BI:$BI,0)) ->  | N16: =IF($M16="","",OFFSET(AEO2016RC[[#Headers],[2011]],$M16-1,IF($L16>0,$L16-2011,0))) ->  | O16: =IF($J16="","",MATCH($J16,AEO2017RC!$BI:$BI,0)) ->  | P16: =IF(TableScenario[[#This Row],[Energy Prices]]="","",MATCH(K16,AEO2017RC!BI:BI,0)) -> 191 | Q16: =IF($D16="MECS",IF($G16="","",OFFSET(MECS!$D$2,MATCH($E16,ListMECSSector,0),MATCH($F16,MECS!$E$1:$GT$1,0))),"") ->  | R16: =IF($D16="MECS",IF($G16="","",OFFSET(MECS!$D$2,MATCH($E16,ListMECSSector,0),MATCH($F16,MECS!$E$1:$GT$1,0)+2+MATCH($G16,ListMECSEndUse,0))),"") ->  | S16: =IF(TableScenario[[#This Row],[MECS Sector Energy]]="","",TableScenario[[#This Row],[MECS Sector Energy]]*TableScenario[[#This Row],[MECS End-Use %]]) ->  | T16: =IF($Z16,TableScenario[[#This Row],[Alt_Units]],IF(TableScenario[[#This Row],[MECS End-Use Energy]]="",IF($M16="","",OFFSET(AEO2016RC[[#Headers],[Gunits]],$M16-1,0)),IF(F16="Electricity","TWh","Tbtu"))) -> TBtu | Z16: TRUE | AA16: TBtu | AB16: 0 | AC16: 0 | AD16: 0 | AE16: 0 | AF16: 0 | AG16: 0 | AH16: 0 | AI16: 0 | AJ16: 0.524684913 | AK16: 1.040292247 | AL16: 1.566508322 | AM16: 2.071437356 | AN16: 3.094290198 | AO16: 4.140918534 | AP16: 6.257886485 | AQ16: 8.456689689 | AR16: 12.78775462 | AS16: 15.05043221 | AT16: 17.27617741 | AU16: 18.34848464 | AV16: 19.36470261 | AW16: 19.79983444 | AX16: 20.31176354 | AY16: 20.88106204 | AZ16: 21.53469662 | BA16: 21.67192567 | BB16: 21.82352885 | BC16: 21.95058115 | BD16: 22.07797779 | BE16: 22.17870475 | BF16: 22.27492268 | BG16: 22.27492268 | BH16: 22.27492268 | BI16: 22.27492268 | BJ16: 22.27492268 | BK16: 22.27492268 | BL16: 22.27492268 | BM16: 22.27492268 | BN16: 22.27492268 | BO16: 22.27492268 | BP16: 22.27492268 | BQ16: Project 1 Excel Calculations - High-Low_2015-7-6.xlsx; "Calculations" tab; Rows 97-104 | DG16: =TableScenario[[#This Row],['#9_Value]]*TableScenario[[#This Row],['#10_Value]] -> 0 | DN16: =IF(ROW()-ROW(TableScenario[[#Headers],[Scenario '#]])=1,1,IF(TableScenario[[#This Row],[Row Function]]=Lists!$O$3,DN15+1,DN15)) -> 2 | DO16: =IF(TableScenario[[#This Row],[Scenario '#]]=DN15,IF(TableScenario[[#This Row],[Row Function]]=Lists!$O$5,DO15+1,DO15),0) -> 4 | DP16: =CONCATENATE(TableScenario[[#This Row],[Scenario '#]]," - ",TableScenario[[#This Row],[Forecast Sequence]]) -> 2 - 4
A17: HST Part Manufacturing | B17: Forecast | C17: Industrial | H17: Primary Electricity | K17: Energy Prices : Electric Power : Natural Gas [2016 $/MMBtu] | M17: =IF(OR($D17="MECS",$F17=""),"",MATCH($F17,AEO2017RC!$BI:$BI,0)) ->  | N17: =IF($M17="","",OFFSET(AEO2016RC[[#Headers],[2011]],$M17-1,IF($L17>0,$L17-2011,0))) ->  | O17: =IF($J17="","",MATCH($J17,AEO2017RC!$BI:$BI,0)) ->  | P17: =IF(TableScenario[[#This Row],[Energy Prices]]="","",MATCH(K17,AEO2017RC!BI:BI,0)) -> 206 | Q17: =IF($D17="MECS",IF($G17="","",OFFSET(MECS!$D$2,MATCH($E17,ListMECSSector,0),MATCH($F17,MECS!$E$1:$GT$1,0))),"") ->  | R17: =IF($D17="MECS",IF($G17="","",OFFSET(MECS!$D$2,MATCH($E17,ListMECSSector,0),MATCH($F17,MECS!$E$1:$GT$1,0)+2+MATCH($G17,ListMECSEndUse,0))),"") ->  | S17: =IF(TableScenario[[#This Row],[MECS Sector Energy]]="","",TableScenario[[#This Row],[MECS Sector Energy]]*TableScenario[[#This Row],[MECS End-Use %]]) ->  | T17: =IF($Z17,TableScenario[[#This Row],[Alt_Units]],IF(TableScenario[[#This Row],[MECS End-Use Energy]]="",IF($M17="","",OFFSET(AEO2016RC[[#Headers],[Gunits]],$M17-1,0)),IF(F17="Electricity","TWh","Tbtu"))) -> TBtu | Z17: TRUE | AA17: TBtu | AB17: 0 | AC17: 0 | AD17: 0 | AE17: 0 | AF17: 0 | AG17: 0 | AH17: 0 | AI17: 0 | AJ17: 0.02173805605 | AK17: 0.04310002177 | AL17: 0.06490151493 | AM17: 0.08582107135 | AN17: 0.1281985666 | AO17: 0.1715610969 | AP17: 0.259268532 | AQ17: 0.3503664579 | AR17: 0.5298054506 | AS17: 0.623549736 | AT17: 0.7157638874 | AU17: 0.7601903118 | AV17: 0.8022929199 | AW17: 0.8203207301 | AX17: 0.8415303041 | AY17: 0.8651167314 | AZ17: 0.8921972606 | BA17: 0.8978827545 | BB17: 0.9041637783 | BC17: 0.9094276423 | BD17: 0.9147057725 | BE17: 0.9188789598 | BF17: 0.9228653345 | BG17: 0.9228653345 | BH17: 0.9228653345 | BI17: 0.9228653345 | BJ17: 0.9228653345 | BK17: 0.9228653345 | BL17: 0.9228653345 | BM17: 0.9228653345 | BN17: 0.9228653345 | BO17: 0.9228653345 | BP17: 0.9228653345 | BQ17: Project 1 Excel Calculations - High-Low_2015-7-6.xlsx; "Calculations" tab; Rows 97-105 | DG17: =TableScenario[[#This Row],['#9_Value]]*TableScenario[[#This Row],['#10_Value]] -> 0 | DN17: =IF(ROW()-ROW(TableScenario[[#Headers],[Scenario '#]])=1,1,IF(TableScenario[[#This Row],[Row Function]]=Lists!$O$3,DN16+1,DN16)) -> 2 | DO17: =IF(TableScenario[[#This Row],[Scenario '#]]=DN16,IF(TableScenario[[#This Row],[Row Function]]=Lists!$O$5,DO16+1,DO16),0) -> 5 | DP17: =CONCATENATE(TableScenario[[#This Row],[Scenario '#]]," - ",TableScenario[[#This Row],[Forecast Sequence]]) -> 2 - 5
A18: Case Study Example 1B: 100% of 2035 LDV VMTs Light-weighted by 5 kg - 13 year vehicle life | B18: New Scenario | M18: =IF(OR($D18="MECS",$F18=""),"",MATCH($F18,AEO2017RC!$BI:$BI,0)) ->  | N18: =IF($M18="","",OFFSET(AEO2016RC[[#Headers],[2011]],$M18-1,IF($L18>0,$L18-2011,0))) ->  | O18: =IF($J18="","",MATCH($J18,AEO2017RC!$BI:$BI,0)) ->  | P18: =IF(TableScenario[[#This Row],[Energy Prices]]="","",MATCH(K18,AEO2017RC!BI:BI,0)) ->  | Q18: =IF($D18="MECS",IF($G18="","",OFFSET(MECS!$D$2,MATCH($E18,ListMECSSector,0),MATCH($F18,MECS!$E$1:$GT$1,0))),"") ->  | R18: =IF($D18="MECS",IF($G18="","",OFFSET(MECS!$D$2,MATCH($E18,ListMECSSector,0),MATCH($F18,MECS!$E$1:$GT$1,0)+2+MATCH($G18,ListMECSEndUse,0))),"") ->  | S18: =IF(TableScenario[[#This Row],[MECS Sector Energy]]="","",TableScenario[[#This Row],[MECS Sector Energy]]*TableScenario[[#This Row],[MECS End-Use %]]) ->  | T18: =IF($Z18,TableScenario[[#This Row],[Alt_Units]],IF(TableScenario[[#This Row],[MECS End-Use Energy]]="",IF($M18="","",OFFSET(AEO2016RC[[#Headers],[Gunits]],$M18-1,0)),IF(F18="Electricity","TWh","Tbtu"))) ->  | DG18: =TableScenario[[#This Row],['#9_Value]]*TableScenario[[#This Row],['#10_Value]] -> 0 | DN18: =IF(ROW()-ROW(TableScenario[[#Headers],[Scenario '#]])=1,1,IF(TableScenario[[#This Row],[Row Function]]=Lists!$O$3,DN17+1,DN17)) -> 3 | DO18: =IF(TableScenario[[#This Row],[Scenario '#]]=DN17,IF(TableScenario[[#This Row],[Row Function]]=Lists!$O$5,DO17+1,DO17),0) -> 0 | DP18: =CONCATENATE(TableScenario[[#This Row],[Scenario '#]]," - ",TableScenario[[#This Row],[Forecast Sequence]]) -> 3 - 0
A19: LDV Sales | E19: Light-Duty Vehicle Sales (AEOTbl 48) | F19: Light-Duty Vehicle Sales : Total Vehicles Sales [thousands] | M19: =IF(OR($D19="MECS",$F19=""),"",MATCH($F19,AEO2017RC!$BI:$BI,0)) -> 2143 | N19: =IF($M19="","",OFFSET(AEO2016RC[[#Headers],[2011]],$M19-1,IF($L19>0,$L19-2011,0))) -> 12154.22461 | O19: =IF($J19="","",MATCH($J19,AEO2017RC!$BI:$BI,0)) ->  | P19: =IF(TableScenario[[#This Row],[Energy Prices]]="","",MATCH(K19,AEO2017RC!BI:BI,0)) ->  | Q19: =IF($D19="MECS",IF($G19="","",OFFSET(MECS!$D$2,MATCH($E19,ListMECSSector,0),MATCH($F19,MECS!$E$1:$GT$1,0))),"") ->  | R19: =IF($D19="MECS",IF($G19="","",OFFSET(MECS!$D$2,MATCH($E19,ListMECSSector,0),MATCH($F19,MECS!$E$1:$GT$1,0)+2+MATCH($G19,ListMECSEndUse,0))),"") ->  | S19: =IF(TableScenario[[#This Row],[MECS Sector Energy]]="","",TableScenario[[#This Row],[MECS Sector Energy]]*TableScenario[[#This Row],[MECS End-Use %]]) ->  | T19: =IF($Z19,TableScenario[[#This Row],[Alt_Units]],IF(TableScenario[[#This Row],[MECS End-Use Energy]]="",IF($M19="","",OFFSET(AEO2016RC[[#Headers],[Gunits]],$M19-1,0)),IF(F19="Electricity","TWh","Tbtu"))) -> thousands | AC19: =OFFSET(AEO2016RC[[#Headers],[2011]],$M19-1,0) -> 12154.22461 | AD19: =OFFSET(AEO2016RC[[#Headers],[2012]],$M19-1,0) -> 13702.83398 | AE19: =OFFSET(AEO2016RC[[#Headers],[2013]],$M19-1,0) -> 14380.53711 | AF19: =OFFSET(AEO2016RC[[#Headers],[2014]],$M19-1,0) -> 15237.75391 | AG19: =OFFSET(AEO2016RC[[#Headers],[2015]],$M19-1,0) -> 16282.10059 | AH19: =OFFSET(AEO2016RC[[#Headers],[2016]],$M19-1,0) -> 16425.30273 | AI19: =OFFSET(AEO2016RC[[#Headers],[2017]],$M19-1,0) -> 17053.93945 | AJ19: =OFFSET(AEO2016RC[[#Headers],[2018]],$M19-1,0) -> 16912.94336 | AK19: =OFFSET(AEO2016RC[[#Headers],[2019]],$M19-1,0) -> 16318.35742 | AL19: =OFFSET(AEO2016RC[[#Headers],[2020]],$M19-1,0) -> 16269.06445 | AM19: =OFFSET(AEO2016RC[[#Headers],[2021]],$M19-1,0) -> 16539.45117 | AN19: =OFFSET(AEO2016RC[[#Headers],[2022]],$M19-1,0) -> 16400.92969 | AO19: =OFFSET(AEO2016RC[[#Headers],[2023]],$M19-1,0) -> 16278.50098 | AP19: =OFFSET(AEO2016RC[[#Headers],[2024]],$M19-1,0) -> 16705.44336 | AQ19: =OFFSET(AEO2016RC[[#Headers],[2025]],$M19-1,0) -> 16700.86328 | AR19: =OFFSET(AEO2016RC[[#Headers],[2026]],$M19-1,0) -> 16450.78906 | AS19: =OFFSET(AEO2016RC[[#Headers],[2027]],$M19-1,0) -> 16568.85156 | AT19: =OFFSET(AEO2016RC[[#Headers],[2028]],$M19-1,0) -> 16850.16602 | AU19: =OFFSET(AEO2016RC[[#Headers],[2029]],$M19-1,0) -> 16883.80078 | AV19: =OFFSET(AEO2016RC[[#Headers],[2030]],$M19-1,0) -> 16848.71094 | AW19: =OFFSET(AEO2016RC[[#Headers],[2031]],$M19-1,0) -> 16914.68164 | AX19: =OFFSET(AEO2016RC[[#Headers],[2032]],$M19-1,0) -> 16980.0332 | AY19: =OFFSET(AEO2016RC[[#Headers],[2033]],$M19-1,0) -> 17086.5 | AZ19: =OFFSET(AEO2016RC[[#Headers],[2034]],$M19-1,0) -> 17338.19922 | BA19: =OFFSET(AEO2016RC[[#Headers],[2035]],$M19-1,0) -> 17404.17969 | BB19: =OFFSET(AEO2016RC[[#Headers],[2036]],$M19-1,0) -> 17500.83203 | BC19: =OFFSET(AEO2016RC[[#Headers],[2037]],$M19-1,0) -> 17635.17188 | BD19: =OFFSET(AEO2016RC[[#Headers],[2038]],$M19-1,0) -> 17816.125 | BE19: =OFFSET(AEO2016RC[[#Headers],[2039]],$M19-1,0) -> 17641.19922 | BF19: =OFFSET(AEO2016RC[[#Headers],[2040]],$M19-1,0) -> 17664.38672 | BG19: =OFFSET(AEO2016RC[[#Headers],[2041]],$M19-1,0) -> 17841.27344 | BH19: =OFFSET(AEO2016RC[[#Headers],[2042]],$M19-1,0) -> 17845.23633 | BI19: =OFFSET(AEO2016RC[[#Headers],[2043]],$M19-1,0) -> 17877.27148 | BJ19: =OFFSET(AEO2016RC[[#Headers],[2044]],$M19-1,0) -> 18085.24023 | BK19: =OFFSET(AEO2016RC[[#Headers],[2045]],$M19-1,0) -> 18276.12109 | BL19: =OFFSET(AEO2016RC[[#Headers],[2046]],$M19-1,0) -> 18385.2793 | BM19: =OFFSET(AEO2016RC[[#Headers],[2047]],$M19-1,0) -> 18289.71484 | BN19: =OFFSET(AEO2016RC[[#Headers],[2048]],$M19-1,0) -> 18441.75391 | BO19: =OFFSET(AEO2016RC[[#Headers],[2049]],$M19-1,0) -> 18668.20508 | BP19: =OFFSET(AEO2016RC[[#Headers],[2050]],$M19-1,0) -> 18679.36719 | BT19: =TableScenario[[#This Row],[Data Units]] -> thousands | DN19: =IF(ROW()-ROW(TableScenario[[#Headers],[Scenario '#]])=1,1,IF(TableScenario[[#This Row],[Row Function]]=Lists!$O$3,DN18+1,DN18)) -> 3 | DO19: =IF(TableScenario[[#This Row],[Scenario '#]]=DN18,IF(TableScenario[[#This Row],[Row Function]]=Lists!$O$5,DO18+1,DO18),0) -> 0 | DP19: =CONCATENATE(TableScenario[[#This Row],[Scenario '#]]," - ",TableScenario[[#This Row],[Forecast Sequence]]) -> 3 - 0
A20: Light-Weighted LDVs Adoption Rate | M20: =IF(OR($D20="MECS",$F20=""),"",MATCH($F20,AEO2017RC!$BI:$BI,0)) ->  | N20: =IF($M20="","",OFFSET(AEO2016RC[[#Headers],[2011]],$M20-1,IF($L20>0,$L20-2011,0))) ->  | O20: =IF($J20="","",MATCH($J20,AEO2017RC!$BI:$BI,0)) ->  | P20: =IF(TableScenario[[#This Row],[Energy Prices]]="","",MATCH(K20,AEO2017RC!BI:BI,0)) ->  | Q20: =IF($D20="MECS",IF($G20="","",OFFSET(MECS!$D$2,MATCH($E20,ListMECSSector,0),MATCH($F20,MECS!$E$1:$GT$1,0))),"") ->  | R20: =IF($D20="MECS",IF($G20="","",OFFSET(MECS!$D$2,MATCH($E20,ListMECSSector,0),MATCH($F20,MECS!$E$1:$GT$1,0)+2+MATCH($G20,ListMECSEndUse,0))),"") ->  | S20: =IF(TableScenario[[#This Row],[MECS Sector Energy]]="","",TableScenario[[#This Row],[MECS Sector Energy]]*TableScenario[[#This Row],[MECS End-Use %]]) ->  | T20: =IF($Z20,TableScenario[[#This Row],[Alt_Units]],IF(TableScenario[[#This Row],[MECS End-Use Energy]]="",IF($M20="","",OFFSET(AEO2016RC[[#Headers],[Gunits]],$M20-1,0)),IF(F20="Electricity","TWh","Tbtu"))) ->  | U20: 1 | X20: 2017 | Y20: 2035 | AC20: =Interpolate2(AC$1+1,$X20:$Y20,$AC$1:$AD$1)-$AC$1 -> 0 | AD20: 0 | AE20: 0 | AF20: 0 | AG20: 0 | AH20: 0 | AI20: 0.05555555556 | AJ20: 0.1111111111 | AK20: 0.1666666667 | AL20: 0.2222222222 | AM20: 0.2777777778 | AN20: 0.3333333333 | AO20: 0.3888888889 | AP20: 0.4444444444 | AQ20: 0.5 | AR20: 0.5555555556 | AS20: 0.6111111111 | AT20: 0.6666666667 | AU20: 0.7222222222 | AV20: 0.7777777778 | AW20: 0.8333333333 | AX20: 0.8888888889 | AY20: 0.9444444444 | AZ20: 1 | BA20: 1 | BB20: 1 | BC20: 1 | BD20: 1 | BE20: 1 | BF20: 1 | BG20: 1 | BH20: 1 | BI20: 1 | BJ20: 1 | BK20: 1 | BL20: 1 | BM20: 1 | BN20: 1 | BO20: 1 | BP20: 1 | DN20: =IF(ROW()-ROW(TableScenario[[#Headers],[Scenario '#]])=1,1,IF(TableScenario[[#This Row],[Row Function]]=Lists!$O$3,DN19+1,DN19)) -> 3 | DO20: =IF(TableScenario[[#This Row],[Scenario '#]]=DN19,IF(TableScenario[[#This Row],[Row Function]]=Lists!$O$5,DO19+1,DO19),0) -> 0 | DP20: =CONCATENATE(TableScenario[[#This Row],[Scenario '#]]," - ",TableScenario[[#This Row],[Forecast Sequence]]) -> 3 - 0
A21: LightWeighted LDVs Produced | M21: =IF(OR($D21="MECS",$F21=""),"",MATCH($F21,AEO2017RC!$BI:$BI,0)) ->  | N21: =IF($M21="","",OFFSET(AEO2016RC[[#Headers],[2011]],$M21-1,IF($L21>0,$L21-2011,0))) ->  | O21: =IF($J21="","",MATCH($J21,AEO2017RC!$BI:$BI,0)) ->  | P21: =IF(TableScenario[[#This Row],[Energy Prices]]="","",MATCH(K21,AEO2017RC!BI:BI,0)) ->  | Q21: =IF($D21="MECS",IF($G21="","",OFFSET(MECS!$D$2,MATCH($E21,ListMECSSector,0),MATCH($F21,MECS!$E$1:$GT$1,0))),"") ->  | R21: =IF($D21="MECS",IF($G21="","",OFFSET(MECS!$D$2,MATCH($E21,ListMECSSector,0),MATCH($F21,MECS!$E$1:$GT$1,0)+2+MATCH($G21,ListMECSEndUse,0))),"") ->  | S21: =IF(TableScenario[[#This Row],[MECS Sector Energy]]="","",TableScenario[[#This Row],[MECS Sector Energy]]*TableScenario[[#This Row],[MECS End-Use %]]) ->  | T21: =IF($Z21,TableScenario[[#This Row],[Alt_Units]],IF(TableScenario[[#This Row],[MECS End-Use Energy]]="",IF($M21="","",OFFSET(AEO2016RC[[#Headers],[Gunits]],$M21-1,0)),IF(F21="Electricity","TWh","Tbtu"))) ->  | AC21: =AC19*AC20 -> 0 | AD21: =AD19*AD20 -> 0 | AE21: 0 | AF21: 0 | AG21: 0 | AH21: 0 | AI21: 947.4410807 | AJ21: 1879.215929 | AK21: 2719.726237 | AL21: 3615.347656 | AM21: 4594.291992 | AN21: 5466.976563 | AO21: 6330.528158 | AP21: 7424.641493 | AQ21: 8350.431641 | AR21: 9139.327257 | AS21: 10125.40929 | AT21: 11233.44401 | AU21: 12193.85612 | AV21: 13104.55295 | AW21: 14095.56803 | AX21: 15093.36285 | AY21: 16137.25 | AZ21: 17338.19922 | BA21: 17404.17969 | BB21: 17500.83203 | BC21: 17635.17188 | BD21: 17816.125 | BE21: 17641.19922 | BF21: 17664.38672 | BG21: 17841.27344 | BH21: 17845.23633 | BI21: 17877.27148 | BJ21: 18085.24023 | BK21: 18276.12109 | BL21: 18385.2793 | BM21: 18289.71484 | BN21: 18441.75391 | BO21: 18668.20508 | BP21: 18679.36719 | DN21: =IF(ROW()-ROW(TableScenario[[#Headers],[Scenario '#]])=1,1,IF(TableScenario[[#This Row],[Row Function]]=Lists!$O$3,DN20+1,DN20)) -> 3 | DO21: =IF(TableScenario[[#This Row],[Scenario '#]]=DN20,IF(TableScenario[[#This Row],[Row Function]]=Lists!$O$5,DO20+1,DO20),0) -> 0 | DP21: =CONCATENATE(TableScenario[[#This Row],[Scenario '#]]," - ",TableScenario[[#This Row],[Forecast Sequence]]) -> 3 - 0
A22: Cumulative Light-weighted LDVs | M22: =IF(OR($D22="MECS",$F22=""),"",MATCH($F22,AEO2017RC!$BI:$BI,0)) ->  | N22: =IF($M22="","",OFFSET(AEO2016RC[[#Headers],[2011]],$M22-1,IF($L22>0,$L22-2011,0))) ->  | O22: =IF($J22="","",MATCH($J22,AEO2017RC!$BI:$BI,0)) ->  | P22: =IF(TableScenario[[#This Row],[Energy Prices]]="","",MATCH(K22,AEO2017RC!BI:BI,0)) ->  | Q22: =IF($D22="MECS",IF($G22="","",OFFSET(MECS!$D$2,MATCH($E22,ListMECSSector,0),MATCH($F22,MECS!$E$1:$GT$1,0))),"") ->  | R22: =IF($D22="MECS",IF($G22="","",OFFSET(MECS!$D$2,MATCH($E22,ListMECSSector,0),MATCH($F22,MECS!$E$1:$GT$1,0)+2+MATCH($G22,ListMECSEndUse,0))),"") ->  | S22: =IF(TableScenario[[#This Row],[MECS Sector Energy]]="","",TableScenario[[#This Row],[MECS Sector Energy]]*TableScenario[[#This Row],[MECS End-Use %]]) ->  | T22: =IF($Z22,TableScenario[[#This Row],[Alt_Units]],IF(TableScenario[[#This Row],[MECS End-Use Energy]]="",IF($M22="","",OFFSET(AEO2016RC[[#Headers],[Gunits]],$M22-1,0)),IF(F22="Electricity","TWh","Tbtu"))) ->  | AC22: =AC21 -> 0 | AD22: =SUM(OFFSET(AD21,0,0,1,-MIN(AD$1-$AC$1,$BS22))) -> 0 | AE22: 0 | AF22: 0 | AG22: 0 | AH22: 0 | AI22: 947.4410807 | AJ22: 2826.65701 | AK22: 5546.383247 | AL22: 9161.730903 | AM22: 13756.02289 | AN22: 19222.99946 | AO22: 25553.52762 | AP22: 32978.16911 | AQ22: 41328.60075 | AR22: 50467.92801 | AS22: 60593.33729 | AT22: 71826.7813 | AU22: 84020.63742 | AV22: 96177.74929 | AW22: 108394.1014 | AX22: 120767.738 | AY22: 133289.6404 | AZ22: 146033.5476 | BA22: 157970.7507 | BB22: 169141.0546 | BC22: 179351.585 | BD22: 188817.2783 | BE22: 197319.1503 | BF22: 204858.1277 | BG22: 211465.9571 | BH22: 217117.3374 | BI22: 221890.0559 | BJ22: 225879.7281 | BK22: 229062.4863 | BL22: 231310.5156 | BM22: 232262.0313 | BN22: 233299.6055 | BO22: 234466.9785 | BP22: =SUM(OFFSET(BP21,0,0,1,-MIN(BP$1-$AC$1,$BS22))) -> 235511.1738 | BR22: Vehicle life-span | BS22: 13 | BT22: Years | DN22: =IF(ROW()-ROW(TableScenario[[#Headers],[Scenario '#]])=1,1,IF(TableScenario[[#This Row],[Row Function]]=Lists!$O$3,DN21+1,DN21)) -> 3 | DO22: =IF(TableScenario[[#This Row],[Scenario '#]]=DN21,IF(TableScenario[[#This Row],[Row Function]]=Lists!$O$5,DO21+1,DO21),0) -> 0 | DP22: =CONCATENATE(TableScenario[[#This Row],[Scenario '#]]," - ",TableScenario[[#This Row],[Forecast Sequence]]) -> 3 - 0
A23: LDV Stock | E23: Light-Duty Vehicle Stock (AEOTbl 49) | F23: Light-Duty Vehicle Stock : Total Vehicle Stock [millions] | M23: =IF(OR($D23="MECS",$F23=""),"",MATCH($F23,AEO2017RC!$BI:$BI,0)) -> 2185 | N23: =IF($M23="","",OFFSET(AEO2016RC[[#Headers],[2011]],$M23-1,IF($L23>0,$L23-2011,0))) -> 223.87915 | O23: =IF($J23="","",MATCH($J23,AEO2017RC!$BI:$BI,0)) ->  | P23: =IF(TableScenario[[#This Row],[Energy Prices]]="","",MATCH(K23,AEO2017RC!BI:BI,0)) ->  | Q23: =IF($D23="MECS",IF($G23="","",OFFSET(MECS!$D$2,MATCH($E23,ListMECSSector,0),MATCH($F23,MECS!$E$1:$GT$1,0))),"") ->  | R23: =IF($D23="MECS",IF($G23="","",OFFSET(MECS!$D$2,MATCH($E23,ListMECSSector,0),MATCH($F23,MECS!$E$1:$GT$1,0)+2+MATCH($G23,ListMECSEndUse,0))),"") ->  | S23: =IF(TableScenario[[#This Row],[MECS Sector Energy]]="","",TableScenario[[#This Row],[MECS Sector Energy]]*TableScenario[[#This Row],[MECS End-Use %]]) ->  | T23: =IF($Z23,TableScenario[[#This Row],[Alt_Units]],IF(TableScenario[[#This Row],[MECS End-Use Energy]]="",IF($M23="","",OFFSET(AEO2016RC[[#Headers],[Gunits]],$M23-1,0)),IF(F23="Electricity","TWh","Tbtu"))) -> millions | AC23: =OFFSET(AEO2016RC[[#Headers],[2011]],$M23-1,0) -> 223.87915 | AD23: =OFFSET(AEO2016RC[[#Headers],[2012]],$M23-1,0) -> 224.143646 | AE23: =OFFSET(AEO2016RC[[#Headers],[2013]],$M23-1,0) -> 224.970932 | AF23: =OFFSET(AEO2016RC[[#Headers],[2014]],$M23-1,0) -> 226.605469 | AG23: =OFFSET(AEO2016RC[[#Headers],[2015]],$M23-1,0) -> 239.877472 | AH23: =OFFSET(AEO2016RC[[#Headers],[2016]],$M23-1,0) -> 241.943787 | AI23: =OFFSET(AEO2016RC[[#Headers],[2017]],$M23-1,0) -> 244.619888 | AJ23: =OFFSET(AEO2016RC[[#Headers],[2018]],$M23-1,0) -> 247.078339 | AK23: =OFFSET(AEO2016RC[[#Headers],[2019]],$M23-1,0) -> 248.844238 | AL23: =OFFSET(AEO2016RC[[#Headers],[2020]],$M23-1,0) -> 250.450317 | AM23: =OFFSET(AEO2016RC[[#Headers],[2021]],$M23-1,0) -> 252.245972 | AN23: =OFFSET(AEO2016RC[[#Headers],[2022]],$M23-1,0) -> 253.831039 | AO23: =OFFSET(AEO2016RC[[#Headers],[2023]],$M23-1,0) -> 255.232132 | AP23: =OFFSET(AEO2016RC[[#Headers],[2024]],$M23-1,0) -> 257.002197 | AQ23: =OFFSET(AEO2016RC[[#Headers],[2025]],$M23-1,0) -> 258.707703 | AR23: =OFFSET(AEO2016RC[[#Headers],[2026]],$M23-1,0) -> 260.104187 | AS23: =OFFSET(AEO2016RC[[#Headers],[2027]],$M23-1,0) -> 261.547119 | AT23: =OFFSET(AEO2016RC[[#Headers],[2028]],$M23-1,0) -> 263.196167 | AU23: =OFFSET(AEO2016RC[[#Headers],[2029]],$M23-1,0) -> 264.793701 | AV23: =OFFSET(AEO2016RC[[#Headers],[2030]],$M23-1,0) -> 266.248596 | AW23: =OFFSET(AEO2016RC[[#Headers],[2031]],$M23-1,0) -> 267.659546 | AX23: =OFFSET(AEO2016RC[[#Headers],[2032]],$M23-1,0) -> 269.012726 | AY23: =OFFSET(AEO2016RC[[#Headers],[2033]],$M23-1,0) -> 270.317993 | AZ23: =OFFSET(AEO2016RC[[#Headers],[2034]],$M23-1,0) -> 271.746216 | BA23: =OFFSET(AEO2016RC[[#Headers],[2035]],$M23-1,0) -> 273.132446 | BB23: =OFFSET(AEO2016RC[[#Headers],[2036]],$M23-1,0) -> 274.515503 | BC23: =OFFSET(AEO2016RC[[#Headers],[2037]],$M23-1,0) -> 275.939117 | BD23: =OFFSET(AEO2016RC[[#Headers],[2038]],$M23-1,0) -> 277.465302 | BE23: =OFFSET(AEO2016RC[[#Headers],[2039]],$M23-1,0) -> 278.753143 | BF23: =OFFSET(AEO2016RC[[#Headers],[2040]],$M23-1,0) -> 280.01355 | BG23: =OFFSET(AEO2016RC[[#Headers],[2041]],$M23-1,0) -> 281.405762 | BH23: =OFFSET(AEO2016RC[[#Headers],[2042]],$M23-1,0) -> 282.751465 | BI23: =OFFSET(AEO2016RC[[#Headers],[2043]],$M23-1,0) -> 284.067261 | BJ23: =OFFSET(AEO2016RC[[#Headers],[2044]],$M23-1,0) -> 285.521057 | BK23: =OFFSET(AEO2016RC[[#Headers],[2045]],$M23-1,0) -> 287.093384 | BL23: =OFFSET(AEO2016RC[[#Headers],[2046]],$M23-1,0) -> 288.696198 | BM23: =OFFSET(AEO2016RC[[#Headers],[2047]],$M23-1,0) -> 290.11969 | BN23: =OFFSET(AEO2016RC[[#Headers],[2048]],$M23-1,0) -> 291.613556 | BO23: =OFFSET(AEO2016RC[[#Headers],[2049]],$M23-1,0) -> 293.248108 | BP23: =OFFSET(AEO2016RC[[#Headers],[2050]],$M23-1,0) -> 294.802979 | BT23: =TableScenario[[#This Row],[Data Units]] -> millions | DN23: =IF(ROW()-ROW(TableScenario[[#Headers],[Scenario '#]])=1,1,IF(TableScenario[[#This Row],[Row Function]]=Lists!$O$3,DN22+1,DN22)) -> 3 | DO23: =IF(TableScenario[[#This Row],[Scenario '#]]=DN22,IF(TableScenario[[#This Row],[Row Function]]=Lists!$O$5,DO22+1,DO22),0) -> 0 | DP23: =CONCATENATE(TableScenario[[#This Row],[Scenario '#]]," - ",TableScenario[[#This Row],[Forecast Sequence]]) -> 3 - 0
A24: LDV VMTs | E24: Light-Duty Vehicle Miles Traveled (AEOTbl 51) | F24: Light-Duty Vehicle Miles Traveled : VMT Equation Components : Total VMT [billion miles] | M24: =IF(OR($D24="MECS",$F24=""),"",MATCH($F24,AEO2017RC!$BI:$BI,0)) -> 2240 | N24: =IF($M24="","",OFFSET(AEO2016RC[[#Headers],[2011]],$M24-1,IF($L24>0,$L24-2011,0))) -> 2550.047607 | O24: =IF($J24="","",MATCH($J24,AEO2017RC!$BI:$BI,0)) ->  | P24: =IF(TableScenario[[#This Row],[Energy Prices]]="","",MATCH(K24,AEO2017RC!BI:BI,0)) ->  | Q24: =IF($D24="MECS",IF($G24="","",OFFSET(MECS!$D$2,MATCH($E24,ListMECSSector,0),MATCH($F24,MECS!$E$1:$GT$1,0))),"") ->  | R24: =IF($D24="MECS",IF($G24="","",OFFSET(MECS!$D$2,MATCH($E24,ListMECSSector,0),MATCH($F24,MECS!$E$1:$GT$1,0)+2+MATCH($G24,ListMECSEndUse,0))),"") ->  | S24: =IF(TableScenario[[#This Row],[MECS Sector Energy]]="","",TableScenario[[#This Row],[MECS Sector Energy]]*TableScenario[[#This Row],[MECS End-Use %]]) ->  | T24: =IF($Z24,TableScenario[[#This Row],[Alt_Units]],IF(TableScenario[[#This Row],[MECS End-Use Energy]]="",IF($M24="","",OFFSET(AEO2016RC[[#Headers],[Gunits]],$M24-1,0)),IF(F24="Electricity","TWh","Tbtu"))) -> billion miles | AC24: =OFFSET(AEO2016RC[[#Headers],[2011]],$M24-1,0) -> 2550.047607 | AD24: =OFFSET(AEO2016RC[[#Headers],[2012]],$M24-1,0) -> 2578.237549 | AE24: =OFFSET(AEO2016RC[[#Headers],[2013]],$M24-1,0) -> 2643.846191 | AF24: =OFFSET(AEO2016RC[[#Headers],[2014]],$M24-1,0) -> 2662.568359 | AG24: =OFFSET(AEO2016RC[[#Headers],[2015]],$M24-1,0) -> 2754.71582 | AH24: =OFFSET(AEO2016RC[[#Headers],[2016]],$M24-1,0) -> 2841.099365 | AI24: =OFFSET(AEO2016RC[[#Headers],[2017]],$M24-1,0) -> 2906.36377 | AJ24: =OFFSET(AEO2016RC[[#Headers],[2018]],$M24-1,0) -> 2960.235352 | AK24: =OFFSET(AEO2016RC[[#Headers],[2019]],$M24-1,0) -> 2991.188721 | AL24: =OFFSET(AEO2016RC[[#Headers],[2020]],$M24-1,0) -> 3016.907715 | AM24: =OFFSET(AEO2016RC[[#Headers],[2021]],$M24-1,0) -> 3036.554199 | AN24: =OFFSET(AEO2016RC[[#Headers],[2022]],$M24-1,0) -> 3050.899902 | AO24: =OFFSET(AEO2016RC[[#Headers],[2023]],$M24-1,0) -> 3056.375977 | AP24: =OFFSET(AEO2016RC[[#Headers],[2024]],$M24-1,0) -> 3059.033203 | AQ24: =OFFSET(AEO2016RC[[#Headers],[2025]],$M24-1,0) -> 3060.441406 | AR24: =OFFSET(AEO2016RC[[#Headers],[2026]],$M24-1,0) -> 3069.570801 | AS24: =OFFSET(AEO2016RC[[#Headers],[2027]],$M24-1,0) -> 3082.56543 | AT24: =OFFSET(AEO2016RC[[#Headers],[2028]],$M24-1,0) -> 3100.571533 | AU24: =OFFSET(AEO2016RC[[#Headers],[2029]],$M24-1,0) -> 3119.217529 | AV24: =OFFSET(AEO2016RC[[#Headers],[2030]],$M24-1,0) -> 3136.417969 | AW24: =OFFSET(AEO2016RC[[#Headers],[2031]],$M24-1,0) -> 3151.796387 | AX24: =OFFSET(AEO2016RC[[#Headers],[2032]],$M24-1,0) -> 3167.804199 | AY24: =OFFSET(AEO2016RC[[#Headers],[2033]],$M24-1,0) -> 3186.738281 | AZ24: =OFFSET(AEO2016RC[[#Headers],[2034]],$M24-1,0) -> 3206.476318 | BA24: =OFFSET(AEO2016RC[[#Headers],[2035]],$M24-1,0) -> 3225.210205 | BB24: =OFFSET(AEO2016RC[[#Headers],[2036]],$M24-1,0) -> 3246.837646 | BC24: =OFFSET(AEO2016RC[[#Headers],[2037]],$M24-1,0) -> 3268.746582 | BD24: =OFFSET(AEO2016RC[[#Headers],[2038]],$M24-1,0) -> 3291.928955 | BE24: =OFFSET(AEO2016RC[[#Headers],[2039]],$M24-1,0) -> 3312.012695 | BF24: =OFFSET(AEO2016RC[[#Headers],[2040]],$M24-1,0) -> 3330.830811 | BG24: =OFFSET(AEO2016RC[[#Headers],[2041]],$M24-1,0) -> 3350.012695 | BH24: =OFFSET(AEO2016RC[[#Headers],[2042]],$M24-1,0) -> 3371.473389 | BI24: =OFFSET(AEO2016RC[[#Headers],[2043]],$M24-1,0) -> 3393.180176 | BJ24: =OFFSET(AEO2016RC[[#Headers],[2044]],$M24-1,0) -> 3414.976807 | BK24: =OFFSET(AEO2016RC[[#Headers],[2045]],$M24-1,0) -> 3437.594482 | BL24: =OFFSET(AEO2016RC[[#Headers],[2046]],$M24-1,0) -> 3461.571289 | BM24: =OFFSET(AEO2016RC[[#Headers],[2047]],$M24-1,0) -> 3485.191895 | BN24: =OFFSET(AEO2016RC[[#Headers],[2048]],$M24-1,0) -> 3510.521729 | BO24: =OFFSET(AEO2016RC[[#Headers],[2049]],$M24-1,0) -> 3538.944824 | BP24: =OFFSET(AEO2016RC[[#Headers],[2050]],$M24-1,0) -> 3567.172607 | BT24: =TableScenario[[#This Row],[Data Units]] -> billion miles | BZ24: Ti mass to Steel ratio | CA24: 0.5 | DN24: =IF(ROW()-ROW(TableScenario[[#Headers],[Scenario '#]])=1,1,IF(TableScenario[[#This Row],[Row Function]]=Lists!$O$3,DN23+1,DN23)) -> 3 | DO24: =IF(TableScenario[[#This Row],[Scenario '#]]=DN23,IF(TableScenario[[#This Row],[Row Function]]=Lists!$O$5,DO23+1,DO23),0) -> 0 | DP24: =CONCATENATE(TableScenario[[#This Row],[Scenario '#]]," - ",TableScenario[[#This Row],[Forecast Sequence]]) -> 3 - 0
A25: Average VMT/vehicle year | M25: =IF(OR($D25="MECS",$F25=""),"",MATCH($F25,AEO2017RC!$BI:$BI,0)) ->  | N25: =IF($M25="","",OFFSET(AEO2016RC[[#Headers],[2011]],$M25-1,IF($L25>0,$L25-2011,0))) ->  | O25: =IF($J25="","",MATCH($J25,AEO2017RC!$BI:$BI,0)) ->  | P25: =IF(TableScenario[[#This Row],[Energy Prices]]="","",MATCH(K25,AEO2017RC!BI:BI,0)) ->  | Q25: =IF($D25="MECS",IF($G25="","",OFFSET(MECS!$D$2,MATCH($E25,ListMECSSector,0),MATCH($F25,MECS!$E$1:$GT$1,0))),"") ->  | R25: =IF($D25="MECS",IF($G25="","",OFFSET(MECS!$D$2,MATCH($E25,ListMECSSector,0),MATCH($F25,MECS!$E$1:$GT$1,0)+2+MATCH($G25,ListMECSEndUse,0))),"") ->  | S25: =IF(TableScenario[[#This Row],[MECS Sector Energy]]="","",TableScenario[[#This Row],[MECS Sector Energy]]*TableScenario[[#This Row],[MECS End-Use %]]) ->  | T25: =IF($Z25,TableScenario[[#This Row],[Alt_Units]],IF(TableScenario[[#This Row],[MECS End-Use Energy]]="",IF($M25="","",OFFSET(AEO2016RC[[#Headers],[Gunits]],$M25-1,0)),IF(F25="Electricity","TWh","Tbtu"))) ->  | AC25: =AC24/AC23*1000 -> 11390.28626 | AD25: =AD24/AD23*1000 -> 11502.6127 | AE25: 11751.94576 | AF25: 11749.79744 | AG25: 11483.84547 | AH25: 11742.8077 | AI25: 11881.14259 | AJ25: 11980.95861 | AK25: 12020.32543 | AL25: 12045.93291 | AM25: 12038.06814 | AN25: 12019.41226 | AO25: 11974.88715 | AP25: 11902.75118 | AQ25: 11829.72664 | AR25: 11801.31253 | AS25: 11785.88945 | AT25: 11780.45854 | AU25: 11779.80261 | AV25: 11780.03571 | AW25: 11775.39316 | AX25: 11775.6667 | AY25: 11788.85003 | AZ25: 11799.52518 | BA25: 11808.22803 | BB25: 11827.52016 | BC25: 11845.89781 | BD25: 11864.29053 | BE25: 11881.52592 | BF25: 11895.24868 | BG25: 11904.56326 | BH25: 11923.8052 | BI25: 11944.98854 | BJ25: 11960.50772 | BK25: 11973.78509 | BL25: 11990.35981 | BM25: 12012.94505 | BN25: 12038.26659 | BO25: 12068.0909 | BP25: 12100.19186 | BT25: miles | DN25: =IF(ROW()-ROW(TableScenario[[#Headers],[Scenario '#]])=1,1,IF(TableScenario[[#This Row],[Row Function]]=Lists!$O$3,DN24+1,DN24)) -> 3 | DO25: =IF(TableScenario[[#This Row],[Scenario '#]]=DN24,IF(TableScenario[[#This Row],[Row Function]]=Lists!$O$5,DO24+1,DO24),0) -> 0 | DP25: =CONCATENATE(TableScenario[[#This Row],[Scenario '#]]," - ",TableScenario[[#This Row],[Forecast Sequence]]) -> 3 - 0
A26: Light-Weighted VMTs | M26: =IF(OR($D26="MECS",$F26=""),"",MATCH($F26,AEO2017RC!$BI:$BI,0)) ->  | N26: =IF($M26="","",OFFSET(AEO2016RC[[#Headers],[2011]],$M26-1,IF($L26>0,$L26-2011,0))) ->  | O26: =IF($J26="","",MATCH($J26,AEO2017RC!$BI:$BI,0)) ->  | P26: =IF(TableScenario[[#This Row],[Energy Prices]]="","",MATCH(K26,AEO2017RC!BI:BI,0)) ->  | Q26: =IF($D26="MECS",IF($G26="","",OFFSET(MECS!$D$2,MATCH($E26,ListMECSSector,0),MATCH($F26,MECS!$E$1:$GT$1,0))),"") ->  | R26: =IF($D26="MECS",IF($G26="","",OFFSET(MECS!$D$2,MATCH($E26,ListMECSSector,0),MATCH($F26,MECS!$E$1:$GT$1,0)+2+MATCH($G26,ListMECSEndUse,0))),"") ->  | S26: =IF(TableScenario[[#This Row],[MECS Sector Energy]]="","",TableScenario[[#This Row],[MECS Sector Energy]]*TableScenario[[#This Row],[MECS End-Use %]]) ->  | T26: =IF($Z26,TableScenario[[#This Row],[Alt_Units]],IF(TableScenario[[#This Row],[MECS End-Use Energy]]="",IF($M26="","",OFFSET(AEO2016RC[[#Headers],[Gunits]],$M26-1,0)),IF(F26="Electricity","TWh","Tbtu"))) ->  | AC26: =AC22*AC25/1000000 -> 0 | AD26: 0 | AE26: 0 | AF26: 0 | AG26: 0 | AH26: 0 | AI26: 11.25668258 | AJ26: 33.86606062 | AK26: 66.66933156 | AL26: 110.3615958 | AM26: 165.5959409 | AN26: 231.0491553 | AO26: 306.0006094 | AP26: 392.5309412 | AQ26: 488.9060492 | AR26: 595.5877911 | AS26: 714.1463746 | AT26: 846.1524191 | AU26: 989.7465237 | AV26: 1132.977321 | AW26: 1276.38316 | AX26: 1422.120631 | AY26: 1571.331581 | AZ26: 1723.126522 | BA26: 1865.354647 | BB26: 2000.519233 | BC26: 2124.580548 | BD26: 2240.183047 | BE26: 2344.452599 | BF26: 2436.838373 | BG26: 2517.409864 | BH26: 2588.864836 | BI26: 2650.474174 | BJ26: 2701.636232 | BK26: 2742.744984 | BL26: 2773.49631 | BM26: 2790.15102 | BN26: 2808.522846 | BO26: 2829.56881 | BP26: =BP22*BP25/1000000 -> 2849.730389 | BT26: bill miles | DN26: =IF(ROW()-ROW(TableScenario[[#Headers],[Scenario '#]])=1,1,IF(TableScenario[[#This Row],[Row Function]]=Lists!$O$3,DN25+1,DN25)) -> 3 | DO26: =IF(TableScenario[[#This Row],[Scenario '#]]=DN25,IF(TableScenario[[#This Row],[Row Function]]=Lists!$O$5,DO25+1,DO25),0) -> 0 | DP26: =CONCATENATE(TableScenario[[#This Row],[Scenario '#]]," - ",TableScenario[[#This Row],[Forecast Sequence]]) -> 3 - 0
A27: Transportation: Light-Weighted LDVs | B27: Forecast | C27: Transportation | H27: Gasoline | K27: Energy Prices : Transportation : Motor Gasoline [2016 $/MMBtu] | M27: =IF(OR($D27="MECS",$F27=""),"",MATCH($F27,AEO2017RC!$BI:$BI,0)) ->  | N27: =IF($M27="","",OFFSET(AEO2016RC[[#Headers],[2011]],$M27-1,IF($L27>0,$L27-2011,0))) ->  | O27: =IF($J27="","",MATCH($J27,AEO2017RC!$BI:$BI,0)) ->  | P27: =IF(TableScenario[[#This Row],[Energy Prices]]="","",MATCH(K27,AEO2017RC!BI:BI,0)) -> 198 | Q27: =IF($D27="MECS",IF($G27="","",OFFSET(MECS!$D$2,MATCH($E27,ListMECSSector,0),MATCH($F27,MECS!$E$1:$GT$1,0))),"") ->  | R27: =IF($D27="MECS",IF($G27="","",OFFSET(MECS!$D$2,MATCH($E27,ListMECSSector,0),MATCH($F27,MECS!$E$1:$GT$1,0)+2+MATCH($G27,ListMECSEndUse,0))),"") ->  | S27: =IF(TableScenario[[#This Row],[MECS Sector Energy]]="","",TableScenario[[#This Row],[MECS Sector Energy]]*TableScenario[[#This Row],[MECS End-Use %]]) ->  | T27: =IF($Z27,TableScenario[[#This Row],[Alt_Units]],IF(TableScenario[[#This Row],[MECS End-Use Energy]]="",IF($M27="","",OFFSET(AEO2016RC[[#Headers],[Gunits]],$M27-1,0)),IF(F27="Electricity","TWh","Tbtu"))) -> TBtu | Z27: TRUE | AA27: TBtu | AC27: =AC26*$CI27*10^3 -> 0 | AD27: 0 | AE27: 0 | AF27: 0 | AG27: 0 | AH27: 0 | AI27: -0.1304960741 | AJ27: -0.3926012771 | AK27: -0.7728818833 | AL27: -1.279396028 | AM27: -1.919714803 | AN27: -2.678498526 | AO27: -3.547393108 | AP27: -4.550518896 | AQ27: -5.667772861 | AR27: -6.904509208 | AS27: -8.278930987 | AT27: -9.80924602 | AU27: -11.47389871 | AV27: -13.13433966 | AW27: -14.79680983 | AX27: -16.48631006 | AY27: -18.21607752 | AZ27: -19.97580057 | BA27: -21.62461777 | BB27: -23.19154904 | BC27: -24.62976269 | BD27: -25.96991528 | BE27: -27.17868768 | BF27: -28.24969423 | BG27: -29.18374057 | BH27: -30.01210127 | BI27: -30.72632383 | BJ27: -31.31943354 | BK27: -31.79599764 | BL27: -32.15249052 | BM27: -32.34556466 | BN27: -32.55854493 | BO27: -32.80252583 | BP27: =BP26*$CI27*10^3 -> -33.03625427 | BR27: Mass reduction | BS27: 5 | BT27: kg | BU27: Project 1 Excel Calculations - High-Low_2015-7-6.xlsx | BV27: Mass reduction induced change in fuel consumption | BW27: -0.38 | BX27: liters/(100km*100kg) | BY27: Project 1 Excel Calculations - High-Low_2015-7-6.xlsx | BZ27: Mass reduction induced change in fuel consumption | CA27: =TableScenario[[#This Row],['#1_Value]]*TableScenario[[#This Row],['#2_Value]]/(100*100) -> -0.00019 | CB27: liters/km | CD27: Energy Density of Gasoline | CE27: 40 | CF27: MJ/l | CH27: Mass reduction induced change in energy per VMT | CI27: =CA27*CE27/CONVERT(1000,"m","mi")*CONVERT(1,"J","BTU") -> -1.159276485e-05 | CJ27: MMBtu/VMT | DN27: =IF(ROW()-ROW(TableScenario[[#Headers],[Scenario '#]])=1,1,IF(TableScenario[[#This Row],[Row Function]]=Lists!$O$3,DN26+1,DN26)) -> 3 | DO27: =IF(TableScenario[[#This Row],[Scenario '#]]=DN26,IF(TableScenario[[#This Row],[Row Function]]=Lists!$O$5,DO26+1,DO26),0) -> 1 | DP27: =CONCATENATE(TableScenario[[#This Row],[Scenario '#]]," - ",TableScenario[[#This Row],[Forecast Sequence]]) -> 3 - 1
A28: Steel Material Embodied Energy | B28: Forecast | C28: Industrial | H28: NG | K28: Energy Prices : Industrial : Natural Gas [2016 $/MMBtu] | M28: =IF(OR($D28="MECS",$F28=""),"",MATCH($F28,AEO2017RC!$BI:$BI,0)) ->  | N28: =IF($M28="","",OFFSET(AEO2016RC[[#Headers],[2011]],$M28-1,IF($L28>0,$L28-2011,0))) ->  | O28: =IF($J28="","",MATCH($J28,AEO2017RC!$BI:$BI,0)) ->  | P28: =IF(TableScenario[[#This Row],[Energy Prices]]="","",MATCH(K28,AEO2017RC!BI:BI,0)) -> 191 | Q28: =IF($D28="MECS",IF($G28="","",OFFSET(MECS!$D$2,MATCH($E28,ListMECSSector,0),MATCH($F28,MECS!$E$1:$GT$1,0))),"") ->  | R28: =IF($D28="MECS",IF($G28="","",OFFSET(MECS!$D$2,MATCH($E28,ListMECSSector,0),MATCH($F28,MECS!$E$1:$GT$1,0)+2+MATCH($G28,ListMECSEndUse,0))),"") ->  | S28: =IF(TableScenario[[#This Row],[MECS Sector Energy]]="","",TableScenario[[#This Row],[MECS Sector Energy]]*TableScenario[[#This Row],[MECS End-Use %]]) ->  | T28: =IF($Z28,TableScenario[[#This Row],[Alt_Units]],IF(TableScenario[[#This Row],[MECS End-Use Energy]]="",IF($M28="","",OFFSET(AEO2016RC[[#Headers],[Gunits]],$M28-1,0)),IF(F28="Electricity","TWh","Tbtu"))) -> TBtu | Z28: TRUE | AA28: TBtu | AC28: =-AC21*$BS28/1000 -> 0 | AD28: 0 | AE28: 0 | AF28: 0 | AG28: 0 | AH28: 0 | AI28: -0.2883489054 | AJ28: -0.571929872 | AK28: -0.8277349372 | AL28: -1.10031279 | AM28: -1.398249552 | AN28: -1.663846692 | AO28: -1.926664256 | AP28: -2.259652121 | AQ28: -2.541411674 | AR28: -2.781508069 | AS28: -3.081617152 | AT28: -3.418841921 | AU28: -3.711138493 | AV28: -3.988304472 | AW28: -4.289914905 | AX28: -4.593588714 | AY28: -4.911290494 | AZ28: -5.27679332 | BA28: -5.296874143 | BB28: -5.326289795 | BC28: -5.367175448 | BD28: -5.422247617 | BE28: -5.369009839 | BF28: -5.376066838 | BG28: -5.429901417 | BH28: -5.431107502 | BI28: -5.44085724 | BJ28: -5.504151479 | BK28: -5.562245104 | BL28: -5.595466851 | BM28: -5.566382293 | BN28: -5.612654613 | BO28: -5.681573883 | BP28: =-BP21*$BS28/1000 -> -5.684971015 | BR28: Mass Induced Change in Steel Embodied Energy | BS28: =BS27/BW28/CA28*CI28 -> 0.3043449469 | BT28: MMBtu/vehicle | BV28: Ti mass to Steel ratio | BW28: 0.5 | BZ28: "Buy-to-Fly" Steel Yield | CA28: 0.7194 | CC28: Project 1 Excel Calculations - High-Low_2015-7-6.xlsx | CD28: Raw material embodied energy | CE28: 23.1 | CF28: MJ/kg | CG28: Project 1 Excel Calculations - High-Low_2015-7-6.xlsx | CH28: Conversion | CI28: =CE28*CONVERT(1,"J","BTU") -> 0.02189457548 | CJ28: MMBtu/kg | DN28: =IF(ROW()-ROW(TableScenario[[#Headers],[Scenario '#]])=1,1,IF(TableScenario[[#This Row],[Row Function]]=Lists!$O$3,DN27+1,DN27)) -> 3 | DO28: =IF(TableScenario[[#This Row],[Scenario '#]]=DN27,IF(TableScenario[[#This Row],[Row Function]]=Lists!$O$5,DO27+1,DO27),0) -> 2 | DP28: =CONCATENATE(TableScenario[[#This Row],[Scenario '#]]," - ",TableScenario[[#This Row],[Forecast Sequence]]) -> 3 - 2
A29: Steel Part Manufacturing | B29: Forecast | C29: Industrial | H29: Primary Electricity | K29: Energy Prices : Electric Power : Natural Gas [2016 $/MMBtu] | M29: =IF(OR($D29="MECS",$F29=""),"",MATCH($F29,AEO2017RC!$BI:$BI,0)) ->  | N29: =IF($M29="","",OFFSET(AEO2016RC[[#Headers],[2011]],$M29-1,IF($L29>0,$L29-2011,0))) ->  | O29: =IF($J29="","",MATCH($J29,AEO2017RC!$BI:$BI,0)) ->  | P29: =IF(TableScenario[[#This Row],[Energy Prices]]="","",MATCH(K29,AEO2017RC!BI:BI,0)) -> 206 | Q29: =IF($D29="MECS",IF($G29="","",OFFSET(MECS!$D$2,MATCH($E29,ListMECSSector,0),MATCH($F29,MECS!$E$1:$GT$1,0))),"") ->  | R29: =IF($D29="MECS",IF($G29="","",OFFSET(MECS!$D$2,MATCH($E29,ListMECSSector,0),MATCH($F29,MECS!$E$1:$GT$1,0)+2+MATCH($G29,ListMECSEndUse,0))),"") ->  | S29: =IF(TableScenario[[#This Row],[MECS Sector Energy]]="","",TableScenario[[#This Row],[MECS Sector Energy]]*TableScenario[[#This Row],[MECS End-Use %]]) ->  | T29: =IF($Z29,TableScenario[[#This Row],[Alt_Units]],IF(TableScenario[[#This Row],[MECS End-Use Energy]]="",IF($M29="","",OFFSET(AEO2016RC[[#Headers],[Gunits]],$M29-1,0)),IF(F29="Electricity","TWh","Tbtu"))) -> TBtu | Z29: TRUE | AA29: TBtu | AC29: =-AC21*$BS29/1000 -> 0 | AD29: 0 | AE29: 0 | AF29: 0 | AG29: 0 | AH29: 0 | AI29: -0.149836327 | AJ29: -0.2971950638 | AK29: -0.4301204561 | AL29: -0.5717615846 | AM29: -0.7265801022 | AN29: -0.8645938039 | AO29: -1.00116314 | AP29: -1.174195455 | AQ29: -1.32060772 | AR29: -1.44537033 | AS29: -1.601317663 | AT29: -1.776551624 | AU29: -1.928439298 | AV29: -2.07246458 | AW29: -2.229192067 | AX29: -2.386991758 | AY29: -2.552080881 | AZ29: -2.742009124 | BA29: -2.752443832 | BB29: -2.767729249 | BC29: -2.788974886 | BD29: -2.81759234 | BE29: -2.789928101 | BF29: -2.793595168 | BG29: -2.821569526 | BH29: -2.822196251 | BI29: -2.827262561 | BJ29: -2.860152494 | BK29: -2.890340004 | BL29: -2.907603203 | BM29: -2.892489834 | BN29: -2.916534574 | BO29: -2.952347473 | BP29: =-BP21*$BS29/1000 -> -2.954112743 | BR29: Steel Part manufacturing energy | BS29: =(BS27/BW28*CM29+BS27/BW28/CA28*CE29+BS27/BW28/CA28*CI29)*CONVERT(1,"J","BTU") -> 0.158148438 | BT29: MMBtu/vehicle | CD29: Steel ingot to coil | CE29: 6.4 | CF29: MJ/kg | CG29: Project 1 Excel Calculations - High-Low_2015-7-6.xlsx | CH29: Steel stamping | CI29: 5.1 | CJ29: MJ/kg | CK29: Project 1 Excel Calculations - High-Low_2015-7-6.xlsx | CL29: Steel assembly | CM29: 0.7 | CN29: MJ/kg | CO29: Project 1 Excel Calculations - High-Low_2015-7-6.xlsx | DN29: =IF(ROW()-ROW(TableScenario[[#Headers],[Scenario '#]])=1,1,IF(TableScenario[[#This Row],[Row Function]]=Lists!$O$3,DN28+1,DN28)) -> 3 | DO29: =IF(TableScenario[[#This Row],[Scenario '#]]=DN28,IF(TableScenario[[#This Row],[Row Function]]=Lists!$O$5,DO28+1,DO28),0) -> 3 | DP29: =CONCATENATE(TableScenario[[#This Row],[Scenario '#]]," - ",TableScenario[[#This Row],[Forecast Sequence]]) -> 3 - 3
A30: HST Material Embodied Energy | B30: Forecast | C30: Industrial | H30: NG | K30: Energy Prices : Industrial : Natural Gas [2016 $/MMBtu] | M30: =IF(OR($D30="MECS",$F30=""),"",MATCH($F30,AEO2017RC!$BI:$BI,0)) ->  | N30: =IF($M30="","",OFFSET(AEO2016RC[[#Headers],[2011]],$M30-1,IF($L30>0,$L30-2011,0))) ->  | O30: =IF($J30="","",MATCH($J30,AEO2017RC!$BI:$BI,0)) ->  | P30: =IF(TableScenario[[#This Row],[Energy Prices]]="","",MATCH(K30,AEO2017RC!BI:BI,0)) -> 191 | Q30: =IF($D30="MECS",IF($G30="","",OFFSET(MECS!$D$2,MATCH($E30,ListMECSSector,0),MATCH($F30,MECS!$E$1:$GT$1,0))),"") ->  | R30: =IF($D30="MECS",IF($G30="","",OFFSET(MECS!$D$2,MATCH($E30,ListMECSSector,0),MATCH($F30,MECS!$E$1:$GT$1,0)+2+MATCH($G30,ListMECSEndUse,0))),"") ->  | S30: =IF(TableScenario[[#This Row],[MECS Sector Energy]]="","",TableScenario[[#This Row],[MECS Sector Energy]]*TableScenario[[#This Row],[MECS End-Use %]]) ->  | T30: =IF($Z30,TableScenario[[#This Row],[Alt_Units]],IF(TableScenario[[#This Row],[MECS End-Use Energy]]="",IF($M30="","",OFFSET(AEO2016RC[[#Headers],[Gunits]],$M30-1,0)),IF(F30="Electricity","TWh","Tbtu"))) -> TBtu | Z30: TRUE | AA30: TBtu | AC30: =AC21*$BS30/1000 -> 0 | AD30: 0 | AE30: 0 | AF30: 0 | AG30: 0 | AH30: 0 | AI30: 1.219224134 | AJ30: 2.418288018 | AK30: 3.499907206 | AL30: 4.652446685 | AM30: 5.912211102 | AN30: 7.035234065 | AO30: 8.146504166 | AP30: 9.554474973 | AQ30: 10.74583739 | AR30: 11.76103569 | AS30: 13.02998532 | AT30: 14.455871 | AU30: 15.69178704 | AV30: 16.86372646 | AW30: 18.13902424 | AX30: 19.42304658 | AY30: 20.76638332 | AZ30: 22.31183697 | BA30: 22.3967446 | BB30: 22.52112264 | BC30: 22.69399923 | BD30: 22.92686059 | BE30: 22.70175558 | BF30: 22.73159465 | BG30: 22.95922311 | BH30: 22.9643228 | BI30: 23.00554756 | BJ30: 23.27317425 | BK30: 23.51881121 | BL30: 23.65928255 | BM30: 23.53630447 | BN30: 23.73195747 | BO30: 24.02336845 | BP30: =BP21*$BS30/1000 -> 24.03773253 | BR30: Mass Induced Change in Ti6Al4V Embodied Energy | BS30: =(TableScenario[[#This Row],['#10_Value]]*CE30+TableScenario[[#This Row],['#11_Value]]*CI30)*CONVERT(1,"J","BTU") -> 1.286860111 | BT30: MMBtu/vehicle | BV30: TiH2 PRODUCTION | BW30: =1.04211669835168*0.9 -> 0.9379050285 | BX30: g TiH2/g Ti | BY30: Project 1 Excel Calculations - High-Low_2015-7-6.xlsx | BZ30: Precursor Material scalar (kg Al/kg final part + kg V/kg final part) | CA30: =0.06+0.04 -> 0.1 | CC30: Project 1 Excel Calculations - High-Low_2015-7-6.xlsx | CD30: TiH2 Raw material embodied energy | CE30: 239.786034 | CF30: MJ/kg | CG30: Project 1 Excel Calculations - High-Low_2015-7-6.xlsx | CH30: 60Al-40V Raw material embodied energy | CI30: 201.7 | CJ30: MJ/kg | CK30: Project 1 Excel Calculations - High-Low_2015-7-6.xlsx | CL30: Ti6Al4V Sinter Yield | CM30: 0.95 | CN30: kg/kg | CO30: Project 1 Excel Calculations - High-Low_2015-7-6.xlsx | CP30: Ti6Al4V Cold isostatic press Yield | CQ30: 0.95 | CR30: kg/kg | CS30: Project 1 Excel Calculations - High-Low_2015-7-6.xlsx | CT30: TiH2 Sinter Mass | CU30: =BS27*TableScenario[[#This Row],['#2_Value]]/TableScenario[[#This Row],['#6_Value]] -> 4.936342255 | CV30: kg TiH2 | CW30: Calculated | CX30: 60Al-40V Sinter Mass | CY30: =BS27*TableScenario[[#This Row],['#3_Value]]/TableScenario[[#This Row],['#6_Value]] -> 0.5263157895 | CZ30: kg 60Al-40V | DA30: Calculated | DB30: TiH2 Cold isostatic press Mass | DC30: =TableScenario[[#This Row],['#8_Value]]/TableScenario[[#This Row],['#7_Value]] -> 5.196149742 | DD30: kg TiH2 | DE30: Calculated | DF30: 60Al-40VCold isostatic press Mass | DG30: =TableScenario[[#This Row],['#9_Value]]/TableScenario[[#This Row],['#7_Value]] -> 0.5540166205 | DH30: kg 60Al-40V | DI30: Calculated | DN30: =IF(ROW()-ROW(TableScenario[[#Headers],[Scenario '#]])=1,1,IF(TableScenario[[#This Row],[Row Function]]=Lists!$O$3,DN29+1,DN29)) -> 3 | DO30: =IF(TableScenario[[#This Row],[Scenario '#]]=DN29,IF(TableScenario[[#This Row],[Row Function]]=Lists!$O$5,DO29+1,DO29),0) -> 4 | DP30: =CONCATENATE(TableScenario[[#This Row],[Scenario '#]]," - ",TableScenario[[#This Row],[Forecast Sequence]]) -> 3 - 4
A31: HST Part Manufacturing | B31: Forecast | C31: Industrial | H31: Primary Electricity | K31: Energy Prices : Electric Power : Natural Gas [2016 $/MMBtu] | M31: =IF(OR($D31="MECS",$F31=""),"",MATCH($F31,AEO2017RC!$BI:$BI,0)) ->  | N31: =IF($M31="","",OFFSET(AEO2016RC[[#Headers],[2011]],$M31-1,IF($L31>0,$L31-2011,0))) ->  | O31: =IF($J31="","",MATCH($J31,AEO2017RC!$BI:$BI,0)) ->  | P31: =IF(TableScenario[[#This Row],[Energy Prices]]="","",MATCH(K31,AEO2017RC!BI:BI,0)) -> 206 | Q31: =IF($D31="MECS",IF($G31="","",OFFSET(MECS!$D$2,MATCH($E31,ListMECSSector,0),MATCH($F31,MECS!$E$1:$GT$1,0))),"") ->  | R31: =IF($D31="MECS",IF($G31="","",OFFSET(MECS!$D$2,MATCH($E31,ListMECSSector,0),MATCH($F31,MECS!$E$1:$GT$1,0)+2+MATCH($G31,ListMECSEndUse,0))),"") ->  | S31: =IF(TableScenario[[#This Row],[MECS Sector Energy]]="","",TableScenario[[#This Row],[MECS Sector Energy]]*TableScenario[[#This Row],[MECS End-Use %]]) ->  | T31: =IF($Z31,TableScenario[[#This Row],[Alt_Units]],IF(TableScenario[[#This Row],[MECS End-Use Energy]]="",IF($M31="","",OFFSET(AEO2016RC[[#Headers],[Gunits]],$M31-1,0)),IF(F31="Electricity","TWh","Tbtu"))) -> TBtu | Z31: TRUE | AA31: TBtu | AC31: =AC21*$BS31/1000 -> 0 | AD31: 0 | AE31: 0 | AF31: 0 | AG31: 0 | AH31: 0 | AI31: 0.05051329266 | AJ31: 0.1001913323 | AK31: 0.1450035576 | AL31: 0.1927540593 | AM31: 0.2449469637 | AN31: 0.2914745758 | AO31: 0.3375152588 | AP31: 0.3958484556 | AQ31: 0.445207418 | AR31: 0.4872677804 | AS31: 0.5398412345 | AT31: 0.5989166571 | AU31: 0.6501215066 | AV31: 0.6986757614 | AW31: 0.7515122236 | AX31: 0.8047101505 | AY31: 0.8603655135 | AZ31: 0.9243947187 | BA31: 0.9279125003 | BB31: 0.933065568 | BC31: 0.9402279637 | BD31: 0.9498755696 | BE31: 0.9405493145 | BF31: 0.9417855676 | BG31: 0.951216371 | BH31: 0.9514276545 | BI31: 0.9531356248 | BJ31: 0.9642235822 | BK31: 0.9744004902 | BL31: 0.9802203141 | BM31: 0.9751252477 | BN31: 0.983231286 | BO31: 0.9953046429 | BP31: =BP21*$BS31/1000 -> 0.9958997564 | BR31: Ti6Al4V Part Manufacturing | BS31: =(TableScenario[[#This Row],['#6_Value]]*(CU30+CY30)+TableScenario[[#This Row],['#7_Value]]*(DC30+DG30))*CONVERT(1,"J","BTU") -> 0.05331549759 | BT31: MMBtu/vehicle | CL31: Ti6Al4V sintering | CM31: 10.25262066 | CN31: MJ/kg | CO31: Project 1 Excel Calculations - High-Low_2015-7-6.xlsx | CP31: Ti6Al4V cold isostatic pressing | CQ31: 0.04248 | CR31: MJ/kg | CS31: Project 1 Excel Calculations - High-Low_2015-7-6.xlsx | DN31: =IF(ROW()-ROW(TableScenario[[#Headers],[Scenario '#]])=1,1,IF(TableScenario[[#This Row],[Row Function]]=Lists!$O$3,DN30+1,DN30)) -> 3 | DO31: =IF(TableScenario[[#This Row],[Scenario '#]]=DN30,IF(TableScenario[[#This Row],[Row Function]]=Lists!$O$5,DO30+1,DO30),0) -> 5 | DP31: =CONCATENATE(TableScenario[[#This Row],[Scenario '#]]," - ",TableScenario[[#This Row],[Forecast Sequence]]) -> 3 - 5
A32: Case Study Example 3: Replace titanium with UHMW-PE for U.S. Export LNG seawater heat exchangers | B32: New Scenario | M32: =IF(OR($D32="MECS",$F32=""),"",MATCH($F32,AEO2017RC!$BI:$BI,0)) ->  | N32: =IF($M32="","",OFFSET(AEO2016RC[[#Headers],[2011]],$M32-1,IF($L32>0,$L32-2011,0))) ->  | O32: =IF($J32="","",MATCH($J32,AEO2017RC!$BI:$BI,0)) ->  | P32: =IF(TableScenario[[#This Row],[Energy Prices]]="","",MATCH(K32,AEO2017RC!BI:BI,0)) ->  | Q32: =IF($D32="MECS",IF($G32="","",OFFSET(MECS!$D$2,MATCH($E32,ListMECSSector,0),MATCH($F32,MECS!$E$1:$GT$1,0))),"") ->  | R32: =IF($D32="MECS",IF($G32="","",OFFSET(MECS!$D$2,MATCH($E32,ListMECSSector,0),MATCH($F32,MECS!$E$1:$GT$1,0)+2+MATCH($G32,ListMECSEndUse,0))),"") ->  | S32: =IF(TableScenario[[#This Row],[MECS Sector Energy]]="","",TableScenario[[#This Row],[MECS Sector Energy]]*TableScenario[[#This Row],[MECS End-Use %]]) ->  | T32: =IF($Z32,TableScenario[[#This Row],[Alt_Units]],IF(TableScenario[[#This Row],[MECS End-Use Energy]]="",IF($M32="","",OFFSET(AEO2016RC[[#Headers],[Gunits]],$M32-1,0)),IF(F32="Electricity","TWh","Tbtu"))) ->  | DG32: =TableScenario[[#This Row],['#9_Value]]*TableScenario[[#This Row],['#10_Value]] -> 0 | DN32: =IF(ROW()-ROW(TableScenario[[#Headers],[Scenario '#]])=1,1,IF(TableScenario[[#This Row],[Row Function]]=Lists!$O$3,DN31+1,DN31)) -> 4 | DO32: =IF(TableScenario[[#This Row],[Scenario '#]]=DN31,IF(TableScenario[[#This Row],[Row Function]]=Lists!$O$5,DO31+1,DO31),0) -> 0 | DP32: =CONCATENATE(TableScenario[[#This Row],[Scenario '#]]," - ",TableScenario[[#This Row],[Forecast Sequence]]) -> 4 - 0
A33: U.S. LNG Exports (trillion cu ft) | E33: Lower 48 Reserves (AEOTbl 73) | F33: Natural Gas : Volumes : Exports : Liquefied Natural Gas Exports [Tcf] | M33: =IF(OR($D33="MECS",$F33=""),"",MATCH($F33,AEO2017RC!$BI:$BI,0)) -> 4594 | N33: =IF($M33="","",OFFSET(AEO2016RC[[#Headers],[2011]],$M33-1,IF($L33>0,$L33-2011,0))) -> 0.069765 | O33: =IF($J33="","",MATCH($J33,AEO2017RC!$BI:$BI,0)) ->  | P33: =IF(TableScenario[[#This Row],[Energy Prices]]="","",MATCH(K33,AEO2017RC!BI:BI,0)) ->  | Q33: =IF($D33="MECS",IF($G33="","",OFFSET(MECS!$D$2,MATCH($E33,ListMECSSector,0),MATCH($F33,MECS!$E$1:$GT$1,0))),"") ->  | R33: =IF($D33="MECS",IF($G33="","",OFFSET(MECS!$D$2,MATCH($E33,ListMECSSector,0),MATCH($F33,MECS!$E$1:$GT$1,0)+2+MATCH($G33,ListMECSEndUse,0))),"") ->  | S33: =IF(TableScenario[[#This Row],[MECS Sector Energy]]="","",TableScenario[[#This Row],[MECS Sector Energy]]*TableScenario[[#This Row],[MECS End-Use %]]) ->  | T33: =IF($Z33,TableScenario[[#This Row],[Alt_Units]],IF(TableScenario[[#This Row],[MECS End-Use Energy]]="",IF($M33="","",OFFSET(AEO2016RC[[#Headers],[Gunits]],$M33-1,0)),IF(F33="Electricity","TWh","Tbtu"))) -> Tcf | AB33: =OFFSET(AEO2016RC[[#Headers],[2010]],$M33-1,0) -> 0.064585 | AC33: =OFFSET(AEO2016RC[[#Headers],[2011]],$M33-1,0) -> 0.069765 | AD33: =OFFSET(AEO2016RC[[#Headers],[2012]],$M33-1,0) -> 0.028143 | AE33: =OFFSET(AEO2016RC[[#Headers],[2013]],$M33-1,0) -> 0.002725 | AF33: =OFFSET(AEO2016RC[[#Headers],[2014]],$M33-1,0) -> 0.013402 | AG33: =OFFSET(AEO2016RC[[#Headers],[2015]],$M33-1,0) -> 0.028144 | AH33: =OFFSET(AEO2016RC[[#Headers],[2016]],$M33-1,0) -> 0.171982 | AI33: =OFFSET(AEO2016RC[[#Headers],[2017]],$M33-1,0) -> 0.5329 | AJ33: =OFFSET(AEO2016RC[[#Headers],[2018]],$M33-1,0) -> 1.0174 | AK33: =OFFSET(AEO2016RC[[#Headers],[2019]],$M33-1,0) -> 1.8736 | AL33: =OFFSET(AEO2016RC[[#Headers],[2020]],$M33-1,0) -> 2.9135 | AM33: =OFFSET(AEO2016RC[[#Headers],[2021]],$M33-1,0) -> 3.0365 | AN33: =OFFSET(AEO2016RC[[#Headers],[2022]],$M33-1,0) -> 3.169834 | AO33: =OFFSET(AEO2016RC[[#Headers],[2023]],$M33-1,0) -> 3.369833 | AP33: =OFFSET(AEO2016RC[[#Headers],[2024]],$M33-1,0) -> 3.569834 | AQ33: =OFFSET(AEO2016RC[[#Headers],[2025]],$M33-1,0) -> 3.703167 | AR33: =OFFSET(AEO2016RC[[#Headers],[2026]],$M33-1,0) -> 3.8365 | AS33: =OFFSET(AEO2016RC[[#Headers],[2027]],$M33-1,0) -> 3.969833 | AT33: =OFFSET(AEO2016RC[[#Headers],[2028]],$M33-1,0) -> 4.0365 | AU33: =OFFSET(AEO2016RC[[#Headers],[2029]],$M33-1,0) -> 4.0365 | AV33: =OFFSET(AEO2016RC[[#Headers],[2030]],$M33-1,0) -> 4.103167 | AW33: =OFFSET(AEO2016RC[[#Headers],[2031]],$M33-1,0) -> 4.169833 | AX33: =OFFSET(AEO2016RC[[#Headers],[2032]],$M33-1,0) -> 4.2365 | AY33: =OFFSET(AEO2016RC[[#Headers],[2033]],$M33-1,0) -> 4.303167 | AZ33: =OFFSET(AEO2016RC[[#Headers],[2034]],$M33-1,0) -> 4.369833 | BA33: =OFFSET(AEO2016RC[[#Headers],[2035]],$M33-1,0) -> 4.4365 | BB33: =OFFSET(AEO2016RC[[#Headers],[2036]],$M33-1,0) -> 4.4365 | BC33: =OFFSET(AEO2016RC[[#Headers],[2037]],$M33-1,0) -> 4.4365 | BD33: =OFFSET(AEO2016RC[[#Headers],[2038]],$M33-1,0) -> 4.4365 | BE33: =OFFSET(AEO2016RC[[#Headers],[2039]],$M33-1,0) -> 4.4365 | BF33: =OFFSET(AEO2016RC[[#Headers],[2040]],$M33-1,0) -> 4.4365 | BG33: =OFFSET(AEO2016RC[[#Headers],[2041]],$M33-1,0) -> 4.4365 | BH33: =OFFSET(AEO2016RC[[#Headers],[2042]],$M33-1,0) -> 4.4365 | BI33: =OFFSET(AEO2016RC[[#Headers],[2043]],$M33-1,0) -> 4.4365 | BJ33: =OFFSET(AEO2016RC[[#Headers],[2044]],$M33-1,0) -> 4.4365 | BK33: =OFFSET(AEO2016RC[[#Headers],[2045]],$M33-1,0) -> 4.4365 | BL33: =OFFSET(AEO2016RC[[#Headers],[2046]],$M33-1,0) -> 4.4365 | BM33: =OFFSET(AEO2016RC[[#Headers],[2047]],$M33-1,0) -> 4.4365 | BN33: =OFFSET(AEO2016RC[[#Headers],[2048]],$M33-1,0) -> 4.4365 | BO33: =OFFSET(AEO2016RC[[#Headers],[2049]],$M33-1,0) -> 4.4365 | BP33: =OFFSET(AEO2016RC[[#Headers],[2050]],$M33-1,0) -> 4.4365 | DN33: =IF(ROW()-ROW(TableScenario[[#Headers],[Scenario '#]])=1,1,IF(TableScenario[[#This Row],[Row Function]]=Lists!$O$3,DN32+1,DN32)) -> 4 | DO33: =IF(TableScenario[[#This Row],[Scenario '#]]=DN32,IF(TableScenario[[#This Row],[Row Function]]=Lists!$O$5,DO32+1,DO32),0) -> 0 | DP33: =CONCATENATE(TableScenario[[#This Row],[Scenario '#]]," - ",TableScenario[[#This Row],[Forecast Sequence]]) -> 4 - 0
A34: U.S. LNG Exports (Million Mt) | M34: =IF(OR($D34="MECS",$F34=""),"",MATCH($F34,AEO2017RC!$BI:$BI,0)) ->  | N34: =IF($M34="","",OFFSET(AEO2016RC[[#Headers],[2011]],$M34-1,IF($L34>0,$L34-2011,0))) ->  | O34: =IF($J34="","",MATCH($J34,AEO2017RC!$BI:$BI,0)) ->  | P34: =IF(TableScenario[[#This Row],[Energy Prices]]="","",MATCH(K34,AEO2017RC!BI:BI,0)) ->  | Q34: =IF($D34="MECS",IF($G34="","",OFFSET(MECS!$D$2,MATCH($E34,ListMECSSector,0),MATCH($F34,MECS!$E$1:$GT$1,0))),"") ->  | R34: =IF($D34="MECS",IF($G34="","",OFFSET(MECS!$D$2,MATCH($E34,ListMECSSector,0),MATCH($F34,MECS!$E$1:$GT$1,0)+2+MATCH($G34,ListMECSEndUse,0))),"") ->  | S34: =IF(TableScenario[[#This Row],[MECS Sector Energy]]="","",TableScenario[[#This Row],[MECS Sector Energy]]*TableScenario[[#This Row],[MECS End-Use %]]) ->  | T34: =IF($Z34,TableScenario[[#This Row],[Alt_Units]],IF(TableScenario[[#This Row],[MECS End-Use Energy]]="",IF($M34="","",OFFSET(AEO2016RC[[#Headers],[Gunits]],$M34-1,0)),IF(F34="Electricity","TWh","Tbtu"))) ->  | AB34: =AB33*$BS34 -> 1.226476331 | AC34: =AC33*$BS34 -> 1.324845107 | AD34: =AD33*$BS34 -> 0.5344386991 | AE34: 0.05174805298 | AF34: 0.2545054701 | AG34: 0.5344576892 | AH34: 3.265957302 | AI34: 10.11983025 | AJ34: 19.32053912 | AK34: 35.57987231 | AL34: 55.32768894 | AM34: 57.66347261 | AN34: 60.1955001 | AO34: 63.99350334 | AP34: 67.79154457 | AQ34: 70.32355306 | AR34: 72.85556156 | AS34: 75.38757005 | AT34: 76.6535838 | AU34: 76.6535838 | AV34: 77.91959754 | AW34: 79.18559229 | AX34: 80.45160603 | AY34: 81.71761977 | AZ34: 82.98361453 | BA34: 84.24962827 | BB34: 84.24962827 | BC34: 84.24962827 | BD34: 84.24962827 | BE34: 84.24962827 | BF34: 84.24962827 | BG34: 84.24962827 | BH34: 84.24962827 | BI34: 84.24962827 | BJ34: 84.24962827 | BK34: 84.24962827 | BL34: 84.24962827 | BM34: 84.24962827 | BN34: 84.24962827 | BO34: 84.24962827 | BP34: 84.24962827 | BR34: LNG Weight conversion | BS34: =1/83.6*3.5*CONVERT(1,"lbm","g") -> 18.99011118 | BT34: million tonne/tri cu ft | BU34: 82.6 cft/gal; 3.6 lbm/gal | DN34: =IF(ROW()-ROW(TableScenario[[#Headers],[Scenario '#]])=1,1,IF(TableScenario[[#This Row],[Row Function]]=Lists!$O$3,DN33+1,DN33)) -> 4 | DO34: =IF(TableScenario[[#This Row],[Scenario '#]]=DN33,IF(TableScenario[[#This Row],[Row Function]]=Lists!$O$5,DO33+1,DO33),0) -> 0 | DP34: =CONCATENATE(TableScenario[[#This Row],[Scenario '#]]," - ",TableScenario[[#This Row],[Forecast Sequence]]) -> 4 - 0
A35: U.S. LNG Exports Cooling X-changer energy (kW cooling) | M35: =IF(OR($D35="MECS",$F35=""),"",MATCH($F35,AEO2017RC!$BI:$BI,0)) ->  | N35: =IF($M35="","",OFFSET(AEO2016RC[[#Headers],[2011]],$M35-1,IF($L35>0,$L35-2011,0))) ->  | O35: =IF($J35="","",MATCH($J35,AEO2017RC!$BI:$BI,0)) ->  | P35: =IF(TableScenario[[#This Row],[Energy Prices]]="","",MATCH(K35,AEO2017RC!BI:BI,0)) ->  | Q35: =IF($D35="MECS",IF($G35="","",OFFSET(MECS!$D$2,MATCH($E35,ListMECSSector,0),MATCH($F35,MECS!$E$1:$GT$1,0))),"") ->  | R35: =IF($D35="MECS",IF($G35="","",OFFSET(MECS!$D$2,MATCH($E35,ListMECSSector,0),MATCH($F35,MECS!$E$1:$GT$1,0)+2+MATCH($G35,ListMECSEndUse,0))),"") ->  | S35: =IF(TableScenario[[#This Row],[MECS Sector Energy]]="","",TableScenario[[#This Row],[MECS Sector Energy]]*TableScenario[[#This Row],[MECS End-Use %]]) ->  | T35: =IF($Z35,TableScenario[[#This Row],[Alt_Units]],IF(TableScenario[[#This Row],[MECS End-Use Energy]]="",IF($M35="","",OFFSET(AEO2016RC[[#Headers],[Gunits]],$M35-1,0)),IF(F35="Electricity","TWh","Tbtu"))) ->  | AB35: =AB34*10^9/$CM35*$CI35 -> 2297.874777 | AC35: =AC34*10^9/$CM35*$CI35 -> 2482.174403 | AD35: =AD34*10^9/$CM35*$CI35 -> 1001.302003 | AE35: 96.95298858 | AF35: 476.8308084 | AG35: 1001.337582 | AH35: 6118.961057 | AI35: 18960.09087 | AJ35: 36198.15434 | AK35: 66660.96125 | AL35: 103659.6448 | AM35: 108035.8715 | AN35: 112779.7723 | AO35: 119895.5524 | AP35: 127011.4037 | AQ35: 131755.2689 | AR35: 136499.1342 | AS35: 141242.9994 | AT35: 143614.9499 | AU35: 143614.9499 | AV35: 145986.9003 | AW35: 148358.8151 | AX35: 150730.7655 | AY35: 153102.716 | AZ35: 155474.6308 | BA35: 157846.5812 | BB35: 157846.5812 | BC35: 157846.5812 | BD35: 157846.5812 | BE35: 157846.5812 | BF35: 157846.5812 | BG35: 157846.5812 | BH35: 157846.5812 | BI35: 157846.5812 | BJ35: 157846.5812 | BK35: 157846.5812 | BL35: 157846.5812 | BM35: 157846.5812 | BN35: 157846.5812 | BO35: 157846.5812 | BP35: 157846.5812 | BR35: Methane Specific Heat | BS35: 2.365 | BT35: kJ/kgK | BU35: Project 9 Excel Calculations - High-Low_2014-10-1.xlsx | BV35: Methane Starting Temp | BW35: 60 | BX35: C | BY35: assumption | BZ35: Methane Ending Temp | CA35: 35 | CB35: C | CC35: assumption | CD35: Methane Temp Change | CE35: =BW35-CA35 -> 25 | CF35: C | CG35: Calculation | CH35: Energy required to cool 1 kg methane | CI35: =BS35*CE35 -> 59.125 | CJ35: kJ/kg | CL35: Second per year | CM35: =60*60*24*365.25 -> 31557600 | CN35: s/yr | DN35: =IF(ROW()-ROW(TableScenario[[#Headers],[Scenario '#]])=1,1,IF(TableScenario[[#This Row],[Row Function]]=Lists!$O$3,DN34+1,DN34)) -> 4 | DO35: =IF(TableScenario[[#This Row],[Scenario '#]]=DN34,IF(TableScenario[[#This Row],[Row Function]]=Lists!$O$5,DO34+1,DO34),0) -> 0 | DP35: =CONCATENATE(TableScenario[[#This Row],[Scenario '#]]," - ",TableScenario[[#This Row],[Forecast Sequence]]) -> 4 - 0
A36: U.S. LNG Exports Cooling Ti HX modules (Number) | M36: =IF(OR($D36="MECS",$F36=""),"",MATCH($F36,AEO2017RC!$BI:$BI,0)) ->  | N36: =IF($M36="","",OFFSET(AEO2016RC[[#Headers],[2011]],$M36-1,IF($L36>0,$L36-2011,0))) ->  | O36: =IF($J36="","",MATCH($J36,AEO2017RC!$BI:$BI,0)) ->  | P36: =IF(TableScenario[[#This Row],[Energy Prices]]="","",MATCH(K36,AEO2017RC!BI:BI,0)) ->  | Q36: =IF($D36="MECS",IF($G36="","",OFFSET(MECS!$D$2,MATCH($E36,ListMECSSector,0),MATCH($F36,MECS!$E$1:$GT$1,0))),"") ->  | R36: =IF($D36="MECS",IF($G36="","",OFFSET(MECS!$D$2,MATCH($E36,ListMECSSector,0),MATCH($F36,MECS!$E$1:$GT$1,0)+2+MATCH($G36,ListMECSEndUse,0))),"") ->  | S36: =IF(TableScenario[[#This Row],[MECS Sector Energy]]="","",TableScenario[[#This Row],[MECS Sector Energy]]*TableScenario[[#This Row],[MECS End-Use %]]) ->  | T36: =IF($Z36,TableScenario[[#This Row],[Alt_Units]],IF(TableScenario[[#This Row],[MECS End-Use Energy]]="",IF($M36="","",OFFSET(AEO2016RC[[#Headers],[Gunits]],$M36-1,0)),IF(F36="Electricity","TWh","Tbtu"))) ->  | AB36: =AB35/$CI36 -> 599.3413607 | AC36: =AC35/$CI36 -> 647.411164 | AD36: =AD35/$CI36 -> 261.1637983 | AE36: 25.28768612 | AF36: 124.3690163 | AG36: 261.1730782 | AH36: 1595.97315 | AI36: 4945.250617 | AJ36: 9441.35481 | AK36: 17386.79219 | AL36: 27036.94441 | AM36: 28178.37024 | AN36: 29415.6944 | AO36: 31271.66208 | AP36: 33127.64832 | AQ36: 34364.96321 | AR36: 35602.27809 | AS36: 36839.59297 | AT36: 37458.25505 | AU36: 37458.25505 | AV36: 38076.91713 | AW36: 38695.56993 | AX36: 39314.23201 | AY36: 39932.89409 | AZ36: 40551.5469 | BA36: 41170.20898 | BB36: 41170.20898 | BC36: 41170.20898 | BD36: 41170.20898 | BE36: 41170.20898 | BF36: 41170.20898 | BG36: 41170.20898 | BH36: 41170.20898 | BI36: 41170.20898 | BJ36: 41170.20898 | BK36: 41170.20898 | BL36: 41170.20898 | BM36: 41170.20898 | BN36: 41170.20898 | BO36: 41170.20898 | BP36: 41170.20898 | BR36: Ti density | BS36: 4.5 | BT36: g/cm^3 | BU36: Project 9 Excel Calculations - High-Low_2014-10-1.xlsx | BV36: HX volume (Based on length, width, thickness of exchanger) | BW36: 6000 | BX36: cm^3 | BY36: Project 9 Excel Calculations - High-Low_2014-10-1.xlsx | BZ36: Ti mass in given HX design | CA36: =BS36*BW36/1000 -> 27 | CB36: kg | CD36: Ti heat transfer Coefficient | CE36: 142 | CF36: W/kg | CH36: Ti heat transferred in given HX design | CI36: =CA36*CE36/1000 -> 3.834 | CJ36: kW | DN36: =IF(ROW()-ROW(TableScenario[[#Headers],[Scenario '#]])=1,1,IF(TableScenario[[#This Row],[Row Function]]=Lists!$O$3,DN35+1,DN35)) -> 4 | DO36: =IF(TableScenario[[#This Row],[Scenario '#]]=DN35,IF(TableScenario[[#This Row],[Row Function]]=Lists!$O$5,DO35+1,DO35),0) -> 0 | DP36: =CONCATENATE(TableScenario[[#This Row],[Scenario '#]]," - ",TableScenario[[#This Row],[Forecast Sequence]]) -> 4 - 0
A37: U.S. LNG Exports Cooling Marginal Ti HX additions (Number/yr) | M37: =IF(OR($D37="MECS",$F37=""),"",MATCH($F37,AEO2017RC!$BI:$BI,0)) ->  | N37: =IF($M37="","",OFFSET(AEO2016RC[[#Headers],[2011]],$M37-1,IF($L37>0,$L37-2011,0))) ->  | O37: =IF($J37="","",MATCH($J37,AEO2017RC!$BI:$BI,0)) ->  | P37: =IF(TableScenario[[#This Row],[Energy Prices]]="","",MATCH(K37,AEO2017RC!BI:BI,0)) ->  | Q37: =IF($D37="MECS",IF($G37="","",OFFSET(MECS!$D$2,MATCH($E37,ListMECSSector,0),MATCH($F37,MECS!$E$1:$GT$1,0))),"") ->  | R37: =IF($D37="MECS",IF($G37="","",OFFSET(MECS!$D$2,MATCH($E37,ListMECSSector,0),MATCH($F37,MECS!$E$1:$GT$1,0)+2+MATCH($G37,ListMECSEndUse,0))),"") ->  | S37: =IF(TableScenario[[#This Row],[MECS Sector Energy]]="","",TableScenario[[#This Row],[MECS Sector Energy]]*TableScenario[[#This Row],[MECS End-Use %]]) ->  | T37: =IF($Z37,TableScenario[[#This Row],[Alt_Units]],IF(TableScenario[[#This Row],[MECS End-Use Energy]]="",IF($M37="","",OFFSET(AEO2016RC[[#Headers],[Gunits]],$M37-1,0)),IF(F37="Electricity","TWh","Tbtu"))) ->  | AB37: =MAX(0,AB36-AA36+IF(AB$1-$AC$1>=$BS37,OFFSET(AA37,0,-$BS37+1),0)) -> 599.3413607 | AC37: 48.06980334 | AD37: 0 | AE37: 0 | AF37: 99.08133016 | AG37: 136.8040619 | AH37: 1334.800072 | AI37: 3349.277467 | AJ37: 4496.104192 | AK37: 7945.437378 | AL37: 9650.152218 | AM37: 1141.425832 | AN37: 1237.324162 | AO37: 1855.967683 | AP37: 1855.986243 | AQ37: 1237.314882 | AR37: 1237.314882 | AS37: 1237.314882 | AT37: 618.6620809 | AU37: 0 | AW37: =MAX(0,AW36-AV36+IF(AW$1-$AC$1>=$BS37,OFFSET(AV37,0,-$BS37+1),0)) -> 666.7226043 | AX37: 618.6620809 | AY37: 618.6620809 | AZ37: 717.7341312 | BA37: 755.4661428 | BB37: 1334.800072 | BC37: 3349.277467 | BD37: 4496.104192 | BE37: 7945.437378 | BF37: 9650.152218 | BG37: 1141.425832 | BH37: 1237.324162 | BI37: 1855.967683 | BJ37: 1855.986243 | BK37: 1237.314882 | BL37: 1237.314882 | BM37: 1237.314882 | BN37: 618.6620809 | BO37: 0 | BP37: 0 | BR37: Ti HX life | BS37: 20 | BT37: years | BU37: assumption | DN37: =IF(ROW()-ROW(TableScenario[[#Headers],[Scenario '#]])=1,1,IF(TableScenario[[#This Row],[Row Function]]=Lists!$O$3,DN36+1,DN36)) -> 4 | DO37: =IF(TableScenario[[#This Row],[Scenario '#]]=DN36,IF(TableScenario[[#This Row],[Row Function]]=Lists!$O$5,DO36+1,DO36),0) -> 0 | DP37: =CONCATENATE(TableScenario[[#This Row],[Scenario '#]]," - ",TableScenario[[#This Row],[Forecast Sequence]]) -> 4 - 0
A38: U.S. LNG Exports Cooling Mass of Ti (kg/yr) | M38: =IF(OR($D38="MECS",$F38=""),"",MATCH($F38,AEO2017RC!$BI:$BI,0)) ->  | N38: =IF($M38="","",OFFSET(AEO2016RC[[#Headers],[2011]],$M38-1,IF($L38>0,$L38-2011,0))) ->  | O38: =IF($J38="","",MATCH($J38,AEO2017RC!$BI:$BI,0)) ->  | P38: =IF(TableScenario[[#This Row],[Energy Prices]]="","",MATCH(K38,AEO2017RC!BI:BI,0)) ->  | Q38: =IF($D38="MECS",IF($G38="","",OFFSET(MECS!$D$2,MATCH($E38,ListMECSSector,0),MATCH($F38,MECS!$E$1:$GT$1,0))),"") ->  | R38: =IF($D38="MECS",IF($G38="","",OFFSET(MECS!$D$2,MATCH($E38,ListMECSSector,0),MATCH($F38,MECS!$E$1:$GT$1,0)+2+MATCH($G38,ListMECSEndUse,0))),"") ->  | S38: =IF(TableScenario[[#This Row],[MECS Sector Energy]]="","",TableScenario[[#This Row],[MECS Sector Energy]]*TableScenario[[#This Row],[MECS End-Use %]]) ->  | T38: =IF($Z38,TableScenario[[#This Row],[Alt_Units]],IF(TableScenario[[#This Row],[MECS End-Use Energy]]="",IF($M38="","",OFFSET(AEO2016RC[[#Headers],[Gunits]],$M38-1,0)),IF(F38="Electricity","TWh","Tbtu"))) ->  | AD38: =AD37*$BW38 -> 0 | AE38: 0 | AF38: 2675.195914 | AG38: 3693.709672 | AH38: 36039.60194 | AI38: 90430.49162 | AJ38: 121394.8132 | AK38: 214526.8092 | AL38: 260554.1099 | AM38: 30818.49747 | AN38: 33407.75237 | AO38: 50111.12744 | AP38: 50111.62855 | AQ38: 33407.50181 | AR38: 33407.50181 | AS38: 33407.50181 | AT38: 16703.87618 | AU38: 0 | AW38: =AW37*$BW38 -> 18001.51032 | AX38: 16703.87618 | AY38: 16703.87618 | AZ38: 19378.82154 | BA38: 20397.58586 | BB38: 36039.60194 | BC38: 90430.49162 | BD38: 121394.8132 | BE38: 214526.8092 | BF38: 260554.1099 | BG38: 30818.49747 | BH38: 33407.75237 | BI38: 50111.12744 | BJ38: 50111.62855 | BK38: 33407.50181 | BL38: 33407.50181 | BM38: 33407.50181 | BN38: 16703.87618 | BO38: 0 | BP38: =BP37*$BW38 -> 0 | BR38: Ti density | BS38: 4.5 | BT38: g/cm^3 | BU38: Project 9 Excel Calculations - High-Low_2014-10-1.xlsx | BV38: Ti mass in given HX design | BW38: =BS38*BW36/1000 -> 27 | BX38: kg/HX | DN38: =IF(ROW()-ROW(TableScenario[[#Headers],[Scenario '#]])=1,1,IF(TableScenario[[#This Row],[Row Function]]=Lists!$O$3,DN37+1,DN37)) -> 4 | DO38: =IF(TableScenario[[#This Row],[Scenario '#]]=DN37,IF(TableScenario[[#This Row],[Row Function]]=Lists!$O$5,DO37+1,DO37),0) -> 0 | DP38: =CONCATENATE(TableScenario[[#This Row],[Scenario '#]]," - ",TableScenario[[#This Row],[Forecast Sequence]]) -> 4 - 0
A39: TI manufacturing embodied energy (HX life = 20 Yr) | B39: Forecast | C39: Industrial | H39: NG | K39: Energy Prices : Industrial : Natural Gas [2016 $/MMBtu] | M39: =IF(OR($D39="MECS",$F39=""),"",MATCH($F39,AEO2017RC!$BI:$BI,0)) ->  | N39: =IF($M39="","",OFFSET(AEO2016RC[[#Headers],[2011]],$M39-1,IF($L39>0,$L39-2011,0))) ->  | O39: =IF($J39="","",MATCH($J39,AEO2017RC!$BI:$BI,0)) ->  | P39: =IF(TableScenario[[#This Row],[Energy Prices]]="","",MATCH(K39,AEO2017RC!BI:BI,0)) -> 191 | Q39: =IF($D39="MECS",IF($G39="","",OFFSET(MECS!$D$2,MATCH($E39,ListMECSSector,0),MATCH($F39,MECS!$E$1:$GT$1,0))),"") ->  | R39: =IF($D39="MECS",IF($G39="","",OFFSET(MECS!$D$2,MATCH($E39,ListMECSSector,0),MATCH($F39,MECS!$E$1:$GT$1,0)+2+MATCH($G39,ListMECSEndUse,0))),"") ->  | S39: =IF(TableScenario[[#This Row],[MECS Sector Energy]]="","",TableScenario[[#This Row],[MECS Sector Energy]]*TableScenario[[#This Row],[MECS End-Use %]]) ->  | T39: =IF($Z39,TableScenario[[#This Row],[Alt_Units]],IF(TableScenario[[#This Row],[MECS End-Use Energy]]="",IF($M39="","",OFFSET(AEO2016RC[[#Headers],[Gunits]],$M39-1,0)),IF(F39="Electricity","TWh","Tbtu"))) -> TBtu | Z39: TRUE | AA39: TBtu | AD39: =-AD38*$BS39/10^6*CONVERT(1,"J","BTU") -> 0 | AE39: 0 | AF39: -0.002332748769 | AG39: -0.003220884363 | AH39: -0.03142623559 | AI39: -0.0788546427 | AJ39: -0.1058552757 | AK39: -0.1870656079 | AL39: -0.2272010344 | AM39: -0.02687347556 | AN39: -0.02913128447 | AO39: -0.04369648974 | AP39: -0.04369692671 | AQ39: -0.02913106599 | AR39: -0.02913106599 | AS39: -0.02913106599 | AT39: -0.01456564224 | AU39: 0 | AV39: 0 | AW39: -0.0156971685 | AX39: -0.01456564224 | AY39: -0.01456564224 | AZ39: -0.01689817252 | BA39: -0.0177865266 | BB39: -0.03142623559 | BC39: -0.0788546427 | BD39: -0.1058552757 | BE39: -0.1870656079 | BF39: -0.2272010344 | BG39: -0.02687347556 | BH39: -0.02913128447 | BI39: -0.04369648974 | BJ39: -0.04369692671 | BK39: -0.02913106599 | BL39: -0.02913106599 | BM39: -0.02913106599 | BN39: -0.01456564224 | BO39: 0 | BP39: =-BP38*$BS39/10^6*CONVERT(1,"J","BTU") -> 0 | BR39: Ti embodied energy | BS39: 920 | BT39: MJ/kg | BU39: Project 9 Excel Calculations - High-Low_2014-10-1.xlsx | DN39: =IF(ROW()-ROW(TableScenario[[#Headers],[Scenario '#]])=1,1,IF(TableScenario[[#This Row],[Row Function]]=Lists!$O$3,DN38+1,DN38)) -> 4 | DO39: =IF(TableScenario[[#This Row],[Scenario '#]]=DN38,IF(TableScenario[[#This Row],[Row Function]]=Lists!$O$5,DO38+1,DO38),0) -> 1 | DP39: =CONCATENATE(TableScenario[[#This Row],[Scenario '#]]," - ",TableScenario[[#This Row],[Forecast Sequence]]) -> 4 - 1
A40: U.S. LNG Exports Cooling UHMW-PE HX modules (Number) | M40: =IF(OR($D40="MECS",$F40=""),"",MATCH($F40,AEO2017RC!$BI:$BI,0)) ->  | N40: =IF($M40="","",OFFSET(AEO2016RC[[#Headers],[2011]],$M40-1,IF($L40>0,$L40-2011,0))) ->  | O40: =IF($J40="","",MATCH($J40,AEO2017RC!$BI:$BI,0)) ->  | P40: =IF(TableScenario[[#This Row],[Energy Prices]]="","",MATCH(K40,AEO2017RC!BI:BI,0)) ->  | Q40: =IF($D40="MECS",IF($G40="","",OFFSET(MECS!$D$2,MATCH($E40,ListMECSSector,0),MATCH($F40,MECS!$E$1:$GT$1,0))),"") ->  | R40: =IF($D40="MECS",IF($G40="","",OFFSET(MECS!$D$2,MATCH($E40,ListMECSSector,0),MATCH($F40,MECS!$E$1:$GT$1,0)+2+MATCH($G40,ListMECSEndUse,0))),"") ->  | S40: =IF(TableScenario[[#This Row],[MECS Sector Energy]]="","",TableScenario[[#This Row],[MECS Sector Energy]]*TableScenario[[#This Row],[MECS End-Use %]]) ->  | T40: =IF($Z40,TableScenario[[#This Row],[Alt_Units]],IF(TableScenario[[#This Row],[MECS End-Use Energy]]="",IF($M40="","",OFFSET(AEO2016RC[[#Headers],[Gunits]],$M40-1,0)),IF(F40="Electricity","TWh","Tbtu"))) ->  | AB40: =AB35/$CI40 -> 1144.45114 | AC40: 1236.241136 | AD40: 498.6961126 | AE40: 48.28720843 | AF40: 237.4844651 | AG40: 498.7138327 | AH40: 3047.534195 | AI40: 9443.028761 | AJ40: 18028.40582 | AK40: 33200.33531 | AL40: 51627.44285 | AM40: 53807.01226 | AN40: 56169.70094 | AO40: 59713.69851 | AP40: 63257.73153 | AQ40: 65620.40249 | AR40: 67983.07345 | AS40: 70345.74441 | AT40: 71527.08874 | AU40: 71527.08874 | AV40: 72708.43308 | AW40: 73889.7597 | AX40: 75071.10404 | AY40: 76252.44838 | AZ40: 77433.775 | BA40: 78615.11934 | BB40: 78615.11934 | BC40: 78615.11934 | BD40: 78615.11934 | BE40: 78615.11934 | BF40: 78615.11934 | BG40: 78615.11934 | BH40: 78615.11934 | BI40: 78615.11934 | BJ40: 78615.11934 | BK40: 78615.11934 | BL40: 78615.11934 | BM40: 78615.11934 | BN40: 78615.11934 | BO40: 78615.11934 | BP40: =BP35/$CI40 -> 78615.11934 | BR40: UHMW-PE density | BS40: 0.94 | BT40: g/cm^3 | BU40: Project 9 Excel Calculations - High-Low_2014-10-1.xlsx | BV40: HX volume (Based on length, width, thickness of exchanger) | BW40: 6000 | BX40: cm^3 | BY40: Project 9 Excel Calculations - High-Low_2014-10-1.xlsx | BZ40: Ti mass in given HX design | CA40: =BS40*BW40/1000 -> 5.64 | CB40: kg | CD40: UHMW-PE heat transfer Coefficient | CE40: 356 | CF40: W/kg | CH40: UHMW-PE heat transferred in given HX design | CI40: =CA40*CE40/1000 -> 2.00784 | CJ40: kW | DN40: =IF(ROW()-ROW(TableScenario[[#Headers],[Scenario '#]])=1,1,IF(TableScenario[[#This Row],[Row Function]]=Lists!$O$3,DN39+1,DN39)) -> 4 | DO40: =IF(TableScenario[[#This Row],[Scenario '#]]=DN39,IF(TableScenario[[#This Row],[Row Function]]=Lists!$O$5,DO39+1,DO39),0) -> 1 | DP40: =CONCATENATE(TableScenario[[#This Row],[Scenario '#]]," - ",TableScenario[[#This Row],[Forecast Sequence]]) -> 4 - 1
A41: U.S. LNG Exports Cooling Marginal UHMW-PE HX additions (Number/yr) | M41: =IF(OR($D41="MECS",$F41=""),"",MATCH($F41,AEO2017RC!$BI:$BI,0)) ->  | N41: =IF($M41="","",OFFSET(AEO2016RC[[#Headers],[2011]],$M41-1,IF($L41>0,$L41-2011,0))) ->  | O41: =IF($J41="","",MATCH($J41,AEO2017RC!$BI:$BI,0)) ->  | P41: =IF(TableScenario[[#This Row],[Energy Prices]]="","",MATCH(K41,AEO2017RC!BI:BI,0)) ->  | Q41: =IF($D41="MECS",IF($G41="","",OFFSET(MECS!$D$2,MATCH($E41,ListMECSSector,0),MATCH($F41,MECS!$E$1:$GT$1,0))),"") ->  | R41: =IF($D41="MECS",IF($G41="","",OFFSET(MECS!$D$2,MATCH($E41,ListMECSSector,0),MATCH($F41,MECS!$E$1:$GT$1,0)+2+MATCH($G41,ListMECSEndUse,0))),"") ->  | S41: =IF(TableScenario[[#This Row],[MECS Sector Energy]]="","",TableScenario[[#This Row],[MECS Sector Energy]]*TableScenario[[#This Row],[MECS End-Use %]]) ->  | T41: =IF($Z41,TableScenario[[#This Row],[Alt_Units]],IF(TableScenario[[#This Row],[MECS End-Use Energy]]="",IF($M41="","",OFFSET(AEO2016RC[[#Headers],[Gunits]],$M41-1,0)),IF(F41="Electricity","TWh","Tbtu"))) ->  | AB41: =MAX(0,AB40-AA40+IF(AB$1-$AC$1>=$BS41,OFFSET(AA41,0,-$BS41+1),0)) -> 1144.45114 | AC41: 91.78999621 | AD41: 0 | AE41: 0 | AF41: 189.1972567 | AG41: 261.2293676 | AH41: 2548.820362 | AI41: 6395.494566 | AJ41: 8585.377059 | AK41: 15171.92949 | AL41: 18427.10754 | AM41: 2271.359404 | AN41: 2362.688678 | AO41: 3543.997578 | AP41: 3733.230274 | AQ41: 2623.900326 | AR41: 4911.49132 | AS41: 8758.165524 | AT41: 9766.721398 | AU41: 15171.92949 | AW41: =MAX(0,AW40-AV40+IF(AW$1-$AC$1>=$BS41,OFFSET(AV41,0,-$BS41+1),0)) -> 3452.686023 | AX41: 3544.033018 | AY41: 4725.341917 | AZ41: 4914.556894 | BA41: 3805.244665 | BB41: 4911.49132 | BC41: 8758.165524 | BD41: 9766.721398 | BE41: 15171.92949 | BF41: 0 | BG41: 3452.686023 | BH41: 3544.033018 | BI41: 4725.341917 | BJ41: 4914.556894 | BK41: 3805.244665 | BL41: 4911.49132 | BM41: 8758.165524 | BN41: 9766.721398 | BO41: 15171.92949 | BP41: 0 | BR41: UHMW-PE HX life | BS41: 10 | BT41: years | BU41: assumption | DN41: =IF(ROW()-ROW(TableScenario[[#Headers],[Scenario '#]])=1,1,IF(TableScenario[[#This Row],[Row Function]]=Lists!$O$3,DN40+1,DN40)) -> 4 | DO41: =IF(TableScenario[[#This Row],[Scenario '#]]=DN40,IF(TableScenario[[#This Row],[Row Function]]=Lists!$O$5,DO40+1,DO40),0) -> 1 | DP41: =CONCATENATE(TableScenario[[#This Row],[Scenario '#]]," - ",TableScenario[[#This Row],[Forecast Sequence]]) -> 4 - 1
A42: U.S. LNG Exports Cooling Mass of UHMW-PE (kg/yr) | M42: =IF(OR($D42="MECS",$F42=""),"",MATCH($F42,AEO2017RC!$BI:$BI,0)) ->  | N42: =IF($M42="","",OFFSET(AEO2016RC[[#Headers],[2011]],$M42-1,IF($L42>0,$L42-2011,0))) ->  | O42: =IF($J42="","",MATCH($J42,AEO2017RC!$BI:$BI,0)) ->  | P42: =IF(TableScenario[[#This Row],[Energy Prices]]="","",MATCH(K42,AEO2017RC!BI:BI,0)) ->  | Q42: =IF($D42="MECS",IF($G42="","",OFFSET(MECS!$D$2,MATCH($E42,ListMECSSector,0),MATCH($F42,MECS!$E$1:$GT$1,0))),"") ->  | R42: =IF($D42="MECS",IF($G42="","",OFFSET(MECS!$D$2,MATCH($E42,ListMECSSector,0),MATCH($F42,MECS!$E$1:$GT$1,0)+2+MATCH($G42,ListMECSEndUse,0))),"") ->  | S42: =IF(TableScenario[[#This Row],[MECS Sector Energy]]="","",TableScenario[[#This Row],[MECS Sector Energy]]*TableScenario[[#This Row],[MECS End-Use %]]) ->  | T42: =IF($Z42,TableScenario[[#This Row],[Alt_Units]],IF(TableScenario[[#This Row],[MECS End-Use Energy]]="",IF($M42="","",OFFSET(AEO2016RC[[#Headers],[Gunits]],$M42-1,0)),IF(F42="Electricity","TWh","Tbtu"))) ->  | AD42: =AD41*$BW42 -> 0 | AE42: 0 | AF42: 1067.072528 | AG42: 1473.333633 | AH42: 14375.34684 | AI42: 36070.58935 | AJ42: 48421.52661 | AK42: 85569.68232 | AL42: 103928.8865 | AM42: 12810.46704 | AN42: 13325.56415 | AO42: 19988.14634 | AP42: 21055.41875 | AQ42: 14798.79784 | AR42: 27700.81105 | AS42: 49396.05356 | AT42: 55084.30868 | AU42: 85569.68232 | AW42: =AW41*$BW42 -> 19473.14917 | AX42: 19988.34622 | AY42: 26650.92841 | AZ42: 27718.10088 | BA42: 21461.57991 | BB42: 27700.81105 | BC42: 49396.05356 | BD42: 55084.30868 | BE42: 85569.68232 | BF42: 0 | BG42: 19473.14917 | BH42: 19988.34622 | BI42: 26650.92841 | BJ42: 27718.10088 | BK42: 21461.57991 | BL42: 27700.81105 | BM42: 49396.05356 | BN42: 55084.30868 | BO42: 85569.68232 | BP42: =BP41*$BW42 -> 0 | BR42: UHMW-PE density | BS42: 0.94 | BT42: g/cm^3 | BU42: Project 9 Excel Calculations - High-Low_2014-10-1.xlsx | BV42: UHMW-PE mass in given HX design | BW42: =BS42*BW40/1000 -> 5.64 | BX42: kg/HX | DN42: =IF(ROW()-ROW(TableScenario[[#Headers],[Scenario '#]])=1,1,IF(TableScenario[[#This Row],[Row Function]]=Lists!$O$3,DN41+1,DN41)) -> 4 | DO42: =IF(TableScenario[[#This Row],[Scenario '#]]=DN41,IF(TableScenario[[#This Row],[Row Function]]=Lists!$O$5,DO41+1,DO41),0) -> 1 | DP42: =CONCATENATE(TableScenario[[#This Row],[Scenario '#]]," - ",TableScenario[[#This Row],[Forecast Sequence]]) -> 4 - 1
A43: UHMW-PE manufacturing embodied energy (HX life = 10 Yr) | B43: Forecast | C43: Industrial | H43: NG | K43: Energy Prices : Industrial : Natural Gas [2016 $/MMBtu] | M43: =IF(OR($D43="MECS",$F43=""),"",MATCH($F43,AEO2017RC!$BI:$BI,0)) ->  | N43: =IF($M43="","",OFFSET(AEO2016RC[[#Headers],[2011]],$M43-1,IF($L43>0,$L43-2011,0))) ->  | O43: =IF($J43="","",MATCH($J43,AEO2017RC!$BI:$BI,0)) ->  | P43: =IF(TableScenario[[#This Row],[Energy Prices]]="","",MATCH(K43,AEO2017RC!BI:BI,0)) -> 191 | Q43: =IF($D43="MECS",IF($G43="","",OFFSET(MECS!$D$2,MATCH($E43,ListMECSSector,0),MATCH($F43,MECS!$E$1:$GT$1,0))),"") ->  | R43: =IF($D43="MECS",IF($G43="","",OFFSET(MECS!$D$2,MATCH($E43,ListMECSSector,0),MATCH($F43,MECS!$E$1:$GT$1,0)+2+MATCH($G43,ListMECSEndUse,0))),"") ->  | S43: =IF(TableScenario[[#This Row],[MECS Sector Energy]]="","",TableScenario[[#This Row],[MECS Sector Energy]]*TableScenario[[#This Row],[MECS End-Use %]]) ->  | T43: =IF($Z43,TableScenario[[#This Row],[Alt_Units]],IF(TableScenario[[#This Row],[MECS End-Use Energy]]="",IF($M43="","",OFFSET(AEO2016RC[[#Headers],[Gunits]],$M43-1,0)),IF(F43="Electricity","TWh","Tbtu"))) -> TBtu | Z43: TRUE | AA43: TBtu | AD43: =AD42*$BS43/10^6*CONVERT(1,"J","BTU") -> 0 | AE43: 0 | AF43: 0.0004717322251 | AG43: 0.0006513324401 | AH43: 0.006355064138 | AI43: 0.01594611326 | AJ43: 0.02140622488 | AK43: 0.03782870948 | AL43: 0.04594496028 | AM43: 0.005663260899 | AN43: 0.005890975415 | AO43: 0.008836374758 | AP43: 0.009308195347 | AQ43: 0.006542263673 | AR43: 0.01224599537 | AS43: 0.02183704449 | AT43: 0.02435171259 | AU43: 0.03782870948 | AV43: 0 | AW43: 0.008608704424 | AX43: 0.008836463122 | AY43: 0.01178186247 | AZ43: 0.01225363887 | BA43: 0.00948775138 | BB43: 0.01224599537 | BC43: 0.02183704449 | BD43: 0.02435171259 | BE43: 0.03782870948 | BF43: 0 | BG43: 0.008608704424 | BH43: 0.008836463122 | BI43: 0.01178186247 | BJ43: 0.01225363887 | BK43: 0.00948775138 | BL43: 0.01224599537 | BM43: 0.02183704449 | BN43: 0.02435171259 | BO43: =BO42*$BS43/10^6*CONVERT(1,"J","BTU") -> 0.03782870948 | BP43: =-BP42*$BS43/10^6*CONVERT(1,"J","BTU") -> 0 | BR43: UHMW-PE embodied energy | BS43: 466.4198844 | BT43: MJ/kg | BU43: Project 9 Excel Calculations - High-Low_2014-10-1.xlsx | DN43: =IF(ROW()-ROW(TableScenario[[#Headers],[Scenario '#]])=1,1,IF(TableScenario[[#This Row],[Row Function]]=Lists!$O$3,DN42+1,DN42)) -> 4 | DO43: =IF(TableScenario[[#This Row],[Scenario '#]]=DN42,IF(TableScenario[[#This Row],[Row Function]]=Lists!$O$5,DO42+1,DO42),0) -> 2 | DP43: =CONCATENATE(TableScenario[[#This Row],[Scenario '#]]," - ",TableScenario[[#This Row],[Forecast Sequence]]) -> 4 - 2
A44: Chemicals Total Energy Use for Heat and Power | B44: Forecast | C44: Industrial | D44: AEO | E44: Bulk Chemical (AEOTbl 38) | F44: Bulk Chemical : Energy Use : Heat and Power : Total [trillion Btu] | H44: Industrial Fuel Mix CO2 Factor | I44: Industrial Macroeconomic (AEOTbl 34) | J44: Industrial Macroeconomic : Manufacturing : Chemical Manufacturing [billion 2009 $] | K44: Energy Prices : Industrial : Natural Gas [2016 $/MMBtu] | M44: =IF(OR($D44="MECS",$F44=""),"",MATCH($F44,AEO2017RC!$BI:$BI,0)) -> 1567 | N44: =IF($M44="","",OFFSET(AEO2016RC[[#Headers],[2011]],$M44-1,IF($L44>0,$L44-2011,0))) -> 2426.188721 | O44: =IF($J44="","",MATCH($J44,AEO2017RC!$BI:$BI,0)) -> 1403 | P44: =IF(TableScenario[[#This Row],[Energy Prices]]="","",MATCH(K44,AEO2017RC!BI:BI,0)) -> 191 | Q44: =IF($D44="MECS",IF($G44="","",OFFSET(MECS!$D$2,MATCH($E44,ListMECSSector,0),MATCH($F44,MECS!$E$1:$GT$1,0))),"") ->  | R44: =IF($D44="MECS",IF($G44="","",OFFSET(MECS!$D$2,MATCH($E44,ListMECSSector,0),MATCH($F44,MECS!$E$1:$GT$1,0)+2+MATCH($G44,ListMECSEndUse,0))),"") ->  | S44: =IF(TableScenario[[#This Row],[MECS Sector Energy]]="","",TableScenario[[#This Row],[MECS Sector Energy]]*TableScenario[[#This Row],[MECS End-Use %]]) ->  | T44: =IF($Z44,TableScenario[[#This Row],[Alt_Units]],IF(TableScenario[[#This Row],[MECS End-Use Energy]]="",IF($M44="","",OFFSET(AEO2016RC[[#Headers],[Gunits]],$M44-1,0)),IF(F44="Electricity","TWh","Tbtu"))) -> TBtu | Z44: TRUE | AA44: TBtu | AB44: =OFFSET(AEO2016RC[[#Headers],[2010]],$M44-1,0) -> 2492.240479 | AC44: =OFFSET(AEO2016RC[[#Headers],[2011]],$M44-1,0) -> 2426.188721 | AD44: =OFFSET(AEO2016RC[[#Headers],[2012]],$M44-1,0) -> 2427.054443 | AE44: =OFFSET(AEO2016RC[[#Headers],[2013]],$M44-1,0) -> 2411.257324 | AF44: =OFFSET(AEO2016RC[[#Headers],[2014]],$M44-1,0) -> 2421.626709 | AG44: =OFFSET(AEO2016RC[[#Headers],[2015]],$M44-1,0) -> 2614.853027 | AH44: =OFFSET(AEO2016RC[[#Headers],[2016]],$M44-1,0) -> 2685.689697 | AI44: =OFFSET(AEO2016RC[[#Headers],[2017]],$M44-1,0) -> 2803.931885 | AJ44: =OFFSET(AEO2016RC[[#Headers],[2018]],$M44-1,0) -> 2963.546387 | AK44: =OFFSET(AEO2016RC[[#Headers],[2019]],$M44-1,0) -> 3064.122314 | AL44: =OFFSET(AEO2016RC[[#Headers],[2020]],$M44-1,0) -> 3113.287109 | AM44: =OFFSET(AEO2016RC[[#Headers],[2021]],$M44-1,0) -> 3182.319092 | AN44: =OFFSET(AEO2016RC[[#Headers],[2022]],$M44-1,0) -> 3271.788574 | AO44: =OFFSET(AEO2016RC[[#Headers],[2023]],$M44-1,0) -> 3357.328613 | AP44: =OFFSET(AEO2016RC[[#Headers],[2024]],$M44-1,0) -> 3401.437744 | AQ44: =OFFSET(AEO2016RC[[#Headers],[2025]],$M44-1,0) -> 3433.540039 | AR44: =OFFSET(AEO2016RC[[#Headers],[2026]],$M44-1,0) -> 3478.269775 | AS44: =OFFSET(AEO2016RC[[#Headers],[2027]],$M44-1,0) -> 3475.829102 | AT44: =OFFSET(AEO2016RC[[#Headers],[2028]],$M44-1,0) -> 3461.733154 | AU44: =OFFSET(AEO2016RC[[#Headers],[2029]],$M44-1,0) -> 3457.3479 | AV44: =OFFSET(AEO2016RC[[#Headers],[2030]],$M44-1,0) -> 3463.468262 | AW44: =OFFSET(AEO2016RC[[#Headers],[2031]],$M44-1,0) -> 3468.479004 | AX44: =OFFSET(AEO2016RC[[#Headers],[2032]],$M44-1,0) -> 3475.320312 | AY44: =OFFSET(AEO2016RC[[#Headers],[2033]],$M44-1,0) -> 3473.895752 | AZ44: =OFFSET(AEO2016RC[[#Headers],[2034]],$M44-1,0) -> 3487.428711 | BA44: =OFFSET(AEO2016RC[[#Headers],[2035]],$M44-1,0) -> 3494.500488 | BB44: =OFFSET(AEO2016RC[[#Headers],[2036]],$M44-1,0) -> 3506.754639 | BC44: =OFFSET(AEO2016RC[[#Headers],[2037]],$M44-1,0) -> 3509.515137 | BD44: =OFFSET(AEO2016RC[[#Headers],[2038]],$M44-1,0) -> 3513.786377 | BE44: =OFFSET(AEO2016RC[[#Headers],[2039]],$M44-1,0) -> 3536.563232 | BF44: =OFFSET(AEO2016RC[[#Headers],[2040]],$M44-1,0) -> 3550.06543 | BG44: =OFFSET(AEO2016RC[[#Headers],[2041]],$M44-1,0) -> 3545.894287 | BH44: =OFFSET(AEO2016RC[[#Headers],[2042]],$M44-1,0) -> 3541.288818 | BI44: =OFFSET(AEO2016RC[[#Headers],[2043]],$M44-1,0) -> 3542.112305 | BJ44: =OFFSET(AEO2016RC[[#Headers],[2044]],$M44-1,0) -> 3543.034668 | BK44: =OFFSET(AEO2016RC[[#Headers],[2045]],$M44-1,0) -> 3543.183594 | BL44: =OFFSET(AEO2016RC[[#Headers],[2046]],$M44-1,0) -> 3540.091553 | BM44: =OFFSET(AEO2016RC[[#Headers],[2047]],$M44-1,0) -> 3551.046143 | BN44: =OFFSET(AEO2016RC[[#Headers],[2048]],$M44-1,0) -> 3559.448975 | BO44: =OFFSET(AEO2016RC[[#Headers],[2049]],$M44-1,0) -> 3573.137695 | BP44: =OFFSET(AEO2016RC[[#Headers],[2050]],$M44-1,0) -> 3599.000977 | DG44: =TableScenario[[#This Row],['#9_Value]]*TableScenario[[#This Row],['#10_Value]] -> 0 | DN44: =IF(ROW()-ROW(TableScenario[[#Headers],[Scenario '#]])=1,1,IF(TableScenario[[#This Row],[Row Function]]=Lists!$O$3,DN43+1,DN43)) -> 4 | DO44: =IF(TableScenario[[#This Row],[Scenario '#]]=DN43,IF(TableScenario[[#This Row],[Row Function]]=Lists!$O$5,DO43+1,DO43),0) -> 3 | DP44: =CONCATENATE(TableScenario[[#This Row],[Scenario '#]]," - ",TableScenario[[#This Row],[Forecast Sequence]]) -> 4 - 3
A45: Petroleum Refining Total Energy Use | B45: Forecast | C45: Industrial | D45: AEO | E45: Refining Industry (AEOTbl 35) | F45: Refining Industry : Refinery Only Energy : Use : Total [trillion Btu] | H45: Industrial Fuel Mix CO2 Factor | I45: Industrial Macroeconomic (AEOTbl 34) | J45: Industrial Macroeconomic : Manufacturing : Petroleum and Coal : Petroleum Refineries [billion 2009 $] | K45: Energy Prices : Industrial : Natural Gas [2016 $/MMBtu] | M45: =IF(OR($D45="MECS",$F45=""),"",MATCH($F45,AEO2017RC!$BI:$BI,0)) -> 1457 | N45: =IF($M45="","",OFFSET(AEO2016RC[[#Headers],[2011]],$M45-1,IF($L45>0,$L45-2011,0))) -> 2859.178223 | O45: =IF($J45="","",MATCH($J45,AEO2017RC!$BI:$BI,0)) -> 1411 | P45: =IF(TableScenario[[#This Row],[Energy Prices]]="","",MATCH(K45,AEO2017RC!BI:BI,0)) -> 191 | Q45: =IF($D45="MECS",IF($G45="","",OFFSET(MECS!$D$2,MATCH($E45,ListMECSSector,0),MATCH($F45,MECS!$E$1:$GT$1,0))),"") ->  | R45: =IF($D45="MECS",IF($G45="","",OFFSET(MECS!$D$2,MATCH($E45,ListMECSSector,0),MATCH($F45,MECS!$E$1:$GT$1,0)+2+MATCH($G45,ListMECSEndUse,0))),"") ->  | S45: =IF(TableScenario[[#This Row],[MECS Sector Energy]]="","",TableScenario[[#This Row],[MECS Sector Energy]]*TableScenario[[#This Row],[MECS End-Use %]]) ->  | T45: =IF($Z45,TableScenario[[#This Row],[Alt_Units]],IF(TableScenario[[#This Row],[MECS End-Use Energy]]="",IF($M45="","",OFFSET(AEO2016RC[[#Headers],[Gunits]],$M45-1,0)),IF(F45="Electricity","TWh","Tbtu"))) -> TBtu | Z45: TRUE | AA45: TBtu | AB45: =OFFSET(AEO2016RC[[#Headers],[2010]],$M45-1,0) -> 2871.049316 | AC45: =OFFSET(AEO2016RC[[#Headers],[2011]],$M45-1,0) -> 2859.178223 | AD45: =OFFSET(AEO2016RC[[#Headers],[2012]],$M45-1,0) -> 2963.677979 | AE45: =OFFSET(AEO2016RC[[#Headers],[2013]],$M45-1,0) -> 3080.671875 | AF45: =OFFSET(AEO2016RC[[#Headers],[2014]],$M45-1,0) -> 3080.671875 | AG45: =OFFSET(AEO2016RC[[#Headers],[2015]],$M45-1,0) -> 3015.374756 | AH45: =OFFSET(AEO2016RC[[#Headers],[2016]],$M45-1,0) -> 2959.464111 | AI45: =OFFSET(AEO2016RC[[#Headers],[2017]],$M45-1,0) -> 2908.558838 | AJ45: =OFFSET(AEO2016RC[[#Headers],[2018]],$M45-1,0) -> 2856.168213 | AK45: =OFFSET(AEO2016RC[[#Headers],[2019]],$M45-1,0) -> 2911.40625 | AL45: =OFFSET(AEO2016RC[[#Headers],[2020]],$M45-1,0) -> 2895.804688 | AM45: =OFFSET(AEO2016RC[[#Headers],[2021]],$M45-1,0) -> 2887.267822 | AN45: =OFFSET(AEO2016RC[[#Headers],[2022]],$M45-1,0) -> 2902.305664 | AO45: =OFFSET(AEO2016RC[[#Headers],[2023]],$M45-1,0) -> 2892.226807 | AP45: =OFFSET(AEO2016RC[[#Headers],[2024]],$M45-1,0) -> 2884.065674 | AQ45: =OFFSET(AEO2016RC[[#Headers],[2025]],$M45-1,0) -> 2875.562988 | AR45: =OFFSET(AEO2016RC[[#Headers],[2026]],$M45-1,0) -> 2871.125488 | AS45: =OFFSET(AEO2016RC[[#Headers],[2027]],$M45-1,0) -> 2773.212891 | AT45: =OFFSET(AEO2016RC[[#Headers],[2028]],$M45-1,0) -> 2757.157715 | AU45: =OFFSET(AEO2016RC[[#Headers],[2029]],$M45-1,0) -> 2765.776855 | AV45: =OFFSET(AEO2016RC[[#Headers],[2030]],$M45-1,0) -> 2774.2771 | AW45: =OFFSET(AEO2016RC[[#Headers],[2031]],$M45-1,0) -> 2770.143555 | AX45: =OFFSET(AEO2016RC[[#Headers],[2032]],$M45-1,0) -> 2783.537598 | AY45: =OFFSET(AEO2016RC[[#Headers],[2033]],$M45-1,0) -> 2784.745361 | AZ45: =OFFSET(AEO2016RC[[#Headers],[2034]],$M45-1,0) -> 2798.703369 | BA45: =OFFSET(AEO2016RC[[#Headers],[2035]],$M45-1,0) -> 2804.040283 | BB45: =OFFSET(AEO2016RC[[#Headers],[2036]],$M45-1,0) -> 2846.643066 | BC45: =OFFSET(AEO2016RC[[#Headers],[2037]],$M45-1,0) -> 2859.586914 | BD45: =OFFSET(AEO2016RC[[#Headers],[2038]],$M45-1,0) -> 2852.431641 | BE45: =OFFSET(AEO2016RC[[#Headers],[2039]],$M45-1,0) -> 2889.455811 | BF45: =OFFSET(AEO2016RC[[#Headers],[2040]],$M45-1,0) -> 2884.656494 | BG45: =OFFSET(AEO2016RC[[#Headers],[2041]],$M45-1,0) -> 2876.128418 | BH45: =OFFSET(AEO2016RC[[#Headers],[2042]],$M45-1,0) -> 2880.087402 | BI45: =OFFSET(AEO2016RC[[#Headers],[2043]],$M45-1,0) -> 2873.097168 | BJ45: =OFFSET(AEO2016RC[[#Headers],[2044]],$M45-1,0) -> 2891.701904 | BK45: =OFFSET(AEO2016RC[[#Headers],[2045]],$M45-1,0) -> 2906.658203 | BL45: =OFFSET(AEO2016RC[[#Headers],[2046]],$M45-1,0) -> 2918.180176 | BM45: =OFFSET(AEO2016RC[[#Headers],[2047]],$M45-1,0) -> 2911.214355 | BN45: =OFFSET(AEO2016RC[[#Headers],[2048]],$M45-1,0) -> 2893.971924 | BO45: =OFFSET(AEO2016RC[[#Headers],[2049]],$M45-1,0) -> 2899.568848 | BP45: =OFFSET(AEO2016RC[[#Headers],[2050]],$M45-1,0) -> 2913.055176 | DG45: =TableScenario[[#This Row],['#9_Value]]*TableScenario[[#This Row],['#10_Value]] -> 0 | DN45: =IF(ROW()-ROW(TableScenario[[#Headers],[Scenario '#]])=1,1,IF(TableScenario[[#This Row],[Row Function]]=Lists!$O$3,DN44+1,DN44)) -> 4 | DO45: =IF(TableScenario[[#This Row],[Scenario '#]]=DN44,IF(TableScenario[[#This Row],[Row Function]]=Lists!$O$5,DO44+1,DO44),0) -> 4 | DP45: =CONCATENATE(TableScenario[[#This Row],[Scenario '#]]," - ",TableScenario[[#This Row],[Forecast Sequence]]) -> 4 - 4
A46: Iron and Steel Total Energy Use | B46: Forecast | C46: Industrial | D46: AEO | E46: Iron and Steel (AEOTbl 41) | F46: Iron and Steel : Energy Use : Total [trillion Btu] | H46: Industrial Fuel Mix CO2 Factor | I46: Industrial Macroeconomic (AEOTbl 34) | J46: Industrial Macroeconomic : Manufacturing : Primary Metals : Iron and Steel Mills and Products [billion 2009 $] | K46: Energy Prices : Industrial : Natural Gas [2016 $/MMBtu] | M46: =IF(OR($D46="MECS",$F46=""),"",MATCH($F46,AEO2017RC!$BI:$BI,0)) -> 1685 | N46: =IF($M46="","",OFFSET(AEO2016RC[[#Headers],[2011]],$M46-1,IF($L46>0,$L46-2011,0))) -> 1361.717773 | O46: =IF($J46="","",MATCH($J46,AEO2017RC!$BI:$BI,0)) -> 1419 | P46: =IF(TableScenario[[#This Row],[Energy Prices]]="","",MATCH(K46,AEO2017RC!BI:BI,0)) -> 191 | Q46: =IF($D46="MECS",IF($G46="","",OFFSET(MECS!$D$2,MATCH($E46,ListMECSSector,0),MATCH($F46,MECS!$E$1:$GT$1,0))),"") ->  | R46: =IF($D46="MECS",IF($G46="","",OFFSET(MECS!$D$2,MATCH($E46,ListMECSSector,0),MATCH($F46,MECS!$E$1:$GT$1,0)+2+MATCH($G46,ListMECSEndUse,0))),"") ->  | S46: =IF(TableScenario[[#This Row],[MECS Sector Energy]]="","",TableScenario[[#This Row],[MECS Sector Energy]]*TableScenario[[#This Row],[MECS End-Use %]]) ->  | T46: =IF($Z46,TableScenario[[#This Row],[Alt_Units]],IF(TableScenario[[#This Row],[MECS End-Use Energy]]="",IF($M46="","",OFFSET(AEO2016RC[[#Headers],[Gunits]],$M46-1,0)),IF(F46="Electricity","TWh","Tbtu"))) -> TBtu | Z46: TRUE | AA46: TBtu | AB46: =OFFSET(AEO2016RC[[#Headers],[2010]],$M46-1,0) -> 1306.205322 | AC46: =OFFSET(AEO2016RC[[#Headers],[2011]],$M46-1,0) -> 1361.717773 | AD46: =OFFSET(AEO2016RC[[#Headers],[2012]],$M46-1,0) -> 1365.190552 | AE46: =OFFSET(AEO2016RC[[#Headers],[2013]],$M46-1,0) -> 1339.221069 | AF46: =OFFSET(AEO2016RC[[#Headers],[2014]],$M46-1,0) -> 1327.050659 | AG46: =OFFSET(AEO2016RC[[#Headers],[2015]],$M46-1,0) -> 1263.92627 | AH46: =OFFSET(AEO2016RC[[#Headers],[2016]],$M46-1,0) -> 1218.190918 | AI46: =OFFSET(AEO2016RC[[#Headers],[2017]],$M46-1,0) -> 1193.489502 | AJ46: =OFFSET(AEO2016RC[[#Headers],[2018]],$M46-1,0) -> 1139.856079 | AK46: =OFFSET(AEO2016RC[[#Headers],[2019]],$M46-1,0) -> 1130.314697 | AL46: =OFFSET(AEO2016RC[[#Headers],[2020]],$M46-1,0) -> 1145.285645 | AM46: =OFFSET(AEO2016RC[[#Headers],[2021]],$M46-1,0) -> 1179.970215 | AN46: =OFFSET(AEO2016RC[[#Headers],[2022]],$M46-1,0) -> 1190.426758 | AO46: =OFFSET(AEO2016RC[[#Headers],[2023]],$M46-1,0) -> 1182.023071 | AP46: =OFFSET(AEO2016RC[[#Headers],[2024]],$M46-1,0) -> 1156.558594 | AQ46: =OFFSET(AEO2016RC[[#Headers],[2025]],$M46-1,0) -> 1124.861572 | AR46: =OFFSET(AEO2016RC[[#Headers],[2026]],$M46-1,0) -> 1094.299072 | AS46: =OFFSET(AEO2016RC[[#Headers],[2027]],$M46-1,0) -> 1069.133545 | AT46: =OFFSET(AEO2016RC[[#Headers],[2028]],$M46-1,0) -> 1043.969849 | AU46: =OFFSET(AEO2016RC[[#Headers],[2029]],$M46-1,0) -> 1017.26355 | AV46: =OFFSET(AEO2016RC[[#Headers],[2030]],$M46-1,0) -> 997.489502 | AW46: =OFFSET(AEO2016RC[[#Headers],[2031]],$M46-1,0) -> 968.876953 | AX46: =OFFSET(AEO2016RC[[#Headers],[2032]],$M46-1,0) -> 948.675049 | AY46: =OFFSET(AEO2016RC[[#Headers],[2033]],$M46-1,0) -> 944.49646 | AZ46: =OFFSET(AEO2016RC[[#Headers],[2034]],$M46-1,0) -> 932.022095 | BA46: =OFFSET(AEO2016RC[[#Headers],[2035]],$M46-1,0) -> 912.859802 | BB46: =OFFSET(AEO2016RC[[#Headers],[2036]],$M46-1,0) -> 895.101868 | BC46: =OFFSET(AEO2016RC[[#Headers],[2037]],$M46-1,0) -> 885.660522 | BD46: =OFFSET(AEO2016RC[[#Headers],[2038]],$M46-1,0) -> 881.827271 | BE46: =OFFSET(AEO2016RC[[#Headers],[2039]],$M46-1,0) -> 866.232483 | BF46: =OFFSET(AEO2016RC[[#Headers],[2040]],$M46-1,0) -> 856.307678 | BG46: =OFFSET(AEO2016RC[[#Headers],[2041]],$M46-1,0) -> 841.677979 | BH46: =OFFSET(AEO2016RC[[#Headers],[2042]],$M46-1,0) -> 831.357971 | BI46: =OFFSET(AEO2016RC[[#Headers],[2043]],$M46-1,0) -> 821.358582 | BJ46: =OFFSET(AEO2016RC[[#Headers],[2044]],$M46-1,0) -> 815.512878 | BK46: =OFFSET(AEO2016RC[[#Headers],[2045]],$M46-1,0) -> 809.650024 | BL46: =OFFSET(AEO2016RC[[#Headers],[2046]],$M46-1,0) -> 808.119141 | BM46: =OFFSET(AEO2016RC[[#Headers],[2047]],$M46-1,0) -> 802.111389 | BN46: =OFFSET(AEO2016RC[[#Headers],[2048]],$M46-1,0) -> 801.066284 | BO46: =OFFSET(AEO2016RC[[#Headers],[2049]],$M46-1,0) -> 804.037048 | BP46: =OFFSET(AEO2016RC[[#Headers],[2050]],$M46-1,0) -> 802.18042 | DG46: =TableScenario[[#This Row],['#9_Value]]*TableScenario[[#This Row],['#10_Value]] -> 0 | DN46: =IF(ROW()-ROW(TableScenario[[#Headers],[Scenario '#]])=1,1,IF(TableScenario[[#This Row],[Row Function]]=Lists!$O$3,DN45+1,DN45)) -> 4 | DO46: =IF(TableScenario[[#This Row],[Scenario '#]]=DN45,IF(TableScenario[[#This Row],[Row Function]]=Lists!$O$5,DO45+1,DO45),0) -> 5 | DP46: =CONCATENATE(TableScenario[[#This Row],[Scenario '#]]," - ",TableScenario[[#This Row],[Forecast Sequence]]) -> 4 - 5
A47: Pulp and Paper Total Energy Use | B47: Forecast | C47: Industrial | D47: AEO | E47: Paper Industry (AEOTbl 37) | F47: Paper Industry : Energy Use : Total [trillion Btu] | H47: Industrial Fuel Mix CO2 Factor | I47: Industrial Macroeconomic (AEOTbl 34) | J47: Industrial Macroeconomic : Manufacturing : Paper Products [billion 2009 $] | K47: Energy Prices : Industrial : Natural Gas [2016 $/MMBtu] | M47: =IF(OR($D47="MECS",$F47=""),"",MATCH($F47,AEO2017RC!$BI:$BI,0)) -> 1531 | N47: =IF($M47="","",OFFSET(AEO2016RC[[#Headers],[2011]],$M47-1,IF($L47>0,$L47-2011,0))) -> 1991.323608 | O47: =IF($J47="","",MATCH($J47,AEO2017RC!$BI:$BI,0)) -> 1401 | P47: =IF(TableScenario[[#This Row],[Energy Prices]]="","",MATCH(K47,AEO2017RC!BI:BI,0)) -> 191 | Q47: =IF($D47="MECS",IF($G47="","",OFFSET(MECS!$D$2,MATCH($E47,ListMECSSector,0),MATCH($F47,MECS!$E$1:$GT$1,0))),"") ->  | R47: =IF($D47="MECS",IF($G47="","",OFFSET(MECS!$D$2,MATCH($E47,ListMECSSector,0),MATCH($F47,MECS!$E$1:$GT$1,0)+2+MATCH($G47,ListMECSEndUse,0))),"") ->  | S47: =IF(TableScenario[[#This Row],[MECS Sector Energy]]="","",TableScenario[[#This Row],[MECS Sector Energy]]*TableScenario[[#This Row],[MECS End-Use %]]) ->  | T47: =IF($Z47,TableScenario[[#This Row],[Alt_Units]],IF(TableScenario[[#This Row],[MECS End-Use Energy]]="",IF($M47="","",OFFSET(AEO2016RC[[#Headers],[Gunits]],$M47-1,0)),IF(F47="Electricity","TWh","Tbtu"))) -> TBtu | Z47: TRUE | AA47: TBtu | AB47: =OFFSET(AEO2016RC[[#Headers],[2010]],$M47-1,0) -> 2070.773926 | AC47: =OFFSET(AEO2016RC[[#Headers],[2011]],$M47-1,0) -> 1991.323608 | AD47: =OFFSET(AEO2016RC[[#Headers],[2012]],$M47-1,0) -> 1960.553589 | AE47: =OFFSET(AEO2016RC[[#Headers],[2013]],$M47-1,0) -> 1953.212524 | AF47: =OFFSET(AEO2016RC[[#Headers],[2014]],$M47-1,0) -> 1921.134644 | AG47: =OFFSET(AEO2016RC[[#Headers],[2015]],$M47-1,0) -> 1780.174683 | AH47: =OFFSET(AEO2016RC[[#Headers],[2016]],$M47-1,0) -> 1736.616089 | AI47: =OFFSET(AEO2016RC[[#Headers],[2017]],$M47-1,0) -> 1666.371826 | AJ47: =OFFSET(AEO2016RC[[#Headers],[2018]],$M47-1,0) -> 1674.744385 | AK47: =OFFSET(AEO2016RC[[#Headers],[2019]],$M47-1,0) -> 1667.975098 | AL47: =OFFSET(AEO2016RC[[#Headers],[2020]],$M47-1,0) -> 1669.786987 | AM47: =OFFSET(AEO2016RC[[#Headers],[2021]],$M47-1,0) -> 1684.719604 | AN47: =OFFSET(AEO2016RC[[#Headers],[2022]],$M47-1,0) -> 1700.025024 | AO47: =OFFSET(AEO2016RC[[#Headers],[2023]],$M47-1,0) -> 1715.291138 | AP47: =OFFSET(AEO2016RC[[#Headers],[2024]],$M47-1,0) -> 1710.212646 | AQ47: =OFFSET(AEO2016RC[[#Headers],[2025]],$M47-1,0) -> 1685.664673 | AR47: =OFFSET(AEO2016RC[[#Headers],[2026]],$M47-1,0) -> 1657.763672 | AS47: =OFFSET(AEO2016RC[[#Headers],[2027]],$M47-1,0) -> 1654.184692 | AT47: =OFFSET(AEO2016RC[[#Headers],[2028]],$M47-1,0) -> 1647.499023 | AU47: =OFFSET(AEO2016RC[[#Headers],[2029]],$M47-1,0) -> 1634.154785 | AV47: =OFFSET(AEO2016RC[[#Headers],[2030]],$M47-1,0) -> 1609.324829 | AW47: =OFFSET(AEO2016RC[[#Headers],[2031]],$M47-1,0) -> 1591.684814 | AX47: =OFFSET(AEO2016RC[[#Headers],[2032]],$M47-1,0) -> 1577.610107 | AY47: =OFFSET(AEO2016RC[[#Headers],[2033]],$M47-1,0) -> 1570.920898 | AZ47: =OFFSET(AEO2016RC[[#Headers],[2034]],$M47-1,0) -> 1560.381104 | BA47: =OFFSET(AEO2016RC[[#Headers],[2035]],$M47-1,0) -> 1548.339844 | BB47: =OFFSET(AEO2016RC[[#Headers],[2036]],$M47-1,0) -> 1536.222778 | BC47: =OFFSET(AEO2016RC[[#Headers],[2037]],$M47-1,0) -> 1534.922852 | BD47: =OFFSET(AEO2016RC[[#Headers],[2038]],$M47-1,0) -> 1536.103271 | BE47: =OFFSET(AEO2016RC[[#Headers],[2039]],$M47-1,0) -> 1528.90332 | BF47: =OFFSET(AEO2016RC[[#Headers],[2040]],$M47-1,0) -> 1524.791748 | BG47: =OFFSET(AEO2016RC[[#Headers],[2041]],$M47-1,0) -> 1527.592285 | BH47: =OFFSET(AEO2016RC[[#Headers],[2042]],$M47-1,0) -> 1532.452148 | BI47: =OFFSET(AEO2016RC[[#Headers],[2043]],$M47-1,0) -> 1535.6427 | BJ47: =OFFSET(AEO2016RC[[#Headers],[2044]],$M47-1,0) -> 1535.258179 | BK47: =OFFSET(AEO2016RC[[#Headers],[2045]],$M47-1,0) -> 1536.021118 | BL47: =OFFSET(AEO2016RC[[#Headers],[2046]],$M47-1,0) -> 1533.835938 | BM47: =OFFSET(AEO2016RC[[#Headers],[2047]],$M47-1,0) -> 1525.568726 | BN47: =OFFSET(AEO2016RC[[#Headers],[2048]],$M47-1,0) -> 1519.795898 | BO47: =OFFSET(AEO2016RC[[#Headers],[2049]],$M47-1,0) -> 1515.575195 | BP47: =OFFSET(AEO2016RC[[#Headers],[2050]],$M47-1,0) -> 1509.320923 | DG47: =TableScenario[[#This Row],['#9_Value]]*TableScenario[[#This Row],['#10_Value]] -> 0 | DN47: =IF(ROW()-ROW(TableScenario[[#Headers],[Scenario '#]])=1,1,IF(TableScenario[[#This Row],[Row Function]]=Lists!$O$3,DN46+1,DN46)) -> 4 | DO47: =IF(TableScenario[[#This Row],[Scenario '#]]=DN46,IF(TableScenario[[#This Row],[Row Function]]=Lists!$O$5,DO46+1,DO46),0) -> 6 | DP47: =CONCATENATE(TableScenario[[#This Row],[Scenario '#]]," - ",TableScenario[[#This Row],[Forecast Sequence]]) -> 4 - 6
A48: Chemicals SOA + R&D | B48: Forecast | C48: Industrial | D48: AEO | E48: Bulk Chemical (AEOTbl 38) | F48: Bulk Chemical : Energy Use : Heat and Power : Total [trillion Btu] | H48: Industrial Fuel Mix CO2 Factor | I48: Industrial Macroeconomic (AEOTbl 34) | J48: Industrial Macroeconomic : Manufacturing : Chemical Manufacturing [billion 2009 $] | K48: Energy Prices : Industrial : Natural Gas [2016 $/MMBtu] | M48: =IF(OR($D48="MECS",$F48=""),"",MATCH($F48,AEO2017RC!$BI:$BI,0)) -> 1567 | N48: =IF($M48="","",OFFSET(AEO2016RC[[#Headers],[2011]],$M48-1,IF($L48>0,$L48-2011,0))) -> 2426.188721 | O48: =IF($J48="","",MATCH($J48,AEO2017RC!$BI:$BI,0)) -> 1403 | P48: =IF(TableScenario[[#This Row],[Energy Prices]]="","",MATCH(K48,AEO2017RC!BI:BI,0)) -> 191 | Q48: =IF($D48="MECS",IF($G48="","",OFFSET(MECS!$D$2,MATCH($E48,ListMECSSector,0),MATCH($F48,MECS!$E$1:$GT$1,0))),"") ->  | R48: =IF($D48="MECS",IF($G48="","",OFFSET(MECS!$D$2,MATCH($E48,ListMECSSector,0),MATCH($F48,MECS!$E$1:$GT$1,0)+2+MATCH($G48,ListMECSEndUse,0))),"") ->  | S48: =IF(TableScenario[[#This Row],[MECS Sector Energy]]="","",TableScenario[[#This Row],[MECS Sector Energy]]*TableScenario[[#This Row],[MECS End-Use %]]) ->  | T48: =IF($Z48,TableScenario[[#This Row],[Alt_Units]],IF(TableScenario[[#This Row],[MECS End-Use Energy]]="",IF($M48="","",OFFSET(AEO2016RC[[#Headers],[Gunits]],$M48-1,0)),IF(F48="Electricity","TWh","Tbtu"))) -> trillion Btu | U48: 1 | V48: =-TableScenario[[#This Row],['#5_Value]] -> -0.808814401 | W48: Linear | X48: 2017 | Y48: 2030 | BR48: Onsite CT Energy Consumption for Chemicals Sector-Wide | BS48: 3222 | BT48: Tbtu/year | BU48: Chamical Bandwidth Study 2015 (Table 5-3) | BV48: Onsite SOA + R&D Energy Consumption for Chemicals Sector-Wide | BW48: 616 | BX48: Tbtu/year | BY48: SOA + R&D Energy Savings Percent | BZ48: Onsite TM Energy Consumption for Chemicals Sector-Wide | CA48: -745 | CB48: Tbtu/year | CC48: Chamical Bandwidth Study 2015 (Table 7-2) | CD48: SOA + R&D Energy Savings Percent | CE48: =(TableScenario[[#This Row],['#1_Value]]-TableScenario[[#This Row],['#2_Value]])/(TableScenario[[#This Row],['#1_Value]]-TableScenario[[#This Row],['#3_Value]]) -> 0.6569195866 | CF48: (CT-SOA)/ (CT-TM) | CG48: Chamical Bandwidth Study 2015 (Table 5-4) | CH48: Alternative SOA + R&D Energy Savings Percent | CI48: =(TableScenario[[#This Row],['#1_Value]]-TableScenario[[#This Row],['#2_Value]])/(TableScenario[[#This Row],['#1_Value]]) -> 0.808814401 | CJ48: (CT-SOA)/ (CT) | DG48: =TableScenario[[#This Row],['#9_Value]]*TableScenario[[#This Row],['#10_Value]] -> 0 | DN48: =IF(ROW()-ROW(TableScenario[[#Headers],[Scenario '#]])=1,1,IF(TableScenario[[#This Row],[Row Function]]=Lists!$O$3,DN47+1,DN47)) -> 4 | DO48: =IF(TableScenario[[#This Row],[Scenario '#]]=DN47,IF(TableScenario[[#This Row],[Row Function]]=Lists!$O$5,DO47+1,DO47),0) -> 7 | DP48: =CONCATENATE(TableScenario[[#This Row],[Scenario '#]]," - ",TableScenario[[#This Row],[Forecast Sequence]]) -> 4 - 7
A49: Petroleum Refining Total SOA + R&D | B49: Forecast | C49: Industrial | D49: AEO | E49: Refining Industry (AEOTbl 35) | F49: Refining Industry : Refinery Only Energy : Use : Total [trillion Btu] | H49: Industrial Fuel Mix CO2 Factor | I49: Industrial Macroeconomic (AEOTbl 34) | J49: Industrial Macroeconomic : Manufacturing : Petroleum and Coal : Petroleum Refineries [billion 2009 $] | K49: Energy Prices : Industrial : Natural Gas [2016 $/MMBtu] | M49: =IF(OR($D49="MECS",$F49=""),"",MATCH($F49,AEO2017RC!$BI:$BI,0)) -> 1457 | N49: =IF($M49="","",OFFSET(AEO2016RC[[#Headers],[2011]],$M49-1,IF($L49>0,$L49-2011,0))) -> 2859.178223 | O49: =IF($J49="","",MATCH($J49,AEO2017RC!$BI:$BI,0)) -> 1411 | P49: =IF(TableScenario[[#This Row],[Energy Prices]]="","",MATCH(K49,AEO2017RC!BI:BI,0)) -> 191 | Q49: =IF($D49="MECS",IF($G49="","",OFFSET(MECS!$D$2,MATCH($E49,ListMECSSector,0),MATCH($F49,MECS!$E$1:$GT$1,0))),"") ->  | R49: =IF($D49="MECS",IF($G49="","",OFFSET(MECS!$D$2,MATCH($E49,ListMECSSector,0),MATCH($F49,MECS!$E$1:$GT$1,0)+2+MATCH($G49,ListMECSEndUse,0))),"") ->  | S49: =IF(TableScenario[[#This Row],[MECS Sector Energy]]="","",TableScenario[[#This Row],[MECS Sector Energy]]*TableScenario[[#This Row],[MECS End-Use %]]) ->  | T49: =IF($Z49,TableScenario[[#This Row],[Alt_Units]],IF(TableScenario[[#This Row],[MECS End-Use Energy]]="",IF($M49="","",OFFSET(AEO2016RC[[#Headers],[Gunits]],$M49-1,0)),IF(F49="Electricity","TWh","Tbtu"))) -> trillion Btu | U49: 1 | V49: =-TableScenario[[#This Row],['#5_Value]] -> -0.1322418136 | W49: Linear | X49: 2017 | Y49: 2030 | BR49: Onsite CT Energy Consumption for Petroleum Refining Sector-Wide | BS49: 3176 | BT49: Tbtu/year | BU49: Petroleum Refining Bandwidth Study 2015 (Table 6-3) | BV49: Onsite SOA + R&D Energy Consumption for Petroleum Refining Sector-Wide | BW49: 2756 | BX49: Tbtu/year | BY49: SOA + R&D Energy Savings Percent | BZ49: Onsite TM Energy Consumption for Petroleum Refining Sector-Wide | CA49: 169 | CB49: Tbtu/year | CC49: Petroleum Refining Bandwidth Study 2015 (Table 7-2) | CD49: SOA + R&D Energy Savings Percent | CE49: =(TableScenario[[#This Row],['#1_Value]]-TableScenario[[#This Row],['#2_Value]])/(TableScenario[[#This Row],['#1_Value]]-TableScenario[[#This Row],['#3_Value]]) -> 0.1396740938 | CF49: (CT-SOA)/ (CT-TM) | CG49: Petroleum Refining Bandwidth Study 2015 (Table 6-3) | CH49: Alternative SOA + R&D Energy Savings Percent | CI49: =(TableScenario[[#This Row],['#1_Value]]-TableScenario[[#This Row],['#2_Value]])/(TableScenario[[#This Row],['#1_Value]]) -> 0.1322418136 | CJ49: (CT-SOA)/ (CT) | DG49: =TableScenario[[#This Row],['#9_Value]]*TableScenario[[#This Row],['#10_Value]] -> 0 | DN49: =IF(ROW()-ROW(TableScenario[[#Headers],[Scenario '#]])=1,1,IF(TableScenario[[#This Row],[Row Function]]=Lists!$O$3,DN48+1,DN48)) -> 4 | DO49: =IF(TableScenario[[#This Row],[Scenario '#]]=DN48,IF(TableScenario[[#This Row],[Row Function]]=Lists!$O$5,DO48+1,DO48),0) -> 8 | DP49: =CONCATENATE(TableScenario[[#This Row],[Scenario '#]]," - ",TableScenario[[#This Row],[Forecast Sequence]]) -> 4 - 8
A50: Iron and Steel Total SOA + R&D | B50: Forecast | C50: Industrial | D50: AEO | E50: Iron and Steel (AEOTbl 41) | F50: Iron and Steel : Energy Use : Total [trillion Btu] | H50: Industrial Fuel Mix CO2 Factor | I50: Industrial Macroeconomic (AEOTbl 34) | J50: Industrial Macroeconomic : Manufacturing : Primary Metals : Iron and Steel Mills and Products [billion 2009 $] | K50: Energy Prices : Industrial : Natural Gas [2016 $/MMBtu] | M50: =IF(OR($D50="MECS",$F50=""),"",MATCH($F50,AEO2017RC!$BI:$BI,0)) -> 1685 | N50: =IF($M50="","",OFFSET(AEO2016RC[[#Headers],[2011]],$M50-1,IF($L50>0,$L50-2011,0))) -> 1361.717773 | O50: =IF($J50="","",MATCH($J50,AEO2017RC!$BI:$BI,0)) -> 1419 | P50: =IF(TableScenario[[#This Row],[Energy Prices]]="","",MATCH(K50,AEO2017RC!BI:BI,0)) -> 191 | Q50: =IF($D50="MECS",IF($G50="","",OFFSET(MECS!$D$2,MATCH($E50,ListMECSSector,0),MATCH($F50,MECS!$E$1:$GT$1,0))),"") ->  | R50: =IF($D50="MECS",IF($G50="","",OFFSET(MECS!$D$2,MATCH($E50,ListMECSSector,0),MATCH($F50,MECS!$E$1:$GT$1,0)+2+MATCH($G50,ListMECSEndUse,0))),"") ->  | S50: =IF(TableScenario[[#This Row],[MECS Sector Energy]]="","",TableScenario[[#This Row],[MECS Sector Energy]]*TableScenario[[#This Row],[MECS End-Use %]]) ->  | T50: =IF($Z50,TableScenario[[#This Row],[Alt_Units]],IF(TableScenario[[#This Row],[MECS End-Use Energy]]="",IF($M50="","",OFFSET(AEO2016RC[[#Headers],[Gunits]],$M50-1,0)),IF(F50="Electricity","TWh","Tbtu"))) -> trillion Btu | U50: 1 | V50: =-TableScenario[[#This Row],['#5_Value]] -> -0.3903903904 | W50: Linear | X50: 2017 | Y50: 2030 | BR50: Onsite CT Energy Consumption Sector-Wide | BS50: 999 | BT50: Tbtu/year | BU50: Iron and Steel Bandwidth Study 2015 (Figure ES-1) | BV50: Onsite SOA & R&D Iron and Steel Sector-Wide | BW50: 609 | BX50: Tbtu/year | BY50: Iron and Steel Bandwidth Study 2015 (Figure ES-1) | BZ50: Onsite TM Energy Consumption for Iron and Steel Sector-Wide | CA50: 169 | CB50: Tbtu/year | CC50: Iron and Steel Bandwidth Study 2015 (Figure ES-1) | CD50: SOA Energy Savings Percent | CE50: =(TableScenario[[#This Row],['#1_Value]]-TableScenario[[#This Row],['#2_Value]])/(TableScenario[[#This Row],['#1_Value]]-TableScenario[[#This Row],['#3_Value]]) -> 0.4698795181 | CF50: (CT-SOA)/ (CT-TM) | CG50: Iron and Steel Bandwidth Study 2015 (Figure ES-1) | CH50: Alternative SOA Energy Savings Percent | CI50: =(TableScenario[[#This Row],['#1_Value]]-TableScenario[[#This Row],['#2_Value]])/(TableScenario[[#This Row],['#1_Value]]) -> 0.3903903904 | CJ50: (CT-SOA)/ (CT) | DG50: =TableScenario[[#This Row],['#9_Value]]*TableScenario[[#This Row],['#10_Value]] -> 0 | DN50: =IF(ROW()-ROW(TableScenario[[#Headers],[Scenario '#]])=1,1,IF(TableScenario[[#This Row],[Row Function]]=Lists!$O$3,DN49+1,DN49)) -> 4 | DO50: =IF(TableScenario[[#This Row],[Scenario '#]]=DN49,IF(TableScenario[[#This Row],[Row Function]]=Lists!$O$5,DO49+1,DO49),0) -> 9 | DP50: =CONCATENATE(TableScenario[[#This Row],[Scenario '#]]," - ",TableScenario[[#This Row],[Forecast Sequence]]) -> 4 - 9
A51: Pulp and Paper Total SOA + R&D | B51: Forecast | C51: Industrial | D51: AEO | E51: Paper Industry (AEOTbl 37) | F51: Paper Industry : Energy Use : Total [trillion Btu] | H51: Industrial Fuel Mix CO2 Factor | I51: Industrial Macroeconomic (AEOTbl 34) | J51: Industrial Macroeconomic : Manufacturing : Paper Products [billion 2009 $] | K51: Energy Prices : Industrial : Natural Gas [2016 $/MMBtu] | M51: =IF(OR($D51="MECS",$F51=""),"",MATCH($F51,AEO2017RC!$BI:$BI,0)) -> 1531 | N51: =IF($M51="","",OFFSET(AEO2016RC[[#Headers],[2011]],$M51-1,IF($L51>0,$L51-2011,0))) -> 1991.323608 | O51: =IF($J51="","",MATCH($J51,AEO2017RC!$BI:$BI,0)) -> 1401 | P51: =IF(TableScenario[[#This Row],[Energy Prices]]="","",MATCH(K51,AEO2017RC!BI:BI,0)) -> 191 | Q51: =IF($D51="MECS",IF($G51="","",OFFSET(MECS!$D$2,MATCH($E51,ListMECSSector,0),MATCH($F51,MECS!$E$1:$GT$1,0))),"") ->  | R51: =IF($D51="MECS",IF($G51="","",OFFSET(MECS!$D$2,MATCH($E51,ListMECSSector,0),MATCH($F51,MECS!$E$1:$GT$1,0)+2+MATCH($G51,ListMECSEndUse,0))),"") ->  | S51: =IF(TableScenario[[#This Row],[MECS Sector Energy]]="","",TableScenario[[#This Row],[MECS Sector Energy]]*TableScenario[[#This Row],[MECS End-Use %]]) ->  | T51: =IF($Z51,TableScenario[[#This Row],[Alt_Units]],IF(TableScenario[[#This Row],[MECS End-Use Energy]]="",IF($M51="","",OFFSET(AEO2016RC[[#Headers],[Gunits]],$M51-1,0)),IF(F51="Electricity","TWh","Tbtu"))) -> trillion Btu | U51: 1 | V51: =-TableScenario[[#This Row],['#5_Value]] -> -0.2900473934 | W51: Linear | X51: 2017 | Y51: 2030 | BR51: Onsite CT Energy Consumption Sector-Wide | BS51: 2110 | BT51: Tbtu/year | BU51: Pulp and Paper Bandwidth Study 2015 (Figure ES-1) | BV51: Onsite SOA & R&D Pulp and Paper Sector-Wide | BW51: 1498 | BX51: Tbtu/year | BY51: Pulp and Paper Bandwidth Study 2015 (Figure ES-1) | BZ51: Onsite TM Energy Consumption for Pulp and Paper Sector-Wide | CA51: 1344 | CB51: Tbtu/year | CC51: Pulp and Paper Bandwidth Study 2015 (Figure ES-1) | CD51: SOA Energy Savings Percent | CE51: =(TableScenario[[#This Row],['#1_Value]]-TableScenario[[#This Row],['#2_Value]])/(TableScenario[[#This Row],['#1_Value]]-TableScenario[[#This Row],['#3_Value]]) -> 0.7989556136 | CF51: (CT-SOA)/ (CT-TM) | CG51: Pulp and Paper Bandwidth Study 2015 (Figure ES-1) | CH51: Alternative SOA Energy Savings Percent | CI51: =(TableScenario[[#This Row],['#1_Value]]-TableScenario[[#This Row],['#2_Value]])/(TableScenario[[#This Row],['#1_Value]]) -> 0.2900473934 | CJ51: (CT-SOA)/ (CT) | DG51: =TableScenario[[#This Row],['#9_Value]]*TableScenario[[#This Row],['#10_Value]] -> 0 | DN51: =IF(ROW()-ROW(TableScenario[[#Headers],[Scenario '#]])=1,1,IF(TableScenario[[#This Row],[Row Function]]=Lists!$O$3,DN50+1,DN50)) -> 4 | DO51: =IF(TableScenario[[#This Row],[Scenario '#]]=DN50,IF(TableScenario[[#This Row],[Row Function]]=Lists!$O$5,DO50+1,DO50),0) -> 10 | DP51: =CONCATENATE(TableScenario[[#This Row],[Scenario '#]]," - ",TableScenario[[#This Row],[Forecast Sequence]]) -> 4 - 10
A52: Chemicals, Petroleum Refining, Iron and Steel, and Pulp & Paper Sector Bandwidth Report - SOA + R&D Potential Onsite Total with total MFG background | B52: New Scenario | M52: =IF(OR($D52="MECS",$F52=""),"",MATCH($F52,AEO2017RC!$BI:$BI,0)) ->  | N52: =IF($M52="","",OFFSET(AEO2016RC[[#Headers],[2011]],$M52-1,IF($L52>0,$L52-2011,0))) ->  | O52: =IF($J52="","",MATCH($J52,AEO2017RC!$BI:$BI,0)) ->  | P52: =IF(TableScenario[[#This Row],[Energy Prices]]="","",MATCH(K52,AEO2017RC!BI:BI,0)) ->  | Q52: =IF($D52="MECS",IF($G52="","",OFFSET(MECS!$D$2,MATCH($E52,ListMECSSector,0),MATCH($F52,MECS!$E$1:$GT$1,0))),"") ->  | R52: =IF($D52="MECS",IF($G52="","",OFFSET(MECS!$D$2,MATCH($E52,ListMECSSector,0),MATCH($F52,MECS!$E$1:$GT$1,0)+2+MATCH($G52,ListMECSEndUse,0))),"") ->  | S52: =IF(TableScenario[[#This Row],[MECS Sector Energy]]="","",TableScenario[[#This Row],[MECS Sector Energy]]*TableScenario[[#This Row],[MECS End-Use %]]) ->  | T52: =IF($Z52,TableScenario[[#This Row],[Alt_Units]],IF(TableScenario[[#This Row],[MECS End-Use Energy]]="",IF($M52="","",OFFSET(AEO2016RC[[#Headers],[Gunits]],$M52-1,0)),IF(F52="Electricity","TWh","Tbtu"))) ->  | DG52: =TableScenario[[#This Row],['#9_Value]]*TableScenario[[#This Row],['#10_Value]] -> 0 | DN52: =IF(ROW()-ROW(TableScenario[[#Headers],[Scenario '#]])=1,1,IF(TableScenario[[#This Row],[Row Function]]=Lists!$O$3,DN51+1,DN51)) -> 5 | DO52: =IF(TableScenario[[#This Row],[Scenario '#]]=DN51,IF(TableScenario[[#This Row],[Row Function]]=Lists!$O$5,DO51+1,DO51),0) -> 0 | DP52: =CONCATENATE(TableScenario[[#This Row],[Scenario '#]]," - ",TableScenario[[#This Row],[Forecast Sequence]]) -> 5 - 0
A53: Industrial Sector - Total Energy Use | B53: Forecast | C53: Industrial | D53: AEO | E53: Industrial (AEOTbl 6) | F53: Industrial : Total Industrial Sector Use : Total [quads] | H53: Industrial Fuel Mix CO2 Factor | I53: Industrial Macroeconomic (AEOTbl 34) | J53: Industrial Macroeconomic : Total Industrial Value of Shipments [billion 2009 $] | K53: Energy Prices : Industrial : Natural Gas [2016 $/MMBtu] | M53: =IF(OR($D53="MECS",$F53=""),"",MATCH($F53,AEO2017RC!$BI:$BI,0)) -> 542 | N53: =IF($M53="","",OFFSET(AEO2016RC[[#Headers],[2011]],$M53-1,IF($L53>0,$L53-2011,0))) -> 30.644161 | O53: =IF($J53="","",MATCH($J53,AEO2017RC!$BI:$BI,0)) -> 1428 | P53: =IF(TableScenario[[#This Row],[Energy Prices]]="","",MATCH(K53,AEO2017RC!BI:BI,0)) -> 191 | Q53: =IF($D53="MECS",IF($G53="","",OFFSET(MECS!$D$2,MATCH($E53,ListMECSSector,0),MATCH($F53,MECS!$E$1:$GT$1,0))),"") ->  | R53: =IF($D53="MECS",IF($G53="","",OFFSET(MECS!$D$2,MATCH($E53,ListMECSSector,0),MATCH($F53,MECS!$E$1:$GT$1,0)+2+MATCH($G53,ListMECSEndUse,0))),"") ->  | S53: =IF(TableScenario[[#This Row],[MECS Sector Energy]]="","",TableScenario[[#This Row],[MECS Sector Energy]]*TableScenario[[#This Row],[MECS End-Use %]]) ->  | T53: =IF($Z53,TableScenario[[#This Row],[Alt_Units]],IF(TableScenario[[#This Row],[MECS End-Use Energy]]="",IF($M53="","",OFFSET(AEO2016RC[[#Headers],[Gunits]],$M53-1,0)),IF(F53="Electricity","TWh","Tbtu"))) -> TBtu | Z53: TRUE | AA53: TBtu | AB53: =OFFSET(AEO2016RC[[#Headers],[2010]],$M53-1,0)*10^3 -> 30624.901 | AC53: =OFFSET(AEO2016RC[[#Headers],[2011]],$M53-1,0)*10^3 -> 30644.161 | AD53: =OFFSET(AEO2016RC[[#Headers],[2012]],$M53-1,0)*10^3 -> 30836.964 | AE53: =OFFSET(AEO2016RC[[#Headers],[2013]],$M53-1,0)*10^3 -> 31198.158 | AF53: =OFFSET(AEO2016RC[[#Headers],[2014]],$M53-1,0)*10^3 -> 31463.12 | AG53: =OFFSET(AEO2016RC[[#Headers],[2015]],$M53-1,0)*10^3 -> 31006.439 | AH53: =OFFSET(AEO2016RC[[#Headers],[2016]],$M53-1,0)*10^3 -> 30850.41 | AI53: =OFFSET(AEO2016RC[[#Headers],[2017]],$M53-1,0)*10^3 -> 31365.742 | AJ53: =OFFSET(AEO2016RC[[#Headers],[2018]],$M53-1,0)*10^3 -> 32360.34 | AK53: =OFFSET(AEO2016RC[[#Headers],[2019]],$M53-1,0)*10^3 -> 33210.102 | AL53: =OFFSET(AEO2016RC[[#Headers],[2020]],$M53-1,0)*10^3 -> 33635.021 | AM53: =OFFSET(AEO2016RC[[#Headers],[2021]],$M53-1,0)*10^3 -> 34176.853 | AN53: =OFFSET(AEO2016RC[[#Headers],[2022]],$M53-1,0)*10^3 -> 34774.483 | AO53: =OFFSET(AEO2016RC[[#Headers],[2023]],$M53-1,0)*10^3 -> 35332.546 | AP53: =OFFSET(AEO2016RC[[#Headers],[2024]],$M53-1,0)*10^3 -> 35639.053 | AQ53: =OFFSET(AEO2016RC[[#Headers],[2025]],$M53-1,0)*10^3 -> 35738.426 | AR53: =OFFSET(AEO2016RC[[#Headers],[2026]],$M53-1,0)*10^3 -> 35794.346 | AS53: =OFFSET(AEO2016RC[[#Headers],[2027]],$M53-1,0)*10^3 -> 35660.603 | AT53: =OFFSET(AEO2016RC[[#Headers],[2028]],$M53-1,0)*10^3 -> 35594.402 | AU53: =OFFSET(AEO2016RC[[#Headers],[2029]],$M53-1,0)*10^3 -> 35596.851 | AV53: =OFFSET(AEO2016RC[[#Headers],[2030]],$M53-1,0)*10^3 -> 35648.796 | AW53: =OFFSET(AEO2016RC[[#Headers],[2031]],$M53-1,0)*10^3 -> 35651.436 | AX53: =OFFSET(AEO2016RC[[#Headers],[2032]],$M53-1,0)*10^3 -> 35718.628 | AY53: =OFFSET(AEO2016RC[[#Headers],[2033]],$M53-1,0)*10^3 -> 35847.214 | AZ53: =OFFSET(AEO2016RC[[#Headers],[2034]],$M53-1,0)*10^3 -> 36050.369 | BA53: =OFFSET(AEO2016RC[[#Headers],[2035]],$M53-1,0)*10^3 -> 36205.582 | BB53: =OFFSET(AEO2016RC[[#Headers],[2036]],$M53-1,0)*10^3 -> 36424.309 | BC53: =OFFSET(AEO2016RC[[#Headers],[2037]],$M53-1,0)*10^3 -> 36593.746 | BD53: =OFFSET(AEO2016RC[[#Headers],[2038]],$M53-1,0)*10^3 -> 36796.951 | BE53: =OFFSET(AEO2016RC[[#Headers],[2039]],$M53-1,0)*10^3 -> 37058.643 | BF53: =OFFSET(AEO2016RC[[#Headers],[2040]],$M53-1,0)*10^3 -> 37269.199 | BG53: =OFFSET(AEO2016RC[[#Headers],[2041]],$M53-1,0)*10^3 -> 37405.266 | BH53: =OFFSET(AEO2016RC[[#Headers],[2042]],$M53-1,0)*10^3 -> 37552.498 | BI53: =OFFSET(AEO2016RC[[#Headers],[2043]],$M53-1,0)*10^3 -> 37734.543 | BJ53: =OFFSET(AEO2016RC[[#Headers],[2044]],$M53-1,0)*10^3 -> 37933.266 | BK53: =OFFSET(AEO2016RC[[#Headers],[2045]],$M53-1,0)*10^3 -> 38098.343 | BL53: =OFFSET(AEO2016RC[[#Headers],[2046]],$M53-1,0)*10^3 -> 38277.821 | BM53: =OFFSET(AEO2016RC[[#Headers],[2047]],$M53-1,0)*10^3 -> 38458.221 | BN53: =OFFSET(AEO2016RC[[#Headers],[2048]],$M53-1,0)*10^3 -> 38632.339 | BO53: =OFFSET(AEO2016RC[[#Headers],[2049]],$M53-1,0)*10^3 -> 38871.735 | BP53: =OFFSET(AEO2016RC[[#Headers],[2050]],$M53-1,0)*10^3 -> 39124.493 | DG53: =TableScenario[[#This Row],['#9_Value]]*TableScenario[[#This Row],['#10_Value]] -> 0 | DN53: =IF(ROW()-ROW(TableScenario[[#Headers],[Scenario '#]])=1,1,IF(TableScenario[[#This Row],[Row Function]]=Lists!$O$3,DN52+1,DN52)) -> 5 | DO53: =IF(TableScenario[[#This Row],[Scenario '#]]=DN52,IF(TableScenario[[#This Row],[Row Function]]=Lists!$O$5,DO52+1,DO52),0) -> 1 | DP53: =CONCATENATE(TableScenario[[#This Row],[Scenario '#]]," - ",TableScenario[[#This Row],[Forecast Sequence]]) -> 5 - 1
A54: Chemicals SOA + R&D | B54: Forecast | C54: Industrial | D54: AEO | E54: Bulk Chemical (AEOTbl 38) | F54: Bulk Chemical : Energy Use : Heat and Power : Total [trillion Btu] | H54: Industrial Fuel Mix CO2 Factor | I54: Industrial Macroeconomic (AEOTbl 34) | J54: Industrial Macroeconomic : Manufacturing : Chemical Manufacturing [billion 2009 $] | K54: Energy Prices : Industrial : Natural Gas [2016 $/MMBtu] | M54: =IF(OR($D54="MECS",$F54=""),"",MATCH($F54,AEO2017RC!$BI:$BI,0)) -> 1567 | N54: =IF($M54="","",OFFSET(AEO2016RC[[#Headers],[2011]],$M54-1,IF($L54>0,$L54-2011,0))) -> 2426.188721 | O54: =IF($J54="","",MATCH($J54,AEO2017RC!$BI:$BI,0)) -> 1403 | P54: =IF(TableScenario[[#This Row],[Energy Prices]]="","",MATCH(K54,AEO2017RC!BI:BI,0)) -> 191 | Q54: =IF($D54="MECS",IF($G54="","",OFFSET(MECS!$D$2,MATCH($E54,ListMECSSector,0),MATCH($F54,MECS!$E$1:$GT$1,0))),"") ->  | R54: =IF($D54="MECS",IF($G54="","",OFFSET(MECS!$D$2,MATCH($E54,ListMECSSector,0),MATCH($F54,MECS!$E$1:$GT$1,0)+2+MATCH($G54,ListMECSEndUse,0))),"") ->  | S54: =IF(TableScenario[[#This Row],[MECS Sector Energy]]="","",TableScenario[[#This Row],[MECS Sector Energy]]*TableScenario[[#This Row],[MECS End-Use %]]) ->  | T54: =IF($Z54,TableScenario[[#This Row],[Alt_Units]],IF(TableScenario[[#This Row],[MECS End-Use Energy]]="",IF($M54="","",OFFSET(AEO2016RC[[#Headers],[Gunits]],$M54-1,0)),IF(F54="Electricity","TWh","Tbtu"))) -> trillion Btu | U54: 1 | V54: =-TableScenario[[#This Row],['#5_Value]] -> -0.808814401 | W54: Linear | X54: 2017 | Y54: 2030 | BR54: Onsite CT Energy Consumption for Chemicals Sector-Wide | BS54: 3222 | BT54: Tbtu/year | BU54: Chamical Bandwidth Study 2015 (Table 5-3) | BV54: Onsite SOA + R&D Energy Consumption for Chemicals Sector-Wide | BW54: 616 | BX54: Tbtu/year | BY54: SOA + R&D Energy Savings Percent | BZ54: Onsite TM Energy Consumption for Chemicals Sector-Wide | CA54: -745 | CB54: Tbtu/year | CC54: Chamical Bandwidth Study 2015 (Table 7-2) | CD54: SOA + R&D Energy Savings Percent | CE54: =(TableScenario[[#This Row],['#1_Value]]-TableScenario[[#This Row],['#2_Value]])/(TableScenario[[#This Row],['#1_Value]]-TableScenario[[#This Row],['#3_Value]]) -> 0.6569195866 | CF54: (CT-SOA)/ (CT-TM) | CG54: Chamical Bandwidth Study 2015 (Table 5-4) | CH54: Alternative SOA + R&D Energy Savings Percent | CI54: =(TableScenario[[#This Row],['#1_Value]]-TableScenario[[#This Row],['#2_Value]])/(TableScenario[[#This Row],['#1_Value]]) -> 0.808814401 | CJ54: (CT-SOA)/ (CT) | DG54: =TableScenario[[#This Row],['#9_Value]]*TableScenario[[#This Row],['#10_Value]] -> 0 | DN54: =IF(ROW()-ROW(TableScenario[[#Headers],[Scenario '#]])=1,1,IF(TableScenario[[#This Row],[Row Function]]=Lists!$O$3,DN53+1,DN53)) -> 5 | DO54: =IF(TableScenario[[#This Row],[Scenario '#]]=DN53,IF(TableScenario[[#This Row],[Row Function]]=Lists!$O$5,DO53+1,DO53),0) -> 2 | DP54: =CONCATENATE(TableScenario[[#This Row],[Scenario '#]]," - ",TableScenario[[#This Row],[Forecast Sequence]]) -> 5 - 2
A55: Petroleum Refining Total SOA + R&D | B55: Forecast | C55: Industrial | D55: AEO | E55: Refining Industry (AEOTbl 35) | F55: Refining Industry : Refinery Only Energy : Use : Total [trillion Btu] | H55: Industrial Fuel Mix CO2 Factor | I55: Industrial Macroeconomic (AEOTbl 34) | J55: Industrial Macroeconomic : Manufacturing : Petroleum and Coal : Petroleum Refineries [billion 2009 $] | K55: Energy Prices : Industrial : Natural Gas [2016 $/MMBtu] | M55: =IF(OR($D55="MECS",$F55=""),"",MATCH($F55,AEO2017RC!$BI:$BI,0)) -> 1457 | N55: =IF($M55="","",OFFSET(AEO2016RC[[#Headers],[2011]],$M55-1,IF($L55>0,$L55-2011,0))) -> 2859.178223 | O55: =IF($J55="","",MATCH($J55,AEO2017RC!$BI:$BI,0)) -> 1411 | P55: =IF(TableScenario[[#This Row],[Energy Prices]]="","",MATCH(K55,AEO2017RC!BI:BI,0)) -> 191 | Q55: =IF($D55="MECS",IF($G55="","",OFFSET(MECS!$D$2,MATCH($E55,ListMECSSector,0),MATCH($F55,MECS!$E$1:$GT$1,0))),"") ->  | R55: =IF($D55="MECS",IF($G55="","",OFFSET(MECS!$D$2,MATCH($E55,ListMECSSector,0),MATCH($F55,MECS!$E$1:$GT$1,0)+2+MATCH($G55,ListMECSEndUse,0))),"") ->  | S55: =IF(TableScenario[[#This Row],[MECS Sector Energy]]="","",TableScenario[[#This Row],[MECS Sector Energy]]*TableScenario[[#This Row],[MECS End-Use %]]) ->  | T55: =IF($Z55,TableScenario[[#This Row],[Alt_Units]],IF(TableScenario[[#This Row],[MECS End-Use Energy]]="",IF($M55="","",OFFSET(AEO2016RC[[#Headers],[Gunits]],$M55-1,0)),IF(F55="Electricity","TWh","Tbtu"))) -> trillion Btu | U55: 1 | V55: =-TableScenario[[#This Row],['#5_Value]] -> -0.3819269521 | W55: Linear | X55: 2017 | Y55: 2030 | BR55: Onsite CT Energy Consumption for Petroleum Refining Sector-Wide | BS55: 3176 | BT55: Tbtu/year | BU55: Petroleum Refining Bandwidth Study 2015 (Table 6-3) | BV55: Onsite SOA + R&D Energy Consumption for Petroleum Refining Sector-Wide | BW55: 1963 | BX55: Tbtu/year | BY55: SOA + R&D Energy Savings Percent | BZ55: Onsite TM Energy Consumption for Petroleum Refining Sector-Wide | CA55: 169 | CB55: Tbtu/year | CC55: Petroleum Refining Bandwidth Study 2015 (Table 7-2) | CD55: SOA + R&D Energy Savings Percent | CE55: =(TableScenario[[#This Row],['#1_Value]]-TableScenario[[#This Row],['#2_Value]])/(TableScenario[[#This Row],['#1_Value]]-TableScenario[[#This Row],['#3_Value]]) -> 0.4033920851 | CF55: (CT-SOA)/ (CT-TM) | CG55: Petroleum Refining Bandwidth Study 2015 (Table 6-3) | CH55: Alternative SOA + R&D Energy Savings Percent | CI55: =(TableScenario[[#This Row],['#1_Value]]-TableScenario[[#This Row],['#2_Value]])/(TableScenario[[#This Row],['#1_Value]]) -> 0.3819269521 | CJ55: (CT-SOA)/ (CT) | DG55: =TableScenario[[#This Row],['#9_Value]]*TableScenario[[#This Row],['#10_Value]] -> 0 | DN55: =IF(ROW()-ROW(TableScenario[[#Headers],[Scenario '#]])=1,1,IF(TableScenario[[#This Row],[Row Function]]=Lists!$O$3,DN54+1,DN54)) -> 5 | DO55: =IF(TableScenario[[#This Row],[Scenario '#]]=DN54,IF(TableScenario[[#This Row],[Row Function]]=Lists!$O$5,DO54+1,DO54),0) -> 3 | DP55: =CONCATENATE(TableScenario[[#This Row],[Scenario '#]]," - ",TableScenario[[#This Row],[Forecast Sequence]]) -> 5 - 3
A56: Iron and Steel Total SOA + R&D | B56: Forecast | C56: Industrial | D56: AEO | E56: Iron and Steel (AEOTbl 41) | F56: Iron and Steel : Energy Use : Total [trillion Btu] | H56: Industrial Fuel Mix CO2 Factor | I56: Industrial Macroeconomic (AEOTbl 34) | J56: Industrial Macroeconomic : Manufacturing : Primary Metals : Iron and Steel Mills and Products [billion 2009 $] | K56: Energy Prices : Industrial : Natural Gas [2016 $/MMBtu] | M56: =IF(OR($D56="MECS",$F56=""),"",MATCH($F56,AEO2017RC!$BI:$BI,0)) -> 1685 | N56: =IF($M56="","",OFFSET(AEO2016RC[[#Headers],[2011]],$M56-1,IF($L56>0,$L56-2011,0))) -> 1361.717773 | O56: =IF($J56="","",MATCH($J56,AEO2017RC!$BI:$BI,0)) -> 1419 | P56: =IF(TableScenario[[#This Row],[Energy Prices]]="","",MATCH(K56,AEO2017RC!BI:BI,0)) -> 191 | Q56: =IF($D56="MECS",IF($G56="","",OFFSET(MECS!$D$2,MATCH($E56,ListMECSSector,0),MATCH($F56,MECS!$E$1:$GT$1,0))),"") ->  | R56: =IF($D56="MECS",IF($G56="","",OFFSET(MECS!$D$2,MATCH($E56,ListMECSSector,0),MATCH($F56,MECS!$E$1:$GT$1,0)+2+MATCH($G56,ListMECSEndUse,0))),"") ->  | S56: =IF(TableScenario[[#This Row],[MECS Sector Energy]]="","",TableScenario[[#This Row],[MECS Sector Energy]]*TableScenario[[#This Row],[MECS End-Use %]]) ->  | T56: =IF($Z56,TableScenario[[#This Row],[Alt_Units]],IF(TableScenario[[#This Row],[MECS End-Use Energy]]="",IF($M56="","",OFFSET(AEO2016RC[[#Headers],[Gunits]],$M56-1,0)),IF(F56="Electricity","TWh","Tbtu"))) -> trillion Btu | U56: 1 | V56: =-TableScenario[[#This Row],['#5_Value]] -> -0.3903903904 | W56: Linear | X56: 2017 | Y56: 2030 | BR56: Onsite CT Energy Consumption Sector-Wide | BS56: 999 | BT56: Tbtu/year | BU56: Iron and Steel Bandwidth Study 2015 (Figure ES-1) | BV56: Onsite SOA & R&D Iron and Steel Sector-Wide | BW56: 609 | BX56: Tbtu/year | BY56: Iron and Steel Bandwidth Study 2015 (Figure ES-1) | BZ56: Onsite TM Energy Consumption for Iron and Steel Sector-Wide | CA56: 169 | CB56: Tbtu/year | CC56: Iron and Steel Bandwidth Study 2015 (Figure ES-1) | CD56: SOA Energy Savings Percent | CE56: =(TableScenario[[#This Row],['#1_Value]]-TableScenario[[#This Row],['#2_Value]])/(TableScenario[[#This Row],['#1_Value]]-TableScenario[[#This Row],['#3_Value]]) -> 0.4698795181 | CF56: (CT-SOA)/ (CT-TM) | CG56: Iron and Steel Bandwidth Study 2015 (Figure ES-1) | CH56: Alternative SOA Energy Savings Percent | CI56: =(TableScenario[[#This Row],['#1_Value]]-TableScenario[[#This Row],['#2_Value]])/(TableScenario[[#This Row],['#1_Value]]) -> 0.3903903904 | CJ56: (CT-SOA)/ (CT) | DG56: =TableScenario[[#This Row],['#9_Value]]*TableScenario[[#This Row],['#10_Value]] -> 0 | DN56: =IF(ROW()-ROW(TableScenario[[#Headers],[Scenario '#]])=1,1,IF(TableScenario[[#This Row],[Row Function]]=Lists!$O$3,DN55+1,DN55)) -> 5 | DO56: =IF(TableScenario[[#This Row],[Scenario '#]]=DN55,IF(TableScenario[[#This Row],[Row Function]]=Lists!$O$5,DO55+1,DO55),0) -> 4 | DP56: =CONCATENATE(TableScenario[[#This Row],[Scenario '#]]," - ",TableScenario[[#This Row],[Forecast Sequence]]) -> 5 - 4
A57: Pulp and Paper Total SOA + R&D | B57: Forecast | C57: Industrial | D57: AEO | E57: Paper Industry (AEOTbl 37) | F57: Paper Industry : Energy Use : Total [trillion Btu] | H57: Industrial Fuel Mix CO2 Factor | I57: Industrial Macroeconomic (AEOTbl 34) | J57: Industrial Macroeconomic : Manufacturing : Paper Products [billion 2009 $] | K57: Energy Prices : Industrial : Natural Gas [2016 $/MMBtu] | M57: =IF(OR($D57="MECS",$F57=""),"",MATCH($F57,AEO2017RC!$BI:$BI,0)) -> 1531 | N57: =IF($M57="","",OFFSET(AEO2016RC[[#Headers],[2011]],$M57-1,IF($L57>0,$L57-2011,0))) -> 1991.323608 | O57: =IF($J57="","",MATCH($J57,AEO2017RC!$BI:$BI,0)) -> 1401 | P57: =IF(TableScenario[[#This Row],[Energy Prices]]="","",MATCH(K57,AEO2017RC!BI:BI,0)) -> 191 | Q57: =IF($D57="MECS",IF($G57="","",OFFSET(MECS!$D$2,MATCH($E57,ListMECSSector,0),MATCH($F57,MECS!$E$1:$GT$1,0))),"") ->  | R57: =IF($D57="MECS",IF($G57="","",OFFSET(MECS!$D$2,MATCH($E57,ListMECSSector,0),MATCH($F57,MECS!$E$1:$GT$1,0)+2+MATCH($G57,ListMECSEndUse,0))),"") ->  | S57: =IF(TableScenario[[#This Row],[MECS Sector Energy]]="","",TableScenario[[#This Row],[MECS Sector Energy]]*TableScenario[[#This Row],[MECS End-Use %]]) ->  | T57: =IF($Z57,TableScenario[[#This Row],[Alt_Units]],IF(TableScenario[[#This Row],[MECS End-Use Energy]]="",IF($M57="","",OFFSET(AEO2016RC[[#Headers],[Gunits]],$M57-1,0)),IF(F57="Electricity","TWh","Tbtu"))) -> trillion Btu | U57: 1 | V57: =-TableScenario[[#This Row],['#5_Value]] -> -0.2900473934 | W57: Linear | X57: 2017 | Y57: 2030 | BR57: Onsite CT Energy Consumption Sector-Wide | BS57: 2110 | BT57: Tbtu/year | BU57: Pulp and Paper Bandwidth Study 2015 (Figure ES-1) | BV57: Onsite SOA & R&D Pulp and Paper Sector-Wide | BW57: 1498 | BX57: Tbtu/year | BY57: Pulp and Paper Bandwidth Study 2015 (Figure ES-1) | BZ57: Onsite TM Energy Consumption for Pulp and Paper Sector-Wide | CA57: 1344 | CB57: Tbtu/year | CC57: Pulp and Paper Bandwidth Study 2015 (Figure ES-1) | CD57: SOA Energy Savings Percent | CE57: =(TableScenario[[#This Row],['#1_Value]]-TableScenario[[#This Row],['#2_Value]])/(TableScenario[[#This Row],['#1_Value]]-TableScenario[[#This Row],['#3_Value]]) -> 0.7989556136 | CF57: (CT-SOA)/ (CT-TM) | CG57: Pulp and Paper Bandwidth Study 2015 (Figure ES-1) | CH57: Alternative SOA Energy Savings Percent | CI57: =(TableScenario[[#This Row],['#1_Value]]-TableScenario[[#This Row],['#2_Value]])/(TableScenario[[#This Row],['#1_Value]]) -> 0.2900473934 | CJ57: (CT-SOA)/ (CT) | DG57: =TableScenario[[#This Row],['#9_Value]]*TableScenario[[#This Row],['#10_Value]] -> 0 | DN57: =IF(ROW()-ROW(TableScenario[[#Headers],[Scenario '#]])=1,1,IF(TableScenario[[#This Row],[Row Function]]=Lists!$O$3,DN56+1,DN56)) -> 5 | DO57: =IF(TableScenario[[#This Row],[Scenario '#]]=DN56,IF(TableScenario[[#This Row],[Row Function]]=Lists!$O$5,DO56+1,DO56),0) -> 5 | DP57: =CONCATENATE(TableScenario[[#This Row],[Scenario '#]]," - ",TableScenario[[#This Row],[Forecast Sequence]]) -> 5 - 5
A58: Chemical Sector Process Heating Electrification | B58: New Scenario | M58: =IF(OR($D58="MECS",$F58=""),"",MATCH($F58,AEO2017RC!$BI:$BI,0)) ->  | N58: =IF($M58="","",OFFSET(AEO2016RC[[#Headers],[2011]],$M58-1,IF($L58>0,$L58-2011,0))) ->  | O58: =IF($J58="","",MATCH($J58,AEO2017RC!$BI:$BI,0)) ->  | P58: =IF(TableScenario[[#This Row],[Energy Prices]]="","",MATCH(K58,AEO2017RC!BI:BI,0)) ->  | Q58: =IF($D58="MECS",IF($G58="","",OFFSET(MECS!$D$2,MATCH($E58,ListMECSSector,0),MATCH($F58,MECS!$E$1:$GT$1,0))),"") ->  | R58: =IF($D58="MECS",IF($G58="","",OFFSET(MECS!$D$2,MATCH($E58,ListMECSSector,0),MATCH($F58,MECS!$E$1:$GT$1,0)+2+MATCH($G58,ListMECSEndUse,0))),"") ->  | S58: =IF(TableScenario[[#This Row],[MECS Sector Energy]]="","",TableScenario[[#This Row],[MECS Sector Energy]]*TableScenario[[#This Row],[MECS End-Use %]]) ->  | T58: =IF($Z58,TableScenario[[#This Row],[Alt_Units]],IF(TableScenario[[#This Row],[MECS End-Use Energy]]="",IF($M58="","",OFFSET(AEO2016RC[[#Headers],[Gunits]],$M58-1,0)),IF(F58="Electricity","TWh","Tbtu"))) ->  | DG58: =TableScenario[[#This Row],['#9_Value]]*TableScenario[[#This Row],['#10_Value]] -> 0 | DN58: =IF(ROW()-ROW(TableScenario[[#Headers],[Scenario '#]])=1,1,IF(TableScenario[[#This Row],[Row Function]]=Lists!$O$3,DN57+1,DN57)) -> 6 | DO58: =IF(TableScenario[[#This Row],[Scenario '#]]=DN57,IF(TableScenario[[#This Row],[Row Function]]=Lists!$O$5,DO57+1,DO57),0) -> 0 | DP58: =CONCATENATE(TableScenario[[#This Row],[Scenario '#]]," - ",TableScenario[[#This Row],[Forecast Sequence]]) -> 6 - 0
A59: Chemicals | B59: Forecast | C59: Industrial | D59: AEO | E59: Industrial (AEOTbl 6) | F59: Industrial : Total Industrial Sector Use : Total [quads] | H59: Industrial Fuel Mix CO2 Factor | I59: Industrial Macroeconomic (AEOTbl 34) | J59: Industrial Macroeconomic : Manufacturing : Chemical Manufacturing [billion 2009 $] | K59: Energy Prices : Industrial : Natural Gas [2016 $/MMBtu] | M59: =IF(OR($D59="MECS",$F59=""),"",MATCH($F59,AEO2017RC!$BI:$BI,0)) -> 542 | N59: =IF($M59="","",OFFSET(AEO2016RC[[#Headers],[2011]],$M59-1,IF($L59>0,$L59-2011,0))) -> 30.644161 | O59: =IF($J59="","",MATCH($J59,AEO2017RC!$BI:$BI,0)) -> 1403 | P59: =IF(TableScenario[[#This Row],[Energy Prices]]="","",MATCH(K59,AEO2017RC!BI:BI,0)) -> 191 | Q59: =IF($D59="MECS",IF($G59="","",OFFSET(MECS!$D$2,MATCH($E59,ListMECSSector,0),MATCH($F59,MECS!$E$1:$GT$1,0))),"") ->  | R59: =IF($D59="MECS",IF($G59="","",OFFSET(MECS!$D$2,MATCH($E59,ListMECSSector,0),MATCH($F59,MECS!$E$1:$GT$1,0)+2+MATCH($G59,ListMECSEndUse,0))),"") ->  | S59: =IF(TableScenario[[#This Row],[MECS Sector Energy]]="","",TableScenario[[#This Row],[MECS Sector Energy]]*TableScenario[[#This Row],[MECS End-Use %]]) ->  | T59: =IF($Z59,TableScenario[[#This Row],[Alt_Units]],IF(TableScenario[[#This Row],[MECS End-Use Energy]]="",IF($M59="","",OFFSET(AEO2016RC[[#Headers],[Gunits]],$M59-1,0)),IF(F59="Electricity","TWh","Tbtu"))) -> TBtu | Z59: TRUE | AA59: TBtu | AB59: =OFFSET(AEO2016RC[[#Headers],[2010]],$M59-1,0)*1000 -> 30624.901 | AC59: =OFFSET(AEO2016RC[[#Headers],[2011]],$M59-1,0)*1000 -> 30644.161 | AD59: =OFFSET(AEO2016RC[[#Headers],[2012]],$M59-1,0)*1000 -> 30836.964 | AE59: =OFFSET(AEO2016RC[[#Headers],[2013]],$M59-1,0)*1000 -> 31198.158 | AF59: =OFFSET(AEO2016RC[[#Headers],[2014]],$M59-1,0)*1000 -> 31463.12 | AG59: =OFFSET(AEO2016RC[[#Headers],[2015]],$M59-1,0)*1000 -> 31006.439 | AH59: =OFFSET(AEO2016RC[[#Headers],[2016]],$M59-1,0)*1000 -> 30850.41 | AI59: =OFFSET(AEO2016RC[[#Headers],[2017]],$M59-1,0)*1000 -> 31365.742 | AJ59: =OFFSET(AEO2016RC[[#Headers],[2018]],$M59-1,0)*1000 -> 32360.34 | AK59: =OFFSET(AEO2016RC[[#Headers],[2019]],$M59-1,0)*1000 -> 33210.102 | AL59: =OFFSET(AEO2016RC[[#Headers],[2020]],$M59-1,0)*1000 -> 33635.021 | AM59: =OFFSET(AEO2016RC[[#Headers],[2021]],$M59-1,0)*1000 -> 34176.853 | AN59: =OFFSET(AEO2016RC[[#Headers],[2022]],$M59-1,0)*1000 -> 34774.483 | AO59: =OFFSET(AEO2016RC[[#Headers],[2023]],$M59-1,0)*1000 -> 35332.546 | AP59: =OFFSET(AEO2016RC[[#Headers],[2024]],$M59-1,0)*1000 -> 35639.053 | AQ59: =OFFSET(AEO2016RC[[#Headers],[2025]],$M59-1,0)*1000 -> 35738.426 | AR59: =OFFSET(AEO2016RC[[#Headers],[2026]],$M59-1,0)*1000 -> 35794.346 | AS59: =OFFSET(AEO2016RC[[#Headers],[2027]],$M59-1,0)*1000 -> 35660.603 | AT59: =OFFSET(AEO2016RC[[#Headers],[2028]],$M59-1,0)*1000 -> 35594.402 | AU59: =OFFSET(AEO2016RC[[#Headers],[2029]],$M59-1,0)*1000 -> 35596.851 | AV59: =OFFSET(AEO2016RC[[#Headers],[2030]],$M59-1,0)*1000 -> 35648.796 | AW59: =OFFSET(AEO2016RC[[#Headers],[2031]],$M59-1,0)*1000 -> 35651.436 | AX59: =OFFSET(AEO2016RC[[#Headers],[2032]],$M59-1,0)*1000 -> 35718.628 | AY59: =OFFSET(AEO2016RC[[#Headers],[2033]],$M59-1,0)*1000 -> 35847.214 | AZ59: =OFFSET(AEO2016RC[[#Headers],[2034]],$M59-1,0)*1000 -> 36050.369 | BA59: =OFFSET(AEO2016RC[[#Headers],[2035]],$M59-1,0)*1000 -> 36205.582 | BB59: =OFFSET(AEO2016RC[[#Headers],[2036]],$M59-1,0)*1000 -> 36424.309 | BC59: =OFFSET(AEO2016RC[[#Headers],[2037]],$M59-1,0)*1000 -> 36593.746 | BD59: =OFFSET(AEO2016RC[[#Headers],[2038]],$M59-1,0)*1000 -> 36796.951 | BE59: =OFFSET(AEO2016RC[[#Headers],[2039]],$M59-1,0)*1000 -> 37058.643 | BF59: =OFFSET(AEO2016RC[[#Headers],[2040]],$M59-1,0)*1000 -> 37269.199 | BG59: =OFFSET(AEO2016RC[[#Headers],[2041]],$M59-1,0)*1000 -> 37405.266 | BH59: =OFFSET(AEO2016RC[[#Headers],[2042]],$M59-1,0)*1000 -> 37552.498 | BI59: =OFFSET(AEO2016RC[[#Headers],[2043]],$M59-1,0)*1000 -> 37734.543 | BJ59: =OFFSET(AEO2016RC[[#Headers],[2044]],$M59-1,0)*1000 -> 37933.266 | BK59: =OFFSET(AEO2016RC[[#Headers],[2045]],$M59-1,0)*1000 -> 38098.343 | BL59: =OFFSET(AEO2016RC[[#Headers],[2046]],$M59-1,0)*1000 -> 38277.821 | BM59: =OFFSET(AEO2016RC[[#Headers],[2047]],$M59-1,0)*1000 -> 38458.221 | BN59: =OFFSET(AEO2016RC[[#Headers],[2048]],$M59-1,0)*1000 -> 38632.339 | BO59: =OFFSET(AEO2016RC[[#Headers],[2049]],$M59-1,0)*1000 -> 38871.735 | BP59: =OFFSET(AEO2016RC[[#Headers],[2050]],$M59-1,0)*1000 -> 39124.493 | DG59: =TableScenario[[#This Row],['#9_Value]]*TableScenario[[#This Row],['#10_Value]] -> 0 | DN59: =IF(ROW()-ROW(TableScenario[[#Headers],[Scenario '#]])=1,1,IF(TableScenario[[#This Row],[Row Function]]=Lists!$O$3,DN58+1,DN58)) -> 6 | DO59: =IF(TableScenario[[#This Row],[Scenario '#]]=DN58,IF(TableScenario[[#This Row],[Row Function]]=Lists!$O$5,DO58+1,DO58),0) -> 1 | DP59: =CONCATENATE(TableScenario[[#This Row],[Scenario '#]]," - ",TableScenario[[#This Row],[Forecast Sequence]]) -> 6 - 1
A60: Chemical Sector Process Heating Electrification (Fuel Savings) | B60: Forecast | C60: Industrial | D60: MECS | E60: Total Manufacturing | F60: All Non-Electricity | G60: Process Heating | H60: Industrial Fuel Mix CO2 Factor | I60: Industrial Macroeconomic (AEOTbl 34) | J60: Industrial Macroeconomic : Manufacturing : Chemical Manufacturing [billion 2009 $] | K60: Energy Prices : Industrial : Natural Gas [2016 $/MMBtu] | M60: =IF(OR($D60="MECS",$F60=""),"",MATCH($F60,AEO2017RC!$BI:$BI,0)) ->  | N60: =IF($M60="","",OFFSET(AEO2016RC[[#Headers],[2011]],$M60-1,IF($L60>0,$L60-2011,0))) ->  | O60: =IF($J60="","",MATCH($J60,AEO2017RC!$BI:$BI,0)) -> 1403 | P60: =IF(TableScenario[[#This Row],[Energy Prices]]="","",MATCH(K60,AEO2017RC!BI:BI,0)) -> 191 | Q60: =IF($D60="MECS",IF($G60="","",OFFSET(MECS!$D$2,MATCH($E60,ListMECSSector,0),MATCH($F60,MECS!$E$1:$GT$1,0))),"") -> 11407.33594 | R60: =IF($D60="MECS",IF($G60="","",OFFSET(MECS!$D$2,MATCH($E60,ListMECSSector,0),MATCH($F60,MECS!$E$1:$GT$1,0)+2+MATCH($G60,ListMECSEndUse,0))),"") -> 0.4574093367 | S60: =IF(TableScenario[[#This Row],[MECS Sector Energy]]="","",TableScenario[[#This Row],[MECS Sector Energy]]*TableScenario[[#This Row],[MECS End-Use %]]) -> 5217.821967 | T60: =IF($Z60,TableScenario[[#This Row],[Alt_Units]],IF(TableScenario[[#This Row],[MECS End-Use Energy]]="",IF($M60="","",OFFSET(AEO2016RC[[#Headers],[Gunits]],$M60-1,0)),IF(F60="Electricity","TWh","Tbtu"))) -> Tbtu | U60: 1 | V60: =-1 -> -1 | W60: Linear | X60: 2017 | Y60: 2030 | CE60: =TableScenario[[#This Row],[MECS End-Use Energy]] -> 5217.821967 | CF60: =TableScenario[[#This Row],[Data Units]] -> Tbtu | CI60: =TableScenario[[#This Row],['#4_Value]]*TableScenario[[#This Row],['#3_Value]]*CONVERT(1,"btu","Wh") -> 0 | CJ60: TWh | DG60: =TableScenario[[#This Row],['#9_Value]]*TableScenario[[#This Row],['#10_Value]] -> 0 | DN60: =IF(ROW()-ROW(TableScenario[[#Headers],[Scenario '#]])=1,1,IF(TableScenario[[#This Row],[Row Function]]=Lists!$O$3,DN59+1,DN59)) -> 6 | DO60: =IF(TableScenario[[#This Row],[Scenario '#]]=DN59,IF(TableScenario[[#This Row],[Row Function]]=Lists!$O$5,DO59+1,DO59),0) -> 2 | DP60: =CONCATENATE(TableScenario[[#This Row],[Scenario '#]]," - ",TableScenario[[#This Row],[Forecast Sequence]]) -> 6 - 2
A61: Chemical Sector Process Heating Electrification (Electricity Use) | B61: Forecast | C61: Industrial | D61: MECS | E61: Total Manufacturing | F61: Electricity | G61: Process Heating | H61: Final Electricity | I61: Industrial Macroeconomic (AEOTbl 34) | J61: Industrial Macroeconomic : Manufacturing : Chemical Manufacturing [billion 2009 $] | K61: Energy Prices : Industrial : Electricity [2016 $/MMBtu] | M61: =IF(OR($D61="MECS",$F61=""),"",MATCH($F61,AEO2017RC!$BI:$BI,0)) ->  | N61: =IF($M61="","",OFFSET(AEO2016RC[[#Headers],[2011]],$M61-1,IF($L61>0,$L61-2011,0))) ->  | O61: =IF($J61="","",MATCH($J61,AEO2017RC!$BI:$BI,0)) -> 1403 | P61: =IF(TableScenario[[#This Row],[Energy Prices]]="","",MATCH(K61,AEO2017RC!BI:BI,0)) -> 195 | Q61: =IF($D61="MECS",IF($G61="","",OFFSET(MECS!$D$2,MATCH($E61,ListMECSSector,0),MATCH($F61,MECS!$E$1:$GT$1,0))),"") -> 873.2246112 | R61: =IF($D61="MECS",IF($G61="","",OFFSET(MECS!$D$2,MATCH($E61,ListMECSSector,0),MATCH($F61,MECS!$E$1:$GT$1,0)+2+MATCH($G61,ListMECSEndUse,0))),"") -> 0.1102568821 | S61: =IF(TableScenario[[#This Row],[MECS Sector Energy]]="","",TableScenario[[#This Row],[MECS Sector Energy]]*TableScenario[[#This Row],[MECS End-Use %]]) -> 96.27902304 | T61: =IF($Z61,TableScenario[[#This Row],[Alt_Units]],IF(TableScenario[[#This Row],[MECS End-Use Energy]]="",IF($M61="","",OFFSET(AEO2016RC[[#Headers],[Gunits]],$M61-1,0)),IF(F61="Electricity","TWh","Tbtu"))) -> TWh | U61: 1 | V61: =TableScenario[[#This Row],['#7_Value]] -> 5.517227177 | W61: Linear | X61: 2017 | Y61: 2030 | BR61: Fuel Fired Process Heating efficiency | BS61: 0.33 | BT61: % | BV61: Electricity based Process Heating Efficiency | BW61: 0.95 | BX61: % | BZ61: Electricity to fuel fired process heating conversion factor | CA61: =TableScenario[[#This Row],['#1_Value]]/TableScenario[[#This Row],['#2_Value]] -> 0.3473684211 | CD61: 2030 Chemical Sector Process Heating Fuel Use | CE61: =S60 -> 5217.821967 | CF61: =T60 -> Tbtu | CG61: Calculated intenally to LUP | CH61: New Electricity Demand | CI61: =TableScenario[[#This Row],['#4_Value]]*TableScenario[[#This Row],['#3_Value]]*CONVERT(1,"btu","Wh") -> 531.1932425 | CJ61: TWh | CL61: 2030 Chemical Sector Process Heating Electricity Use | CM61: =TableScenario[[#This Row],[MECS End-Use Energy]] -> 96.27902304 | CN61: =TableScenario[[#This Row],[Data Units]] -> TWh | CO61: Calculated intenally to LUP | CP61: Percent increase | CQ61: =TableScenario[[#This Row],['#5_Value]]/TableScenario[[#This Row],['#6_Value]] -> 5.517227177 | DG61: =TableScenario[[#This Row],['#9_Value]]*TableScenario[[#This Row],['#10_Value]] -> 0 | DN61: =IF(ROW()-ROW(TableScenario[[#Headers],[Scenario '#]])=1,1,IF(TableScenario[[#This Row],[Row Function]]=Lists!$O$3,DN60+1,DN60)) -> 6 | DO61: =IF(TableScenario[[#This Row],[Scenario '#]]=DN60,IF(TableScenario[[#This Row],[Row Function]]=Lists!$O$5,DO60+1,DO60),0) -> 3 | DP61: =CONCATENATE(TableScenario[[#This Row],[Scenario '#]]," - ",TableScenario[[#This Row],[Forecast Sequence]]) -> 6 - 3

Sheet Output Table
C1: Scenario | H1: Energy Units | I1: Grid Primary to Final Energy Ratio | J1: Table Sum from | K1: Table Sum to
B2: User Controls for Table and Graph → | C2: Case Study Example 1: Replace all building lighting with LEDs | H2: Tbtu | I2: Nuc & Ren HR=1 | J2: 2010 | K2: 2050
B4: ="Measure: "&C2& IF(J2=K2," for year "&J2," for years "&J2&" through "&K2) -> Measure: Case Study Example 1: Replace all building lighting with LEDs for years 2010 through 2050
C5: Energy | F5: Energy Expenditures (Mil 2016 $) | I5: CO2 emissions (Mill Mt CO2)
C6: ="Fuels ("&VariableEnergyUnits&")" -> Fuels (Tbtu) | D6: Electricity (TWh) | E6: ="Primary ("&VariableEnergyUnits&")" -> Primary (Tbtu) | F6: Fuels | G6: Electricity | H6: Total | I6: Fuels | J6: Electricity | K6: Total
B7: BAU Industrial | C7: =SUM(OFFSET(Forecast!$CV$2,0,$J$2-2010,1,$K$2-$J$2+1))*10^3*VLOOKUP(VariableEnergyUnits,TableEnergyUnits[],2,FALSE) -> 814494.064 | D7: =SUM(OFFSET(Forecast!$EL$6,0,$J$2-2010,1,$K$2-$J$2+1)) -> 45091.44184 | E7: =SUM(OFFSET(Forecast!$GB$2,0,$J$2-2010,1,$K$2-$J$2+1))*10^3*VLOOKUP(VariableEnergyUnits,TableEnergyUnits[],2,FALSE) -> 1329726.535 | F7: =SUM(OFFSET(Forecast!HS2,0,$J$2-2010,1,$K$2-$J$2+1))*10^3 -> 7306992.809 | G7: =SUM(OFFSET(Forecast!HS6,0,$J$2-2010,1,$K$2-$J$2+1))*10^3 -> 3402152.087 | H7: =SUM(F7:G7) -> 10709144.9 | I7: =SUM(OFFSET(Forecast!JJ2,0,$J$2-2010,1,$K$2-$J$2+1)) -> 44260.4346 | J7: =SUM(OFFSET(Forecast!JJ6,0,$J$2-2010,1,$K$2-$J$2+1)) -> 18766.89963 | K7: =SUM(I7:J7) -> 63027.33423
B8: BAU Commercial | C8: =SUM(OFFSET(Forecast!$CV$3,0,$J$2-2010,1,$K$2-$J$2+1))*10^3*VLOOKUP(VariableEnergyUnits,TableEnergyUnits[],2,FALSE) -> 153739.049 | D8: =SUM(OFFSET(Forecast!$EL$7,0,$J$2-2010,1,$K$2-$J$2+1)) -> 59531.09333 | E8: =SUM(OFFSET(Forecast!$GB$3,0,$J$2-2010,1,$K$2-$J$2+1))*10^3*VLOOKUP(VariableEnergyUnits,TableEnergyUnits[],2,FALSE) -> 741793.591 | F8: =SUM(OFFSET(Forecast!HS3,0,$J$2-2010,1,$K$2-$J$2+1))*10^3 -> 2050388.239 | G8: =SUM(OFFSET(Forecast!HS7,0,$J$2-2010,1,$K$2-$J$2+1))*10^3 -> 6524395.1 | H8: =SUM(F8:G8) -> 8574783.339 | I8: =SUM(OFFSET(Forecast!JJ3,0,$J$2-2010,1,$K$2-$J$2+1)) -> 9570.793638 | J8: =SUM(OFFSET(Forecast!JJ7,0,$J$2-2010,1,$K$2-$J$2+1)) -> 24244.48956 | K8: =SUM(I8:J8) -> 33815.2832
B9: BAU Residential | C9: =SUM(OFFSET(Forecast!$CV$4,0,$J$2-2010,1,$K$2-$J$2+1))*10^3*VLOOKUP(VariableEnergyUnits,TableEnergyUnits[],2,FALSE) -> 243095.196 | D9: =SUM(OFFSET(Forecast!$EL$8,0,$J$2-2010,1,$K$2-$J$2+1)) -> 63442.31227 | E9: =SUM(OFFSET(Forecast!$GB$4,0,$J$2-2010,1,$K$2-$J$2+1))*10^3*VLOOKUP(VariableEnergyUnits,TableEnergyUnits[],2,FALSE) -> 819269.256 | F9: =SUM(OFFSET(Forecast!HS4,0,$J$2-2010,1,$K$2-$J$2+1))*10^3 -> 3098970.393 | G9: =SUM(OFFSET(Forecast!HS8,0,$J$2-2010,1,$K$2-$J$2+1))*10^3 -> 7932541.25 | H9: =SUM(F9:G9) -> 11031511.64 | I9: =SUM(OFFSET(Forecast!JJ4,0,$J$2-2010,1,$K$2-$J$2+1)) -> 12549.87201 | J9: =SUM(OFFSET(Forecast!JJ8,0,$J$2-2010,1,$K$2-$J$2+1)) -> 24705.59235 | K9: =SUM(I9:J9) -> 37255.46436
B10: BAU Transportation | C10: =SUM(OFFSET(Forecast!$CV$5,0,$J$2-2010,1,$K$2-$J$2+1))*10^3*VLOOKUP(VariableEnergyUnits,TableEnergyUnits[],2,FALSE) -> 1089320.363 | D10: =SUM(OFFSET(Forecast!$EL$9,0,$J$2-2010,1,$K$2-$J$2+1)) -> 2507.051852 | E10: =SUM(OFFSET(Forecast!$GB$5,0,$J$2-2010,1,$K$2-$J$2+1))*10^3*VLOOKUP(VariableEnergyUnits,TableEnergyUnits[],2,FALSE) -> 1113294.472 | F10: =SUM(OFFSET(Forecast!HS5,0,$J$2-2010,1,$K$2-$J$2+1))*10^3 -> 29101758.04 | G10: =SUM(OFFSET(Forecast!HS9,0,$J$2-2010,1,$K$2-$J$2+1))*10^3 -> 332952.3359 | H10: =SUM(F10:G10) -> 29434710.38 | I10: =SUM(OFFSET(Forecast!JJ5,0,$J$2-2010,1,$K$2-$J$2+1)) -> 72167.95938 | J10: =SUM(OFFSET(Forecast!JJ9,0,$J$2-2010,1,$K$2-$J$2+1)) -> 949.299656 | K10: =SUM(I10:J10) -> 73117.25904
B11: BAU Total | C11: =SUM(C7:C10) -> 2300648.672 | D11: =SUM(D7:D10) -> 170571.8993 | E11: =SUM(E7:E10) -> 4004083.854 | F11: =SUM(F7:F10) -> 41558109.48 | G11: 18192040.77 | H11: 59750150.25 | I11: 138549.0596 | J11: 68666.2812 | K11: 207215.3408
B12: =IF('Chart Data'!AR2="","",OFFSET(TableForecast[[#Headers],[Description]],ROW()-ROW($B$11),0)) -> LEDs for lighting in all Residential buildings | C12: =IF($B12="","",SUM(OFFSET(TableForecast[[#Headers],[F_2010]],ROW()-ROW($C$11),$J$2-2010,1,$K$2-$J$2+1))*10^3*VLOOKUP(VariableEnergyUnits,TableEnergyUnits[],2,FALSE)) -> 0 | D12: =IF($B12="","",SUM(OFFSET(TableForecast[[#Headers],[E_2010]],ROW()-ROW($D$11),$J$2-2010,1,$K$2-$J$2+1))*CONVERT(1,"BTU","Wh")*10^3) -> -551.3924037 | E12: =IF($B12="","",SUM(OFFSET(TableForecast[[#Headers],[P_2010]],ROW()-ROW($E$11),$J$2-2010,1,$K$2-$J$2+1))*10^3*VLOOKUP(VariableEnergyUnits,TableEnergyUnits[],2,FALSE)) -> -3821.578513 | F12: =IF($B12="","",IF(OFFSET(TableForecast[[#Headers],[Energy Resource]],ROW()-ROW($F$11),0)<>'CO2 Factors'!$A$8,SUM(OFFSET(TableForecast[[#Headers],[$_2010]],ROW()-ROW($F$11),$J$2-2010,1,$K$2-$J$2+1))*10^3,0)) -> -76145.18777 | G12: =IF($B12="","",IF(OFFSET(TableForecast[[#Headers],[Energy Resource]],ROW()-ROW($F$11),0)='CO2 Factors'!$A$8,SUM(OFFSET(TableForecast[[#Headers],[$_2010]],ROW()-ROW($F$11),$J$2-2010,1,$K$2-$J$2+1))*10^3,0)) -> 0 | H12: =IF($B12="","",SUM(F12:G12)) -> -76145.18777 | I12: =IF($B12="","",IF(OFFSET(TableForecast[[#Headers],[Data Units]],ROW()-ROW($F$11),0)<>"Electricity",SUM(OFFSET(TableForecast[[#Headers],[ CO2_2011 ]],ROW()-ROW($F$11),$J$2-2011,1,$K$2-$J$2+1)),0)) -> -276.3383423 | J12: =IF($B12="","",IF(OFFSET(TableForecast[[#Headers],[Data Units]],ROW()-ROW($F$11),0)="Electricity",SUM(OFFSET(TableForecast[[#Headers],[ CO2_2011 ]],ROW()-ROW($F$11),$J$2-2011,1,$K$2-$J$2+1)),0)) -> 0 | K12: =IF($B12="","",SUM(I12:J12)) -> -276.3383423
B13: =IF('Chart Data'!AR3="","",OFFSET(TableForecast[[#Headers],[Description]],ROW()-ROW($B$11),0)) -> LEDs for lighting in all Commercial buildings | C13: =IF($B13="","",SUM(OFFSET(TableForecast[[#Headers],[F_2010]],ROW()-ROW($C$11),$J$2-2010,1,$K$2-$J$2+1))*10^3*VLOOKUP(VariableEnergyUnits,TableEnergyUnits[],2,FALSE)) -> 0 | D13: =IF($B13="","",SUM(OFFSET(TableForecast[[#Headers],[E_2010]],ROW()-ROW($D$11),$J$2-2010,1,$K$2-$J$2+1))*CONVERT(1,"BTU","Wh")*10^3) -> -5509.459667 | E13: =IF($B13="","",SUM(OFFSET(TableForecast[[#Headers],[P_2010]],ROW()-ROW($E$11),$J$2-2010,1,$K$2-$J$2+1))*10^3*VLOOKUP(VariableEnergyUnits,TableEnergyUnits[],2,FALSE)) -> -38156.0356 | F13: =IF($B13="","",IF(OFFSET(TableForecast[[#Headers],[Energy Resource]],ROW()-ROW($F$11),0)<>'CO2 Factors'!$A$8,SUM(OFFSET(TableForecast[[#Headers],[$_2010]],ROW()-ROW($F$11),$J$2-2010,1,$K$2-$J$2+1))*10^3,0)) -> -631451.666 | G13: =IF($B13="","",IF(OFFSET(TableForecast[[#Headers],[Energy Resource]],ROW()-ROW($F$11),0)='CO2 Factors'!$A$8,SUM(OFFSET(TableForecast[[#Headers],[$_2010]],ROW()-ROW($F$11),$J$2-2010,1,$K$2-$J$2+1))*10^3,0)) -> 0 | H13: =IF($B13="","",SUM(F13:G13)) -> -631451.666 | I13: =IF($B13="","",IF(OFFSET(TableForecast[[#Headers],[Data Units]],ROW()-ROW($F$11),0)<>"Electricity",SUM(OFFSET(TableForecast[[#Headers],[ CO2_2011 ]],ROW()-ROW($F$11),$J$2-2011,1,$K$2-$J$2+1)),0)) -> -2759.062934 | J13: =IF($B13="","",IF(OFFSET(TableForecast[[#Headers],[Data Units]],ROW()-ROW($F$11),0)="Electricity",SUM(OFFSET(TableForecast[[#Headers],[ CO2_2011 ]],ROW()-ROW($F$11),$J$2-2011,1,$K$2-$J$2+1)),0)) -> 0 | K13: =IF($B13="","",SUM(I13:J13)) -> -2759.062934
B14: =IF('Chart Data'!AR4="","",OFFSET(TableForecast[[#Headers],[Description]],ROW()-ROW($B$11),0)) -> LEDs for lighting in all Industrial buildings | C14: =IF($B14="","",SUM(OFFSET(TableForecast[[#Headers],[F_2010]],ROW()-ROW($C$11),$J$2-2010,1,$K$2-$J$2+1))*10^3*VLOOKUP(VariableEnergyUnits,TableEnergyUnits[],2,FALSE)) -> 0 | D14: =IF($B14="","",SUM(OFFSET(TableForecast[[#Headers],[E_2010]],ROW()-ROW($D$11),$J$2-2010,1,$K$2-$J$2+1))*CONVERT(1,"BTU","Wh")*10^3) -> -1219.782994 | E14: =IF($B14="","",SUM(OFFSET(TableForecast[[#Headers],[P_2010]],ROW()-ROW($E$11),$J$2-2010,1,$K$2-$J$2+1))*10^3*VLOOKUP(VariableEnergyUnits,TableEnergyUnits[],2,FALSE)) -> -8425.74922 | F14: =IF($B14="","",IF(OFFSET(TableForecast[[#Headers],[Energy Resource]],ROW()-ROW($F$11),0)<>'CO2 Factors'!$A$8,SUM(OFFSET(TableForecast[[#Headers],[$_2010]],ROW()-ROW($F$11),$J$2-2010,1,$K$2-$J$2+1))*10^3,0)) -> -93999.49184 | G14: =IF($B14="","",IF(OFFSET(TableForecast[[#Headers],[Energy Resource]],ROW()-ROW($F$11),0)='CO2 Factors'!$A$8,SUM(OFFSET(TableForecast[[#Headers],[$_2010]],ROW()-ROW($F$11),$J$2-2010,1,$K$2-$J$2+1))*10^3,0)) -> 0 | H14: =IF($B14="","",SUM(F14:G14)) -> -93999.49184 | I14: =IF($B14="","",IF(OFFSET(TableForecast[[#Headers],[Data Units]],ROW()-ROW($F$11),0)<>"Electricity",SUM(OFFSET(TableForecast[[#Headers],[ CO2_2011 ]],ROW()-ROW($F$11),$J$2-2011,1,$K$2-$J$2+1)),0)) -> -609.2659261 | J14: =IF($B14="","",IF(OFFSET(TableForecast[[#Headers],[Data Units]],ROW()-ROW($F$11),0)="Electricity",SUM(OFFSET(TableForecast[[#Headers],[ CO2_2011 ]],ROW()-ROW($F$11),$J$2-2011,1,$K$2-$J$2+1)),0)) -> 0 | K14: -609.2659261
B15: =IF('Chart Data'!AR5="","",OFFSET(TableForecast[[#Headers],[Description]],ROW()-ROW($B$11),0)) -> Electric lamp bulb and part Sector Fuel Impact (NAICS 335110 ) | C15: =IF($B15="","",SUM(OFFSET(TableForecast[[#Headers],[F_2010]],ROW()-ROW($C$11),$J$2-2010,1,$K$2-$J$2+1))*10^3*VLOOKUP(VariableEnergyUnits,TableEnergyUnits[],2,FALSE)) -> -14.4815277 | D15: =IF($B15="","",SUM(OFFSET(TableForecast[[#Headers],[E_2010]],ROW()-ROW($D$11),$J$2-2010,1,$K$2-$J$2+1))*CONVERT(1,"BTU","Wh")*10^3) -> 0 | E15: =IF($B15="","",SUM(OFFSET(TableForecast[[#Headers],[P_2010]],ROW()-ROW($E$11),$J$2-2010,1,$K$2-$J$2+1))*10^3*VLOOKUP(VariableEnergyUnits,TableEnergyUnits[],2,FALSE)) -> -14.4815277 | F15: =IF($B15="","",IF(OFFSET(TableForecast[[#Headers],[Energy Resource]],ROW()-ROW($F$11),0)<>'CO2 Factors'!$A$8,SUM(OFFSET(TableForecast[[#Headers],[$_2010]],ROW()-ROW($F$11),$J$2-2010,1,$K$2-$J$2+1))*10^3,0)) -> -84.89691748 | G15: =IF($B15="","",IF(OFFSET(TableForecast[[#Headers],[Energy Resource]],ROW()-ROW($F$11),0)='CO2 Factors'!$A$8,SUM(OFFSET(TableForecast[[#Headers],[$_2010]],ROW()-ROW($F$11),$J$2-2010,1,$K$2-$J$2+1))*10^3,0)) -> 0 | H15: =IF($B15="","",SUM(F15:G15)) -> -84.89691748 | I15: =IF($B15="","",IF(OFFSET(TableForecast[[#Headers],[Data Units]],ROW()-ROW($F$11),0)<>"Electricity",SUM(OFFSET(TableForecast[[#Headers],[ CO2_2011 ]],ROW()-ROW($F$11),$J$2-2011,1,$K$2-$J$2+1)),0)) -> -1.059323751 | J15: =IF($B15="","",IF(OFFSET(TableForecast[[#Headers],[Data Units]],ROW()-ROW($F$11),0)="Electricity",SUM(OFFSET(TableForecast[[#Headers],[ CO2_2011 ]],ROW()-ROW($F$11),$J$2-2011,1,$K$2-$J$2+1)),0)) -> 0 | K15: -1.059323751
B16: =IF('Chart Data'!AR6="","",OFFSET(TableForecast[[#Headers],[Description]],ROW()-ROW($B$11),0)) -> Electric lamp bulb and part Sector Elec Impact (NAICS 335110 ) | C16: =IF($B16="","",SUM(OFFSET(TableForecast[[#Headers],[F_2010]],ROW()-ROW($C$11),$J$2-2010,1,$K$2-$J$2+1))*10^3*VLOOKUP(VariableEnergyUnits,TableEnergyUnits[],2,FALSE)) -> 0 | D16: =IF($B16="","",SUM(OFFSET(TableForecast[[#Headers],[E_2010]],ROW()-ROW($D$11),$J$2-2010,1,$K$2-$J$2+1))*CONVERT(1,"BTU","Wh")*10^3) -> -4.396931386 | E16: =IF($B16="","",SUM(OFFSET(TableForecast[[#Headers],[P_2010]],ROW()-ROW($E$11),$J$2-2010,1,$K$2-$J$2+1))*10^3*VLOOKUP(VariableEnergyUnits,TableEnergyUnits[],2,FALSE)) -> -30.47415669 | F16: =IF($B16="","",IF(OFFSET(TableForecast[[#Headers],[Energy Resource]],ROW()-ROW($F$11),0)<>'CO2 Factors'!$A$8,SUM(OFFSET(TableForecast[[#Headers],[$_2010]],ROW()-ROW($F$11),$J$2-2010,1,$K$2-$J$2+1))*10^3,0)) -> -338.0014018 | G16: =IF($B16="","",IF(OFFSET(TableForecast[[#Headers],[Energy Resource]],ROW()-ROW($F$11),0)='CO2 Factors'!$A$8,SUM(OFFSET(TableForecast[[#Headers],[$_2010]],ROW()-ROW($F$11),$J$2-2010,1,$K$2-$J$2+1))*10^3,0)) -> 0 | H16: -338.0014018 | I16: =IF($B16="","",IF(OFFSET(TableForecast[[#Headers],[Data Units]],ROW()-ROW($F$11),0)<>"Electricity",SUM(OFFSET(TableForecast[[#Headers],[ CO2_2011 ]],ROW()-ROW($F$11),$J$2-2011,1,$K$2-$J$2+1)),0)) -> -2.203586271 | J16: =IF($B16="","",IF(OFFSET(TableForecast[[#Headers],[Data Units]],ROW()-ROW($F$11),0)="Electricity",SUM(OFFSET(TableForecast[[#Headers],[ CO2_2011 ]],ROW()-ROW($F$11),$J$2-2011,1,$K$2-$J$2+1)),0)) -> 0 | K16: -2.203586271
B17: =IF('Chart Data'!AR7="","",OFFSET(TableForecast[[#Headers],[Description]],ROW()-ROW($B$11),0)) -> Semiconductor Sector Fuel Impact (NAICS 334413) | C17: =IF($B17="","",SUM(OFFSET(TableForecast[[#Headers],[F_2011]],ROW()-ROW($C$11),$J$2-2011,1,$K$2-$J$2+1))*10^3*VLOOKUP(VariableEnergyUnits,TableEnergyUnits[],2,FALSE)) -> 1595.808741 | D17: =IF($B17="","",SUM(OFFSET(TableForecast[[#Headers],[E_2011]],ROW()-ROW($D$11),$J$2-2011,1,$K$2-$J$2+1))*CONVERT(1,"BTU","Wh")*10^3) -> 0 | E17: =IF($B17="","",SUM(OFFSET(TableForecast[[#Headers],[P_2011]],ROW()-ROW($E$11),$J$2-2011,1,$K$2-$J$2+1))*10^3*VLOOKUP(VariableEnergyUnits,TableEnergyUnits[],2,FALSE)) -> 1595.808741 | F17: =IF($B17="","",IF(OFFSET(TableForecast[[#Headers],[Energy Resource]],ROW()-ROW($F$11),0)<>'CO2 Factors'!$A$8,SUM(OFFSET(TableForecast[[#Headers],[$_2011]],ROW()-ROW($F$11),$J$2-2011,1,$K$2-$J$2+1))*10^3,0)) -> 9355.314292 | G17: =IF($B17="","",IF(OFFSET(TableForecast[[#Headers],[Energy Resource]],ROW()-ROW($F$11),0)='CO2 Factors'!$A$8,SUM(OFFSET(TableForecast[[#Headers],[$_2011]],ROW()-ROW($F$11),$J$2-2011,1,$K$2-$J$2+1))*10^3,0)) -> 0 | H17: 9355.314292 | I17: =IF($B17="","",IF(OFFSET(TableForecast[[#Headers],[Data Units]],ROW()-ROW($F$11),0)<>"Electricity",SUM(OFFSET(TableForecast[[#Headers],[ CO2_2011 ]],ROW()-ROW($F$11),$J$2-2011,1,$K$2-$J$2+1)),0)) -> 116.7334094 | J17: =IF($B17="","",IF(OFFSET(TableForecast[[#Headers],[Data Units]],ROW()-ROW($F$11),0)="Electricity",SUM(OFFSET(TableForecast[[#Headers],[ CO2_2011 ]],ROW()-ROW($F$11),$J$2-2011,1,$K$2-$J$2+1)),0)) -> 0 | K17: 116.7334094
B18: =IF('Chart Data'!AR8="","",OFFSET(TableForecast[[#Headers],[Description]],ROW()-ROW($B$11),0)) -> Semiconductor Sector Elec Impact (NAICS 334413) | C18: =IF($B18="","",SUM(OFFSET(TableForecast[[#Headers],[F_2011]],ROW()-ROW($C$11),$J$2-2011,1,$K$2-$J$2+1))*10^3*VLOOKUP(VariableEnergyUnits,TableEnergyUnits[],2,FALSE)) -> 0 | D18: =IF($B18="","",SUM(OFFSET(TableForecast[[#Headers],[E_2011]],ROW()-ROW($D$11),$J$2-2011,1,$K$2-$J$2+1))*CONVERT(1,"BTU","Wh")*10^3) -> 631.8283727 | E18: =IF($B18="","",SUM(OFFSET(TableForecast[[#Headers],[P_2011]],ROW()-ROW($E$11),$J$2-2011,1,$K$2-$J$2+1))*10^3*VLOOKUP(VariableEnergyUnits,TableEnergyUnits[],2,FALSE)) -> 4379.062383 | F18: =IF($B18="","",IF(OFFSET(TableForecast[[#Headers],[Energy Resource]],ROW()-ROW($F$11),0)<>'CO2 Factors'!$A$8,SUM(OFFSET(TableForecast[[#Headers],[$_2011]],ROW()-ROW($F$11),$J$2-2011,1,$K$2-$J$2+1))*10^3,0)) -> 48569.9814 | G18: =IF($B18="","",IF(OFFSET(TableForecast[[#Headers],[Energy Resource]],ROW()-ROW($F$11),0)='CO2 Factors'!$A$8,SUM(OFFSET(TableForecast[[#Headers],[$_2011]],ROW()-ROW($F$11),$J$2-2011,1,$K$2-$J$2+1))*10^3,0)) -> 0 | H18: 48569.9814 | I18: =IF($B18="","",IF(OFFSET(TableForecast[[#Headers],[Data Units]],ROW()-ROW($F$11),0)<>"Electricity",SUM(OFFSET(TableForecast[[#Headers],[ CO2_2011 ]],ROW()-ROW($F$11),$J$2-2011,1,$K$2-$J$2+1)),0)) -> 316.6500009 | J18: =IF($B18="","",IF(OFFSET(TableForecast[[#Headers],[Data Units]],ROW()-ROW($F$11),0)="Electricity",SUM(OFFSET(TableForecast[[#Headers],[ CO2_2011 ]],ROW()-ROW($F$11),$J$2-2011,1,$K$2-$J$2+1)),0)) -> 0 | K18: 316.6500009
B19: =IF('Chart Data'!AR9="","",OFFSET(TableForecast[[#Headers],[Description]],ROW()-ROW($B$11),0)) -> Transportation for building light bulbs | C19: =IF($B19="","",SUM(OFFSET(TableForecast[[#Headers],[F_2011]],ROW()-ROW($C$11),$J$2-2011,1,$K$2-$J$2+1))*10^3*VLOOKUP(VariableEnergyUnits,TableEnergyUnits[],2,FALSE)) -> 282.1191796 | D19: =IF($B19="","",SUM(OFFSET(TableForecast[[#Headers],[E_2011]],ROW()-ROW($D$11),$J$2-2011,1,$K$2-$J$2+1))*CONVERT(1,"BTU","Wh")*10^3) -> 0 | E19: =IF($B19="","",SUM(OFFSET(TableForecast[[#Headers],[P_2011]],ROW()-ROW($E$11),$J$2-2011,1,$K$2-$J$2+1))*10^3*VLOOKUP(VariableEnergyUnits,TableEnergyUnits[],2,FALSE)) -> 282.1191796 | F19: =IF($B19="","",IF(OFFSET(TableForecast[[#Headers],[Energy Resource]],ROW()-ROW($F$11),0)<>'CO2 Factors'!$A$8,SUM(OFFSET(TableForecast[[#Headers],[$_2011]],ROW()-ROW($F$11),$J$2-2011,1,$K$2-$J$2+1))*10^3,0)) -> 7376.78564 | G19: =IF($B19="","",IF(OFFSET(TableForecast[[#Headers],[Energy Resource]],ROW()-ROW($F$11),0)='CO2 Factors'!$A$8,SUM(OFFSET(TableForecast[[#Headers],[$_2011]],ROW()-ROW($F$11),$J$2-2011,1,$K$2-$J$2+1))*10^3,0)) -> 0 | H19: 7376.78564 | I19: =IF($B19="","",IF(OFFSET(TableForecast[[#Headers],[Data Units]],ROW()-ROW($F$11),0)<>"Electricity",SUM(OFFSET(TableForecast[[#Headers],[ CO2_2011 ]],ROW()-ROW($F$11),$J$2-2011,1,$K$2-$J$2+1)),0)) -> 14.96924367 | J19: =IF($B19="","",IF(OFFSET(TableForecast[[#Headers],[Data Units]],ROW()-ROW($F$11),0)="Electricity",SUM(OFFSET(TableForecast[[#Headers],[ CO2_2011 ]],ROW()-ROW($F$11),$J$2-2011,1,$K$2-$J$2+1)),0)) -> 0 | K19: 14.96924367
B20: =IF('Chart Data'!AR10="","",OFFSET(TableForecast[[#Headers],[Description]],ROW()-ROW($B$11),0)) ->  | C20: =IF($B20="","",SUM(OFFSET(TableForecast[[#Headers],[F_2011]],ROW()-ROW($C$11),$J$2-2011,1,$K$2-$J$2+1))*10^3*VLOOKUP(VariableEnergyUnits,TableEnergyUnits[],2,FALSE)) ->  | D20: =IF($B20="","",SUM(OFFSET(TableForecast[[#Headers],[E_2011]],ROW()-ROW($D$11),$J$2-2011,1,$K$2-$J$2+1))*CONVERT(1,"BTU","Wh")*10^3) ->  | E20: =IF($B20="","",SUM(OFFSET(TableForecast[[#Headers],[P_2011]],ROW()-ROW($E$11),$J$2-2011,1,$K$2-$J$2+1))*10^3*VLOOKUP(VariableEnergyUnits,TableEnergyUnits[],2,FALSE)) ->  | F20: =IF($B20="","",IF(OFFSET(TableForecast[[#Headers],[Energy Resource]],ROW()-ROW($F$11),0)<>'CO2 Factors'!$A$8,SUM(OFFSET(TableForecast[[#Headers],[$_2011]],ROW()-ROW($F$11),$J$2-2011,1,$K$2-$J$2+1))*10^3,0)) ->  | G20: =IF($B20="","",IF(OFFSET(TableForecast[[#Headers],[Energy Resource]],ROW()-ROW($F$11),0)='CO2 Factors'!$A$8,SUM(OFFSET(TableForecast[[#Headers],[$_2011]],ROW()-ROW($F$11),$J$2-2011,1,$K$2-$J$2+1))*10^3,0)) ->  | I20: =IF($B20="","",IF(OFFSET(TableForecast[[#Headers],[Data Units]],ROW()-ROW($F$11),0)<>"Electricity",SUM(OFFSET(TableForecast[[#Headers],[ CO2_2011 ]],ROW()-ROW($F$11),$J$2-2011,1,$K$2-$J$2+1)),0)) ->  | J20: =IF($B20="","",IF(OFFSET(TableForecast[[#Headers],[Data Units]],ROW()-ROW($F$11),0)="Electricity",SUM(OFFSET(TableForecast[[#Headers],[ CO2_2011 ]],ROW()-ROW($F$11),$J$2-2011,1,$K$2-$J$2+1)),0)) -> 
B21: =IF('Chart Data'!AR11="","",OFFSET(TableForecast[[#Headers],[Description]],ROW()-ROW($B$11),0)) ->  | C21: =IF($B21="","",SUM(OFFSET(TableForecast[[#Headers],[F_2011]],ROW()-ROW($C$11),$J$2-2011,1,$K$2-$J$2+1))*10^3*VLOOKUP(VariableEnergyUnits,TableEnergyUnits[],2,FALSE)) ->  | D21: =IF($B21="","",SUM(OFFSET(TableForecast[[#Headers],[E_2011]],ROW()-ROW($D$11),$J$2-2011,1,$K$2-$J$2+1))*CONVERT(1,"BTU","Wh")*10^3) ->  | E21: =IF($B21="","",SUM(OFFSET(TableForecast[[#Headers],[P_2011]],ROW()-ROW($E$11),$J$2-2011,1,$K$2-$J$2+1))*10^3*VLOOKUP(VariableEnergyUnits,TableEnergyUnits[],2,FALSE)) ->  | F21: =IF($B21="","",IF(OFFSET(TableForecast[[#Headers],[Energy Resource]],ROW()-ROW($F$11),0)<>'CO2 Factors'!$A$8,SUM(OFFSET(TableForecast[[#Headers],[$_2011]],ROW()-ROW($F$11),$J$2-2011,1,$K$2-$J$2+1))*10^3,0)) ->  | G21: =IF($B21="","",IF(OFFSET(TableForecast[[#Headers],[Energy Resource]],ROW()-ROW($F$11),0)='CO2 Factors'!$A$8,SUM(OFFSET(TableForecast[[#Headers],[$_2011]],ROW()-ROW($F$11),$J$2-2011,1,$K$2-$J$2+1))*10^3,0)) ->  | I21: =IF($B21="","",IF(OFFSET(TableForecast[[#Headers],[Data Units]],ROW()-ROW($F$11),0)<>"Electricity",SUM(OFFSET(TableForecast[[#Headers],[ CO2_2011 ]],ROW()-ROW($F$11),$J$2-2011,1,$K$2-$J$2+1)),0)) ->  | J21: =IF($B21="","",IF(OFFSET(TableForecast[[#Headers],[Data Units]],ROW()-ROW($F$11),0)="Electricity",SUM(OFFSET(TableForecast[[#Headers],[ CO2_2011 ]],ROW()-ROW($F$11),$J$2-2011,1,$K$2-$J$2+1)),0)) -> 
B22: =IF('Chart Data'!AR12="","",OFFSET(TableForecast[[#Headers],[Description]],ROW()-ROW($B$11),0)) ->  | C22: =IF($B22="","",SUM(OFFSET(TableForecast[[#Headers],[F_2011]],ROW()-ROW($C$11),$J$2-2011,1,$K$2-$J$2+1))*10^3*VLOOKUP(VariableEnergyUnits,TableEnergyUnits[],2,FALSE)) ->  | D22: =IF($B22="","",SUM(OFFSET(TableForecast[[#Headers],[E_2011]],ROW()-ROW($D$11),$J$2-2011,1,$K$2-$J$2+1))*CONVERT(1,"BTU","Wh")*10^3) ->  | E22: =IF($B22="","",SUM(OFFSET(TableForecast[[#Headers],[P_2011]],ROW()-ROW($E$11),$J$2-2011,1,$K$2-$J$2+1))*10^3*VLOOKUP(VariableEnergyUnits,TableEnergyUnits[],2,FALSE)) ->  | F22: =IF($B22="","",IF(OFFSET(TableForecast[[#Headers],[Energy Resource]],ROW()-ROW($F$11),0)<>'CO2 Factors'!$A$8,SUM(OFFSET(TableForecast[[#Headers],[$_2011]],ROW()-ROW($F$11),$J$2-2011,1,$K$2-$J$2+1))*10^3,0)) ->  | G22: =IF($B22="","",IF(OFFSET(TableForecast[[#Headers],[Energy Resource]],ROW()-ROW($F$11),0)='CO2 Factors'!$A$8,SUM(OFFSET(TableForecast[[#Headers],[$_2011]],ROW()-ROW($F$11),$J$2-2011,1,$K$2-$J$2+1))*10^3,0)) ->  | I22: =IF($B22="","",IF(OFFSET(TableForecast[[#Headers],[Data Units]],ROW()-ROW($F$11),0)<>"Electricity",SUM(OFFSET(TableForecast[[#Headers],[ CO2_2011 ]],ROW()-ROW($F$11),$J$2-2011,1,$K$2-$J$2+1)),0)) ->  | J22: =IF($B22="","",IF(OFFSET(TableForecast[[#Headers],[Data Units]],ROW()-ROW($F$11),0)="Electricity",SUM(OFFSET(TableForecast[[#Headers],[ CO2_2011 ]],ROW()-ROW($F$11),$J$2-2011,1,$K$2-$J$2+1)),0)) -> 
B23: =IF('Chart Data'!AR13="","",OFFSET(TableForecast[[#Headers],[Description]],ROW()-ROW($B$11),0)) ->  | C23: =IF($B23="","",SUM(OFFSET(TableForecast[[#Headers],[F_2011]],ROW()-ROW($C$11),$J$2-2011,1,$K$2-$J$2+1))*10^3*VLOOKUP(VariableEnergyUnits,TableEnergyUnits[],2,FALSE)) ->  | D23: =IF($B23="","",SUM(OFFSET(TableForecast[[#Headers],[E_2011]],ROW()-ROW($D$11),$J$2-2011,1,$K$2-$J$2+1))*CONVERT(1,"BTU","Wh")*10^3) ->  | E23: =IF($B23="","",SUM(OFFSET(TableForecast[[#Headers],[P_2011]],ROW()-ROW($E$11),$J$2-2011,1,$K$2-$J$2+1))*10^3*VLOOKUP(VariableEnergyUnits,TableEnergyUnits[],2,FALSE)) ->  | F23: =IF($B23="","",IF(OFFSET(TableForecast[[#Headers],[Energy Resource]],ROW()-ROW($F$11),0)<>'CO2 Factors'!$A$8,SUM(OFFSET(TableForecast[[#Headers],[$_2011]],ROW()-ROW($F$11),$J$2-2011,1,$K$2-$J$2+1))*10^3,0)) ->  | G23: =IF($B23="","",IF(OFFSET(TableForecast[[#Headers],[Energy Resource]],ROW()-ROW($F$11),0)='CO2 Factors'!$A$8,SUM(OFFSET(TableForecast[[#Headers],[$_2011]],ROW()-ROW($F$11),$J$2-2011,1,$K$2-$J$2+1))*10^3,0)) ->  | I23: =IF($B23="","",IF(OFFSET(TableForecast[[#Headers],[Data Units]],ROW()-ROW($F$11),0)<>"Electricity",SUM(OFFSET(TableForecast[[#Headers],[ CO2_2011 ]],ROW()-ROW($F$11),$J$2-2011,1,$K$2-$J$2+1)),0)) ->  | J23: =IF($B23="","",IF(OFFSET(TableForecast[[#Headers],[Data Units]],ROW()-ROW($F$11),0)="Electricity",SUM(OFFSET(TableForecast[[#Headers],[ CO2_2011 ]],ROW()-ROW($F$11),$J$2-2011,1,$K$2-$J$2+1)),0)) -> 
B24: =IF('Chart Data'!AR14="","",OFFSET(TableForecast[[#Headers],[Description]],ROW()-ROW($B$11),0)) ->  | C24: =IF($B24="","",SUM(OFFSET(TableForecast[[#Headers],[F_2011]],ROW()-ROW($C$11),$J$2-2011,1,$K$2-$J$2+1))*10^3*VLOOKUP(VariableEnergyUnits,TableEnergyUnits[],2,FALSE)) ->  | D24: =IF($B24="","",SUM(OFFSET(TableForecast[[#Headers],[E_2011]],ROW()-ROW($D$11),$J$2-2011,1,$K$2-$J$2+1))*CONVERT(1,"BTU","Wh")*10^3) ->  | E24: =IF($B24="","",SUM(OFFSET(TableForecast[[#Headers],[P_2011]],ROW()-ROW($E$11),$J$2-2011,1,$K$2-$J$2+1))*10^3*VLOOKUP(VariableEnergyUnits,TableEnergyUnits[],2,FALSE)) ->  | F24: =IF($B24="","",IF(OFFSET(TableForecast[[#Headers],[Energy Resource]],ROW()-ROW($F$11),0)<>'CO2 Factors'!$A$8,SUM(OFFSET(TableForecast[[#Headers],[$_2011]],ROW()-ROW($F$11),$J$2-2011,1,$K$2-$J$2+1))*10^3,0)) ->  | G24: =IF($B24="","",IF(OFFSET(TableForecast[[#Headers],[Energy Resource]],ROW()-ROW($F$11),0)='CO2 Factors'!$A$8,SUM(OFFSET(TableForecast[[#Headers],[$_2011]],ROW()-ROW($F$11),$J$2-2011,1,$K$2-$J$2+1))*10^3,0)) ->  | I24: =IF($B24="","",IF(OFFSET(TableForecast[[#Headers],[Data Units]],ROW()-ROW($F$11),0)<>"Electricity",SUM(OFFSET(TableForecast[[#Headers],[ CO2_2011 ]],ROW()-ROW($F$11),$J$2-2011,1,$K$2-$J$2+1)),0)) ->  | J24: =IF($B24="","",IF(OFFSET(TableForecast[[#Headers],[Data Units]],ROW()-ROW($F$11),0)="Electricity",SUM(OFFSET(TableForecast[[#Headers],[ CO2_2011 ]],ROW()-ROW($F$11),$J$2-2011,1,$K$2-$J$2+1)),0)) -> 
B25: =IF('Chart Data'!AR15="","",OFFSET(TableForecast[[#Headers],[Description]],ROW()-ROW($B$11),0)) ->  | C25: =IF($B25="","",SUM(OFFSET(TableForecast[[#Headers],[F_2011]],ROW()-ROW($C$11),$J$2-2011,1,$K$2-$J$2+1))*10^3*VLOOKUP(VariableEnergyUnits,TableEnergyUnits[],2,FALSE)) ->  | D25: =IF($B25="","",SUM(OFFSET(TableForecast[[#Headers],[E_2011]],ROW()-ROW($D$11),$J$2-2011,1,$K$2-$J$2+1))*CONVERT(1,"BTU","Wh")*10^3) ->  | E25: =IF($B25="","",SUM(OFFSET(TableForecast[[#Headers],[P_2011]],ROW()-ROW($E$11),$J$2-2011,1,$K$2-$J$2+1))*10^3*VLOOKUP(VariableEnergyUnits,TableEnergyUnits[],2,FALSE)) ->  | F25: =IF($B25="","",IF(OFFSET(TableForecast[[#Headers],[Energy Resource]],ROW()-ROW($F$11),0)<>'CO2 Factors'!$A$8,SUM(OFFSET(TableForecast[[#Headers],[$_2011]],ROW()-ROW($F$11),$J$2-2011,1,$K$2-$J$2+1))*10^3,0)) ->  | G25: =IF($B25="","",IF(OFFSET(TableForecast[[#Headers],[Energy Resource]],ROW()-ROW($F$11),0)='CO2 Factors'!$A$8,SUM(OFFSET(TableForecast[[#Headers],[$_2011]],ROW()-ROW($F$11),$J$2-2011,1,$K$2-$J$2+1))*10^3,0)) ->  | I25: =IF($B25="","",IF(OFFSET(TableForecast[[#Headers],[Data Units]],ROW()-ROW($F$11),0)<>"Electricity",SUM(OFFSET(TableForecast[[#Headers],[ CO2_2011 ]],ROW()-ROW($F$11),$J$2-2011,1,$K$2-$J$2+1)),0)) ->  | J25: =IF($B25="","",IF(OFFSET(TableForecast[[#Headers],[Data Units]],ROW()-ROW($F$11),0)="Electricity",SUM(OFFSET(TableForecast[[#Headers],[ CO2_2011 ]],ROW()-ROW($F$11),$J$2-2011,1,$K$2-$J$2+1)),0)) -> 
B26: =IF('Chart Data'!AR16="","",OFFSET(TableForecast[[#Headers],[Description]],ROW()-ROW($B$11),0)) ->  | C26: =IF($B26="","",SUM(OFFSET(TableForecast[[#Headers],[F_2011]],ROW()-ROW($C$11),$J$2-2011,1,$K$2-$J$2+1))*10^3*VLOOKUP(VariableEnergyUnits,TableEnergyUnits[],2,FALSE)) ->  | D26: =IF($B26="","",SUM(OFFSET(TableForecast[[#Headers],[E_2011]],ROW()-ROW($D$11),$J$2-2011,1,$K$2-$J$2+1))*CONVERT(1,"BTU","Wh")*10^3) ->  | E26: =IF($B26="","",SUM(OFFSET(TableForecast[[#Headers],[P_2011]],ROW()-ROW($E$11),$J$2-2011,1,$K$2-$J$2+1))*10^3*VLOOKUP(VariableEnergyUnits,TableEnergyUnits[],2,FALSE)) ->  | F26: =IF($B26="","",IF(OFFSET(TableForecast[[#Headers],[Energy Resource]],ROW()-ROW($F$11),0)<>'CO2 Factors'!$A$8,SUM(OFFSET(TableForecast[[#Headers],[$_2011]],ROW()-ROW($F$11),$J$2-2011,1,$K$2-$J$2+1))*10^3,0)) ->  | G26: =IF($B26="","",IF(OFFSET(TableForecast[[#Headers],[Energy Resource]],ROW()-ROW($F$11),0)='CO2 Factors'!$A$8,SUM(OFFSET(TableForecast[[#Headers],[$_2011]],ROW()-ROW($F$11),$J$2-2011,1,$K$2-$J$2+1))*10^3,0)) ->  | I26: =IF($B26="","",IF(OFFSET(TableForecast[[#Headers],[Data Units]],ROW()-ROW($F$11),0)<>"Electricity",SUM(OFFSET(TableForecast[[#Headers],[ CO2_2011 ]],ROW()-ROW($F$11),$J$2-2011,1,$K$2-$J$2+1)),0)) ->  | J26: =IF($B26="","",IF(OFFSET(TableForecast[[#Headers],[Data Units]],ROW()-ROW($F$11),0)="Electricity",SUM(OFFSET(TableForecast[[#Headers],[ CO2_2011 ]],ROW()-ROW($F$11),$J$2-2011,1,$K$2-$J$2+1)),0)) -> 
B27: =IF('Chart Data'!AR17="","",OFFSET(TableForecast[[#Headers],[Description]],ROW()-ROW($B$11),0)) ->  | C27: =IF($B27="","",SUM(OFFSET(TableForecast[[#Headers],[F_2011]],ROW()-ROW($C$11),$J$2-2011,1,$K$2-$J$2+1))*10^3*VLOOKUP(VariableEnergyUnits,TableEnergyUnits[],2,FALSE)) ->  | D27: =IF($B27="","",SUM(OFFSET(TableForecast[[#Headers],[E_2011]],ROW()-ROW($D$11),$J$2-2011,1,$K$2-$J$2+1))*CONVERT(1,"BTU","Wh")*10^3) ->  | E27: =IF($B27="","",SUM(OFFSET(TableForecast[[#Headers],[P_2011]],ROW()-ROW($E$11),$J$2-2011,1,$K$2-$J$2+1))*10^3*VLOOKUP(VariableEnergyUnits,TableEnergyUnits[],2,FALSE)) ->  | F27: =IF($B27="","",IF(OFFSET(TableForecast[[#Headers],[Energy Resource]],ROW()-ROW($F$11),0)<>'CO2 Factors'!$A$8,SUM(OFFSET(TableForecast[[#Headers],[$_2011]],ROW()-ROW($F$11),$J$2-2011,1,$K$2-$J$2+1))*10^3,0)) ->  | G27: =IF($B27="","",IF(OFFSET(TableForecast[[#Headers],[Energy Resource]],ROW()-ROW($F$11),0)='CO2 Factors'!$A$8,SUM(OFFSET(TableForecast[[#Headers],[$_2011]],ROW()-ROW($F$11),$J$2-2011,1,$K$2-$J$2+1))*10^3,0)) ->  | I27: =IF($B27="","",IF(OFFSET(TableForecast[[#Headers],[Data Units]],ROW()-ROW($F$11),0)<>"Electricity",SUM(OFFSET(TableForecast[[#Headers],[ CO2_2011 ]],ROW()-ROW($F$11),$J$2-2011,1,$K$2-$J$2+1)),0)) ->  | J27: =IF($B27="","",IF(OFFSET(TableForecast[[#Headers],[Data Units]],ROW()-ROW($F$11),0)="Electricity",SUM(OFFSET(TableForecast[[#Headers],[ CO2_2011 ]],ROW()-ROW($F$11),$J$2-2011,1,$K$2-$J$2+1)),0)) -> 
B28: =IF('Chart Data'!AR18="","",OFFSET(TableForecast[[#Headers],[Description]],ROW()-ROW($B$11),0)) ->  | C28: =IF($B28="","",SUM(OFFSET(TableForecast[[#Headers],[F_2011]],ROW()-ROW($C$11),$J$2-2011,1,$K$2-$J$2+1))*10^3*VLOOKUP(VariableEnergyUnits,TableEnergyUnits[],2,FALSE)) ->  | D28: =IF($B28="","",SUM(OFFSET(TableForecast[[#Headers],[E_2011]],ROW()-ROW($D$11),$J$2-2011,1,$K$2-$J$2+1))*CONVERT(1,"BTU","Wh")*10^3) ->  | E28: =IF($B28="","",SUM(OFFSET(TableForecast[[#Headers],[P_2011]],ROW()-ROW($E$11),$J$2-2011,1,$K$2-$J$2+1))*10^3*VLOOKUP(VariableEnergyUnits,TableEnergyUnits[],2,FALSE)) ->  | F28: =IF($B28="","",IF(OFFSET(TableForecast[[#Headers],[Energy Resource]],ROW()-ROW($F$11),0)<>'CO2 Factors'!$A$8,SUM(OFFSET(TableForecast[[#Headers],[$_2011]],ROW()-ROW($F$11),$J$2-2011,1,$K$2-$J$2+1))*10^3,0)) ->  | G28: =IF($B28="","",IF(OFFSET(TableForecast[[#Headers],[Energy Resource]],ROW()-ROW($F$11),0)='CO2 Factors'!$A$8,SUM(OFFSET(TableForecast[[#Headers],[$_2011]],ROW()-ROW($F$11),$J$2-2011,1,$K$2-$J$2+1))*10^3,0)) ->  | I28: =IF($B28="","",IF(OFFSET(TableForecast[[#Headers],[Data Units]],ROW()-ROW($F$11),0)<>"Electricity",SUM(OFFSET(TableForecast[[#Headers],[ CO2_2011 ]],ROW()-ROW($F$11),$J$2-2011,1,$K$2-$J$2+1)),0)) ->  | J28: =IF($B28="","",IF(OFFSET(TableForecast[[#Headers],[Data Units]],ROW()-ROW($F$11),0)="Electricity",SUM(OFFSET(TableForecast[[#Headers],[ CO2_2011 ]],ROW()-ROW($F$11),$J$2-2011,1,$K$2-$J$2+1)),0)) -> 
B29: =IF('Chart Data'!AR19="","",OFFSET(TableForecast[[#Headers],[Description]],ROW()-ROW($B$11),0)) ->  | C29: =IF($B29="","",SUM(OFFSET(TableForecast[[#Headers],[F_2011]],ROW()-ROW($C$11),$J$2-2011,1,$K$2-$J$2+1))*10^3*VLOOKUP(VariableEnergyUnits,TableEnergyUnits[],2,FALSE)) ->  | D29: =IF($B29="","",SUM(OFFSET(TableForecast[[#Headers],[E_2011]],ROW()-ROW($D$11),$J$2-2011,1,$K$2-$J$2+1))*CONVERT(1,"BTU","Wh")*10^3) ->  | E29: =IF($B29="","",SUM(OFFSET(TableForecast[[#Headers],[P_2011]],ROW()-ROW($E$11),$J$2-2011,1,$K$2-$J$2+1))*10^3*VLOOKUP(VariableEnergyUnits,TableEnergyUnits[],2,FALSE)) ->  | F29: =IF($B29="","",IF(OFFSET(TableForecast[[#Headers],[Energy Resource]],ROW()-ROW($F$11),0)<>'CO2 Factors'!$A$8,SUM(OFFSET(TableForecast[[#Headers],[$_2011]],ROW()-ROW($F$11),$J$2-2011,1,$K$2-$J$2+1))*10^3,0)) ->  | G29: =IF($B29="","",IF(OFFSET(TableForecast[[#Headers],[Energy Resource]],ROW()-ROW($F$11),0)='CO2 Factors'!$A$8,SUM(OFFSET(TableForecast[[#Headers],[$_2011]],ROW()-ROW($F$11),$J$2-2011,1,$K$2-$J$2+1))*10^3,0)) ->  | I29: =IF($B29="","",IF(OFFSET(TableForecast[[#Headers],[Data Units]],ROW()-ROW($F$11),0)<>"Electricity",SUM(OFFSET(TableForecast[[#Headers],[ CO2_2011 ]],ROW()-ROW($F$11),$J$2-2011,1,$K$2-$J$2+1)),0)) ->  | J29: =IF($B29="","",IF(OFFSET(TableForecast[[#Headers],[Data Units]],ROW()-ROW($F$11),0)="Electricity",SUM(OFFSET(TableForecast[[#Headers],[ CO2_2011 ]],ROW()-ROW($F$11),$J$2-2011,1,$K$2-$J$2+1)),0)) -> 
B30: =IF('Chart Data'!AR20="","",OFFSET(TableForecast[[#Headers],[Description]],ROW()-ROW($B$11),0)) ->  | C30: =IF($B30="","",SUM(OFFSET(TableForecast[[#Headers],[F_2011]],ROW()-ROW($C$11),$J$2-2011,1,$K$2-$J$2+1))*10^3*VLOOKUP(VariableEnergyUnits,TableEnergyUnits[],2,FALSE)) ->  | D30: =IF($B30="","",SUM(OFFSET(TableForecast[[#Headers],[E_2011]],ROW()-ROW($D$11),$J$2-2011,1,$K$2-$J$2+1))*CONVERT(1,"BTU","Wh")*10^3) ->  | E30: =IF($B30="","",SUM(OFFSET(TableForecast[[#Headers],[P_2011]],ROW()-ROW($E$11),$J$2-2011,1,$K$2-$J$2+1))*10^3*VLOOKUP(VariableEnergyUnits,TableEnergyUnits[],2,FALSE)) ->  | F30: =IF($B30="","",IF(OFFSET(TableForecast[[#Headers],[Energy Resource]],ROW()-ROW($F$11),0)<>'CO2 Factors'!$A$8,SUM(OFFSET(TableForecast[[#Headers],[$_2011]],ROW()-ROW($F$11),$J$2-2011,1,$K$2-$J$2+1))*10^3,0)) ->  | G30: =IF($B30="","",IF(OFFSET(TableForecast[[#Headers],[Energy Resource]],ROW()-ROW($F$11),0)='CO2 Factors'!$A$8,SUM(OFFSET(TableForecast[[#Headers],[$_2011]],ROW()-ROW($F$11),$J$2-2011,1,$K$2-$J$2+1))*10^3,0)) ->  | I30: =IF($B30="","",IF(OFFSET(TableForecast[[#Headers],[Data Units]],ROW()-ROW($F$11),0)<>"Electricity",SUM(OFFSET(TableForecast[[#Headers],[ CO2_2011 ]],ROW()-ROW($F$11),$J$2-2011,1,$K$2-$J$2+1)),0)) ->  | J30: =IF($B30="","",IF(OFFSET(TableForecast[[#Headers],[Data Units]],ROW()-ROW($F$11),0)="Electricity",SUM(OFFSET(TableForecast[[#Headers],[ CO2_2011 ]],ROW()-ROW($F$11),$J$2-2011,1,$K$2-$J$2+1)),0)) -> 
B31: =IF('Chart Data'!AR21="","",OFFSET(TableForecast[[#Headers],[Description]],ROW()-ROW($B$11),0)) ->  | C31: =IF($B31="","",SUM(OFFSET(TableForecast[[#Headers],[F_2011]],ROW()-ROW($C$11),$J$2-2011,1,$K$2-$J$2+1))*10^3*VLOOKUP(VariableEnergyUnits,TableEnergyUnits[],2,FALSE)) ->  | D31: =IF($B31="","",SUM(OFFSET(TableForecast[[#Headers],[E_2011]],ROW()-ROW($D$11),$J$2-2011,1,$K$2-$J$2+1))*CONVERT(1,"BTU","Wh")*10^3) ->  | E31: =IF($B31="","",SUM(OFFSET(TableForecast[[#Headers],[P_2011]],ROW()-ROW($E$11),$J$2-2011,1,$K$2-$J$2+1))*10^3*VLOOKUP(VariableEnergyUnits,TableEnergyUnits[],2,FALSE)) ->  | F31: =IF($B31="","",IF(OFFSET(TableForecast[[#Headers],[Energy Resource]],ROW()-ROW($F$11),0)<>'CO2 Factors'!$A$8,SUM(OFFSET(TableForecast[[#Headers],[$_2011]],ROW()-ROW($F$11),$J$2-2011,1,$K$2-$J$2+1))*10^3,0)) ->  | G31: =IF($B31="","",IF(OFFSET(TableForecast[[#Headers],[Energy Resource]],ROW()-ROW($F$11),0)='CO2 Factors'!$A$8,SUM(OFFSET(TableForecast[[#Headers],[$_2011]],ROW()-ROW($F$11),$J$2-2011,1,$K$2-$J$2+1))*10^3,0)) ->  | I31: =IF($B31="","",IF(OFFSET(TableForecast[[#Headers],[Data Units]],ROW()-ROW($F$11),0)<>"Electricity",SUM(OFFSET(TableForecast[[#Headers],[ CO2_2011 ]],ROW()-ROW($F$11),$J$2-2011,1,$K$2-$J$2+1)),0)) ->  | J31: =IF($B31="","",IF(OFFSET(TableForecast[[#Headers],[Data Units]],ROW()-ROW($F$11),0)="Electricity",SUM(OFFSET(TableForecast[[#Headers],[ CO2_2011 ]],ROW()-ROW($F$11),$J$2-2011,1,$K$2-$J$2+1)),0)) -> 
B32: Industrial Measure Totals | C32: =SUM(OFFSET(Forecast!$CW10,0,$J$2-2010,1,$K$2-$J$2+1))*10^3*VLOOKUP(VariableEnergyUnits,TableEnergyUnits[],2,FALSE) -> 1581.327213 | D32: =SUM(OFFSET(Forecast!$EM10,0,$J$2-2010,1,$K$2-$J$2+1))*CONVERT(1,"BTU","Wh")*10^3 -> -592.3515531 | E32: =SUM(OFFSET(Forecast!$GC10,0,$J$2-2010,1,$K$2-$J$2+1))*10^3*VLOOKUP(VariableEnergyUnits,TableEnergyUnits[],2,FALSE) -> -2495.833781 | F32: =SUMIF(TableForecast[Sector],"=Industrial",F12:F31) -> -36497.09447 | G32: =SUMIF(TableForecast[Sector],"=Industrial",G12:G31) -> 0 | H32: =SUM(F32:G32) -> -36497.09447 | I32: =SUMIF(TableForecast[Sector],"=Industrial",I12:I31) -> -179.1454258 | J32: =SUMIF(TableForecast[Sector],"=Industrial",J12:J31) -> 0 | K32: =SUM(I32:J32) -> -179.1454258
B33: Commercial Measure Totals | C33: =SUM(OFFSET(Forecast!$CW11,0,$J$2-2010,1,$K$2-$J$2+1))*10^3*VLOOKUP(VariableEnergyUnits,TableEnergyUnits[],2,FALSE) -> 0 | D33: =SUM(OFFSET(Forecast!$EM11,0,$J$2-2010,1,$K$2-$J$2+1))*CONVERT(1,"BTU","Wh")*10^3 -> -5509.459667 | E33: =SUM(OFFSET(Forecast!$GC11,0,$J$2-2010,1,$K$2-$J$2+1))*10^3*VLOOKUP(VariableEnergyUnits,TableEnergyUnits[],2,FALSE) -> -38156.0356 | F33: =SUMIF(TableForecast[Sector],"=Commercial",F12:F31) -> -631451.666 | G33: =SUMIF(TableForecast[Sector],"=Commercial",G12:G31) -> 0 | H33: =SUM(F33:G33) -> -631451.666 | I33: =SUMIF(TableForecast[Sector],"=Commercial",I12:I31) -> -2759.062934 | J33: =SUMIF(TableForecast[Sector],"=Commercial",J12:J31) -> 0 | K33: =SUM(I33:J33) -> -2759.062934
B34: Residential Measure Totals | C34: =SUM(OFFSET(Forecast!$CW12,0,$J$2-2010,1,$K$2-$J$2+1))*10^3*VLOOKUP(VariableEnergyUnits,TableEnergyUnits[],2,FALSE) -> 0 | D34: =SUM(OFFSET(Forecast!$EM12,0,$J$2-2010,1,$K$2-$J$2+1))*CONVERT(1,"BTU","Wh")*10^3 -> -551.3924037 | E34: =SUM(OFFSET(Forecast!$GC12,0,$J$2-2010,1,$K$2-$J$2+1))*10^3*VLOOKUP(VariableEnergyUnits,TableEnergyUnits[],2,FALSE) -> -3821.578513 | F34: =SUMIF(TableForecast[Sector],"=Residential",F12:F31) -> -76145.18777 | G34: =SUMIF(TableForecast[Sector],"=Residential",G12:G31) -> 0 | H34: =SUM(F34:G34) -> -76145.18777 | I34: =SUMIF(TableForecast[Sector],"=Residential",I12:I31) -> -276.3383423 | J34: =SUMIF(TableForecast[Sector],"=Residential",J12:J31) -> 0 | K34: =SUM(I34:J34) -> -276.3383423
B35: Transportation Measure Totals | C35: =SUM(OFFSET(Forecast!$CW13,0,$J$2-2010,1,$K$2-$J$2+1))*10^3*VLOOKUP(VariableEnergyUnits,TableEnergyUnits[],2,FALSE) -> 282.1191796 | D35: =SUM(OFFSET(Forecast!$EM13,0,$J$2-2010,1,$K$2-$J$2+1))*CONVERT(1,"BTU","Wh")*10^3 -> 0 | E35: =SUM(OFFSET(Forecast!$GC13,0,$J$2-2010,1,$K$2-$J$2+1))*10^3*VLOOKUP(VariableEnergyUnits,TableEnergyUnits[],2,FALSE) -> 282.1191796 | F35: =SUMIF(TableForecast[Sector],"=Transportation",F12:F31) -> 7376.78564 | G35: =SUMIF(TableForecast[Sector],"=Transportation",G12:G31) -> 0 | H35: =SUM(F35:G35) -> 7376.78564 | I35: =SUMIF(TableForecast[Sector],"=Transportation",I12:I31) -> 14.96924367 | J35: =SUMIF(TableForecast[Sector],"=Transportation",J12:J31) -> 0 | K35: =SUM(I35:J35) -> 14.96924367
B36: Total from all sectors | C36: =SUM(OFFSET(Forecast!$CW14,0,$J$2-2010,1,$K$2-$J$2+1))*10^3*VLOOKUP(VariableEnergyUnits,TableEnergyUnits[],2,FALSE) -> 1863.446393 | D36: =SUM(OFFSET(Forecast!$EM14,0,$J$2-2010,1,$K$2-$J$2+1))*CONVERT(1,"BTU","Wh")*10^3 -> -6653.203623 | E36: =SUM(OFFSET(Forecast!$GC14,0,$J$2-2010,1,$K$2-$J$2+1))*10^3*VLOOKUP(VariableEnergyUnits,TableEnergyUnits[],2,FALSE) -> -44191.32871 | F36: =SUM(F32:F35) -> -736717.1626 | G36: =SUM(G32:G35) -> 0 | H36: =SUM(F36:G36) -> -736717.1626 | I36: =SUM(I32:I35) -> -3199.577459 | J36: =SUM(J32:J35) -> 0 | K36: =SUM(I36:J36) -> -3199.577459
B37: Economy Wide Total | C37: =C11+C36 -> 2302512.118 | D37: 163918.6957 | E37: 3959892.525 | F37: 40821392.32 | G37: 18192040.77 | H37: 59013433.09 | I37: 135349.4822 | J37: 68666.2812 | K37: 204015.7634

Sheet Forecast
A1: ="Measure: "&'Output Table'!C2 -> Measure: Case Study Example 1: Replace all building lighting with LEDs | F1: 2010 | G1: 2011 | H1: =G1+1 -> 2012 | I1: 2013 | J1: 2014 | K1: 2015 | L1: 2016 | M1: 2017 | N1: 2018 | O1: 2019 | P1: 2020 | Q1: 2021 | R1: 2022 | S1: 2023 | T1: 2024 | U1: 2025 | V1: 2026 | W1: 2027 | X1: 2028 | Y1: 2029 | Z1: 2030 | AA1: 2031 | AB1: 2032 | AC1: 2033 | AD1: 2034 | AE1: 2035 | AF1: 2036 | AG1: 2037 | AH1: 2038 | AI1: 2039 | AJ1: 2040 | AK1: 2041 | AL1: 2042 | AM1: 2043 | AN1: 2044 | AO1: 2045 | AP1: 2046 | AQ1: 2047 | AR1: 2048 | AS1: 2049 | AT1: 2050 | AX1: 2010 | AY1: 2011 | AZ1: =AY1+1 -> 2012 | BA1: 2013 | BB1: 2014 | BC1: 2015 | BD1: 2016 | BE1: 2017 | BF1: 2018 | BG1: 2019 | BH1: 2020 | BI1: 2021 | BJ1: 2022 | BK1: 2023 | BL1: 2024 | BM1: 2025 | BN1: 2026 | BO1: 2027 | BP1: 2028 | BQ1: 2029 | BR1: 2030 | BS1: 2031 | BT1: 2032 | BU1: 2033 | BV1: 2034 | BW1: 2035 | BX1: 2036 | BY1: 2037 | BZ1: 2038 | CA1: 2039 | CB1: 2040 | CC1: 2041 | CD1: 2042 | CE1: 2043 | CF1: 2044 | CG1: 2045 | CH1: 2046 | CI1: 2047 | CJ1: 2048 | CK1: 2049 | CL1: 2050 | CU1: Final Fuels (Quad Btus) | CV1: 2010 | CW1: 2011 | CX1: =CW1+1 -> 2012 | CY1: 2013 | CZ1: 2014 | DA1: 2015 | DB1: 2016 | DC1: 2017 | DD1: 2018 | DE1: 2019 | DF1: 2020 | DG1: 2021 | DH1: 2022 | DI1: 2023 | DJ1: 2024 | DK1: 2025 | DL1: 2026 | DM1: 2027 | DN1: 2028 | DO1: 2029 | DP1: 2030 | DQ1: 2031 | DR1: 2032 | DS1: 2033 | DT1: 2034 | DU1: 2035 | DV1: 2036 | DW1: 2037 | DX1: 2038 | DY1: 2039 | DZ1: 2040 | EA1: 2041 | EB1: 2042 | EC1: 2043 | ED1: 2044 | EE1: 2045 | EF1: 2046 | EG1: 2047 | EH1: 2048 | EI1: 2049 | EJ1: 2050 | EK1: End-Use Electricity | EL1: 2010 | EM1: =CW1 -> 2011 | EN1: 2012 | EO1: 2013 | EP1: 2014 | EQ1: 2015 | ER1: 2016 | ES1: 2017 | ET1: 2018 | EU1: 2019 | EV1: 2020 | EW1: 2021 | EX1: 2022 | EY1: 2023 | EZ1: 2024 | FA1: 2025 | FB1: 2026 | FC1: 2027 | FD1: 2028 | FE1: 2029 | FF1: 2030 | FG1: 2031 | FH1: 2032 | FI1: 2033 | FJ1: 2034 | FK1: 2035 | FL1: 2036 | FM1: 2037 | FN1: 2038 | FO1: 2039 | FP1: 2040 | FQ1: 2041 | FR1: 2042 | FS1: 2043 | FT1: 2044 | FU1: 2045 | FV1: 2046 | FW1: 2047 | FX1: 2048 | FY1: 2049 | FZ1: 2050 | GA1: Primary Energy (Quad Btus) | GB1: 2010 | GC1: =CW1 -> 2011 | GD1: 2012 | GE1: 2013 | GF1: 2014 | GG1: 2015 | GH1: 2016 | GI1: 2017 | GJ1: 2018 | GK1: 2019 | GL1: 2020 | GM1: 2021 | GN1: 2022 | GO1: 2023 | GP1: 2024 | GQ1: 2025 | GR1: 2026 | GS1: 2027 | GT1: 2028 | GU1: 2029 | GV1: 2030 | GW1: 2031 | GX1: 2032 | GY1: 2033 | GZ1: 2034 | HA1: 2035 | HB1: 2036 | HC1: 2037 | HD1: 2038 | HE1: 2039 | HF1: 2040 | HG1: 2041 | HH1: 2042 | HI1: 2043 | HJ1: 2044 | HK1: 2045 | HL1: 2046 | HM1: 2047 | HN1: 2048 | HO1: 2049 | HP1: 2050 | HR1: Energy Expenditures (Bil 2013 $) | HS1: 2010 | HT1: =EM1 -> 2011 | HU1: 2012 | HV1: 2013 | HW1: 2014 | HX1: 2015 | HY1: 2016 | HZ1: 2017 | IA1: 2018 | IB1: 2019 | IC1: 2020 | ID1: 2021 | IE1: 2022 | IF1: 2023 | IG1: 2024 | IH1: 2025 | II1: 2026 | IJ1: 2027 | IK1: 2028 | IL1: 2029 | IM1: 2030 | IN1: 2031 | IO1: 2032 | IP1: 2033 | IQ1: 2034 | IR1: 2035 | IS1: 2036 | IT1: 2037 | IU1: 2038 | IV1: 2039 | IW1: 2040 | IX1: 2041 | IY1: 2042 | IZ1: 2043 | JA1: 2044 | JB1: 2045 | JC1: 2046 | JD1: 2047 | JE1: 2048 | JF1: 2049 | JG1: 2050 | JI1: CO2 Emission (Mill MtCO2) | JJ1: 2010 | JK1: =GC1 -> 2011 | JL1: 2012 | JM1: 2013 | JN1: 2014 | JO1: 2015 | JP1: 2016 | JQ1: 2017 | JR1: 2018 | JS1: 2019 | JT1: 2020 | JU1: 2021 | JV1: 2022 | JW1: 2023 | JX1: 2024 | JY1: 2025 | JZ1: 2026 | KA1: 2027 | KB1: 2028 | KC1: 2029 | KD1: 2030 | KE1: 2031 | KF1: 2032 | KG1: 2033 | KH1: 2034 | KI1: 2035 | KJ1: 2036 | KK1: 2037 | KL1: 2038 | KM1: 2039 | KN1: 2040 | KO1: 2041 | KP1: 2042 | KQ1: 2043 | KR1: 2044 | KS1: 2045 | KT1: 2046 | KU1: 2047 | KV1: 2048 | KW1: 2049 | KX1: 2050
A2: BAU Industrial Sums → | CU2: ='Energy Factors'!B44 -> Industrial Delivered Fuels (Excluing Feedstocks) → | CV2: =OFFSET(TableEnergyFactors[[#Headers],[2010]],MATCH($CU2,TableEnergyFactors[[AEO Table Variable]:[AEO Table Variable]],0),0) -> 16.51346 | CW2: =OFFSET(TableEnergyFactors[[#Headers],[2011]],MATCH($CU2,TableEnergyFactors[[AEO Table Variable]:[AEO Table Variable]],0),0) -> 16.548844 | CX2: =OFFSET(TableEnergyFactors[[#Headers],[2012]],MATCH($CU2,TableEnergyFactors[[AEO Table Variable]:[AEO Table Variable]],0),0) -> 16.968217 | CY2: =OFFSET(TableEnergyFactors[[#Headers],[2013]],MATCH($CU2,TableEnergyFactors[[AEO Table Variable]:[AEO Table Variable]],0),0) -> 17.535733 | CZ2: =OFFSET(TableEnergyFactors[[#Headers],[2014]],MATCH($CU2,TableEnergyFactors[[AEO Table Variable]:[AEO Table Variable]],0),0) -> 17.868898 | DA2: =OFFSET(TableEnergyFactors[[#Headers],[2015]],MATCH($CU2,TableEnergyFactors[[AEO Table Variable]:[AEO Table Variable]],0),0) -> 17.691201 | DB2: =OFFSET(TableEnergyFactors[[#Headers],[2016]],MATCH($CU2,TableEnergyFactors[[AEO Table Variable]:[AEO Table Variable]],0),0) -> 17.695819 | DC2: =OFFSET(TableEnergyFactors[[#Headers],[2017]],MATCH($CU2,TableEnergyFactors[[AEO Table Variable]:[AEO Table Variable]],0),0) -> 17.771869 | DD2: =OFFSET(TableEnergyFactors[[#Headers],[2018]],MATCH($CU2,TableEnergyFactors[[AEO Table Variable]:[AEO Table Variable]],0),0) -> 18.418616 | DE2: =OFFSET(TableEnergyFactors[[#Headers],[2019]],MATCH($CU2,TableEnergyFactors[[AEO Table Variable]:[AEO Table Variable]],0),0) -> 18.747361 | DF2: =OFFSET(TableEnergyFactors[[#Headers],[2020]],MATCH($CU2,TableEnergyFactors[[AEO Table Variable]:[AEO Table Variable]],0),0) -> 18.912896 | DG2: =OFFSET(TableEnergyFactors[[#Headers],[2021]],MATCH($CU2,TableEnergyFactors[[AEO Table Variable]:[AEO Table Variable]],0),0) -> 19.157889 | DH2: =OFFSET(TableEnergyFactors[[#Headers],[2022]],MATCH($CU2,TableEnergyFactors[[AEO Table Variable]:[AEO Table Variable]],0),0) -> 19.43238 | DI2: =OFFSET(TableEnergyFactors[[#Headers],[2023]],MATCH($CU2,TableEnergyFactors[[AEO Table Variable]:[AEO Table Variable]],0),0) -> 19.68156 | DJ2: =OFFSET(TableEnergyFactors[[#Headers],[2024]],MATCH($CU2,TableEnergyFactors[[AEO Table Variable]:[AEO Table Variable]],0),0) -> 19.832302 | DK2: =OFFSET(TableEnergyFactors[[#Headers],[2025]],MATCH($CU2,TableEnergyFactors[[AEO Table Variable]:[AEO Table Variable]],0),0) -> 19.906504 | DL2: =OFFSET(TableEnergyFactors[[#Headers],[2026]],MATCH($CU2,TableEnergyFactors[[AEO Table Variable]:[AEO Table Variable]],0),0) -> 19.974626 | DM2: =OFFSET(TableEnergyFactors[[#Headers],[2027]],MATCH($CU2,TableEnergyFactors[[AEO Table Variable]:[AEO Table Variable]],0),0) -> 19.876822 | DN2: =OFFSET(TableEnergyFactors[[#Headers],[2028]],MATCH($CU2,TableEnergyFactors[[AEO Table Variable]:[AEO Table Variable]],0),0) -> 19.894579 | DO2: =OFFSET(TableEnergyFactors[[#Headers],[2029]],MATCH($CU2,TableEnergyFactors[[AEO Table Variable]:[AEO Table Variable]],0),0) -> 19.931765 | DP2: =OFFSET(TableEnergyFactors[[#Headers],[2030]],MATCH($CU2,TableEnergyFactors[[AEO Table Variable]:[AEO Table Variable]],0),0) -> 19.994242 | DQ2: =OFFSET(TableEnergyFactors[[#Headers],[2031]],MATCH($CU2,TableEnergyFactors[[AEO Table Variable]:[AEO Table Variable]],0),0) -> 20.00722 | DR2: =OFFSET(TableEnergyFactors[[#Headers],[2032]],MATCH($CU2,TableEnergyFactors[[AEO Table Variable]:[AEO Table Variable]],0),0) -> 20.070764 | DS2: =OFFSET(TableEnergyFactors[[#Headers],[2033]],MATCH($CU2,TableEnergyFactors[[AEO Table Variable]:[AEO Table Variable]],0),0) -> 20.147569 | DT2: =OFFSET(TableEnergyFactors[[#Headers],[2034]],MATCH($CU2,TableEnergyFactors[[AEO Table Variable]:[AEO Table Variable]],0),0) -> 20.278649 | DU2: =OFFSET(TableEnergyFactors[[#Headers],[2035]],MATCH($CU2,TableEnergyFactors[[AEO Table Variable]:[AEO Table Variable]],0),0) -> 20.397587 | DV2: =OFFSET(TableEnergyFactors[[#Headers],[2036]],MATCH($CU2,TableEnergyFactors[[AEO Table Variable]:[AEO Table Variable]],0),0) -> 20.535335 | DW2: =OFFSET(TableEnergyFactors[[#Headers],[2037]],MATCH($CU2,TableEnergyFactors[[AEO Table Variable]:[AEO Table Variable]],0),0) -> 20.66436 | DX2: =OFFSET(TableEnergyFactors[[#Headers],[2038]],MATCH($CU2,TableEnergyFactors[[AEO Table Variable]:[AEO Table Variable]],0),0) -> 20.780391 | DY2: =OFFSET(TableEnergyFactors[[#Headers],[2039]],MATCH($CU2,TableEnergyFactors[[AEO Table Variable]:[AEO Table Variable]],0),0) -> 20.938693 | DZ2: =OFFSET(TableEnergyFactors[[#Headers],[2040]],MATCH($CU2,TableEnergyFactors[[AEO Table Variable]:[AEO Table Variable]],0),0) -> 21.054333 | EA2: =OFFSET(TableEnergyFactors[[#Headers],[2041]],MATCH($CU2,TableEnergyFactors[[AEO Table Variable]:[AEO Table Variable]],0),0) -> 21.152529 | EB2: =OFFSET(TableEnergyFactors[[#Headers],[2042]],MATCH($CU2,TableEnergyFactors[[AEO Table Variable]:[AEO Table Variable]],0),0) -> 21.254575 | EC2: =OFFSET(TableEnergyFactors[[#Headers],[2043]],MATCH($CU2,TableEnergyFactors[[AEO Table Variable]:[AEO Table Variable]],0),0) -> 21.366233 | ED2: =OFFSET(TableEnergyFactors[[#Headers],[2044]],MATCH($CU2,TableEnergyFactors[[AEO Table Variable]:[AEO Table Variable]],0),0) -> 21.514163 | EE2: =OFFSET(TableEnergyFactors[[#Headers],[2045]],MATCH($CU2,TableEnergyFactors[[AEO Table Variable]:[AEO Table Variable]],0),0) -> 21.655623 | EF2: =OFFSET(TableEnergyFactors[[#Headers],[2046]],MATCH($CU2,TableEnergyFactors[[AEO Table Variable]:[AEO Table Variable]],0),0) -> 21.80097 | EG2: =OFFSET(TableEnergyFactors[[#Headers],[2047]],MATCH($CU2,TableEnergyFactors[[AEO Table Variable]:[AEO Table Variable]],0),0) -> 21.929787 | EH2: =OFFSET(TableEnergyFactors[[#Headers],[2048]],MATCH($CU2,TableEnergyFactors[[AEO Table Variable]:[AEO Table Variable]],0),0) -> 22.036168 | EI2: =OFFSET(TableEnergyFactors[[#Headers],[2049]],MATCH($CU2,TableEnergyFactors[[AEO Table Variable]:[AEO Table Variable]],0),0) -> 22.189863 | EJ2: =OFFSET(TableEnergyFactors[[#Headers],[2050]],MATCH($CU2,TableEnergyFactors[[AEO Table Variable]:[AEO Table Variable]],0),0) -> 22.363669 | EK2: ='Energy Factors'!B48 -> Industrial Delivered Electricity (Quad Btus) → | EL2: =OFFSET(TableEnergyFactors[[#Headers],[2010]],MATCH($EK2,TableEnergyFactors[[AEO Table Variable]:[AEO Table Variable]],0),0) -> 3.3126 | EM2: =OFFSET(TableEnergyFactors[[#Headers],[2011]],MATCH($EK2,TableEnergyFactors[[AEO Table Variable]:[AEO Table Variable]],0),0) -> 3.38238 | EN2: =OFFSET(TableEnergyFactors[[#Headers],[2012]],MATCH($EK2,TableEnergyFactors[[AEO Table Variable]:[AEO Table Variable]],0),0) -> 3.36482 | EO2: =OFFSET(TableEnergyFactors[[#Headers],[2013]],MATCH($EK2,TableEnergyFactors[[AEO Table Variable]:[AEO Table Variable]],0),0) -> 3.2575 | EP2: =OFFSET(TableEnergyFactors[[#Headers],[2014]],MATCH($EK2,TableEnergyFactors[[AEO Table Variable]:[AEO Table Variable]],0),0) -> 3.272101 | EQ2: =OFFSET(TableEnergyFactors[[#Headers],[2015]],MATCH($EK2,TableEnergyFactors[[AEO Table Variable]:[AEO Table Variable]],0),0) -> 3.270601 | ER2: =OFFSET(TableEnergyFactors[[#Headers],[2016]],MATCH($EK2,TableEnergyFactors[[AEO Table Variable]:[AEO Table Variable]],0),0) -> 3.228101 | ES2: =OFFSET(TableEnergyFactors[[#Headers],[2017]],MATCH($EK2,TableEnergyFactors[[AEO Table Variable]:[AEO Table Variable]],0),0) -> 3.271701 | ET2: =OFFSET(TableEnergyFactors[[#Headers],[2018]],MATCH($EK2,TableEnergyFactors[[AEO Table Variable]:[AEO Table Variable]],0),0) -> 3.378345 | EU2: =OFFSET(TableEnergyFactors[[#Headers],[2019]],MATCH($EK2,TableEnergyFactors[[AEO Table Variable]:[AEO Table Variable]],0),0) -> 3.475686 | EV2: =OFFSET(TableEnergyFactors[[#Headers],[2020]],MATCH($EK2,TableEnergyFactors[[AEO Table Variable]:[AEO Table Variable]],0),0) -> 3.534328 | EW2: =OFFSET(TableEnergyFactors[[#Headers],[2021]],MATCH($EK2,TableEnergyFactors[[AEO Table Variable]:[AEO Table Variable]],0),0) -> 3.608845 | EX2: =OFFSET(TableEnergyFactors[[#Headers],[2022]],MATCH($EK2,TableEnergyFactors[[AEO Table Variable]:[AEO Table Variable]],0),0) -> 3.680559 | EY2: =OFFSET(TableEnergyFactors[[#Headers],[2023]],MATCH($EK2,TableEnergyFactors[[AEO Table Variable]:[AEO Table Variable]],0),0) -> 3.74741 | EZ2: =OFFSET(TableEnergyFactors[[#Headers],[2024]],MATCH($EK2,TableEnergyFactors[[AEO Table Variable]:[AEO Table Variable]],0),0) -> 3.788575 | FA2: =OFFSET(TableEnergyFactors[[#Headers],[2025]],MATCH($EK2,TableEnergyFactors[[AEO Table Variable]:[AEO Table Variable]],0),0) -> 3.797506 | FB2: =OFFSET(TableEnergyFactors[[#Headers],[2026]],MATCH($EK2,TableEnergyFactors[[AEO Table Variable]:[AEO Table Variable]],0),0) -> 3.796879 | FC2: =OFFSET(TableEnergyFactors[[#Headers],[2027]],MATCH($EK2,TableEnergyFactors[[AEO Table Variable]:[AEO Table Variable]],0),0) -> 3.799236 | FD2: =OFFSET(TableEnergyFactors[[#Headers],[2028]],MATCH($EK2,TableEnergyFactors[[AEO Table Variable]:[AEO Table Variable]],0),0) -> 3.787391 | FE2: =OFFSET(TableEnergyFactors[[#Headers],[2029]],MATCH($EK2,TableEnergyFactors[[AEO Table Variable]:[AEO Table Variable]],0),0) -> 3.783427 | FF2: =OFFSET(TableEnergyFactors[[#Headers],[2030]],MATCH($EK2,TableEnergyFactors[[AEO Table Variable]:[AEO Table Variable]],0),0) -> 3.778486 | FG2: =OFFSET(TableEnergyFactors[[#Headers],[2031]],MATCH($EK2,TableEnergyFactors[[AEO Table Variable]:[AEO Table Variable]],0),0) -> 3.77452 | FH2: =OFFSET(TableEnergyFactors[[#Headers],[2032]],MATCH($EK2,TableEnergyFactors[[AEO Table Variable]:[AEO Table Variable]],0),0) -> 3.777025 | FI2: =OFFSET(TableEnergyFactors[[#Headers],[2033]],MATCH($EK2,TableEnergyFactors[[AEO Table Variable]:[AEO Table Variable]],0),0) -> 3.792595 | FJ2: =OFFSET(TableEnergyFactors[[#Headers],[2034]],MATCH($EK2,TableEnergyFactors[[AEO Table Variable]:[AEO Table Variable]],0),0) -> 3.819535 | FK2: =OFFSET(TableEnergyFactors[[#Headers],[2035]],MATCH($EK2,TableEnergyFactors[[AEO Table Variable]:[AEO Table Variable]],0),0) -> 3.841269 | FL2: =OFFSET(TableEnergyFactors[[#Headers],[2036]],MATCH($EK2,TableEnergyFactors[[AEO Table Variable]:[AEO Table Variable]],0),0) -> 3.860676 | FM2: =OFFSET(TableEnergyFactors[[#Headers],[2037]],MATCH($EK2,TableEnergyFactors[[AEO Table Variable]:[AEO Table Variable]],0),0) -> 3.884337 | FN2: =OFFSET(TableEnergyFactors[[#Headers],[2038]],MATCH($EK2,TableEnergyFactors[[AEO Table Variable]:[AEO Table Variable]],0),0) -> 3.914735 | FO2: =OFFSET(TableEnergyFactors[[#Headers],[2039]],MATCH($EK2,TableEnergyFactors[[AEO Table Variable]:[AEO Table Variable]],0),0) -> 3.940055 | FP2: =OFFSET(TableEnergyFactors[[#Headers],[2040]],MATCH($EK2,TableEnergyFactors[[AEO Table Variable]:[AEO Table Variable]],0),0) -> 3.964349 | FQ2: =OFFSET(TableEnergyFactors[[#Headers],[2041]],MATCH($EK2,TableEnergyFactors[[AEO Table Variable]:[AEO Table Variable]],0),0) -> 3.986495 | FR2: =OFFSET(TableEnergyFactors[[#Headers],[2042]],MATCH($EK2,TableEnergyFactors[[AEO Table Variable]:[AEO Table Variable]],0),0) -> 4.008253 | FS2: =OFFSET(TableEnergyFactors[[#Headers],[2043]],MATCH($EK2,TableEnergyFactors[[AEO Table Variable]:[AEO Table Variable]],0),0) -> 4.034839 | FT2: =OFFSET(TableEnergyFactors[[#Headers],[2044]],MATCH($EK2,TableEnergyFactors[[AEO Table Variable]:[AEO Table Variable]],0),0) -> 4.060492 | FU2: =OFFSET(TableEnergyFactors[[#Headers],[2045]],MATCH($EK2,TableEnergyFactors[[AEO Table Variable]:[AEO Table Variable]],0),0) -> 4.08461 | FV2: =OFFSET(TableEnergyFactors[[#Headers],[2046]],MATCH($EK2,TableEnergyFactors[[AEO Table Variable]:[AEO Table Variable]],0),0) -> 4.109567 | FW2: =OFFSET(TableEnergyFactors[[#Headers],[2047]],MATCH($EK2,TableEnergyFactors[[AEO Table Variable]:[AEO Table Variable]],0),0) -> 4.130953 | FX2: =OFFSET(TableEnergyFactors[[#Headers],[2048]],MATCH($EK2,TableEnergyFactors[[AEO Table Variable]:[AEO Table Variable]],0),0) -> 4.155188 | FY2: =OFFSET(TableEnergyFactors[[#Headers],[2049]],MATCH($EK2,TableEnergyFactors[[AEO Table Variable]:[AEO Table Variable]],0),0) -> 4.184044 | FZ2: =OFFSET(TableEnergyFactors[[#Headers],[2050]],MATCH($EK2,TableEnergyFactors[[AEO Table Variable]:[AEO Table Variable]],0),0) -> 4.218372 | GA2: ='Energy Factors'!B56 -> Industrial Total Primar (Excluing Feedstocks) → | GB2: =OFFSET(TableEnergyFactors[[#Headers],[2010]],MATCH($GA2,TableEnergyFactors[[AEO Table Variable]:[AEO Table Variable]],0),0) -> 28.635905 | GC2: =OFFSET(TableEnergyFactors[[#Headers],[2011]],MATCH($GA2,TableEnergyFactors[[AEO Table Variable]:[AEO Table Variable]],0),0) -> 28.528161 | GD2: =OFFSET(TableEnergyFactors[[#Headers],[2012]],MATCH($GA2,TableEnergyFactors[[AEO Table Variable]:[AEO Table Variable]],0),0) -> 28.67396 | GE2: =OFFSET(TableEnergyFactors[[#Headers],[2013]],MATCH($GA2,TableEnergyFactors[[AEO Table Variable]:[AEO Table Variable]],0),0) -> 28.975162 | GF2: =OFFSET(TableEnergyFactors[[#Headers],[2014]],MATCH($GA2,TableEnergyFactors[[AEO Table Variable]:[AEO Table Variable]],0),0) -> 29.206716 | GG2: =OFFSET(TableEnergyFactors[[#Headers],[2015]],MATCH($GA2,TableEnergyFactors[[AEO Table Variable]:[AEO Table Variable]],0),0) -> 29.019439 | GH2: =OFFSET(TableEnergyFactors[[#Headers],[2016]],MATCH($GA2,TableEnergyFactors[[AEO Table Variable]:[AEO Table Variable]],0),0) -> 28.777412 | GI2: =OFFSET(TableEnergyFactors[[#Headers],[2017]],MATCH($GA2,TableEnergyFactors[[AEO Table Variable]:[AEO Table Variable]],0),0) -> 29.033746 | GJ2: =OFFSET(TableEnergyFactors[[#Headers],[2018]],MATCH($GA2,TableEnergyFactors[[AEO Table Variable]:[AEO Table Variable]],0),0) -> 29.98834 | GK2: =OFFSET(TableEnergyFactors[[#Headers],[2019]],MATCH($GA2,TableEnergyFactors[[AEO Table Variable]:[AEO Table Variable]],0),0) -> 30.704102 | GL2: =OFFSET(TableEnergyFactors[[#Headers],[2020]],MATCH($GA2,TableEnergyFactors[[AEO Table Variable]:[AEO Table Variable]],0),0) -> 31.071873 | GM2: =OFFSET(TableEnergyFactors[[#Headers],[2021]],MATCH($GA2,TableEnergyFactors[[AEO Table Variable]:[AEO Table Variable]],0),0) -> 31.554208 | GN2: =OFFSET(TableEnergyFactors[[#Headers],[2022]],MATCH($GA2,TableEnergyFactors[[AEO Table Variable]:[AEO Table Variable]],0),0) -> 32.068231 | GO2: =OFFSET(TableEnergyFactors[[#Headers],[2023]],MATCH($GA2,TableEnergyFactors[[AEO Table Variable]:[AEO Table Variable]],0),0) -> 32.546488 | GP2: =OFFSET(TableEnergyFactors[[#Headers],[2024]],MATCH($GA2,TableEnergyFactors[[AEO Table Variable]:[AEO Table Variable]],0),0) -> 32.803064 | GQ2: =OFFSET(TableEnergyFactors[[#Headers],[2025]],MATCH($GA2,TableEnergyFactors[[AEO Table Variable]:[AEO Table Variable]],0),0) -> 32.865568 | GR2: =OFFSET(TableEnergyFactors[[#Headers],[2026]],MATCH($GA2,TableEnergyFactors[[AEO Table Variable]:[AEO Table Variable]],0),0) -> 32.869935 | GS2: =OFFSET(TableEnergyFactors[[#Headers],[2027]],MATCH($GA2,TableEnergyFactors[[AEO Table Variable]:[AEO Table Variable]],0),0) -> 32.728317 | GT2: =OFFSET(TableEnergyFactors[[#Headers],[2028]],MATCH($GA2,TableEnergyFactors[[AEO Table Variable]:[AEO Table Variable]],0),0) -> 32.657988 | GU2: =OFFSET(TableEnergyFactors[[#Headers],[2029]],MATCH($GA2,TableEnergyFactors[[AEO Table Variable]:[AEO Table Variable]],0),0) -> 32.646353 | GV2: =OFFSET(TableEnergyFactors[[#Headers],[2030]],MATCH($GA2,TableEnergyFactors[[AEO Table Variable]:[AEO Table Variable]],0),0) -> 32.672046 | GW2: =OFFSET(TableEnergyFactors[[#Headers],[2031]],MATCH($GA2,TableEnergyFactors[[AEO Table Variable]:[AEO Table Variable]],0),0) -> 32.64923 | GX2: =OFFSET(TableEnergyFactors[[#Headers],[2032]],MATCH($GA2,TableEnergyFactors[[AEO Table Variable]:[AEO Table Variable]],0),0) -> 32.690884 | GY2: =OFFSET(TableEnergyFactors[[#Headers],[2033]],MATCH($GA2,TableEnergyFactors[[AEO Table Variable]:[AEO Table Variable]],0),0) -> 32.806166 | GZ2: =OFFSET(TableEnergyFactors[[#Headers],[2034]],MATCH($GA2,TableEnergyFactors[[AEO Table Variable]:[AEO Table Variable]],0),0) -> 32.976224 | HA2: =OFFSET(TableEnergyFactors[[#Headers],[2035]],MATCH($GA2,TableEnergyFactors[[AEO Table Variable]:[AEO Table Variable]],0),0) -> 33.105707 | HB2: =OFFSET(TableEnergyFactors[[#Headers],[2036]],MATCH($GA2,TableEnergyFactors[[AEO Table Variable]:[AEO Table Variable]],0),0) -> 33.29558 | HC2: =OFFSET(TableEnergyFactors[[#Headers],[2037]],MATCH($GA2,TableEnergyFactors[[AEO Table Variable]:[AEO Table Variable]],0),0) -> 33.445777 | HD2: =OFFSET(TableEnergyFactors[[#Headers],[2038]],MATCH($GA2,TableEnergyFactors[[AEO Table Variable]:[AEO Table Variable]],0),0) -> 33.626717 | HE2: =OFFSET(TableEnergyFactors[[#Headers],[2039]],MATCH($GA2,TableEnergyFactors[[AEO Table Variable]:[AEO Table Variable]],0),0) -> 33.846199 | HF2: =OFFSET(TableEnergyFactors[[#Headers],[2040]],MATCH($GA2,TableEnergyFactors[[AEO Table Variable]:[AEO Table Variable]],0),0) -> 34.029839 | HG2: =OFFSET(TableEnergyFactors[[#Headers],[2041]],MATCH($GA2,TableEnergyFactors[[AEO Table Variable]:[AEO Table Variable]],0),0) -> 34.162591 | HH2: =OFFSET(TableEnergyFactors[[#Headers],[2042]],MATCH($GA2,TableEnergyFactors[[AEO Table Variable]:[AEO Table Variable]],0),0) -> 34.30546 | HI2: =OFFSET(TableEnergyFactors[[#Headers],[2043]],MATCH($GA2,TableEnergyFactors[[AEO Table Variable]:[AEO Table Variable]],0),0) -> 34.478402 | HJ2: =OFFSET(TableEnergyFactors[[#Headers],[2044]],MATCH($GA2,TableEnergyFactors[[AEO Table Variable]:[AEO Table Variable]],0),0) -> 34.670444 | HK2: =OFFSET(TableEnergyFactors[[#Headers],[2045]],MATCH($GA2,TableEnergyFactors[[AEO Table Variable]:[AEO Table Variable]],0),0) -> 34.830008 | HL2: =OFFSET(TableEnergyFactors[[#Headers],[2046]],MATCH($GA2,TableEnergyFactors[[AEO Table Variable]:[AEO Table Variable]],0),0) -> 35.008048 | HM2: =OFFSET(TableEnergyFactors[[#Headers],[2047]],MATCH($GA2,TableEnergyFactors[[AEO Table Variable]:[AEO Table Variable]],0),0) -> 35.166981 | HN2: =OFFSET(TableEnergyFactors[[#Headers],[2048]],MATCH($GA2,TableEnergyFactors[[AEO Table Variable]:[AEO Table Variable]],0),0) -> 35.322376 | HO2: =OFFSET(TableEnergyFactors[[#Headers],[2049]],MATCH($GA2,TableEnergyFactors[[AEO Table Variable]:[AEO Table Variable]],0),0) -> 35.537397 | HP2: =OFFSET(TableEnergyFactors[[#Headers],[2050]],MATCH($GA2,TableEnergyFactors[[AEO Table Variable]:[AEO Table Variable]],0),0) -> 35.745491 | HR2: ='Energy Factors'!B109 -> Industrial Non-Renewable → | HS2: =OFFSET(TableEnergyPrices[[#Headers],[2010]],MATCH($HR2,TableEnergyPrices[[AEO Table Variable]:[AEO Table Variable]],0),0) -> 156.5659302 | HT2: =OFFSET(TableEnergyPrices[[#Headers],[2011]],MATCH($HR2,TableEnergyPrices[[AEO Table Variable]:[AEO Table Variable]],0),0) -> 162.6910213 | HU2: =OFFSET(TableEnergyPrices[[#Headers],[2012]],MATCH($HR2,TableEnergyPrices[[AEO Table Variable]:[AEO Table Variable]],0),0) -> 151.3196142 | HV2: =OFFSET(TableEnergyPrices[[#Headers],[2013]],MATCH($HR2,TableEnergyPrices[[AEO Table Variable]:[AEO Table Variable]],0),0) -> 158.4466753 | HW2: =OFFSET(TableEnergyPrices[[#Headers],[2014]],MATCH($HR2,TableEnergyPrices[[AEO Table Variable]:[AEO Table Variable]],0),0) -> 158.7237295 | HX2: =OFFSET(TableEnergyPrices[[#Headers],[2015]],MATCH($HR2,TableEnergyPrices[[AEO Table Variable]:[AEO Table Variable]],0),0) -> 103.9504346 | HY2: =OFFSET(TableEnergyPrices[[#Headers],[2016]],MATCH($HR2,TableEnergyPrices[[AEO Table Variable]:[AEO Table Variable]],0),0) -> 91.79919275 | HZ2: =OFFSET(TableEnergyPrices[[#Headers],[2017]],MATCH($HR2,TableEnergyPrices[[AEO Table Variable]:[AEO Table Variable]],0),0) -> 105.5212705 | IA2: =OFFSET(TableEnergyPrices[[#Headers],[2018]],MATCH($HR2,TableEnergyPrices[[AEO Table Variable]:[AEO Table Variable]],0),0) -> 120.9455455 | IB2: =OFFSET(TableEnergyPrices[[#Headers],[2019]],MATCH($HR2,TableEnergyPrices[[AEO Table Variable]:[AEO Table Variable]],0),0) -> 132.6770585 | IC2: =OFFSET(TableEnergyPrices[[#Headers],[2020]],MATCH($HR2,TableEnergyPrices[[AEO Table Variable]:[AEO Table Variable]],0),0) -> 139.7606768 | ID2: =OFFSET(TableEnergyPrices[[#Headers],[2021]],MATCH($HR2,TableEnergyPrices[[AEO Table Variable]:[AEO Table Variable]],0),0) -> 144.5470134 | IE2: =OFFSET(TableEnergyPrices[[#Headers],[2022]],MATCH($HR2,TableEnergyPrices[[AEO Table Variable]:[AEO Table Variable]],0),0) -> 150.2799302 | IF2: =OFFSET(TableEnergyPrices[[#Headers],[2023]],MATCH($HR2,TableEnergyPrices[[AEO Table Variable]:[AEO Table Variable]],0),0) -> 155.5437424 | IG2: =OFFSET(TableEnergyPrices[[#Headers],[2024]],MATCH($HR2,TableEnergyPrices[[AEO Table Variable]:[AEO Table Variable]],0),0) -> 159.6861988 | IH2: =OFFSET(TableEnergyPrices[[#Headers],[2025]],MATCH($HR2,TableEnergyPrices[[AEO Table Variable]:[AEO Table Variable]],0),0) -> 163.9799576 | II2: =OFFSET(TableEnergyPrices[[#Headers],[2026]],MATCH($HR2,TableEnergyPrices[[AEO Table Variable]:[AEO Table Variable]],0),0) -> 167.9613026 | IJ2: =OFFSET(TableEnergyPrices[[#Headers],[2027]],MATCH($HR2,TableEnergyPrices[[AEO Table Variable]:[AEO Table Variable]],0),0) -> 169.8745947 | IK2: =OFFSET(TableEnergyPrices[[#Headers],[2028]],MATCH($HR2,TableEnergyPrices[[AEO Table Variable]:[AEO Table Variable]],0),0) -> 171.3095174 | IL2: =OFFSET(TableEnergyPrices[[#Headers],[2029]],MATCH($HR2,TableEnergyPrices[[AEO Table Variable]:[AEO Table Variable]],0),0) -> 173.6914243 | IM2: =OFFSET(TableEnergyPrices[[#Headers],[2030]],MATCH($HR2,TableEnergyPrices[[AEO Table Variable]:[AEO Table Variable]],0),0) -> 177.1886483 | IN2: =OFFSET(TableEnergyPrices[[#Headers],[2031]],MATCH($HR2,TableEnergyPrices[[AEO Table Variable]:[AEO Table Variable]],0),0) -> 181.0357119 | IO2: =OFFSET(TableEnergyPrices[[#Headers],[2032]],MATCH($HR2,TableEnergyPrices[[AEO Table Variable]:[AEO Table Variable]],0),0) -> 184.5140689 | IP2: =OFFSET(TableEnergyPrices[[#Headers],[2033]],MATCH($HR2,TableEnergyPrices[[AEO Table Variable]:[AEO Table Variable]],0),0) -> 185.0033628 | IQ2: =OFFSET(TableEnergyPrices[[#Headers],[2034]],MATCH($HR2,TableEnergyPrices[[AEO Table Variable]:[AEO Table Variable]],0),0) -> 188.5698586 | IR2: =OFFSET(TableEnergyPrices[[#Headers],[2035]],MATCH($HR2,TableEnergyPrices[[AEO Table Variable]:[AEO Table Variable]],0),0) -> 191.8057234 | IS2: =OFFSET(TableEnergyPrices[[#Headers],[2036]],MATCH($HR2,TableEnergyPrices[[AEO Table Variable]:[AEO Table Variable]],0),0) -> 196.3860658 | IT2: =OFFSET(TableEnergyPrices[[#Headers],[2037]],MATCH($HR2,TableEnergyPrices[[AEO Table Variable]:[AEO Table Variable]],0),0) -> 198.5683173 | IU2: =OFFSET(TableEnergyPrices[[#Headers],[2038]],MATCH($HR2,TableEnergyPrices[[AEO Table Variable]:[AEO Table Variable]],0),0) -> 201.5756484 | IV2: =OFFSET(TableEnergyPrices[[#Headers],[2039]],MATCH($HR2,TableEnergyPrices[[AEO Table Variable]:[AEO Table Variable]],0),0) -> 206.6004931 | IW2: =OFFSET(TableEnergyPrices[[#Headers],[2040]],MATCH($HR2,TableEnergyPrices[[AEO Table Variable]:[AEO Table Variable]],0),0) -> 209.2290598 | IX2: =OFFSET(TableEnergyPrices[[#Headers],[2041]],MATCH($HR2,TableEnergyPrices[[AEO Table Variable]:[AEO Table Variable]],0),0) -> 211.4105368 | IY2: =OFFSET(TableEnergyPrices[[#Headers],[2042]],MATCH($HR2,TableEnergyPrices[[AEO Table Variable]:[AEO Table Variable]],0),0) -> 213.3495209 | IZ2: =OFFSET(TableEnergyPrices[[#Headers],[2043]],MATCH($HR2,TableEnergyPrices[[AEO Table Variable]:[AEO Table Variable]],0),0) -> 216.3092435 | JA2: =OFFSET(TableEnergyPrices[[#Headers],[2044]],MATCH($HR2,TableEnergyPrices[[AEO Table Variable]:[AEO Table Variable]],0),0) -> 219.0766725 | JB2: =OFFSET(TableEnergyPrices[[#Headers],[2045]],MATCH($HR2,TableEnergyPrices[[AEO Table Variable]:[AEO Table Variable]],0),0) -> 221.8523701 | JC2: =OFFSET(TableEnergyPrices[[#Headers],[2046]],MATCH($HR2,TableEnergyPrices[[AEO Table Variable]:[AEO Table Variable]],0),0) -> 225.0424423 | JD2: =OFFSET(TableEnergyPrices[[#Headers],[2047]],MATCH($HR2,TableEnergyPrices[[AEO Table Variable]:[AEO Table Variable]],0),0) -> 229.1703052 | JE2: =OFFSET(TableEnergyPrices[[#Headers],[2048]],MATCH($HR2,TableEnergyPrices[[AEO Table Variable]:[AEO Table Variable]],0),0) -> 232.7370597 | JF2: =OFFSET(TableEnergyPrices[[#Headers],[2049]],MATCH($HR2,TableEnergyPrices[[AEO Table Variable]:[AEO Table Variable]],0),0) -> 236.3145128 | JG2: =OFFSET(TableEnergyPrices[[#Headers],[2050]],MATCH($HR2,TableEnergyPrices[[AEO Table Variable]:[AEO Table Variable]],0),0) -> 241.978356 | JI2: ='CO2 Factors'!A60 -> Industrial Fuel CO2 → | JJ2: =OFFSET(TableCO2Factors[[#Headers],[2010]],MATCH($JI2,TableCO2Factors[[Energy Resource]:[Energy Resource]],0),0) -> 911.02008 | JK2: =OFFSET(TableCO2Factors[[#Headers],[2011]],MATCH($JI2,TableCO2Factors[[Energy Resource]:[Energy Resource]],0),0) -> 913.403382 | JL2: =OFFSET(TableCO2Factors[[#Headers],[2012]],MATCH($JI2,TableCO2Factors[[Energy Resource]:[Energy Resource]],0),0) -> 933.203369 | JM2: =OFFSET(TableCO2Factors[[#Headers],[2013]],MATCH($JI2,TableCO2Factors[[Energy Resource]:[Energy Resource]],0),0) -> 955.23999 | JN2: =OFFSET(TableCO2Factors[[#Headers],[2014]],MATCH($JI2,TableCO2Factors[[Energy Resource]:[Energy Resource]],0),0) -> 1014.903321 | JO2: =OFFSET(TableCO2Factors[[#Headers],[2015]],MATCH($JI2,TableCO2Factors[[Energy Resource]:[Energy Resource]],0),0) -> 944.130035 | JP2: =OFFSET(TableCO2Factors[[#Headers],[2016]],MATCH($JI2,TableCO2Factors[[Energy Resource]:[Energy Resource]],0),0) -> 982.611481 | JQ2: =OFFSET(TableCO2Factors[[#Headers],[2017]],MATCH($JI2,TableCO2Factors[[Energy Resource]:[Energy Resource]],0),0) -> 985.547364 | JR2: =OFFSET(TableCO2Factors[[#Headers],[2018]],MATCH($JI2,TableCO2Factors[[Energy Resource]:[Energy Resource]],0),0) -> 1016.600067 | JS2: =OFFSET(TableCO2Factors[[#Headers],[2019]],MATCH($JI2,TableCO2Factors[[Energy Resource]:[Energy Resource]],0),0) -> 1034.877838 | JT2: =OFFSET(TableCO2Factors[[#Headers],[2020]],MATCH($JI2,TableCO2Factors[[Energy Resource]:[Energy Resource]],0),0) -> 1045.143677 | JU2: =OFFSET(TableCO2Factors[[#Headers],[2021]],MATCH($JI2,TableCO2Factors[[Energy Resource]:[Energy Resource]],0),0) -> 1058.034973 | JV2: =OFFSET(TableCO2Factors[[#Headers],[2022]],MATCH($JI2,TableCO2Factors[[Energy Resource]:[Energy Resource]],0),0) -> 1072.301056 | JW2: =OFFSET(TableCO2Factors[[#Headers],[2023]],MATCH($JI2,TableCO2Factors[[Energy Resource]:[Energy Resource]],0),0) -> 1084.72699 | JX2: =OFFSET(TableCO2Factors[[#Headers],[2024]],MATCH($JI2,TableCO2Factors[[Energy Resource]:[Energy Resource]],0),0) -> 1091.868713 | JY2: =OFFSET(TableCO2Factors[[#Headers],[2025]],MATCH($JI2,TableCO2Factors[[Energy Resource]:[Energy Resource]],0),0) -> 1095.196442 | JZ2: =OFFSET(TableCO2Factors[[#Headers],[2026]],MATCH($JI2,TableCO2Factors[[Energy Resource]:[Energy Resource]],0),0) -> 1098.78305 | KA2: =OFFSET(TableCO2Factors[[#Headers],[2027]],MATCH($JI2,TableCO2Factors[[Energy Resource]:[Energy Resource]],0),0) -> 1091.941803 | KB2: =OFFSET(TableCO2Factors[[#Headers],[2028]],MATCH($JI2,TableCO2Factors[[Energy Resource]:[Energy Resource]],0),0) -> 1090.976959 | KC2: =OFFSET(TableCO2Factors[[#Headers],[2029]],MATCH($JI2,TableCO2Factors[[Energy Resource]:[Energy Resource]],0),0) -> 1091.379425 | KD2: =OFFSET(TableCO2Factors[[#Headers],[2030]],MATCH($JI2,TableCO2Factors[[Energy Resource]:[Energy Resource]],0),0) -> 1093.681762 | KE2: =OFFSET(TableCO2Factors[[#Headers],[2031]],MATCH($JI2,TableCO2Factors[[Energy Resource]:[Energy Resource]],0),0) -> 1092.378632 | KF2: =OFFSET(TableCO2Factors[[#Headers],[2032]],MATCH($JI2,TableCO2Factors[[Energy Resource]:[Energy Resource]],0),0) -> 1093.767822 | KG2: =OFFSET(TableCO2Factors[[#Headers],[2033]],MATCH($JI2,TableCO2Factors[[Energy Resource]:[Energy Resource]],0),0) -> 1096.038971 | KH2: =OFFSET(TableCO2Factors[[#Headers],[2034]],MATCH($JI2,TableCO2Factors[[Energy Resource]:[Energy Resource]],0),0) -> 1101.420105 | KI2: =OFFSET(TableCO2Factors[[#Headers],[2035]],MATCH($JI2,TableCO2Factors[[Energy Resource]:[Energy Resource]],0),0) -> 1105.950043 | KJ2: =OFFSET(TableCO2Factors[[#Headers],[2036]],MATCH($JI2,TableCO2Factors[[Energy Resource]:[Energy Resource]],0),0) -> 1111.748871 | KK2: =OFFSET(TableCO2Factors[[#Headers],[2037]],MATCH($JI2,TableCO2Factors[[Energy Resource]:[Energy Resource]],0),0) -> 1116.663391 | KL2: =OFFSET(TableCO2Factors[[#Headers],[2038]],MATCH($JI2,TableCO2Factors[[Energy Resource]:[Energy Resource]],0),0) -> 1120.995514 | KM2: =OFFSET(TableCO2Factors[[#Headers],[2039]],MATCH($JI2,TableCO2Factors[[Energy Resource]:[Energy Resource]],0),0) -> 1127.801789 | KN2: =OFFSET(TableCO2Factors[[#Headers],[2040]],MATCH($JI2,TableCO2Factors[[Energy Resource]:[Energy Resource]],0),0) -> 1131.881104 | KO2: =OFFSET(TableCO2Factors[[#Headers],[2041]],MATCH($JI2,TableCO2Factors[[Energy Resource]:[Energy Resource]],0),0) -> 1134.469482 | KP2: =OFFSET(TableCO2Factors[[#Headers],[2042]],MATCH($JI2,TableCO2Factors[[Energy Resource]:[Energy Resource]],0),0) -> 1137.528595 | KQ2: =OFFSET(TableCO2Factors[[#Headers],[2043]],MATCH($JI2,TableCO2Factors[[Energy Resource]:[Energy Resource]],0),0) -> 1141.18512 | KR2: =OFFSET(TableCO2Factors[[#Headers],[2044]],MATCH($JI2,TableCO2Factors[[Energy Resource]:[Energy Resource]],0),0) -> 1147.031311 | KS2: =OFFSET(TableCO2Factors[[#Headers],[2045]],MATCH($JI2,TableCO2Factors[[Energy Resource]:[Energy Resource]],0),0) -> 1152.429993 | KT2: =OFFSET(TableCO2Factors[[#Headers],[2046]],MATCH($JI2,TableCO2Factors[[Energy Resource]:[Energy Resource]],0),0) -> 1158.054322 | KU2: =OFFSET(TableCO2Factors[[#Headers],[2047]],MATCH($JI2,TableCO2Factors[[Energy Resource]:[Energy Resource]],0),0) -> 1163.066132 | KV2: =OFFSET(TableCO2Factors[[#Headers],[2048]],MATCH($JI2,TableCO2Factors[[Energy Resource]:[Energy Resource]],0),0) -> 1166.962799 | KW2: =OFFSET(TableCO2Factors[[#Headers],[2049]],MATCH($JI2,TableCO2Factors[[Energy Resource]:[Energy Resource]],0),0) -> 1173.555816 | KX2: =OFFSET(TableCO2Factors[[#Headers],[2050]],MATCH($JI2,TableCO2Factors[[Energy Resource]:[Energy Resource]],0),0) -> 1181.933014
A3: BAU Commercial Sums → | CU3: ='Energy Factors'!B45 -> Commercial Delivered Fuels → | CV3: =OFFSET(TableEnergyFactors[[#Headers],[2010]],MATCH($CU3,TableEnergyFactors[[AEO Table Variable]:[AEO Table Variable]],0),0) -> 3.50106 | CW3: =OFFSET(TableEnergyFactors[[#Headers],[2011]],MATCH($CU3,TableEnergyFactors[[AEO Table Variable]:[AEO Table Variable]],0),0) -> 3.53564 | CX3: =OFFSET(TableEnergyFactors[[#Headers],[2012]],MATCH($CU3,TableEnergyFactors[[AEO Table Variable]:[AEO Table Variable]],0),0) -> 3.22646 | CY3: =OFFSET(TableEnergyFactors[[#Headers],[2013]],MATCH($CU3,TableEnergyFactors[[AEO Table Variable]:[AEO Table Variable]],0),0) -> 3.634171 | CZ3: =OFFSET(TableEnergyFactors[[#Headers],[2014]],MATCH($CU3,TableEnergyFactors[[AEO Table Variable]:[AEO Table Variable]],0),0) -> 3.81589 | DA3: =OFFSET(TableEnergyFactors[[#Headers],[2015]],MATCH($CU3,TableEnergyFactors[[AEO Table Variable]:[AEO Table Variable]],0),0) -> 3.558672 | DB3: =OFFSET(TableEnergyFactors[[#Headers],[2016]],MATCH($CU3,TableEnergyFactors[[AEO Table Variable]:[AEO Table Variable]],0),0) -> 3.586162 | DC3: =OFFSET(TableEnergyFactors[[#Headers],[2017]],MATCH($CU3,TableEnergyFactors[[AEO Table Variable]:[AEO Table Variable]],0),0) -> 3.65065 | DD3: =OFFSET(TableEnergyFactors[[#Headers],[2018]],MATCH($CU3,TableEnergyFactors[[AEO Table Variable]:[AEO Table Variable]],0),0) -> 3.638979 | DE3: =OFFSET(TableEnergyFactors[[#Headers],[2019]],MATCH($CU3,TableEnergyFactors[[AEO Table Variable]:[AEO Table Variable]],0),0) -> 3.603731 | DF3: =OFFSET(TableEnergyFactors[[#Headers],[2020]],MATCH($CU3,TableEnergyFactors[[AEO Table Variable]:[AEO Table Variable]],0),0) -> 3.57797 | DG3: =OFFSET(TableEnergyFactors[[#Headers],[2021]],MATCH($CU3,TableEnergyFactors[[AEO Table Variable]:[AEO Table Variable]],0),0) -> 3.577144 | DH3: =OFFSET(TableEnergyFactors[[#Headers],[2022]],MATCH($CU3,TableEnergyFactors[[AEO Table Variable]:[AEO Table Variable]],0),0) -> 3.582685 | DI3: =OFFSET(TableEnergyFactors[[#Headers],[2023]],MATCH($CU3,TableEnergyFactors[[AEO Table Variable]:[AEO Table Variable]],0),0) -> 3.589319 | DJ3: =OFFSET(TableEnergyFactors[[#Headers],[2024]],MATCH($CU3,TableEnergyFactors[[AEO Table Variable]:[AEO Table Variable]],0),0) -> 3.597386 | DK3: =OFFSET(TableEnergyFactors[[#Headers],[2025]],MATCH($CU3,TableEnergyFactors[[AEO Table Variable]:[AEO Table Variable]],0),0) -> 3.604807 | DL3: =OFFSET(TableEnergyFactors[[#Headers],[2026]],MATCH($CU3,TableEnergyFactors[[AEO Table Variable]:[AEO Table Variable]],0),0) -> 3.613767 | DM3: =OFFSET(TableEnergyFactors[[#Headers],[2027]],MATCH($CU3,TableEnergyFactors[[AEO Table Variable]:[AEO Table Variable]],0),0) -> 3.61655 | DN3: =OFFSET(TableEnergyFactors[[#Headers],[2028]],MATCH($CU3,TableEnergyFactors[[AEO Table Variable]:[AEO Table Variable]],0),0) -> 3.623981 | DO3: =OFFSET(TableEnergyFactors[[#Headers],[2029]],MATCH($CU3,TableEnergyFactors[[AEO Table Variable]:[AEO Table Variable]],0),0) -> 3.634418 | DP3: =OFFSET(TableEnergyFactors[[#Headers],[2030]],MATCH($CU3,TableEnergyFactors[[AEO Table Variable]:[AEO Table Variable]],0),0) -> 3.649654 | DQ3: =OFFSET(TableEnergyFactors[[#Headers],[2031]],MATCH($CU3,TableEnergyFactors[[AEO Table Variable]:[AEO Table Variable]],0),0) -> 3.666083 | DR3: =OFFSET(TableEnergyFactors[[#Headers],[2032]],MATCH($CU3,TableEnergyFactors[[AEO Table Variable]:[AEO Table Variable]],0),0) -> 3.685362 | DS3: =OFFSET(TableEnergyFactors[[#Headers],[2033]],MATCH($CU3,TableEnergyFactors[[AEO Table Variable]:[AEO Table Variable]],0),0) -> 3.711864 | DT3: =OFFSET(TableEnergyFactors[[#Headers],[2034]],MATCH($CU3,TableEnergyFactors[[AEO Table Variable]:[AEO Table Variable]],0),0) -> 3.735108 | DU3: =OFFSET(TableEnergyFactors[[#Headers],[2035]],MATCH($CU3,TableEnergyFactors[[AEO Table Variable]:[AEO Table Variable]],0),0) -> 3.755322 | DV3: =OFFSET(TableEnergyFactors[[#Headers],[2036]],MATCH($CU3,TableEnergyFactors[[AEO Table Variable]:[AEO Table Variable]],0),0) -> 3.774283 | DW3: =OFFSET(TableEnergyFactors[[#Headers],[2037]],MATCH($CU3,TableEnergyFactors[[AEO Table Variable]:[AEO Table Variable]],0),0) -> 3.798211 | DX3: =OFFSET(TableEnergyFactors[[#Headers],[2038]],MATCH($CU3,TableEnergyFactors[[AEO Table Variable]:[AEO Table Variable]],0),0) -> 3.824469 | DY3: =OFFSET(TableEnergyFactors[[#Headers],[2039]],MATCH($CU3,TableEnergyFactors[[AEO Table Variable]:[AEO Table Variable]],0),0) -> 3.850098 | DZ3: =OFFSET(TableEnergyFactors[[#Headers],[2040]],MATCH($CU3,TableEnergyFactors[[AEO Table Variable]:[AEO Table Variable]],0),0) -> 3.881319 | EA3: =OFFSET(TableEnergyFactors[[#Headers],[2041]],MATCH($CU3,TableEnergyFactors[[AEO Table Variable]:[AEO Table Variable]],0),0) -> 3.913059 | EB3: =OFFSET(TableEnergyFactors[[#Headers],[2042]],MATCH($CU3,TableEnergyFactors[[AEO Table Variable]:[AEO Table Variable]],0),0) -> 3.946169 | EC3: =OFFSET(TableEnergyFactors[[#Headers],[2043]],MATCH($CU3,TableEnergyFactors[[AEO Table Variable]:[AEO Table Variable]],0),0) -> 3.978464 | ED3: =OFFSET(TableEnergyFactors[[#Headers],[2044]],MATCH($CU3,TableEnergyFactors[[AEO Table Variable]:[AEO Table Variable]],0),0) -> 4.012627 | EE3: =OFFSET(TableEnergyFactors[[#Headers],[2045]],MATCH($CU3,TableEnergyFactors[[AEO Table Variable]:[AEO Table Variable]],0),0) -> 4.046647 | EF3: =OFFSET(TableEnergyFactors[[#Headers],[2046]],MATCH($CU3,TableEnergyFactors[[AEO Table Variable]:[AEO Table Variable]],0),0) -> 4.080128 | EG3: =OFFSET(TableEnergyFactors[[#Headers],[2047]],MATCH($CU3,TableEnergyFactors[[AEO Table Variable]:[AEO Table Variable]],0),0) -> 4.11442 | EH3: =OFFSET(TableEnergyFactors[[#Headers],[2048]],MATCH($CU3,TableEnergyFactors[[AEO Table Variable]:[AEO Table Variable]],0),0) -> 4.148022 | EI3: =OFFSET(TableEnergyFactors[[#Headers],[2049]],MATCH($CU3,TableEnergyFactors[[AEO Table Variable]:[AEO Table Variable]],0),0) -> 4.182611 | EJ3: =OFFSET(TableEnergyFactors[[#Headers],[2050]],MATCH($CU3,TableEnergyFactors[[AEO Table Variable]:[AEO Table Variable]],0),0) -> 4.215687 | EK3: ='Energy Factors'!B49 -> Commercial Delivered Electricity (Quad Btus) → | EL3: =OFFSET(TableEnergyFactors[[#Headers],[2010]],MATCH($EK3,TableEnergyFactors[[AEO Table Variable]:[AEO Table Variable]],0),0) -> 4.64624 | EM3: =OFFSET(TableEnergyFactors[[#Headers],[2011]],MATCH($EK3,TableEnergyFactors[[AEO Table Variable]:[AEO Table Variable]],0),0) -> 4.64304 | EN3: =OFFSET(TableEnergyFactors[[#Headers],[2012]],MATCH($EK3,TableEnergyFactors[[AEO Table Variable]:[AEO Table Variable]],0),0) -> 4.63479 | EO3: =OFFSET(TableEnergyFactors[[#Headers],[2013]],MATCH($EK3,TableEnergyFactors[[AEO Table Variable]:[AEO Table Variable]],0),0) -> 4.687245 | EP3: =OFFSET(TableEnergyFactors[[#Headers],[2014]],MATCH($EK3,TableEnergyFactors[[AEO Table Variable]:[AEO Table Variable]],0),0) -> 4.752255 | EQ3: =OFFSET(TableEnergyFactors[[#Headers],[2015]],MATCH($EK3,TableEnergyFactors[[AEO Table Variable]:[AEO Table Variable]],0),0) -> 4.766403 | ER3: =OFFSET(TableEnergyFactors[[#Headers],[2016]],MATCH($EK3,TableEnergyFactors[[AEO Table Variable]:[AEO Table Variable]],0),0) -> 4.772488 | ES3: =OFFSET(TableEnergyFactors[[#Headers],[2017]],MATCH($EK3,TableEnergyFactors[[AEO Table Variable]:[AEO Table Variable]],0),0) -> 4.728605 | ET3: =OFFSET(TableEnergyFactors[[#Headers],[2018]],MATCH($EK3,TableEnergyFactors[[AEO Table Variable]:[AEO Table Variable]],0),0) -> 4.749706 | EU3: =OFFSET(TableEnergyFactors[[#Headers],[2019]],MATCH($EK3,TableEnergyFactors[[AEO Table Variable]:[AEO Table Variable]],0),0) -> 4.753226 | EV3: =OFFSET(TableEnergyFactors[[#Headers],[2020]],MATCH($EK3,TableEnergyFactors[[AEO Table Variable]:[AEO Table Variable]],0),0) -> 4.743798 | EW3: =OFFSET(TableEnergyFactors[[#Headers],[2021]],MATCH($EK3,TableEnergyFactors[[AEO Table Variable]:[AEO Table Variable]],0),0) -> 4.742092 | EX3: =OFFSET(TableEnergyFactors[[#Headers],[2022]],MATCH($EK3,TableEnergyFactors[[AEO Table Variable]:[AEO Table Variable]],0),0) -> 4.730085 | EY3: =OFFSET(TableEnergyFactors[[#Headers],[2023]],MATCH($EK3,TableEnergyFactors[[AEO Table Variable]:[AEO Table Variable]],0),0) -> 4.73003 | EZ3: =OFFSET(TableEnergyFactors[[#Headers],[2024]],MATCH($EK3,TableEnergyFactors[[AEO Table Variable]:[AEO Table Variable]],0),0) -> 4.742317 | FA3: =OFFSET(TableEnergyFactors[[#Headers],[2025]],MATCH($EK3,TableEnergyFactors[[AEO Table Variable]:[AEO Table Variable]],0),0) -> 4.751456 | FB3: =OFFSET(TableEnergyFactors[[#Headers],[2026]],MATCH($EK3,TableEnergyFactors[[AEO Table Variable]:[AEO Table Variable]],0),0) -> 4.756159 | FC3: =OFFSET(TableEnergyFactors[[#Headers],[2027]],MATCH($EK3,TableEnergyFactors[[AEO Table Variable]:[AEO Table Variable]],0),0) -> 4.76709 | FD3: =OFFSET(TableEnergyFactors[[#Headers],[2028]],MATCH($EK3,TableEnergyFactors[[AEO Table Variable]:[AEO Table Variable]],0),0) -> 4.783435 | FE3: =OFFSET(TableEnergyFactors[[#Headers],[2029]],MATCH($EK3,TableEnergyFactors[[AEO Table Variable]:[AEO Table Variable]],0),0) -> 4.804476 | FF3: =OFFSET(TableEnergyFactors[[#Headers],[2030]],MATCH($EK3,TableEnergyFactors[[AEO Table Variable]:[AEO Table Variable]],0),0) -> 4.812982 | FG3: =OFFSET(TableEnergyFactors[[#Headers],[2031]],MATCH($EK3,TableEnergyFactors[[AEO Table Variable]:[AEO Table Variable]],0),0) -> 4.827047 | FH3: =OFFSET(TableEnergyFactors[[#Headers],[2032]],MATCH($EK3,TableEnergyFactors[[AEO Table Variable]:[AEO Table Variable]],0),0) -> 4.847166 | FI3: =OFFSET(TableEnergyFactors[[#Headers],[2033]],MATCH($EK3,TableEnergyFactors[[AEO Table Variable]:[AEO Table Variable]],0),0) -> 4.871991 | FJ3: =OFFSET(TableEnergyFactors[[#Headers],[2034]],MATCH($EK3,TableEnergyFactors[[AEO Table Variable]:[AEO Table Variable]],0),0) -> 4.901015 | FK3: =OFFSET(TableEnergyFactors[[#Headers],[2035]],MATCH($EK3,TableEnergyFactors[[AEO Table Variable]:[AEO Table Variable]],0),0) -> 4.932456 | FL3: =OFFSET(TableEnergyFactors[[#Headers],[2036]],MATCH($EK3,TableEnergyFactors[[AEO Table Variable]:[AEO Table Variable]],0),0) -> 4.965753 | FM3: =OFFSET(TableEnergyFactors[[#Headers],[2037]],MATCH($EK3,TableEnergyFactors[[AEO Table Variable]:[AEO Table Variable]],0),0) -> 5.002652 | FN3: =OFFSET(TableEnergyFactors[[#Headers],[2038]],MATCH($EK3,TableEnergyFactors[[AEO Table Variable]:[AEO Table Variable]],0),0) -> 5.042042 | FO3: =OFFSET(TableEnergyFactors[[#Headers],[2039]],MATCH($EK3,TableEnergyFactors[[AEO Table Variable]:[AEO Table Variable]],0),0) -> 5.084602 | FP3: =OFFSET(TableEnergyFactors[[#Headers],[2040]],MATCH($EK3,TableEnergyFactors[[AEO Table Variable]:[AEO Table Variable]],0),0) -> 5.124464 | FQ3: =OFFSET(TableEnergyFactors[[#Headers],[2041]],MATCH($EK3,TableEnergyFactors[[AEO Table Variable]:[AEO Table Variable]],0),0) -> 5.168297 | FR3: =OFFSET(TableEnergyFactors[[#Headers],[2042]],MATCH($EK3,TableEnergyFactors[[AEO Table Variable]:[AEO Table Variable]],0),0) -> 5.214408 | FS3: =OFFSET(TableEnergyFactors[[#Headers],[2043]],MATCH($EK3,TableEnergyFactors[[AEO Table Variable]:[AEO Table Variable]],0),0) -> 5.262834 | FT3: =OFFSET(TableEnergyFactors[[#Headers],[2044]],MATCH($EK3,TableEnergyFactors[[AEO Table Variable]:[AEO Table Variable]],0),0) -> 5.313183 | FU3: =OFFSET(TableEnergyFactors[[#Headers],[2045]],MATCH($EK3,TableEnergyFactors[[AEO Table Variable]:[AEO Table Variable]],0),0) -> 5.365612 | FV3: =OFFSET(TableEnergyFactors[[#Headers],[2046]],MATCH($EK3,TableEnergyFactors[[AEO Table Variable]:[AEO Table Variable]],0),0) -> 5.421716 | FW3: =OFFSET(TableEnergyFactors[[#Headers],[2047]],MATCH($EK3,TableEnergyFactors[[AEO Table Variable]:[AEO Table Variable]],0),0) -> 5.478897 | FX3: =OFFSET(TableEnergyFactors[[#Headers],[2048]],MATCH($EK3,TableEnergyFactors[[AEO Table Variable]:[AEO Table Variable]],0),0) -> 5.538855 | FY3: =OFFSET(TableEnergyFactors[[#Headers],[2049]],MATCH($EK3,TableEnergyFactors[[AEO Table Variable]:[AEO Table Variable]],0),0) -> 5.60136 | FZ3: =OFFSET(TableEnergyFactors[[#Headers],[2050]],MATCH($EK3,TableEnergyFactors[[AEO Table Variable]:[AEO Table Variable]],0),0) -> 5.666254 | GA3: ='Energy Factors'!B57 -> Commercial Total Primary → | GB3: =OFFSET(TableEnergyFactors[[#Headers],[2010]],MATCH($GA3,TableEnergyFactors[[AEO Table Variable]:[AEO Table Variable]],0),0) -> 18.100185 | GC3: =OFFSET(TableEnergyFactors[[#Headers],[2011]],MATCH($GA3,TableEnergyFactors[[AEO Table Variable]:[AEO Table Variable]],0),0) -> 18.020187 | GD3: =OFFSET(TableEnergyFactors[[#Headers],[2012]],MATCH($GA3,TableEnergyFactors[[AEO Table Variable]:[AEO Table Variable]],0),0) -> 17.464001 | GE3: =OFFSET(TableEnergyFactors[[#Headers],[2013]],MATCH($GA3,TableEnergyFactors[[AEO Table Variable]:[AEO Table Variable]],0),0) -> 18.104115 | GF3: =OFFSET(TableEnergyFactors[[#Headers],[2014]],MATCH($GA3,TableEnergyFactors[[AEO Table Variable]:[AEO Table Variable]],0),0) -> 18.468521 | GG3: =OFFSET(TableEnergyFactors[[#Headers],[2015]],MATCH($GA3,TableEnergyFactors[[AEO Table Variable]:[AEO Table Variable]],0),0) -> 17.955746 | GH3: =OFFSET(TableEnergyFactors[[#Headers],[2016]],MATCH($GA3,TableEnergyFactors[[AEO Table Variable]:[AEO Table Variable]],0),0) -> 17.820675 | GI3: =OFFSET(TableEnergyFactors[[#Headers],[2017]],MATCH($GA3,TableEnergyFactors[[AEO Table Variable]:[AEO Table Variable]],0),0) -> 17.832462 | GJ3: =OFFSET(TableEnergyFactors[[#Headers],[2018]],MATCH($GA3,TableEnergyFactors[[AEO Table Variable]:[AEO Table Variable]],0),0) -> 17.781441 | GK3: =OFFSET(TableEnergyFactors[[#Headers],[2019]],MATCH($GA3,TableEnergyFactors[[AEO Table Variable]:[AEO Table Variable]],0),0) -> 17.77882 | GL3: =OFFSET(TableEnergyFactors[[#Headers],[2020]],MATCH($GA3,TableEnergyFactors[[AEO Table Variable]:[AEO Table Variable]],0),0) -> 17.767551 | GM3: =OFFSET(TableEnergyFactors[[#Headers],[2021]],MATCH($GA3,TableEnergyFactors[[AEO Table Variable]:[AEO Table Variable]],0),0) -> 17.749908 | GN3: =OFFSET(TableEnergyFactors[[#Headers],[2022]],MATCH($GA3,TableEnergyFactors[[AEO Table Variable]:[AEO Table Variable]],0),0) -> 17.706079 | GO3: =OFFSET(TableEnergyFactors[[#Headers],[2023]],MATCH($GA3,TableEnergyFactors[[AEO Table Variable]:[AEO Table Variable]],0),0) -> 17.705826 | GP3: =OFFSET(TableEnergyFactors[[#Headers],[2024]],MATCH($GA3,TableEnergyFactors[[AEO Table Variable]:[AEO Table Variable]],0),0) -> 17.702057 | GQ3: =OFFSET(TableEnergyFactors[[#Headers],[2025]],MATCH($GA3,TableEnergyFactors[[AEO Table Variable]:[AEO Table Variable]],0),0) -> 17.666348 | GR3: =OFFSET(TableEnergyFactors[[#Headers],[2026]],MATCH($GA3,TableEnergyFactors[[AEO Table Variable]:[AEO Table Variable]],0),0) -> 17.595764 | GS3: =OFFSET(TableEnergyFactors[[#Headers],[2027]],MATCH($GA3,TableEnergyFactors[[AEO Table Variable]:[AEO Table Variable]],0),0) -> 17.563864 | GT3: =OFFSET(TableEnergyFactors[[#Headers],[2028]],MATCH($GA3,TableEnergyFactors[[AEO Table Variable]:[AEO Table Variable]],0),0) -> 17.548883 | GU3: =OFFSET(TableEnergyFactors[[#Headers],[2029]],MATCH($GA3,TableEnergyFactors[[AEO Table Variable]:[AEO Table Variable]],0),0) -> 17.566685 | GV3: =OFFSET(TableEnergyFactors[[#Headers],[2030]],MATCH($GA3,TableEnergyFactors[[AEO Table Variable]:[AEO Table Variable]],0),0) -> 17.562702 | GW3: =OFFSET(TableEnergyFactors[[#Headers],[2031]],MATCH($GA3,TableEnergyFactors[[AEO Table Variable]:[AEO Table Variable]],0),0) -> 17.586838 | GX3: =OFFSET(TableEnergyFactors[[#Headers],[2032]],MATCH($GA3,TableEnergyFactors[[AEO Table Variable]:[AEO Table Variable]],0),0) -> 17.615139 | GY3: =OFFSET(TableEnergyFactors[[#Headers],[2033]],MATCH($GA3,TableEnergyFactors[[AEO Table Variable]:[AEO Table Variable]],0),0) -> 17.695824 | GZ3: =OFFSET(TableEnergyFactors[[#Headers],[2034]],MATCH($GA3,TableEnergyFactors[[AEO Table Variable]:[AEO Table Variable]],0),0) -> 17.735552 | HA3: =OFFSET(TableEnergyFactors[[#Headers],[2035]],MATCH($GA3,TableEnergyFactors[[AEO Table Variable]:[AEO Table Variable]],0),0) -> 17.765656 | HB3: =OFFSET(TableEnergyFactors[[#Headers],[2036]],MATCH($GA3,TableEnergyFactors[[AEO Table Variable]:[AEO Table Variable]],0),0) -> 17.857269 | HC3: =OFFSET(TableEnergyFactors[[#Headers],[2037]],MATCH($GA3,TableEnergyFactors[[AEO Table Variable]:[AEO Table Variable]],0),0) -> 17.914545 | HD3: =OFFSET(TableEnergyFactors[[#Headers],[2038]],MATCH($GA3,TableEnergyFactors[[AEO Table Variable]:[AEO Table Variable]],0),0) -> 18.009615 | HE3: =OFFSET(TableEnergyFactors[[#Headers],[2039]],MATCH($GA3,TableEnergyFactors[[AEO Table Variable]:[AEO Table Variable]],0),0) -> 18.114407 | HF3: =OFFSET(TableEnergyFactors[[#Headers],[2040]],MATCH($GA3,TableEnergyFactors[[AEO Table Variable]:[AEO Table Variable]],0),0) -> 18.238691 | HG3: =OFFSET(TableEnergyFactors[[#Headers],[2041]],MATCH($GA3,TableEnergyFactors[[AEO Table Variable]:[AEO Table Variable]],0),0) -> 18.358553 | HH3: =OFFSET(TableEnergyFactors[[#Headers],[2042]],MATCH($GA3,TableEnergyFactors[[AEO Table Variable]:[AEO Table Variable]],0),0) -> 18.49004 | HI3: =OFFSET(TableEnergyFactors[[#Headers],[2043]],MATCH($GA3,TableEnergyFactors[[AEO Table Variable]:[AEO Table Variable]],0),0) -> 18.637615 | HJ3: =OFFSET(TableEnergyFactors[[#Headers],[2044]],MATCH($GA3,TableEnergyFactors[[AEO Table Variable]:[AEO Table Variable]],0),0) -> 18.771557 | HK3: =OFFSET(TableEnergyFactors[[#Headers],[2045]],MATCH($GA3,TableEnergyFactors[[AEO Table Variable]:[AEO Table Variable]],0),0) -> 18.884998 | HL3: =OFFSET(TableEnergyFactors[[#Headers],[2046]],MATCH($GA3,TableEnergyFactors[[AEO Table Variable]:[AEO Table Variable]],0),0) -> 19.024044 | HM3: =OFFSET(TableEnergyFactors[[#Headers],[2047]],MATCH($GA3,TableEnergyFactors[[AEO Table Variable]:[AEO Table Variable]],0),0) -> 19.161671 | HN3: =OFFSET(TableEnergyFactors[[#Headers],[2048]],MATCH($GA3,TableEnergyFactors[[AEO Table Variable]:[AEO Table Variable]],0),0) -> 19.323849 | HO3: =OFFSET(TableEnergyFactors[[#Headers],[2049]],MATCH($GA3,TableEnergyFactors[[AEO Table Variable]:[AEO Table Variable]],0),0) -> 19.505844 | HP3: =OFFSET(TableEnergyFactors[[#Headers],[2050]],MATCH($GA3,TableEnergyFactors[[AEO Table Variable]:[AEO Table Variable]],0),0) -> 19.640064 | HR3: ='Energy Factors'!B110 -> Commercial Non-Renewable → | HS3: =OFFSET(TableEnergyPrices[[#Headers],[2010]],MATCH($HR3,TableEnergyPrices[[AEO Table Variable]:[AEO Table Variable]],0),0) -> 44.99557743 | HT3: =OFFSET(TableEnergyPrices[[#Headers],[2011]],MATCH($HR3,TableEnergyPrices[[AEO Table Variable]:[AEO Table Variable]],0),0) -> 45.39612652 | HU3: =OFFSET(TableEnergyPrices[[#Headers],[2012]],MATCH($HR3,TableEnergyPrices[[AEO Table Variable]:[AEO Table Variable]],0),0) -> 38.36931761 | HV3: =OFFSET(TableEnergyPrices[[#Headers],[2013]],MATCH($HR3,TableEnergyPrices[[AEO Table Variable]:[AEO Table Variable]],0),0) -> 41.69429347 | HW3: =OFFSET(TableEnergyPrices[[#Headers],[2014]],MATCH($HR3,TableEnergyPrices[[AEO Table Variable]:[AEO Table Variable]],0),0) -> 44.63553223 | HX3: =OFFSET(TableEnergyPrices[[#Headers],[2015]],MATCH($HR3,TableEnergyPrices[[AEO Table Variable]:[AEO Table Variable]],0),0) -> 36.13319816 | HY3: =OFFSET(TableEnergyPrices[[#Headers],[2016]],MATCH($HR3,TableEnergyPrices[[AEO Table Variable]:[AEO Table Variable]],0),0) -> 33.19518593 | HZ3: =OFFSET(TableEnergyPrices[[#Headers],[2017]],MATCH($HR3,TableEnergyPrices[[AEO Table Variable]:[AEO Table Variable]],0),0) -> 37.65078593 | IA3: =OFFSET(TableEnergyPrices[[#Headers],[2018]],MATCH($HR3,TableEnergyPrices[[AEO Table Variable]:[AEO Table Variable]],0),0) -> 40.01108925 | IB3: =OFFSET(TableEnergyPrices[[#Headers],[2019]],MATCH($HR3,TableEnergyPrices[[AEO Table Variable]:[AEO Table Variable]],0),0) -> 42.03290152 | IC3: =OFFSET(TableEnergyPrices[[#Headers],[2020]],MATCH($HR3,TableEnergyPrices[[AEO Table Variable]:[AEO Table Variable]],0),0) -> 43.8983365 | ID3: =OFFSET(TableEnergyPrices[[#Headers],[2021]],MATCH($HR3,TableEnergyPrices[[AEO Table Variable]:[AEO Table Variable]],0),0) -> 44.32362236 | IE3: =OFFSET(TableEnergyPrices[[#Headers],[2022]],MATCH($HR3,TableEnergyPrices[[AEO Table Variable]:[AEO Table Variable]],0),0) -> 44.73897753 | IF3: =OFFSET(TableEnergyPrices[[#Headers],[2023]],MATCH($HR3,TableEnergyPrices[[AEO Table Variable]:[AEO Table Variable]],0),0) -> 45.21954375 | IG3: =OFFSET(TableEnergyPrices[[#Headers],[2024]],MATCH($HR3,TableEnergyPrices[[AEO Table Variable]:[AEO Table Variable]],0),0) -> 45.82104774 | IH3: =OFFSET(TableEnergyPrices[[#Headers],[2025]],MATCH($HR3,TableEnergyPrices[[AEO Table Variable]:[AEO Table Variable]],0),0) -> 46.54872761 | II3: =OFFSET(TableEnergyPrices[[#Headers],[2026]],MATCH($HR3,TableEnergyPrices[[AEO Table Variable]:[AEO Table Variable]],0),0) -> 47.16656553 | IJ3: =OFFSET(TableEnergyPrices[[#Headers],[2027]],MATCH($HR3,TableEnergyPrices[[AEO Table Variable]:[AEO Table Variable]],0),0) -> 48.53524536 | IK3: =OFFSET(TableEnergyPrices[[#Headers],[2028]],MATCH($HR3,TableEnergyPrices[[AEO Table Variable]:[AEO Table Variable]],0),0) -> 49.01466488 | IL3: =OFFSET(TableEnergyPrices[[#Headers],[2029]],MATCH($HR3,TableEnergyPrices[[AEO Table Variable]:[AEO Table Variable]],0),0) -> 49.61108491 | IM3: =OFFSET(TableEnergyPrices[[#Headers],[2030]],MATCH($HR3,TableEnergyPrices[[AEO Table Variable]:[AEO Table Variable]],0),0) -> 50.17081436 | IN3: =OFFSET(TableEnergyPrices[[#Headers],[2031]],MATCH($HR3,TableEnergyPrices[[AEO Table Variable]:[AEO Table Variable]],0),0) -> 50.80000256 | IO3: =OFFSET(TableEnergyPrices[[#Headers],[2032]],MATCH($HR3,TableEnergyPrices[[AEO Table Variable]:[AEO Table Variable]],0),0) -> 51.31958577 | IP3: =OFFSET(TableEnergyPrices[[#Headers],[2033]],MATCH($HR3,TableEnergyPrices[[AEO Table Variable]:[AEO Table Variable]],0),0) -> 51.55721024 | IQ3: =OFFSET(TableEnergyPrices[[#Headers],[2034]],MATCH($HR3,TableEnergyPrices[[AEO Table Variable]:[AEO Table Variable]],0),0) -> 52.20167836 | IR3: =OFFSET(TableEnergyPrices[[#Headers],[2035]],MATCH($HR3,TableEnergyPrices[[AEO Table Variable]:[AEO Table Variable]],0),0) -> 53.04750008 | IS3: =OFFSET(TableEnergyPrices[[#Headers],[2036]],MATCH($HR3,TableEnergyPrices[[AEO Table Variable]:[AEO Table Variable]],0),0) -> 53.74803125 | IT3: =OFFSET(TableEnergyPrices[[#Headers],[2037]],MATCH($HR3,TableEnergyPrices[[AEO Table Variable]:[AEO Table Variable]],0),0) -> 54.27764193 | IU3: =OFFSET(TableEnergyPrices[[#Headers],[2038]],MATCH($HR3,TableEnergyPrices[[AEO Table Variable]:[AEO Table Variable]],0),0) -> 54.77907802 | IV3: =OFFSET(TableEnergyPrices[[#Headers],[2039]],MATCH($HR3,TableEnergyPrices[[AEO Table Variable]:[AEO Table Variable]],0),0) -> 55.44503739 | IW3: =OFFSET(TableEnergyPrices[[#Headers],[2040]],MATCH($HR3,TableEnergyPrices[[AEO Table Variable]:[AEO Table Variable]],0),0) -> 55.79075385 | IX3: =OFFSET(TableEnergyPrices[[#Headers],[2041]],MATCH($HR3,TableEnergyPrices[[AEO Table Variable]:[AEO Table Variable]],0),0) -> 56.3309527 | IY3: =OFFSET(TableEnergyPrices[[#Headers],[2042]],MATCH($HR3,TableEnergyPrices[[AEO Table Variable]:[AEO Table Variable]],0),0) -> 56.98846443 | IZ3: =OFFSET(TableEnergyPrices[[#Headers],[2043]],MATCH($HR3,TableEnergyPrices[[AEO Table Variable]:[AEO Table Variable]],0),0) -> 57.75046771 | JA3: =OFFSET(TableEnergyPrices[[#Headers],[2044]],MATCH($HR3,TableEnergyPrices[[AEO Table Variable]:[AEO Table Variable]],0),0) -> 58.54074956 | JB3: =OFFSET(TableEnergyPrices[[#Headers],[2045]],MATCH($HR3,TableEnergyPrices[[AEO Table Variable]:[AEO Table Variable]],0),0) -> 59.38232751 | JC3: =OFFSET(TableEnergyPrices[[#Headers],[2046]],MATCH($HR3,TableEnergyPrices[[AEO Table Variable]:[AEO Table Variable]],0),0) -> 60.19374569 | JD3: =OFFSET(TableEnergyPrices[[#Headers],[2047]],MATCH($HR3,TableEnergyPrices[[AEO Table Variable]:[AEO Table Variable]],0),0) -> 61.00866233 | JE3: =OFFSET(TableEnergyPrices[[#Headers],[2048]],MATCH($HR3,TableEnergyPrices[[AEO Table Variable]:[AEO Table Variable]],0),0) -> 61.86816096 | JF3: =OFFSET(TableEnergyPrices[[#Headers],[2049]],MATCH($HR3,TableEnergyPrices[[AEO Table Variable]:[AEO Table Variable]],0),0) -> 62.60803413 | JG3: =OFFSET(TableEnergyPrices[[#Headers],[2050]],MATCH($HR3,TableEnergyPrices[[AEO Table Variable]:[AEO Table Variable]],0),0) -> 63.58751635 | JI3: ='CO2 Factors'!A61 -> Commercial Fuel CO2 → | JJ3: =OFFSET(TableCO2Factors[[#Headers],[2010]],MATCH($JI3,TableCO2Factors[[Energy Resource]:[Energy Resource]],0),0) -> 220.953308 | JK3: =OFFSET(TableCO2Factors[[#Headers],[2011]],MATCH($JI3,TableCO2Factors[[Energy Resource]:[Energy Resource]],0),0) -> 222.090027 | JL3: =OFFSET(TableCO2Factors[[#Headers],[2012]],MATCH($JI3,TableCO2Factors[[Energy Resource]:[Energy Resource]],0),0) -> 201.593323 | JM3: =OFFSET(TableCO2Factors[[#Headers],[2013]],MATCH($JI3,TableCO2Factors[[Energy Resource]:[Energy Resource]],0),0) -> 223.776672 | JN3: =OFFSET(TableCO2Factors[[#Headers],[2014]],MATCH($JI3,TableCO2Factors[[Energy Resource]:[Energy Resource]],0),0) -> 235.104065 | JO3: =OFFSET(TableCO2Factors[[#Headers],[2015]],MATCH($JI3,TableCO2Factors[[Energy Resource]:[Energy Resource]],0),0) -> 217.543335 | JP3: =OFFSET(TableCO2Factors[[#Headers],[2016]],MATCH($JI3,TableCO2Factors[[Energy Resource]:[Energy Resource]],0),0) -> 226.229248 | JQ3: =OFFSET(TableCO2Factors[[#Headers],[2017]],MATCH($JI3,TableCO2Factors[[Energy Resource]:[Energy Resource]],0),0) -> 231.668701 | JR3: =OFFSET(TableCO2Factors[[#Headers],[2018]],MATCH($JI3,TableCO2Factors[[Energy Resource]:[Energy Resource]],0),0) -> 230.06128 | JS3: =OFFSET(TableCO2Factors[[#Headers],[2019]],MATCH($JI3,TableCO2Factors[[Energy Resource]:[Energy Resource]],0),0) -> 227.732666 | JT3: =OFFSET(TableCO2Factors[[#Headers],[2020]],MATCH($JI3,TableCO2Factors[[Energy Resource]:[Energy Resource]],0),0) -> 226.40747 | JU3: =OFFSET(TableCO2Factors[[#Headers],[2021]],MATCH($JI3,TableCO2Factors[[Energy Resource]:[Energy Resource]],0),0) -> 226.625061 | JV3: =OFFSET(TableCO2Factors[[#Headers],[2022]],MATCH($JI3,TableCO2Factors[[Energy Resource]:[Energy Resource]],0),0) -> 226.7854 | JW3: =OFFSET(TableCO2Factors[[#Headers],[2023]],MATCH($JI3,TableCO2Factors[[Energy Resource]:[Energy Resource]],0),0) -> 226.934082 | JX3: =OFFSET(TableCO2Factors[[#Headers],[2024]],MATCH($JI3,TableCO2Factors[[Energy Resource]:[Energy Resource]],0),0) -> 227.171447 | JY3: =OFFSET(TableCO2Factors[[#Headers],[2025]],MATCH($JI3,TableCO2Factors[[Energy Resource]:[Energy Resource]],0),0) -> 227.298767 | JZ3: =OFFSET(TableCO2Factors[[#Headers],[2026]],MATCH($JI3,TableCO2Factors[[Energy Resource]:[Energy Resource]],0),0) -> 227.527588 | KA3: =OFFSET(TableCO2Factors[[#Headers],[2027]],MATCH($JI3,TableCO2Factors[[Energy Resource]:[Energy Resource]],0),0) -> 227.503296 | KB3: =OFFSET(TableCO2Factors[[#Headers],[2028]],MATCH($JI3,TableCO2Factors[[Energy Resource]:[Energy Resource]],0),0) -> 227.80603 | KC3: =OFFSET(TableCO2Factors[[#Headers],[2029]],MATCH($JI3,TableCO2Factors[[Energy Resource]:[Energy Resource]],0),0) -> 228.223449 | KD3: =OFFSET(TableCO2Factors[[#Headers],[2030]],MATCH($JI3,TableCO2Factors[[Energy Resource]:[Energy Resource]],0),0) -> 228.827331 | KE3: =OFFSET(TableCO2Factors[[#Headers],[2031]],MATCH($JI3,TableCO2Factors[[Energy Resource]:[Energy Resource]],0),0) -> 229.469727 | KF3: =OFFSET(TableCO2Factors[[#Headers],[2032]],MATCH($JI3,TableCO2Factors[[Energy Resource]:[Energy Resource]],0),0) -> 230.254333 | KG3: =OFFSET(TableCO2Factors[[#Headers],[2033]],MATCH($JI3,TableCO2Factors[[Energy Resource]:[Energy Resource]],0),0) -> 231.579163 | KH3: =OFFSET(TableCO2Factors[[#Headers],[2034]],MATCH($JI3,TableCO2Factors[[Energy Resource]:[Energy Resource]],0),0) -> 232.672974 | KI3: =OFFSET(TableCO2Factors[[#Headers],[2035]],MATCH($JI3,TableCO2Factors[[Energy Resource]:[Energy Resource]],0),0) -> 233.64508 | KJ3: =OFFSET(TableCO2Factors[[#Headers],[2036]],MATCH($JI3,TableCO2Factors[[Energy Resource]:[Energy Resource]],0),0) -> 234.438843 | KK3: =OFFSET(TableCO2Factors[[#Headers],[2037]],MATCH($JI3,TableCO2Factors[[Energy Resource]:[Energy Resource]],0),0) -> 235.605835 | KL3: =OFFSET(TableCO2Factors[[#Headers],[2038]],MATCH($JI3,TableCO2Factors[[Energy Resource]:[Energy Resource]],0),0) -> 236.909913 | KM3: =OFFSET(TableCO2Factors[[#Headers],[2039]],MATCH($JI3,TableCO2Factors[[Energy Resource]:[Energy Resource]],0),0) -> 238.141907 | KN3: =OFFSET(TableCO2Factors[[#Headers],[2040]],MATCH($JI3,TableCO2Factors[[Energy Resource]:[Energy Resource]],0),0) -> 239.694885 | KO3: =OFFSET(TableCO2Factors[[#Headers],[2041]],MATCH($JI3,TableCO2Factors[[Energy Resource]:[Energy Resource]],0),0) -> 241.292053 | KP3: =OFFSET(TableCO2Factors[[#Headers],[2042]],MATCH($JI3,TableCO2Factors[[Energy Resource]:[Energy Resource]],0),0) -> 243.023621 | KQ3: =OFFSET(TableCO2Factors[[#Headers],[2043]],MATCH($JI3,TableCO2Factors[[Energy Resource]:[Energy Resource]],0),0) -> 244.705505 | KR3: =OFFSET(TableCO2Factors[[#Headers],[2044]],MATCH($JI3,TableCO2Factors[[Energy Resource]:[Energy Resource]],0),0) -> 246.478088 | KS3: =OFFSET(TableCO2Factors[[#Headers],[2045]],MATCH($JI3,TableCO2Factors[[Energy Resource]:[Energy Resource]],0),0) -> 248.236146 | KT3: =OFFSET(TableCO2Factors[[#Headers],[2046]],MATCH($JI3,TableCO2Factors[[Energy Resource]:[Energy Resource]],0),0) -> 249.92926 | KU3: =OFFSET(TableCO2Factors[[#Headers],[2047]],MATCH($JI3,TableCO2Factors[[Energy Resource]:[Energy Resource]],0),0) -> 251.641907 | KV3: =OFFSET(TableCO2Factors[[#Headers],[2048]],MATCH($JI3,TableCO2Factors[[Energy Resource]:[Energy Resource]],0),0) -> 253.351318 | KW3: =OFFSET(TableCO2Factors[[#Headers],[2049]],MATCH($JI3,TableCO2Factors[[Energy Resource]:[Energy Resource]],0),0) -> 255.107666 | KX3: =OFFSET(TableCO2Factors[[#Headers],[2050]],MATCH($JI3,TableCO2Factors[[Energy Resource]:[Energy Resource]],0),0) -> 256.752868
